Workbook

Sheet D%
G1: =+B:IPIP29G:AHIP29G:AHIG:AH ->  | KS1: c | KT1: c | KV1: c | LA1: c | LB1: c | LD1: c | LE1: c | LG1: c | LH1: c | LJ1: c | LK1: c | LM1: c | LN1: c | LQ1: c
MA4: SC-PROD | MB4: JU-PROD | MC4: JU-SOST | MD4: JU-TA/LA | ME4: MX-CONC | MF4: CA-ANFO | MG4: LA-CONC | MQ4: SC-PROD | MR4: SC-SERV | MS4: JU-PROD | MT4: JU-SOST | MU4: JU-TA/LA | MV4: MX-CONC | MW4: CA-ANFO | MX4: LA-CONC
LZ5: OBJ DF | MA5: 85.00 | MB5: 85.00 | MC5: 85.00 | MD5: 85.00 | ME5: 85.00 | MF5: 85.00 | MG5: 85.00 | MP5: OBJ DF | MQ5: 85.00 | MR5: 85.00 | MS5: 85.00 | MT5: 85.00 | MU5: 85.00 | MV5: 85.00 | MW5: 85.00 | MX5: 85.00
LZ6: OBJ UT | MA6: =50/100 -> 50% | MB6: 20% | MC6: 20% | MD6: 20% | ME6: 30% | MF6: 18% | MG6: 18% | MP6: OBJ UT | MQ6: =50/100 -> 50% | MR6: 50% | MS6: 20% | MT6: 20% | MU6: 20% | MV6: 30% | MW6: 18% | MX6: 18%
DQ7: º | LZ7: DF | MA7: =+LQ13/100 -> 90.0% | MB7: =+LQ17/100 -> 69.8% | MC7: =LQ21/100 -> 91.7% | MD7: =+LQ25/100 -> 49.9% | ME7: =+LQ29/100 -> 96.7% | MF7: =+LQ33/100 -> 61.9% | MG7: =+LQ37/100 -> 85.0% | MP7: DF | MQ7: =+LR13/100 -> 82.2% | MR7: =#REF!/100 ->  | MS7: =+LR17/100 -> 82.6% | MT7: =LR21/100 -> 87.1% | MU7: =+LR25/100 -> 64.4% | MV7: =+LR29/100 -> 90.8% | MW7: =+LR33/100 -> 73.4% | MX7: =+LR37/100 -> 87.8% | MY7: =AVERAGE(MQ7:MX7) -> 
LZ8: DM | MA8: =+EV14/100 -> 0.0% | MB8: =+IQ18/100 -> 0.0% | MC8: =IQ22/100 -> 0.0% | MD8: =+IQ26/100 -> 0.0% | ME8: =+IQ30/100 -> 0.0% | MF8: =+IQ34/100 -> 0.0% | MG8: =+EV38/100 -> 0.0% | MP8: DM | MQ8: =+FO14/100 -> 0.0% | MR8: =+#REF!/100 ->  | MS8: =+FO18/100 -> 0.0% | MT8: =+FO22/100 -> 0.0% | MU8: =+FO26/100 -> 0.0% | MV8: =+FO29/100 -> 98.7% | MW8: =+FO34/100 -> 0.0% | MX8: =+FO38/100 -> 0.0% | MY8: =AVERAGE(MQ8:MX8) -> 
G9: 1 | H9: 2 | I9: 3 | J9: 4 | K9: 5 | L9: 6 | M9: 7 | N9: 8 | O9: 9 | P9: 10 | Q9: 11 | R9: 12 | S9: 13 | T9: 14 | U9: 15 | V9: 16 | W9: 17 | X9: 18 | Y9: 19 | Z9: 20 | AA9: 21 | AB9: 22 | AC9: 23 | AD9: 24 | AE9: 25 | AF9: 26 | AG9: 27 | AH9: 27 | AI9: 28 | AJ9: 30 | FL9: PROGTA | LZ9: UF | MA9: =+LQ15/100 -> 49.9% | MB9: =LQ19/100 -> 5.2% | MC9: =LQ23/100 -> 8.2% | MD9: =+LQ27/100 -> 1.8% | ME9: =+LQ31/100 -> 30.7% | MF9: =+LQ35/100 -> 3.8% | MG9: =+LQ39/100 -> 6.6% | MP9: UT | MQ9: =+LR15/100 -> 42.0% | MR9: =+#REF!/100 ->  | MS9: =+LR19/100 -> 7.0% | MT9: =+LR23/100 -> 5.5% | MU9: =+LR27/100 -> 2.4% | MV9: =+LR31/100 -> 24.6% | MW9: =+LR35/100 -> 3.4% | MX9: =+LR39/100 -> 7.6% | MY9: =AVERAGE(MQ9:MX9) -> 
LZ10: UO | MA10: =+LQ16/100 -> 61.5% | MB10: =+LQ20/100 -> 6.4% | MC10: =+LQ24/100 -> 10.0% | MD10: =+LQ28/100 -> 2.7% | ME10: =+LQ32/100 -> 37.0% | MF10: =+LQ36/100 -> 4.7% | MG10: =+LQ40/100 -> 8.2%
B11: EQUIPOS DE PRODUCCION SEMANA 30 | LZ11: DF PR-23 | MA11: =+E13 -> 83.7% | MB11: =+E17 -> 87.8% | MC11: =+E21 -> 79.6% | MD11: =+E25 -> 89.0% | ME11: =+E29 -> 91.1% | MF11: =+E33 -> 83.1% | MG11: =+E37 -> 85.3% | MP11: DF PR-21 | MQ11: =+E13 -> 83.7% | MR11: =+#REF! ->  | MS11: =+E17 -> 87.8% | MT11: =+E21 -> 79.6% | MU11: =+E25 -> 89.0% | MV11: =+E29 -> 91.1% | MW11: =+E33 -> 83.1% | MX11: =+E37 -> 85.3% | MY11: =AVERAGE(MQ11:MX11) -> 
B12: TIPO | C12: KPIs | D12: UM | E12: PROM. 2023 | F12: OBJ. | G12: SEM 01 | H12: SEM 02 | I12: SEM 03 | J12: SEM 04 | K12: SEM 05 | L12: SEM 06 | M12: SEM 07 | N12: SEM 08 | O12: SEM 09 | P12: SEM 10 | Q12: SEM 11 | R12: SEM 12 | S12: SEM 13 | T12: SEM 14 | U12: SEM 15 | V12: SEM 16 | W12: SEM 17 | X12: SEM 18 | Y12: SEM 19 | Z12: SEM 20 | AA12: SEM 21 | AB12: SEM 22 | AC12: SEM 23 | AD12: SEM 24 | AE12: SEM 25 | AF12: SEM 26 | AG12: SEM 27 | AH12: SEM 28 | AI12: SEM 29 | AJ12: SEM 30 | AK12: SEM 31 | AL12: SEM 32 | AM12: SEM 33 | AN12: SEM 34 | AO12: SEM 35 | AP12: SEM 36 | AQ12: SEM 37 | AR12: SEM 38 | AS12: SEM 39 | AT12: SEM 40 | AU12: SEM 41 | AV12: SEM 42 | AW12: SEM 43 | AX12: SEM 44 | AY12: SEM 45 | AZ12: SEM 46 | BA12: SEM 47 | BB12: SEM 48 | BC12: SEM 49 | BD12: SEM 50 | BE12: SEM 51 | BF12: SEM 52 | BG12: SEM 01 | BH12: SEM 02 | BI12: SEM 03 | BJ12: SEM 04 | BK12: SEM 05 | BL12: SEM 06 | BM12: SEM 07 | BN12: SEM 08 | BO12: SEM 09 | BP12: SEM 10 | BQ12: SEM 11 | BR12: SEM 12 | BS12: SEM 13 | BT12: SEM 14 | BU12: SEM 15 | BV12: SEM 16 | BW12: SEM 17 | BX12: SEM 18 | BY12: SEM 19 | BZ12: SEM 20 | CA12: SEM 21 | CB12: SEM 22 | CC12: SEM 23 | CD12: SEM 24 | CE12: SEM 25 | CF12: SEM 26 | CG12: SEM 27 | CH12: SEM 28 | CI12: SEM 29 | CJ12: SEM 30 | CK12: SEM 31 | CL12: SEM 32 | CM12: SEM 33 | CN12: SEM 34 | CO12: SEM 35 | CP12: SEM 36 | CQ12: SEM 37 | CR12: SEM 38 | CS12: SEM 39 | CT12: SEM 40 | CU12: SEM 41 | CV12: SEM 42 | CW12: SEM 43 | CX12: SEM 44 | CY12: SEM 45 | CZ12: SEM 46 | DA12: SEM 47 | DB12: SEM 48 | DC12: SEM 49 | DD12: SEM 50 | DE12: SEM 51 | DF12: SEM 52 | DG12: SEM 01 | DH12: SEM 02 | DI12: SEM 03 | DJ12: SEM 04 | DK12: SEM 05 | DL12: SEM 06 | DM12: SEM 07 | DN12: SEM 08 | DO12: SEM 09 | DP12: SEM 10 | DQ12: SEM 11 | DR12: SEM 12 | DS12: SEM 13 | DT12: SEM 14 | DU12: SEM 15 | DV12: SEM 16 | DW12: SEM 30 | DX12: SEM 31 | DY12: SEM 32 | DZ12: SEM 33 | EA12: SEM 36 | EB12: SEM 37 | EC12: SEM 38 | ED12: SEM 39 | EE12: SEM 40 | EF12: SEM 41 | EG12: SEM 42 | EH12: SEM 43 | EI12: SEM 44 | EJ12: SEM 45 | EK12: SEM 46 | EL12: SEM 47 | EM12: SEM 48 | EN12: SEM 49 | EO12: SEM 50 | EP12: SEM 51 | EQ12: SEM 52 | ER12: SEM 53 | ES12: SEM 01 | ET12: SEM 02 | EU12: SEM 03 | EV12: SEM 04 | EW12: SEM 05 | EX12: SEM 06 | EY12: SEM 07 | EZ12: SEM 08 | FA12: SEM 09 | FB12: SEM 10 | FC12: SEM 11 | FD12: SEM 17 | FE12: SEM18 | FF12: SEM 19 | FG12: SEM20 | FH12: SEM21 | FI12: SEM22 | FJ12: SEM23 | FK12: SEM24 | FL12: SEM25 | FM12: SEM26 | FN12: SEM27 | FO12: SEM28 | FP12: SEM 29 | FQ12: SEM 30 | FR12: SEM 31 | FS12: SEM 32 | FT12: SEM 33 | FU12: SEM 34 | FV12: SEM 35 | FW12: SEM 36 | FX12: SEM 37 | FY12: SEM 38 | FZ12: SEM 39 | GA12: SEM 40 | GB12: SEM 41 | GC12: SEM 42 | GD12: SEM 43 | GE12: SEM 44 | GF12: SEM 45 | GG12: SEM 46 | GH12: SEM 47 | GI12: SEM 48 | GJ12: SEM 49 | GK12: SEM 50 | GL12: SEM 51 | GM12: SEM 52 | GN12: SEM 01 | GO12: SEM 02 | GP12: SEM 03 | GQ12: SEM 04 | GR12: SEM 05 | GS12: SEM 06 | GT12: SEM 07 | GU12: SEM 08 | GV12: SEM 09 | GW12: SEM 10 | GX12: SEM 11 | GY12: SEM 12 | GZ12: SEM 13 | HA12: SEM 14 | HB12: SEM 15 | HC12: SEM 16 | HD12: SEM 17 | HE12: SEM 18 | HF12: SEM 19 | HG12: SEM 20 | HH12: SEM 21 | HI12: SEM 22 | HJ12: SEM 23 | HK12: SEM 24 | HL12: SEM 25 | HM12: SEM 26 | HN12: SEM 27 | HO12: SEM 28 | HP12: SEM 29 | HQ12: SEM 30 | HR12: SEM 31 | HS12: SEM 32 | HT12: SEM 33 | HU12: SEM 34 | HV12: SEM 35 | HW12: SEM 36 | HX12: SEM 37 | HY12: SEM 38 | HZ12: SEM 39 | IA12: SEM 40 | IB12: SEM 41 | IC12: SEM 42 | ID12: SEM 43 | IE12: SEM 44 | IF12: SEM 45 | IG12: SEM 46 | IH12: SEM 47 | II12: SEM 48 | IJ12: SEM 49 | IK12: SEM 50 | IL12: SEM 51 | IM12: SEM 52 | IN12: SEM 01 | IO12: SEM 02 | IP12: SEM 03 | IQ12: SEM 04 | IR12: SEM 05 | IS12: SEM 06 | IT12: SEM 07 | IU12: SEM 08 | IV12: SEM 09 | IW12: SEM 10 | IX12: SEM 11 | IY12: SEM 12 | IZ12: SEM 13 | JA12: SEM 14 | JB12: SEM 15 | JC12: SEM 16 | JD12: SEM 17 | JE12: SEM 18 | JF12: SEM 19 | JG12: SEM 20 | JH12: SEM 21 | JI12: SEM 22 | JJ12: SEM 23 | JK12: SEM 24 | JL12: SEM 25 | JM12: SEM 26 | JN12: SEM 27 | JO12: SEM 28 | JP12: SEM 29 | JQ12: SEM 30 | JR12: SEM 31 | JS12: SEM 32 | JT12: SEM 33 | JU12: SEM 34 | JV12: SEM 35 | JW12: SEM 36 | JX12: SEM 37 | JY12: SEM 38 | JZ12: SEM 39 | KA12: SEM 40 | KB12: SEM 41 | KC12: SEM 42 | KD12: SEM 43 | KE12: SEM 44 | KF12: SEM 45 | KG12: SEM 46 | KH12: SEM 47 | KI12: SEM 48 | KJ12: SEM 49 | KK12: SEM 50 | KL12: SEM 51 | KM12: SEM 52 | KN12: SEM 01 | KO12: SEM 02 | KP12: SEM 03 | KQ12: SEM 04 | KR12: SEM 05 | KS12: SEM 06 | KT12: SEM 07 | KU12: SEM 08 | KV12: SEM 09 | KW12: SEM 10 | KX12: SEM 11 | KY12: SEM 12 | KZ12: SEM 13 | LA12: SEM 14 | LB12: SEM 15 | LC12: SEM 16 | LD12: SEM 17 | LE12: SEM 18 | LF12: SEM 19 | LG12: SEM 20 | LH12: SEM 21 | LI12: SEM 22 | LJ12: SEM 23 | LK12: SEM 24 | LL12: SEM 25 | LM12: SEM 26 | LN12: SEM 27 | LO12: SEM 28 | LP12: SEM 29 | LQ12: SEM 30 | LR12: PROM. 2024 | LS12: STATUS | LT12: COSTO | LU12: CANTIDAD | LV12: % CANTIDAD | LW12: % COSTOS ($) | LX12: PONDERADO
B13: SCOOPTRAMS - PRODUCCION (CAT 4 - 6 / ST1030_1-2-3) | C13: DF | D13: % | E13: 83.7% | F13: 85.0 | G13: 88.1 | H13: 97.4 | I13: 94.2 | J13: 92.4 | K13: 81.8 | L13: 85.0 | M13: 84.0 | N13: 78.5 | O13: 76.9 | P13: 94.5 | Q13: 90.5 | R13: 70.6 | S13: 73.2 | T13: 91.4 | U13: 92.0 | V13: 85.6 | W13: 93.5 | X13: 89.1 | Y13: 87.7 | Z13: 87.6 | AA13: 88.0 | AB13: 84.9 | AC13: 83.0 | AD13: 72.2 | AE13: 67.3 | AF13: 76.3 | AG13: 78.9 | AH13: 78.0 | AI13: 83.3 | AJ13: 82.0 | AK13: 87.4 | AL13: 89.3 | AM13: 88.0 | AN13: 92.4 | AO13: 90.4 | AP13: 79.9 | AQ13: 74.6 | AR13: 85.9 | AS13: 95.0 | AT13: 84.0 | AU13: 83.4 | AV13: 75.0 | AW13: 73.3 | AX13: 73.1 | AY13: 69.9 | AZ13: 73.2 | BA13: 77.6 | BB13: 92.7 | BC13: 78.8 | BD13: 85.4 | BE13: 90.2 | BF13: 75.3 | BG13: 77.3 | BH13: 72.3 | BI13: 74.4 | BJ13: 68.6 | BK13: 74.2 | BL13: 69.2 | BM13: 74.5 | BN13: 85.5 | BO13: 83.1 | BP13: 94.6 | BQ13: 93.1 | BR13: 85.0 | BS13: 91.2 | BT13: 79.1 | BU13: 76.9 | BV13: 89.6 | BW13: 89.6 | BX13: 76.3 | BY13: 95.5 | BZ13: 85.1 | CA13: 95.5 | CB13: 80.1 | CC13: 88.5 | CD13: 85.7 | CE13: 92.3 | CF13: 85.7 | CG13: 94.4 | CH13: 91.1 | CI13: 91.1 | CJ13: 80.3 | CK13: 71.7 | CL13: 71.8 | CM13: 75.1 | CN13: 78.3 | CO13: 75.6 | CP13: 65.1 | CQ13: 82.6 | CR13: 83.5 | CS13: 69.8 | CT13: 66.5 | CU13: 59.7 | CV13: 69.2 | CW13: 77.1 | CX13: 74.5 | CY13: 84.9 | CZ13: 69.2 | DA13: 59.0 | DB13: 80.6 | DC13: 77.4 | DD13: 76.8 | DE13: 78.4 | DF13: 77.2 | DG13: 72.5 | DH13: 79.4 | DI13: 74.3 | DJ13: 76.8 | DK13: 89.3 | DL13: 92.7 | DM13: 89.6 | DN13: 93.3 | DO13: 82.6 | DP13: 88.8 | DQ13: 95.0 | DR13: 80.4 | DS13: 77.9 | DT13: 77.0 | DU13: 72.6 | DV13: 72.0 | DW13: 94.4 | DX13: 89.5 | DY13: 86.8 | DZ13: 88.2 | EA13: 88.2 | EB13: 85.7 | EC13: 79.7 | ED13: 64.9 | EE13: 58.3 | EF13: 67.8 | EG13: 56.4 | EH13: 83.9 | EI13: 83.6 | EJ13: 81.9 | EK13: 80.8 | EL13: 77.2 | EM13: 78.7 | EN13: 81.1 | EO13: 91.2 | EP13: 85.6 | EQ13: 94.3 | ER13: 79.7 | ES13: 83.2 | ET13: 79.2 | EU13: 86.7 | EV13: 87.8 | EW13: 72.9 | EX13: 78.1 | EY13: 65.4 | EZ13: 76.9 | FA13: 91.0 | FB13: 88.9 | FC13: 86.8 | FD13: 98.0 | FE13: 89.0 | FF13: 96.6 | FG13: 79.58 | FH13: 79.24 | FI13: 86.98 | FJ13: 95.00 | FK13: 92.44 | FL13: 94.47 | FM13: 93.69 | FN13: 79.79 | FO13: 75.00 | FP13: 86.55 | FQ13: 91.77 | FR13: 95.63 | FS13: 74.09 | FT13: 85.01 | FU13: 89.68 | FV13: 90.35 | FW13: 93.79 | FX13: 93.00 | FY13: 82.61 | FZ13: 84.82 | GA13: 93.27 | GB13: 82.19 | GC13: 96.00 | GD13: 91.31 | GE13: 97.85 | GF13: 87.05 | GG13: 76.03 | GH13: 77.62 | GI13: 78.16 | GJ13: 80.51 | GK13: 83.91 | GL13: 75.43 | GM13: 72.51 | GN13: 75.24 | GO13: 60.13 | GP13: 55.68 | GQ13: 67.47 | GR13: 63.94 | GS13: 72.25 | GT13: 79.31 | GU13: 65.87 | GV13: 66.64 | GW13: 50.60 | GX13: 57.55 | GY13: 74.56 | GZ13: 67.55 | HA13: 77.74 | HB13: 68.98 | HC13: 72.29 | HD13: 66.99 | HE13: 72.67 | HF13: 70.48 | HG13: 64.83 | HH13: 64.65 | HI13: 65.67 | HJ13: 63.71 | HK13: 62.85 | HL13: 66.73 | HM13: 68.69 | HN13: 70.44 | HO13: 66.75 | HP13: 60.68 | HQ13: 71.96 | HR13: 88.20 | HS13: 75.57 | HT13: 75.27 | HU13: 86.50 | HV13: 67.80 | HW13: 74.91 | HX13: 72.14 | HY13: 80.46 | HZ13: 74.75 | IA13: 72.35 | IB13: 85.93 | IC13: 77.03 | ID13: 80.61 | IE13: 87.10 | IF13: 85.18 | IG13: 81.66 | IH13: 95.20 | II13: 91.82 | IJ13: 90.64 | IK13: 84.43 | IL13: 78.81 | IM13: 71.45 | IN13: 90.31 | IO13: 89.89 | IP13: 90.02 | IQ13: 93.27 | IR13: 80.78 | IS13: 63.53 | IT13: 63.31 | IU13: 69.01 | IV13: 65.28 | IW13: 64.41 | IX13: 78.38 | IY13: 79.87 | IZ13: 82.31 | JA13: 74.64 | JB13: 81.13 | JC13: 87.13 | JD13: 91.01 | JE13: 92.48 | JF13: 94.87 | JG13: 96.53 | JH13: 88.89 | JI13: 89.75 | JJ13: 90.43 | JK13: 84.96 | JL13: 80.70 | JM13: 85.09 | JN13: 88.73 | JO13: 78.88 | JP13: 85.18 | JQ13: 89.71 | JR13: 87.02 | JS13: 92.86 | JT13: 93.30 | JU13: 93.79 | JV13: 89.37 | JW13: 92.16 | JX13: 92.09 | JY13: 89.24 | JZ13: 88.66 | KA13: 89.61 | KB13: 91.64 | KC13: 87.96 | KD13: 84.89 | KE13: 78.57 | KF13: 70.15 | KG13: 81.30 | KH13: 91.12 | KI13: 82.82 | KJ13: 64.29 | KK13: 67.47 | KL13: 75.40 | KM13: 77.87 | KN13: 65.58 | KO13: 70.15 | KP13: 78.53 | KQ13: 76.19 | KR13: 72.85 | KS13: 85.00 | KT13: 82.17 | KU13: 80.29 | KV13: 85.64 | KW13: 82.59 | KX13: 75.59 | KY13: 72.59 | KZ13: 76.55 | LA13: 72.32 | LB13: 85.52 | LC13: 94.03 | LD13: 90.36 | LE13: 91.44 | LF13: 90.74 | LG13: 81.11 | LH13: 86.06 | LI13: 88.55 | LJ13: 81.99 | LK13: 78.44 | LL13: 82.57 | LM13: 88.48 | LN13: 86.74 | LO13: 92.20 | LP13: 81.79 | LQ13: ='KPIs SEMANA'!CAB36 -> 90.00 | LR13: =AVERAGE(KN13:LQ13) -> 82.20 | LS13: =IF(LQ13>F13,"J","L") -> J | LT13: 831603.14 | LU13: 7 | LV13: =+LU13/$LU$75 -> 26.9% | LW13: =+LT13/$LT$41 -> 34.3% | LX13: =AVERAGE(LV13:LW13) -> 30.6%
C14: DM | D14: % | F14: 85.0 | G14: 0.0 | H14: 0.0 | I14: 0.0 | J14: 0.0 | K14: 0.0 | L14: 0.0 | M14: 0.0 | N14: 0.0 | O14: 0.0 | P14: 0.0 | Q14: 0.0 | R14: 0.0 | S14: 0.0 | T14: 0.0 | U14: 0.0 | V14: 0.0 | W14: 0.0 | X14: 0.0 | Y14: 0.0 | Z14: 0.0 | AA14: 0.0 | AB14: 0.0 | AC14: 0.0 | AD14: 0.0 | AE14: 0.0 | AF14: 0.0 | AG14: 0.0 | AH14: 0.0 | AI14: 0.0 | AJ14: 0.0 | AK14: 0.0 | AL14: 0.0 | AM14: 0.0 | AN14: 0.0 | AO14: 0.0 | AP14: 0.0 | AQ14: 0.0 | AR14: 0.0 | AS14: 0.0 | AT14: 85.0 | AU14: 0.0 | AV14: 0.0 | AW14: 0.0 | AX14: 0.0 | AY14: 0.0 | AZ14: 0.0 | BA14: 0.0 | BB14: 0.0 | BC14: 0.0 | BD14: 0.0 | BE14: 0.0 | BF14: 0.0 | BG14: 0.0 | BH14: 0.0 | BI14: 0.0 | BJ14: 0.0 | BK14: 0.0 | BL14: 0.0 | BM14: 0.0 | BN14: 0.0 | BO14: 0.0 | BP14: 0.0 | BQ14: 0.0 | BR14: 0.0 | BS14: 0.0 | BT14: 0.0 | BU14: 0.0 | BV14: 0.0 | BW14: 0.0 | BX14: 0.0 | BY14: 0.0 | BZ14: 0.0 | CA14: 0.0 | CB14: 80.1 | CC14: 88.5 | CD14: 85.7 | CE14: 92.3 | CF14: 85.7 | CG14: 94.4 | CH14: 91.1 | CI14: 91.1 | CJ14: 80.3 | CK14: 71.7 | CL14: 71.8 | CM14: 75.1 | CN14: 78.3 | CO14: 75.6 | CP14: 65.1 | CQ14: 82.6 | CR14: 83.5 | CS14: 69.8 | CT14: 66.5 | CU14: 59.7 | CV14: 69.2 | CW14: 77.1 | CX14: 74.5 | CY14: 84.9 | CZ14: 69.2 | DA14: 59.0 | DB14: 80.6 | DC14: 77.4 | DD14: 76.8 | DE14: 78.4 | DF14: 77.2 | DG14: 72.5 | DH14: 79.4 | DI14: 74.3 | DJ14: 76.8 | DK14: 89.3 | DL14: 92.7 | DM14: 89.6 | DN14: 93.3 | DO14: 82.6 | DP14: 88.8 | DQ14: 95.0 | DR14: 80.4 | DS14: 77.9 | DT14: 77.0 | DU14: 72.6 | DV14: 72.0 | DW14: 94.4 | DX14: 89.5 | DY14: 86.8 | DZ14: 88.2 | EA14: 88.2 | EB14: 85.7 | EC14: 79.7 | ED14: 64.9 | EE14: 58.3 | EF14: 67.8 | EG14: 56.4 | EH14: 83.9 | EI14: 83.6 | EJ14: 81.9 | EK14: 80.8 | EL14: 77.2 | EM14: 78.7 | EN14: 81.1 | EO14: 91.2 | EP14: 85.6 | EQ14: 94.3 | ER14: 74.5 | ES14: 83.2 | ET14: 79.2 | EU14: 86.7 | LR14: =AVERAGE(KN14:LQ14) ->  | LS14: =IF(JQ14>F14,"J","L") -> L | LV14: =+LU14/$LU$75 -> 0.0% | LW14: =+LU14/$LW$75 -> 0.0% | LX14: =+LU14/$LX$75 -> 0.0%
C15: UF | D15: % | E15: 40.7% | F15: 50.0 | G15: 27.7 | H15: 46.9 | I15: 42.4 | J15: 50.8 | K15: 42.8 | L15: 51.0 | M15: 49.2 | N15: 53.7 | O15: 48.5 | P15: 43.4 | Q15: 48.5 | R15: 48.8 | S15: 58.1 | T15: 38.9 | U15: 41.6 | V15: 49.0 | W15: 43.8 | X15: 43.3 | Y15: 53.6 | Z15: 45.8 | AA15: 24.7 | AB15: 48.6 | AC15: 43.1 | AD15: 43.7 | AE15: 33.1 | AF15: 42.7 | AG15: 36.9 | AH15: 42.6 | AI15: 54.6 | AJ15: 42.9 | AK15: 36.9 | AL15: 46.9 | AM15: 50.0 | AN15: 44.9 | AO15: 46.8 | AP15: 51.5 | AQ15: 43.5 | AR15: 44.2 | AS15: 37.9 | AT15: 84.0 | AU15: 39.5 | AV15: 48.6 | AW15: 37.0 | AX15: 39.5 | AY15: 40.6 | AZ15: 33.2 | BA15: 39.5 | BB15: 48.0 | BC15: 37.5 | BD15: 40.8 | BE15: 39.9 | BF15: 42.5 | BG15: 29.7 | BH15: 32.4 | BI15: 36.2 | BJ15: 32.4 | BK15: 38.7 | BL15: 37.0 | BM15: 49.7 | BN15: 48.6 | BO15: 40.8 | BP15: 52.3 | BQ15: 49.0 | BR15: 43.2 | BS15: 45.9 | BT15: 39.4 | BU15: 37.1 | BV15: 45.9 | BW15: 45.9 | BX15: 28.7 | BY15: 43.2 | BZ15: 40.4 | CA15: 42.4 | CB15: 45.4 | CC15: 44.3 | CD15: 48.1 | CE15: 40.6 | CF15: 48.1 | CG15: 34.0 | CH15: 34.9 | CI15: 42.9 | CJ15: 43.6 | CK15: 46.1 | CL15: 38.8 | CM15: 35.6 | CN15: 36.2 | CO15: 49.0 | CP15: 38.7 | CQ15: 20.1 | CR15: 35.6 | CS15: 42.2 | CT15: 35.5 | CU15: 31.6 | CV15: 49.3 | CW15: 33.1 | CX15: 42.2 | CY15: 46.8 | CZ15: 34.4 | DA15: 36.8 | DB15: 31.2 | DC15: 41.7 | DD15: 44.3 | DE15: 29.6 | DF15: 40.7 | DG15: 30.1 | DH15: 39.3 | DI15: 34.6 | DJ15: 31.7 | DK15: 39.7 | DL15: 31.4 | DM15: 39.9 | DN15: 42.5 | DO15: 35.3 | DP15: 34.1 | DQ15: 36.2 | DR15: 6.3 | DS15: 0.0 | DT15: 0.0 | DU15: 0.0 | DV15: 0.0 | DW15: 32.5 | DX15: 38.9 | DY15: 63.8 | DZ15: 39.6 | EA15: 39.6 | EB15: 48.4 | EC15: 52.4 | ED15: 36.7 | EE15: 27.0 | EF15: 30.5 | EG15: 14.3 | EH15: 4.0 | EI15: 23.2 | EJ15: 47.5 | EK15: 48.1 | EL15: 38.8 | EM15: 36.5 | EN15: 49.9 | EO15: 39.4 | EP15: 28.0 | EQ15: 11.5 | ER15: 40.4 | ES15: 33.9 | ET15: 45.0 | EU15: 45.0 | EV15: 40.5 | EW15: 31.0 | EX15: 23.7 | EY15: 42.6 | EZ15: 46.9 | FA15: 56.0 | FB15: 39.2 | FC15: 37.1 | FD15: 0.7 | FE15: 37.7 | FF15: 35.7 | FG15: 30.60 | FH15: 27.31 | FI15: 36.56 | FJ15: 36.35 | FK15: 21.17 | FL15: 39.51 | FM15: 38.73 | FN15: 40.81 | FO15: 49.59 | FP15: 29.53 | FQ15: 37.90 | FR15: 36.68 | FS15: 49.98 | FT15: 32.07 | FU15: 33.33 | FV15: 40.04 | FW15: 40.61 | FX15: 48.25 | FY15: 37.51 | FZ15: 14.97 | GA15: 21.97 | GB15: 29.88 | GC15: 30.99 | GD15: 34.10 | GE15: 30.96 | GF15: 31.40 | GG15: 38.71 | GH15: 37.42 | GI15: 39.17 | GJ15: 41.62 | GK15: 32.42 | GL15: 41.53 | GM15: 35.92 | GN15: 25.74 | GO15: 30.99 | GP15: 29.16 | GQ15: 22.83 | GR15: 24.30 | GS15: 29.41 | GT15: 40.10 | GU15: 26.19 | GV15: 32.00 | GW15: 21.06 | GX15: 28.21 | GY15: 37.31 | GZ15: 34.81 | HA15: 30.97 | HB15: 42.17 | HC15: 36.02 | HD15: 34.18 | HE15: 26.37 | HF15: 43.35 | HG15: 27.40 | HH15: 31.92 | HI15: 35.38 | HJ15: 33.17 | HK15: 36.96 | HL15: 34.35 | HM15: 39.84 | HN15: 25.57 | HO15: 30.57 | HP15: 36.95 | HQ15: 31.78 | HR15: 30.38 | HS15: 28.10 | HT15: 27.90 | HU15: 37.03 | HV15: 45.55 | HW15: 23.80 | HX15: 45.18 | HY15: 31.85 | HZ15: 30.60 | IA15: 35.79 | IB15: 31.89 | IC15: 35.01 | ID15: 34.87 | IE15: 37.05 | IF15: 30.46 | IG15: 43.16 | IH15: 41.33 | II15: 41.67 | IJ15: 24.39 | IK15: 43.47 | IL15: 34.79 | IM15: 39.33 | IN15: 33.77 | IO15: 36.55 | IP15: 37.57 | IQ15: 41.18 | IR15: 49.89 | IS15: 39.07 | IT15: 38.56 | IU15: 38.04 | IV15: 38.12 | IW15: 46.08 | IX15: 33.13 | IY15: 46.12 | IZ15: 44.01 | JA15: 42.15 | JB15: 34.95 | JC15: 38.50 | JD15: 36.87 | JE15: 32.62 | JF15: 38.05 | JG15: 44.27 | JH15: 38.23 | JI15: 41.19 | JJ15: 41.74 | JK15: 38.94 | JL15: 43.35 | JM15: 49.94 | JN15: 37.85 | JO15: 44.18 | JP15: 46.67 | JQ15: 34.26 | JR15: 49.08 | JS15: 44.13 | JT15: 39.02 | JU15: 44.76 | JV15: 47.35 | JW15: 38.86 | JX15: 40.48 | JY15: 42.67 | JZ15: 41.37 | KA15: 37.90 | KB15: 38.29 | KC15: 39.92 | KD15: 43.09 | KE15: 41.68 | KF15: 37.43 | KG15: 38.75 | KH15: 41.43 | KI15: 45.89 | KJ15: 44.57 | KK15: 35.36 | KL15: 39.25 | KM15: 40.42 | KN15: 27.50 | KO15: 37.66 | KP15: 35.94 | KQ15: 42.16 | KR15: 42.85 | KS15: 39.64 | KT15: 49.23 | KU15: 35.12 | KV15: 44.84 | KW15: 45.72 | KX15: 43.92 | KY15: 45.77 | KZ15: 42.30 | LA15: 35.09 | LB15: 36.52 | LC15: 34.65 | LD15: 44.81 | LE15: 34.02 | LF15: 50.05 | LG15: 44.53 | LH15: 40.15 | LI15: 54.21 | LJ15: 39.74 | LK15: 43.47 | LL15: 44.29 | LM15: 45.89 | LN15: 51.87 | LO15: 29.55 | LP15: 48.37 | LQ15: ='KPIs SEMANA'!CAB38 -> 49.87 | LR15: =AVERAGE(KN15:LQ15) -> 41.99 | LS15: =IF(LQ15>F15,"J","L") -> L
C16: UO | D16: % | E16: 50.4% | F16: 50.0 | IO16: 45.61 | IP16: 46.33 | IQ16: 50.19 | IR16: 61.21 | IS16: 48.13 | IT16: 47.59 | IU16: 46.02 | IV16: 46.68 | IW16: 54.91 | IX16: 40.17 | IY16: 59.94 | IZ16: 57.25 | JA16: 49.92 | JB16: 42.31 | JC16: 47.16 | JD16: 45.46 | JE16: 39.99 | JF16: 46.34 | JG16: 53.68 | JH16: 47.23 | JI16: 51.28 | JJ16: 51.32 | JK16: 50.63 | JL16: 56.30 | JM16: 64.91 | JN16: 46.45 | JO16: 56.97 | JP16: 58.81 | JQ16: 42.39 | JR16: 61.50 | JS16: 53.72 | JT16: 47.67 | JU16: 54.69 | JV16: 58.64 | JW16: 47.57 | JX16: 49.50 | JY16: 52.39 | JZ16: 50.55 | KA16: 47.49 | KB16: 46.84 | KC16: 49.69 | KD16: 53.96 | KE16: 51.25 | KF16: 48.02 | KG16: 47.05 | KH16: 50.55 | KI16: 58.42 | KJ16: 57.72 | KK16: 42.89 | KL16: 49.49 | KM16: 49.53 | KN16: 35.60 | KO16: 47.25 | KP16: 43.98 | KQ16: 52.02 | KR16: 53.65 | KS16: 48.49 | KT16: 62.73 | KU16: 42.71 | KV16: 55.81 | KW16: 55.57 | KX16: 54.63 | LA16: 48.60 | LB16: 46.47 | LC16: 41.26 | LD16: 55.31 | LE16: 41.67 | LF16: 63.14 | LG16: 59.01 | LH16: 49.94 | LI16: 66.87 | LJ16: 50.02 | LK16: ='[10]KPIs SEMANA'!BYL39 -> 53.57 | LL16: 53.67 | LM16: 56.65 | LN16: 64.28 | LO16: 35.98 | LP16: 61.07 | LQ16: ='KPIs SEMANA'!CAB39 -> 61.49 | LR16: =AVERAGE(KN16:LQ16) -> 52.19 | LS16: =IF(LQ16>F16,"J","L") -> J | LV16: =+LU16/$LU$75 -> 0.0% | LW16: =+LU16/$LW$75 -> 0.0% | LX16: =+LU16/$LX$75 -> 0.0%
B17: JUMBOS PRODUCCION (BONMER, TAMROCK 07/12, FURUKAWA) | C17: DF | D17: % | E17: 87.8% | F17: 85.0 | G17: 82.8 | H17: 91.0 | I17: 80.5 | J17: 73.1 | K17: 79.7 | L17: 91.0 | M17: 93.0 | N17: 83.5 | O17: 84.5 | P17: 90.4 | Q17: 81.7 | R17: 81.4 | S17: 90.4 | T17: 93.7 | U17: 90.9 | V17: 94.3 | W17: 82.5 | X17: 82.6 | Y17: 95.8 | Z17: 97.8 | AA17: 82.4 | AB17: 77.5 | AC17: 96.1 | AD17: 88.3 | AE17: 97.8 | AF17: 81.0 | AG17: 76.7 | AH17: 83.4 | AI17: 85.6 | AJ17: 92.3 | AK17: 96.1 | AL17: 84.1 | AM17: 92.9 | AN17: 95.5 | AO17: 95.7 | AP17: 90.0 | AQ17: 89.4 | AR17: 87.7 | AS17: 71.3 | AT17: 90.4 | AU17: 71.7 | AV17: 67.5 | AW17: 71.2 | AX17: 69.9 | AY17: 66.2 | AZ17: 70.4 | BA17: 61.4 | BB17: 71.9 | BC17: 72.2 | BD17: 64.7 | BE17: 68.5 | BF17: 75.9 | BG17: 81.6 | BH17: 74.9 | BI17: 81.6 | BJ17: 94.0 | BK17: 98.4 | BL17: 86.2 | BM17: 88.0 | BN17: 80.8 | BO17: 98.0 | BP17: 94.6 | BQ17: 75.2 | BR17: 87.6 | BS17: 91.0 | BT17: 89.1 | BU17: 91.3 | BV17: 91.9 | BW17: 91.9 | BX17: 98.6 | BY17: 94.6 | BZ17: 98.1 | CA17: 96.5 | CB17: 98.0 | CC17: 98.0 | CD17: 91.4 | CE17: 80.9 | CF17: 96.0 | CG17: 94.8 | CH17: 92.1 | CI17: 71.6 | CJ17: 70.9 | CK17: 89.6 | CL17: 94.4 | CM17: 92.0 | CN17: 86.9 | CO17: 77.9 | CP17: 67.0 | CQ17: 70.2 | CR17: 80.8 | CS17: 97.5 | CT17: 90.9 | CU17: 93.8 | CV17: 90.9 | CW17: 97.5 | CX17: 89.2 | CY17: 97.7 | CZ17: 94.9 | DA17: 96.2 | DB17: 95.0 | DC17: 85.0 | DD17: 89.8 | DE17: 85.6 | DF17: 65.2 | DG17: 72.1 | DH17: 65.7 | DI17: 68.7 | DJ17: 70.0 | DK17: 54.5 | DL17: 47.8 | DM17: 45.4 | DN17: 46.6 | DO17: 46.3 | DP17: 62.8 | DQ17: 69.0 | DR17: 57.0 | DS17: 48.2 | DT17: 90.2 | DU17: 100.0 | DV17: 74.9 | DW17: 90.6 | DX17: 83.0 | DY17: 88.5 | DZ17: 96.7 | EA17: 96.7 | EB17: 81.1 | EC17: 88.2 | ED17: 88.6 | EE17: 89.7 | EF17: 92.1 | EG17: 75.3 | EH17: 90.5 | EI17: 93.5 | EJ17: 90.1 | EK17: 80.4 | EL17: 80.7 | EM17: 92.0 | EN17: 91.8 | EO17: 89.9 | EP17: 75.0 | EQ17: 98.8 | ER17: 77.5 | ES17: 87.4 | ET17: 95.9 | EU17: 76.9 | EV17: 79.5 | EW17: 82.7 | EX17: 80.0 | EY17: 82.5 | EZ17: 83.7 | FA17: 76.7 | FB17: 66.5 | FC17: 58.9 | FD17: 86.5 | FE17: 74.7 | FF17: 73.9 | FG17: 69.20 | FH17: 81.92 | FI17: 83.87 | FJ17: 69.42 | FK17: 68.50 | FL17: 65.00 | FM17: 83.69 | FN17: 88.87 | FO17: 78.02 | FP17: 92.55 | FQ17: 74.32 | FR17: 90.29 | FS17: 95.17 | FT17: 92.86 | FU17: 70.71 | FV17: 87.96 | FW17: 83.61 | FX17: 78.39 | FY17: 96.07 | FZ17: 87.92 | GA17: 87.52 | GB17: 93.53 | GC17: 82.54 | GD17: 95.68 | GE17: 89.73 | GF17: 81.18 | GG17: 97.54 | GH17: 88.84 | GI17: 88.43 | GJ17: 91.29 | GK17: 77.10 | GL17: 95.70 | GM17: 76.74 | GN17: 77.08 | GO17: 73.59 | GP17: 68.13 | GQ17: 71.35 | GR17: 93.54 | GS17: 83.64 | GT17: 85.08 | GU17: 88.32 | GV17: 89.01 | GW17: 88.71 | GX17: 90.19 | GY17: 88.07 | GZ17: 89.82 | HA17: 86.35 | HB17: 86.24 | HC17: 88.01 | HD17: 87.09 | HE17: 89.39 | HF17: 89.01 | HG17: 93.79 | HH17: 86.15 | HI17: 72.03 | HJ17: 94.73 | HK17: 91.79 | HL17: 81.77 | HM17: 86.89 | HN17: 83.26 | HO17: 82.29 | HP17: 81.42 | HQ17: 88.34 | HR17: 92.62 | HS17: 85.24 | HT17: 91.37 | HU17: 86.21 | HV17: 87.77 | HW17: 80.79 | HX17: 65.91 | HY17: 74.14 | HZ17: 89.79 | IA17: 89.25 | IB17: 72.86 | IC17: 72.30 | ID17: 55.69 | IE17: 82.33 | IF17: 69.13 | IG17: 88.94 | IH17: 89.33 | II17: 89.81 | IJ17: 85.99 | IK17: 89.43 | IL17: 72.41 | IM17: 87.59 | IN17: 87.50 | IO17: 79.49 | IP17: 79.77 | IQ17: 88.41 | IR17: 87.20 | IS17: 91.86 | IT17: 86.61 | IU17: 86.61 | IV17: 93.70 | IW17: 86.61 | IX17: 92.05 | IY17: 91.91 | IZ17: 82.80 | JA17: 70.78 | JB17: 72.74 | JC17: 81.42 | JD17: 92.81 | JE17: 91.07 | JF17: 91.13 | JG17: 89.81 | JH17: 91.00 | JI17: 89.65 | JJ17: 91.07 | JK17: 92.45 | JL17: 89.06 | JM17: 93.08 | JN17: 92.29 | JO17: 76.88 | JP17: 81.52 | JQ17: 87.05 | JR17: 90.03 | JS17: 88.96 | JT17: 76.38 | JU17: 86.68 | JV17: 88.24 | JW17: 75.19 | JX17: 91.52 | JY17: 93.56 | JZ17: 94.54 | KA17: 92.67 | KB17: 95.16 | KC17: 87.25 | KD17: 88.27 | KE17: 86.90 | KF17: 90.10 | KG17: 90.46 | KH17: 92.78 | KI17: 87.75 | KJ17: 91.99 | KK17: 94.00 | KL17: 87.66 | KM17: 85.01 | KN17: 90.28 | KO17: 88.61 | KP17: 73.81 | KQ17: 48.02 | KR17: 60.28 | KS17: 62.96 | KT17: 68.23 | KU17: 70.84 | KV17: 82.82 | KW17: 82.62 | KX17: 85.49 | KY17: 95.37 | KZ17: 87.43 | LA17: 90.46 | LB17: 89.96 | LC17: 85.48 | LD17: 83.77 | LE17: 92.84 | LF17: 92.93 | LG17: 72.99 | LH17: 96.93 | LI17: 85.32 | LJ17: 84.90 | LK17: 88.99 | LL17: 96.18 | LM17: 87.13 | LN17: 92.46 | LO17: 88.32 | LP17: 82.42 | LQ17: ='KPIs SEMANA'!CAB71 -> 69.78 | LR17: =AVERAGE(KN17:LQ17) -> 82.59 | LS17: =IF(LQ17>F17,"J","L") -> L | LT17: 483235.47 | LU17: 4 | LV17: =+LU17/$LU$75 -> 15.4% | LW17: =+LT17/$LT$41 -> 20.0% | LX17: =AVERAGE(LV17:LW17) -> 17.7%
C18: DM | D18: % | F18: 85.0 | G18: 0.0 | H18: 0.0 | I18: 0.0 | J18: 0.0 | K18: 0.0 | L18: 0.0 | M18: 0.0 | N18: 0.0 | O18: 0.0 | P18: 0.0 | Q18: 0.0 | R18: 0.0 | S18: 0.0 | T18: 0.0 | U18: 0.0 | V18: 0.0 | W18: 0.0 | X18: 0.0 | Y18: 0.0 | Z18: 0.0 | AA18: 0.0 | AB18: 0.0 | AC18: 0.0 | AD18: 0.0 | AE18: 0.0 | AF18: 0.0 | AG18: 0.0 | AH18: 0.0 | AI18: 0.0 | AJ18: 0.0 | AK18: 0.0 | AL18: 0.0 | AM18: 0.0 | AN18: 0.0 | AO18: 0.0 | AP18: 0.0 | AQ18: 0.0 | AR18: 0.0 | AS18: 0.0 | AT18: 0.0 | AU18: 0.0 | AV18: 0.0 | AW18: 0.0 | AX18: 0.0 | AY18: 0.0 | AZ18: 0.0 | BA18: 0.0 | BB18: 0.0 | BC18: 0.0 | BD18: 0.0 | BE18: 0.0 | BF18: 0.0 | BG18: 0.0 | BH18: 0.0 | BI18: 0.0 | BJ18: 0.0 | BK18: 0.0 | BL18: 0.0 | BM18: 0.0 | BN18: 0.0 | BO18: 0.0 | BP18: 0.0 | BQ18: 0.0 | BR18: 0.0 | BS18: 0.0 | BT18: 0.0 | BU18: 0.0 | BV18: 0.0 | BW18: 0.0 | BX18: 0.0 | BY18: 0.0 | BZ18: 0.0 | CA18: 0.0 | CB18: 98.0 | CC18: 98.0 | CD18: 91.4 | CE18: 80.9 | CF18: 96.0 | CG18: 94.8 | CH18: 92.1 | CI18: 71.6 | CJ18: 70.9 | CK18: 89.6 | CL18: 94.4 | CM18: 92.0 | CN18: 86.9 | CO18: 77.9 | CP18: 67.0 | CQ18: 70.2 | CR18: 80.8 | CS18: 97.5 | CT18: 90.9 | CU18: 93.8 | CV18: 90.9 | CW18: 97.5 | CX18: 89.2 | CY18: 97.7 | CZ18: 94.9 | DA18: 96.2 | DB18: 95.0 | DC18: 85.0 | DD18: 89.8 | DE18: 85.6 | DF18: 65.2 | DG18: 72.1 | DH18: 65.7 | DI18: 68.7 | DJ18: 70.0 | DK18: 54.5 | DL18: 47.8 | DM18: 45.4 | DN18: 46.6 | DO18: 46.3 | DP18: 87.8 | DQ18: 69.0 | DR18: 57.0 | DS18: 48.2 | DT18: 90.2 | DU18: 100.0 | DV18: 74.9 | DW18: 90.6 | DX18: 83.0 | DY18: 88.5 | DZ18: 96.7 | EA18: 96.7 | EB18: 81.1 | EC18: 88.2 | ED18: 88.6 | EE18: 89.7 | EF18: 92.1 | EG18: 75.3 | EH18: 90.5 | EI18: 93.5 | EJ18: 90.1 | EK18: 80.4 | EL18: 80.7 | EM18: 92.0 | EN18: 91.8 | EO18: 89.9 | EP18: 96.2 | EQ18: 98.8 | ER18: 77.5 | ES18: 87.4 | ET18: 95.9 | EU18: 81.2 | LS18: =IF(IN18>F18,"J","L") -> L | LV18: =+LU18/$LU$75 -> 0.0% | LW18: =+LU18/$LW$75 -> 0.0% | LX18: =+LU18/$LX$75 -> 0.0%
C19: UF | D19: % | E19: 8.4% | F19: 20.0 | G19: 10.1 | H19: 11.5 | I19: 14.5 | J19: 13.0 | K19: 11.4 | L19: 16.1 | M19: 10.9 | N19: 12.6 | O19: 12.0 | P19: 11.5 | Q19: 17.6 | R19: 10.1 | S19: 16.1 | T19: 12.6 | U19: 7.5 | V19: 11.7 | W19: 11.4 | X19: 9.0 | Y19: 7.4 | Z19: 7.5 | AA19: 2.4 | AB19: 23.7 | AC19: 11.4 | AD19: 11.1 | AE19: 9.8 | AF19: 6.7 | AG19: 30.3 | AH19: 50.0 | AI19: 29.1 | AJ19: 23.3 | AK19: 21.2 | AL19: 25.9 | AM19: 18.3 | AN19: 18.6 | AO19: 32.5 | AP19: 21.9 | AQ19: 23.1 | AR19: 23.5 | AS19: 71.3 | AT19: 24.6 | AU19: 28.6 | AV19: 26.0 | AW19: 25.0 | AX19: 21.6 | AY19: 22.8 | AZ19: 19.6 | BA19: 28.3 | BB19: 30.4 | BC19: 24.3 | BD19: 26.9 | BE19: 22.1 | BF19: 21.3 | BG19: 16.0 | BH19: 22.3 | BI19: 26.8 | BJ19: 24.4 | BK19: 19.4 | BL19: 26.2 | BM19: 16.3 | BN19: 21.3 | BO19: 21.8 | BP19: 22.3 | BQ19: 22.9 | BR19: 25.2 | BS19: 23.5 | BT19: 23.3 | BU19: 9.1 | BV19: 22.4 | BW19: 22.4 | BX19: 7.6 | BY19: 9.0 | BZ19: 8.5 | CA19: 8.5 | CB19: 7.9 | CC19: 9.1 | CD19: 9.8 | CE19: 6.9 | CF19: 6.2 | CG19: 5.4 | CH19: 5.2 | CI19: 9.3 | CJ19: 5.8 | CK19: 7.3 | CL19: 9.5 | CM19: 6.2 | CN19: 5.2 | CO19: 29.3 | CP19: 6.4 | CQ19: 3.5 | CR19: 7.8 | CS19: 6.3 | CT19: 5.3 | CU19: 4.0 | CV19: 6.6 | CW19: 5.8 | CX19: 5.0 | CY19: 5.6 | CZ19: 3.7 | DA19: 7.3 | DB19: 5.1 | DC19: 4.4 | DD19: 6.6 | DE19: 8.6 | DF19: 8.8 | DG19: 4.8 | DH19: 5.8 | DI19: 6.8 | DJ19: 6.4 | DK19: 8.2 | DL19: 5.1 | DM19: 3.0 | DN19: 4.2 | DO19: 4.9 | DP19: 6.4 | DQ19: 5.4 | DR19: 1.4 | DS19: 0.0 | DT19: 0.0 | DU19: 0.0 | DV19: 0.0 | DW19: 6.2 | DX19: 8.9 | DY19: 7.8 | DZ19: 4.3 | EA19: 4.3 | EB19: 10.1 | EC19: 8.9 | ED19: 9.4 | EE19: 9.1 | EF19: 35.4 | EG19: 32.8 | EH19: 13.9 | EI19: 3.9 | EJ19: 9.2 | EK19: 28.5 | EL19: 7.4 | EM19: 7.1 | EN19: 8.0 | EO19: 10.5 | EP19: 4.2 | EQ19: 5.1 | ER19: 44.6 | ES19: 32.0 | ET19: 34.5 | EU19: 25.0 | EV19: 8.7 | EW19: 15.6 | EX19: 15.4 | EY19: 9.3 | EZ19: 32.2 | FA19: 48.4 | FB19: 9.9 | FC19: 8.9 | FD19: 0.3 | FE19: 17.4 | FF19: 17.2 | FG19: 21.29 | FH19: 8.67 | FI19: 8.88 | FJ19: 24.67 | FK19: 4.27 | FL19: 18.99 | FM19: 20.08 | FN19: 9.44 | FO19: 7.74 | FP19: 4.76 | FQ19: 26.46 | FR19: 22.47 | FS19: 6.16 | FT19: 7.47 | FU19: 9.22 | FV19: 7.60 | FW19: 10.85 | FX19: 8.13 | FY19: 5.67 | FZ19: 2.86 | GA19: 4.29 | GB19: 7.02 | GC19: 5.88 | GD19: 23.59 | GE19: 8.67 | GF19: 10.11 | GG19: 7.07 | GH19: 7.55 | GI19: 7.31 | GJ19: 7.13 | GK19: 6.46 | GL19: 6.08 | GM19: 5.11 | GN19: 4.65 | GO19: 7.67 | GP19: 6.00 | GQ19: 4.98 | GR19: 2.84 | GS19: 5.06 | GT19: 9.77 | GU19: 9.64 | GV19: 5.24 | GW19: 8.13 | GX19: 7.13 | GY19: 8.32 | GZ19: 7.63 | HA19: 7.08 | HB19: 10.07 | HC19: 9.98 | HD19: 8.94 | HE19: 6.39 | HF19: 10.10 | HG19: 8.21 | HH19: 6.50 | HI19: 10.87 | HJ19: 8.53 | HK19: 8.70 | HL19: 9.77 | HM19: 9.39 | HN19: 7.29 | HO19: 10.36 | HP19: 8.83 | HQ19: 8.24 | HR19: 8.15 | HS19: 8.10 | HT19: 5.31 | HU19: 9.29 | HV19: 6.28 | HW19: 5.54 | HX19: 6.95 | HY19: 7.54 | HZ19: 4.87 | IA19: 8.11 | IB19: 11.74 | IC19: 5.86 | ID19: 7.18 | IE19: 7.65 | IF19: 9.88 | IG19: 9.48 | IH19: 8.45 | II19: 6.59 | IJ19: 4.83 | IK19: 4.97 | IL19: 4.43 | IM19: 4.78 | IN19: 4.81 | IO19: 6.76 | IP19: 9.05 | IQ19: 8.87 | IR19: 7.51 | IS19: 8.33 | IT19: 8.99 | IU19: 8.35 | IV19: 8.27 | IW19: 8.18 | IX19: 6.19 | IY19: 8.02 | IZ19: 10.46 | JA19: 7.15 | JB19: 10.12 | JC19: 8.78 | JD19: 9.51 | JE19: 5.83 | JF19: 8.52 | JG19: 11.54 | JH19: 6.59 | JI19: 7.50 | JJ19: 8.49 | JK19: 9.95 | JL19: 8.43 | JM19: 9.50 | JN19: 9.76 | JO19: 10.55 | JP19: 8.48 | JQ19: 6.82 | JR19: 9.50 | JS19: 9.94 | JT19: 9.95 | JU19: 10.21 | JV19: 9.76 | JW19: 6.57 | JX19: 4.99 | JY19: 7.60 | JZ19: 5.02 | KA19: 8.32 | KB19: 7.20 | KC19: 7.09 | KD19: 9.69 | KE19: 7.30 | KF19: 10.01 | KG19: 9.16 | KH19: 11.52 | KI19: 7.91 | KJ19: 9.35 | KK19: 9.21 | KL19: 8.83 | KM19: 7.03 | KN19: 5.86 | KO19: 8.05 | KP19: 6.97 | KQ19: 3.45 | KR19: 6.33 | KS19: 8.04 | KT19: 4.45 | KU19: 7.36 | KV19: 10.42 | KW19: 9.65 | KX19: 6.83 | KY19: 5.85 | KZ19: 8.27 | LA19: 5.75 | LB19: 5.18 | LC19: 5.80 | LD19: 12.05 | LE19: 5.85 | LF19: 7.01 | LG19: 7.50 | LH19: 4.76 | LI19: 8.15 | LJ19: 6.98 | LK19: 6.39 | LL19: 4.90 | LM19: 7.07 | LN19: 7.12 | LO19: 8.89 | LP19: 8.88 | LQ19: ='KPIs SEMANA'!CAB73 -> 5.23 | LR19: =AVERAGE(KN19:LQ19) -> 6.97 | LS19: =IF(LQ19>F19,"J","L") -> L
C20: UO | D20: % | E20: 10.6% | F20: 20.0 | IO20: 9.36 | IP20: 12.34 | IQ20: 10.92 | IR20: 9.39 | IS20: 10.22 | IT20: 11.14 | IU20: 10.33 | IV20: 10.04 | IW20: 10.19 | IX20: 7.58 | IY20: 9.80 | IZ20: 13.20 | JA20: 8.79 | JB20: 13.57 | JC20: 11.18 | JD20: 11.61 | JE20: 7.11 | JF20: 10.47 | JG20: 14.21 | JH20: 8.09 | JI20: 9.21 | JJ20: 10.39 | JK20: 12.70 | JL20: 10.38 | JM20: 11.59 | JN20: 11.96 | JO20: 14.51 | JP20: 10.71 | JQ20: 8.45 | JR20: 11.69 | JS20: 12.25 | JT20: 12.62 | JU20: 12.65 | JV20: 12.04 | JW20: 8.35 | JX20: 6.09 | JY20: 9.23 | JZ20: 6.10 | KA20: 10.12 | KB20: 8.73 | KC20: 8.78 | KD20: 11.93 | KE20: 9.19 | KF20: 12.35 | KG20: 11.24 | KH20: 14.07 | KI20: 9.78 | KJ20: 11.46 | KK20: 11.22 | KL20: 10.93 | KM20: 8.80 | KN20: 7.50 | KO20: 9.94 | KP20: 10.17 | KQ20: 4.18 | KR20: 8.05 | KS20: 10.16 | KT20: 5.43 | KU20: 9.54 | KV20: 13.14 | KW20: 12.13 | KX20: 8.50 | LA20: 7.07 | LB20: 6.36 | LC20: 7.28 | LD20: 15.22 | LE20: 7.13 | LF20: 8.54 | LG20: 9.56 | LH20: 5.75 | LI20: 10.29 | LJ20: 8.85 | LK20: ='[10]KPIs SEMANA'!BYL74 -> 7.88 | LL20: 16.31 | LM20: 16.31 | LN20: 8.74 | LO20: 11.00 | LP20: 11.49 | LQ20: ='KPIs SEMANA'!CAB74 -> 6.40 | LR20: =AVERAGE(KN20:LQ20) -> 9.39 | LS20: =IF(LQ20>F20,"J","L") -> L | LV20: =+LU20/$LU$75 -> 0.0% | LW20: =+LU20/$LW$75 -> 0.0% | LX20: =+LU20/$LX$75 -> 0.0%
B21: JUMBOS SOSTENIMIENTO (ROBOLT 02, 03, 04 ,05 Y 06) | C21: DF | D21: % | E21: 79.6% | F21: 85.0 | G21: 81.6 | H21: 69.3 | I21: 78.3 | J21: 88.5 | K21: 52.9 | L21: 65.8 | M21: 74.6 | N21: 82.9 | O21: 82.0 | P21: 70.6 | Q21: 61.3 | R21: 56.2 | S21: 59.5 | T21: 56.3 | U21: 65.1 | V21: 61.5 | W21: 43.1 | X21: 68.3 | Y21: 69.7 | Z21: 60.6 | AA21: 71.1 | AB21: 97.2 | AC21: 70.6 | AD21: 94.0 | AE21: 73.0 | AF21: 53.8 | AG21: 66.5 | AH21: 41.8 | AI21: 70.4 | AJ21: 70.4 | AK21: 83.6 | AL21: 89.8 | AM21: 85.8 | AN21: 93.5 | AO21: 84.7 | AP21: 90.9 | AQ21: 91.5 | AR21: 69.6 | AS21: 67.5 | AT21: 73.3 | AU21: 62.3 | AV21: 94.4 | AW21: 94.3 | AX21: 97.7 | AY21: 87.1 | AZ21: 74.8 | BA21: 64.3 | BB21: 78.1 | BC21: 86.1 | BD21: 74.3 | BE21: 67.5 | BF21: 94.0 | BG21: 94.0 | BH21: 93.6 | BI21: 93.8 | BJ21: 90.2 | BK21: 92.0 | BL21: 96.0 | BM21: 85.3 | BN21: 90.9 | BO21: 73.6 | BP21: 94.6 | BQ21: 86.3 | BR21: 93.7 | BS21: 89.1 | BT21: 74.1 | BU21: 94.5 | BV21: 92.3 | BW21: 92.3 | BX21: 91.2 | BY21: 80.1 | BZ21: 87.0 | CA21: 94.0 | CB21: 89.2 | CC21: 85.2 | CD21: 75.1 | CE21: 65.6 | CF21: 81.2 | CG21: 63.8 | CH21: 70.6 | CI21: 68.1 | CJ21: 59.9 | CK21: 66.3 | CL21: 59.1 | CM21: 64.3 | CN21: 85.1 | CO21: 92.6 | CP21: 68.0 | CQ21: 67.2 | CR21: 61.3 | CS21: 82.4 | CT21: 86.0 | CU21: 62.9 | CV21: 83.6 | CW21: 87.3 | CX21: 85.2 | CY21: 75.5 | CZ21: 61.9 | DA21: 64.2 | DB21: 68.1 | DC21: 68.4 | DD21: 71.9 | DE21: 63.8 | DF21: 65.3 | DG21: 88.0 | DH21: 93.6 | DI21: 90.3 | DJ21: 85.6 | DK21: 77.5 | DL21: 89.7 | DM21: 81.2 | DN21: 87.5 | DO21: 85.5 | DP21: 78.8 | DQ21: 91.4 | DR21: 93.7 | DS21: 59.7 | DT21: 86.9 | DU21: 100.0 | DV21: 86.8 | DW21: 85.0 | DX21: 91.0 | DY21: 72.2 | DZ21: 92.4 | EA21: 92.4 | EB21: 92.5 | EC21: 77.3 | ED21: 67.7 | EE21: 70.1 | EF21: 87.5 | EG21: 73.5 | EH21: 95.0 | EI21: 84.1 | EJ21: 90.4 | EK21: 92.4 | EL21: 84.9 | EM21: 81.4 | EN21: 83.0 | EO21: 95.6 | EP21: 70.7 | EQ21: 63.9 | ER21: 62.5 | ES21: 68.4 | ET21: 79.4 | EU21: 85.4 | EV21: 80.3 | EW21: 80.8 | EX21: 71.1 | EY21: 87.3 | EZ21: 85.8 | FA21: 74.7 | FB21: 77.3 | FC21: 87.6 | FD21: 98.1 | FE21: 67.8 | FF21: 60.9 | FG21: 65.92 | FH21: 54.40 | FI21: 55.80 | FJ21: 56.77 | FK21: 66.64 | FL21: 55.01 | FM21: 63.39 | FN21: 78.11 | FO21: 81.51 | FP21: 77.65 | FQ21: 78.66 | FR21: 79.32 | FS21: 91.20 | FT21: 77.41 | FU21: 74.93 | FV21: 84.99 | FW21: 73.34 | FX21: 83.01 | FY21: 93.37 | FZ21: 89.51 | GA21: 88.93 | GB21: 78.40 | GC21: 96.32 | GD21: 84.08 | GE21: 70.18 | GF21: 75.00 | GG21: 52.75 | GH21: 90.95 | GI21: 89.79 | GJ21: 83.99 | GK21: 92.73 | GL21: 86.40 | GM21: 79.14 | GN21: 93.81 | GO21: 78.14 | GP21: 74.11 | GQ21: 91.93 | GR21: 72.98 | GS21: 66.82 | GT21: 80.73 | GU21: 80.90 | GV21: 73.41 | GW21: 71.86 | GX21: 64.33 | GY21: 59.05 | GZ21: 62.30 | HA21: 90.95 | HB21: 63.33 | HC21: 76.45 | HD21: 87.20 | HE21: 86.89 | HF21: 85.99 | HG21: 79.15 | HH21: 77.59 | HI21: 87.93 | HJ21: 75.23 | HK21: 85.21 | HL21: 60.88 | HM21: 65.51 | HN21: 70.76 | HO21: 74.12 | HP21: 89.12 | HQ21: 87.38 | HR21: 78.27 | HS21: 87.15 | HT21: 67.73 | HU21: 83.63 | HV21: 71.91 | HW21: 81.15 | HX21: 57.12 | HY21: 66.41 | HZ21: 61.68 | IA21: 65.96 | IB21: 66.26 | IC21: 43.92 | ID21: 61.61 | IE21: 74.34 | IF21: 88.78 | IG21: 92.88 | IH21: 91.52 | II21: 87.68 | IJ21: 85.27 | IK21: 86.88 | IL21: 91.18 | IM21: 89.92 | IN21: 61.72 | IO21: 52.38 | IP21: 70.14 | IQ21: 63.82 | IR21: 78.88 | IS21: 81.75 | IT21: 87.96 | IU21: 62.49 | IV21: 68.67 | IW21: 62.66 | IX21: 67.99 | IY21: 66.46 | IZ21: 65.61 | JA21: 64.00 | JB21: 66.82 | JC21: 70.58 | JD21: 61.86 | JE21: 79.70 | JF21: 79.18 | JG21: 83.41 | JH21: 77.05 | JI21: 85.12 | JJ21: 90.65 | JK21: 92.62 | JL21: 86.74 | JM21: 84.26 | JN21: 73.88 | JO21: 75.54 | JP21: 85.53 | JQ21: 90.48 | JR21: 91.67 | JS21: 76.79 | JT21: 67.22 | JU21: 91.07 | JV21: 75.83 | JW21: 88.87 | JX21: 89.86 | JY21: 87.20 | JZ21: 91.61 | KA21: 91.55 | KB21: 90.18 | KC21: 93.14 | KD21: 90.70 | KE21: 90.95 | KF21: 88.93 | KG21: 92.98 | KH21: 90.60 | KI21: 66.65 | KJ21: 73.50 | KK21: 95.00 | KL21: 81.25 | KM21: 94.76 | KN21: 95.56 | KO21: 83.00 | KP21: 91.49 | KQ21: 89.64 | KR21: 81.29 | KS21: 82.83 | KT21: 86.64 | KU21: 93.11 | KV21: 92.06 | KW21: 92.26 | KX21: 91.45 | KY21: 80.02 | KZ21: 87.32 | LA21: 89.48 | LB21: 92.68 | LC21: 79.98 | LD21: 88.59 | LE21: 89.94 | LF21: 91.67 | LG21: 90.42 | LH21: 86.40 | LI21: 87.36 | LJ21: 94.52 | LK21: 77.34 | LL21: 57.84 | LM21: 81.32 | LN21: 91.93 | LO21: 90.21 | LP21: 84.23 | LQ21: ='KPIs SEMANA'!CAB103 -> 91.73 | LR21: =AVERAGE(KN21:LQ21) -> 87.08 | LS21: =IF(LQ21>F21,"J","L") -> J | LT21: 574984.66 | LU21: 5 | LV21: =+LU21/$LU$75 -> 19.2% | LW21: =+LT21/$LT$41 -> 23.7% | LX21: =AVERAGE(LV21:LW21) -> 21.5%
C22: DM | D22: % | F22: 85.0 | G22: 0.0 | H22: 0.0 | I22: 0.0 | J22: 0.0 | K22: 0.0 | L22: 0.0 | M22: 0.0 | N22: 0.0 | O22: 0.0 | P22: 0.0 | Q22: 0.0 | R22: 0.0 | S22: 0.0 | T22: 0.0 | U22: 0.0 | V22: 0.0 | W22: 0.0 | X22: 0.0 | Y22: 0.0 | Z22: 0.0 | AA22: 0.0 | AB22: 0.0 | AC22: 0.0 | AD22: 0.0 | AE22: 0.0 | AF22: 0.0 | AG22: 0.0 | AH22: 0.0 | AI22: 0.0 | AJ22: 0.0 | AK22: 0.0 | AL22: 0.0 | AM22: 0.0 | AN22: 0.0 | AO22: 0.0 | AP22: 0.0 | AQ22: 0.0 | AR22: 0.0 | AS22: 0.0 | AT22: 0.0 | AU22: 0.0 | AV22: 0.0 | AW22: 0.0 | AX22: 0.0 | AY22: 0.0 | AZ22: 0.0 | BA22: 0.0 | BB22: 0.0 | BC22: 0.0 | BD22: 0.0 | BE22: 0.0 | BF22: 0.0 | BG22: 0.0 | BH22: 0.0 | BI22: 0.0 | BJ22: 0.0 | BK22: 0.0 | BL22: 0.0 | BM22: 0.0 | BN22: 0.0 | BO22: 0.0 | BP22: 0.0 | BQ22: 0.0 | BR22: 0.0 | BS22: 0.0 | BT22: 0.0 | BU22: 0.0 | BV22: 0.0 | BW22: 0.0 | BX22: 0.0 | BY22: 0.0 | BZ22: 0.0 | CA22: 0.0 | CB22: 89.2 | CC22: 85.2 | CD22: 75.1 | CE22: 65.6 | CF22: 81.2 | CG22: 63.8 | CH22: 70.6 | CI22: 68.1 | CJ22: 59.9 | CK22: 66.3 | CL22: 59.1 | CM22: 64.3 | CN22: 85.1 | CO22: 92.6 | CP22: 68.0 | CQ22: 67.2 | CR22: 61.3 | CS22: 82.4 | CT22: 86.0 | CU22: 62.9 | CV22: 83.6 | CW22: 87.3 | CX22: 85.2 | CY22: 75.5 | CZ22: 61.9 | DA22: 64.2 | DB22: 68.1 | DC22: 68.4 | DD22: 71.9 | DE22: 63.8 | DF22: 65.3 | DG22: 88.0 | DH22: 93.6 | DI22: 90.3 | DJ22: 85.6 | DK22: 77.5 | DL22: 89.7 | DM22: 81.2 | DN22: 87.5 | DO22: 85.5 | DP22: 78.8 | DQ22: 91.4 | DR22: 93.7 | DS22: 59.7 | DT22: 86.9 | DU22: 100.0 | DV22: 86.8 | DW22: 85.0 | DX22: 91.0 | DY22: 72.2 | DZ22: 90.9 | EA22: 90.9 | EB22: 92.5 | EC22: 77.3 | ED22: 67.7 | EE22: 70.1 | EF22: 87.5 | EG22: 73.5 | EH22: 95.0 | EI22: 84.1 | EJ22: 90.4 | EK22: 92.4 | EL22: 84.9 | EM22: 81.4 | EN22: 83.0 | EO22: 96.0 | EP22: 61.2 | EQ22: 52.9 | ER22: 52.7 | ES22: 68.4 | ET22: 79.4 | EU22: 85.4 | LS22: =IF(IN22>F22,"J","L") -> L | LV22: =+LU22/$LU$75 -> 0.0% | LW22: =+LU22/$LW$75 -> 0.0% | LX22: =+LU22/$LX$75 -> 0.0%
C23: UF | D23: % | E23: 5.8% | F23: 20.0 | G23: 10.0 | H23: 11.5 | I23: 9.9 | J23: 11.1 | K23: 14.9 | L23: 30.7 | M23: 26.5 | N23: 22.1 | O23: 26.0 | P23: 27.2 | Q23: 23.9 | R23: 23.8 | S23: 23.4 | T23: 27.6 | U23: 13.3 | V23: 15.2 | W23: 18.2 | X23: 19.0 | Y23: 24.4 | Z23: 9.3 | AA23: 5.1 | AB23: 13.5 | AC23: 5.9 | AD23: 7.5 | AE23: 7.1 | AF23: 8.8 | AG23: 26.6 | AH23: 10.9 | AI23: 15.9 | AJ23: 15.8 | AK23: 23.4 | AL23: 20.9 | AM23: 27.5 | AN23: 15.0 | AO23: 18.0 | AP23: 20.0 | AQ23: 32.9 | AR23: 28.6 | AS23: 20.4 | AT23: 18.7 | AU23: 22.4 | AV23: 19.1 | AW23: 17.9 | AX23: 20.5 | AY23: 15.8 | AZ23: 15.7 | BA23: 19.1 | BB23: 22.1 | BC23: 16.4 | BD23: 16.8 | BE23: 18.1 | BF23: 17.7 | BG23: 11.7 | BH23: 18.4 | BI23: 14.7 | BJ23: 12.3 | BK23: 14.8 | BL23: 15.2 | BM23: 26.4 | BN23: 14.6 | BO23: 11.9 | BP23: 13.8 | BQ23: 17.1 | BR23: 17.1 | BS23: 24.4 | BT23: 22.1 | BU23: 5.7 | BV23: 19.8 | BW23: 19.8 | BX23: 4.4 | BY23: 4.4 | BZ23: 6.1 | CA23: 4.6 | CB23: 7.0 | CC23: 6.0 | CD23: 4.7 | CE23: 4.9 | CF23: 5.2 | CG23: 5.1 | CH23: 4.4 | CI23: 5.9 | CJ23: 4.3 | CK23: 4.5 | CL23: 6.8 | CM23: 13.2 | CN23: 6.6 | CO23: 7.8 | CP23: 5.3 | CQ23: 2.5 | CR23: 9.3 | CS23: 7.5 | CT23: 6.5 | CU23: 5.8 | CV23: 6.9 | CW23: 5.6 | CX23: 6.2 | CY23: 9.1 | CZ23: 5.5 | DA23: 6.2 | DB23: 3.3 | DC23: 4.8 | DD23: 4.8 | DE23: 4.2 | DF23: 3.8 | DG23: 5.0 | DH23: 5.0 | DI23: 4.1 | DJ23: 7.3 | DK23: 8.9 | DL23: 4.3 | DM23: 8.1 | DN23: 7.7 | DO23: 7.0 | DP23: 5.0 | DQ23: 6.6 | DR23: 1.2 | DS23: 0.0 | DT23: 0.0 | DU23: 0.0 | DV23: 0.0 | DW23: 12.7 | DX23: 16.5 | DY23: 13.5 | DZ23: 2.3 | EA23: 2.3 | EB23: 11.7 | EC23: 8.6 | ED23: 14.7 | EE23: 16.6 | EF23: 40.4 | EG23: 24.3 | EH23: 24.3 | EI23: 3.7 | EJ23: 8.3 | EK23: 21.4 | EL23: 19.1 | EM23: 7.9 | EN23: 8.0 | EO23: 8.8 | EP23: 4.9 | EQ23: 1.4 | ER23: 22.3 | ES23: 22.5 | ET23: 36.3 | EU23: 32.4 | EV23: 7.4 | EW23: 16.7 | EX23: 52.3 | EY23: 5.7 | EZ23: 17.5 | FA23: 23.2 | FB23: 14.1 | FC23: 7.2 | FD23: 0.2 | FE23: 9.3 | FF23: 10.0 | FG23: 11.07 | FH23: 5.25 | FI23: 6.49 | FJ23: 21.33 | FK23: 4.35 | FL23: 13.76 | FM23: 11.68 | FN23: 14.84 | FO23: 11.96 | FP23: 9.18 | FQ23: 14.34 | FR23: 14.20 | FS23: 5.28 | FT23: 5.01 | FU23: 8.88 | FV23: 6.56 | FW23: 5.75 | FX23: 6.43 | FY23: 5.70 | FZ23: 3.89 | GA23: 3.35 | GB23: 6.68 | GC23: 6.23 | GD23: 5.77 | GE23: 7.54 | GF23: 11.02 | GG23: 11.08 | GH23: 3.85 | GI23: 6.05 | GJ23: 7.65 | GK23: 5.45 | GL23: 5.63 | GM23: 6.16 | GN23: 4.14 | GO23: 4.45 | GP23: 9.43 | GQ23: 6.04 | GR23: 3.88 | GS23: 7.47 | GT23: 9.19 | GU23: 7.25 | GV23: 5.77 | GW23: 9.60 | GX23: 6.15 | GY23: 6.09 | GZ23: 5.27 | HA23: 3.04 | HB23: 11.50 | HC23: 11.77 | HD23: 7.47 | HE23: 5.28 | HF23: 7.05 | HG23: 9.04 | HH23: 5.40 | HI23: 8.20 | HJ23: 9.14 | HK23: 6.86 | HL23: 7.62 | HM23: 6.39 | HN23: 4.47 | HO23: 8.54 | HP23: 7.09 | HQ23: 7.33 | HR23: 6.58 | HS23: 7.67 | HT23: 6.20 | HU23: 9.03 | HV23: 8.71 | HW23: 8.81 | HX23: 8.99 | HY23: 6.72 | HZ23: 5.47 | IA23: 5.98 | IB23: 5.81 | IC23: 7.04 | ID23: 6.45 | IE23: 5.10 | IF23: 6.96 | IG23: 6.94 | IH23: 6.96 | II23: 5.97 | IJ23: 3.78 | IK23: 4.34 | IL23: 5.21 | IM23: 5.82 | IN23: 3.62 | IO23: 4.11 | IP23: 4.25 | IQ23: 6.36 | IR23: 3.75 | IS23: 4.07 | IT23: 7.99 | IU23: 6.26 | IV23: 6.80 | IW23: 7.37 | IX23: 4.94 | IY23: 6.65 | IZ23: 7.95 | JA23: 3.90 | JB23: 7.03 | JC23: 5.65 | JD23: 6.33 | JE23: 5.67 | JF23: 6.47 | JG23: 7.79 | JH23: 11.08 | JI23: 6.31 | JJ23: 5.58 | JK23: 7.69 | JL23: 8.66 | JM23: 7.37 | JN23: 9.09 | JO23: 8.04 | JP23: 4.93 | JQ23: 4.31 | JR23: 3.94 | JS23: 7.65 | JT23: 5.04 | JU23: 8.36 | JV23: 5.19 | JW23: 4.56 | JX23: 4.11 | JY23: 3.97 | JZ23: 6.05 | KA23: 4.59 | KB23: 3.35 | KC23: 4.49 | KD23: 4.61 | KE23: 3.75 | KF23: 5.10 | KG23: 3.81 | KH23: 4.53 | KI23: 6.20 | KJ23: 5.82 | KK23: 4.72 | KL23: 6.25 | KM23: 4.30 | KN23: 2.28 | KO23: 4.76 | KP23: 5.26 | KQ23: 3.91 | KR23: 5.83 | KS23: 7.71 | KT23: 3.82 | KU23: 5.86 | KV23: 7.00 | KW23: 6.20 | KX23: 6.32 | KY23: 4.96 | KZ23: 6.09 | LA23: 3.93 | LB23: 4.38 | LC23: 4.94 | LD23: 5.67 | LE23: 3.71 | LF23: 5.73 | LG23: 5.55 | LH23: 4.15 | LI23: 9.00 | LJ23: 4.65 | LK23: 4.23 | LL23: 4.32 | LM23: 4.51 | LN23: 6.28 | LO23: 5.95 | LP23: 8.60 | LQ23: ='KPIs SEMANA'!CAB105 -> 8.18 | LR23: =AVERAGE(KN23:LQ23) -> 5.46 | LS23: =IF(LQ23>F23,"J","L") -> L
C24: UO | D24: % | E24: 7.4% | F24: 20.0 | IO24: 5.43 | IP24: 5.18 | IQ24: 10.84 | IR24: 5.77 | IS24: 4.98 | IT24: 9.98 | IU24: 8.13 | IV24: 8.36 | IW24: 9.32 | IX24: 6.10 | IY24: 8.17 | IZ24: 9.84 | JA24: 4.84 | JB24: 8.63 | JC24: 6.87 | JD24: 7.78 | JE24: 7.20 | JF24: 8.43 | JG24: 9.69 | JH24: 14.77 | JI24: 7.84 | JJ24: 6.86 | JK24: 9.77 | JL24: 10.83 | JM24: 9.17 | JN24: 9.43 | JO24: 10.38 | JP24: 6.11 | JQ24: 5.34 | JR24: 4.82 | JS24: 9.55 | JT24: 6.40 | JU24: 10.20 | JV24: 6.40 | JW24: 5.68 | JX24: 5.16 | JY24: 4.91 | JZ24: 7.46 | KA24: 5.67 | KB24: 4.14 | KC24: 5.50 | KD24: 5.72 | KE24: 4.52 | KF24: 6.31 | KG24: 4.67 | KH24: 5.51 | KI24: 10.67 | KJ24: 7.60 | KK24: 5.76 | KL24: 8.02 | KM24: 5.32 | KN24: 2.89 | KO24: 6.05 | KP24: 6.47 | KQ24: 4.85 | KR24: 10.33 | KS24: 9.88 | KT24: 4.77 | KU24: 7.19 | KV24: 8.59 | KW24: 7.61 | KX24: 7.82 | LA24: 4.88 | LB24: 5.36 | LC24: 7.06 | LD24: 7.01 | LE24: 4.57 | LF24: 7.06 | LG24: 6.87 | LH24: 5.12 | LI24: 12.30 | LJ24: 5.68 | LK24: ='[10]KPIs SEMANA'!BYL106 -> 5.20 | LL24: 5.76 | LM24: 5.76 | LN24: 4.86 | LO24: 7.38 | LP24: 14.45 | LQ24: ='KPIs SEMANA'!CAB106 -> 9.96 | LR24: =AVERAGE(KN24:LQ24) -> 6.99 | LS24: =IF(LQ24>F24,"J","L") -> L | LV24: =+LU24/$LU$75 -> 0.0% | LW24: =+LU24/$LW$75 -> 0.0% | LX24: =+LU24/$LX$75 -> 0.0%
B25: JUMBOS TALADROS LARGOS ( SIMBA 04) | C25: DF | D25: % | E25: 89.0% | F25: 85.0 | G25: 48.1 | H25: 36.4 | I25: 44.3 | J25: 47.5 | K25: 41.2 | L25: 50.0 | M25: 50.0 | N25: 92.9 | O25: 85.0 | P25: 95.2 | Q25: 45.9 | R25: 81.8 | S25: 32.6 | T25: 74.4 | U25: 89.9 | V25: 40.8 | W25: 44.9 | X25: 39.3 | Y25: 27.8 | Z25: 32.5 | AA25: 39.9 | AB25: 38.0 | AC25: 46.7 | AD25: 41.4 | AE25: 43.9 | AF25: 46.2 | AG25: 48.5 | AH25: 19.1 | AI25: 40.9 | AJ25: 85.0 | AK25: 100.0 | AL25: 99.7 | AM25: 42.4 | AN25: 96.9 | AO25: 97.8 | AP25: 71.7 | AQ25: 48.3 | AR25: 49.9 | AS25: 50.0 | AT25: 47.5 | AU25: 40.9 | AV25: 45.1 | AW25: 99.3 | AX25: 95.7 | AY25: 91.5 | AZ25: 88.4 | BA25: 77.1 | BB25: 92.0 | BC25: 96.3 | BD25: 98.1 | BE25: 98.6 | BF25: 91.2 | BG25: 98.2 | BH25: 47.9 | BI25: 47.0 | BJ25: 49.0 | BK25: 49.5 | BL25: 12.8 | BM25: 44.2 | BN25: 46.5 | BO25: 55.8 | BP25: 94.6 | BQ25: 71.3 | BR25: 70.0 | BS25: 87.6 | BT25: 92.7 | BU25: 99.8 | BV25: 97.2 | BW25: 52.5 | BX25: 84.0 | BY25: 32.5 | BZ25: 50.0 | CA25: 32.5 | CB25: 43.9 | CC25: 36.1 | CD25: 43.9 | CE25: 18.6 | CF25: 46.4 | CG25: 91.4 | CH25: 43.5 | CI25: 38.7 | CJ25: 24.5 | CK25: 41.8 | CL25: 41.3 | CM25: 43.9 | CN25: 43.8 | CO25: 45.0 | CP25: 18.8 | CQ25: 48.1 | CR25: 12.2 | CS25: 97.9 | CT25: 95.8 | CU25: 100.0 | CV25: 98.5 | CW25: 85.9 | CX25: 78.1 | CY25: 94.3 | CZ25: 55.7 | DA25: 30.9 | DB25: 44.9 | DC25: 11.5 | DD25: 43.6 | DE25: 43.9 | DF25: 9.8 | DG25: 39.4 | DH25: 48.2 | DI25: 48.5 | DJ25: 49.6 | DK25: 48.8 | DL25: 40.2 | DM25: 11.6 | DN25: 40.0 | DO25: 45.0 | DP25: 0.0 | DQ25: 23.2 | DR25: 50.0 | DS25: 50.0 | DT25: 50.0 | DU25: 73.5 | DV25: 100.0 | DW25: 86.2 | DX25: 95.9 | DY25: 87.6 | DZ25: 30.1 | EA25: 30.1 | EB25: 46.6 | EC25: 21.9 | ED25: 48.2 | EE25: 50.0 | EF25: 41.3 | EG25: 0.0 | EH25: 50.0 | EI25: 37.8 | EJ25: 22.8 | EK25: 39.4 | EL25: 42.1 | EM25: 52.1 | EN25: 65.9 | EO25: 63.8 | EP25: 96.1 | EQ25: 99.4 | ER25: 80.1 | ES25: 45.5 | ET25: 50.0 | EU25: 48.9 | EV25: 37.2 | EW25: 46.4 | EX25: 47.6 | EY25: 48.5 | EZ25: 42.0 | FA25: 41.4 | FB25: 47.8 | FC25: 36.3 | FD25: 50.0 | FE25: 82.4 | FF25: 99.7 | FG25: 92.86 | FH25: 99.40 | FI25: 98.21 | FJ25: 100.00 | FK25: 90.77 | FL25: 96.43 | FM25: 98.21 | FN25: 99.03 | FO25: 88.43 | FP25: 99.21 | FQ25: 98.61 | FR25: 99.40 | FS25: 99.47 | FT25: 99.60 | FU25: 100.00 | FV25: 99.50 | FW25: 99.60 | FX25: 96.92 | FY25: 100.00 | FZ25: 100.00 | GA25: 99.40 | GB25: 100.00 | GC25: 98.02 | GD25: 100.00 | GE25: 100.00 | GF25: 100.00 | GG25: 94.35 | GH25: 98.71 | GI25: 65.87 | GJ25: 85.71 | GK25: 99.26 | GL25: 99.11 | GM25: 96.58 | GN25: 94.94 | GO25: 89.14 | GP25: 80.36 | GQ25: 99.55 | GR25: 100.00 | GS25: 100.00 | GT25: 100.00 | GU25: 100.00 | GV25: 100.00 | GW25: 100.00 | GX25: 99.40 | GY25: 96.43 | GZ25: 91.37 | HA25: 100.00 | HB25: 100.00 | HC25: 98.37 | HD25: 100.00 | HE25: 96.18 | HF25: 86.61 | HG25: 98.21 | HH25: 97.62 | HI25: 100.00 | HJ25: 97.77 | HK25: 98.96 | HL25: 85.66 | HM25: 100.00 | HN25: 100.00 | HO25: 100.00 | HP25: 97.74 | HQ25: 99.55 | HR25: 96.23 | HS25: 99.70 | HT25: 92.26 | HU25: 96.53 | HV25: 99.08 | HW25: 97.32 | HX25: 92.86 | HY25: 94.64 | IA25: 100.00 | IB25: 100.00 | IC25: 100.00 | ID25: 99.11 | IE25: 98.81 | IF25: 91.22 | IG25: 100.00 | IH25: 100.00 | II25: 100.00 | IJ25: 98.83 | IK25: 85.14 | IL25: 97.32 | IM25: 100.00 | IN25: 98.81 | IO25: 98.96 | IP25: 98.81 | IQ25: 93.45 | IR25: 99.26 | IS25: 99.26 | IT25: 99.40 | IU25: 100.00 | IV25: 100.00 | IW25: 98.21 | IX25: 98.81 | IY25: 100.00 | IZ25: 96.43 | JA25: 96.46 | JB25: 100.00 | JC25: 99.70 | JD25: 98.93 | JE25: 98.93 | JF25: 96.75 | JG25: 98.21 | JH25: 26.04 | JI25: 50.00 | JJ25: 47.92 | JK25: 49.31 | JL25: 50.00 | JM25: 48.66 | JN25: 50.00 | JO25: 50.00 | JP25: 69.35 | JQ25: 98.51 | JR25: 95.54 | JS25: 89.58 | JT25: 95.63 | JU25: 98.81 | JV25: 95.24 | JW25: 98.96 | JX25: 100.00 | JY25: 89.88 | JZ25: 99.11 | KA25: 97.62 | KB25: 96.43 | KC25: 97.20 | KD25: 99.08 | KE25: 98.51 | KF25: 95.54 | KG25: 95.09 | KH25: 97.47 | KI25: 96.73 | KJ25: 97.62 | KK25: 98.81 | KL25: 95.24 | KM25: 91.67 | KN25: 98.61 | KO25: 95.24 | KP25: 91.67 | KQ25: 49.11 | KR25: 54.02 | KS25: 62.30 | KT25: 33.63 | KU25: 40.48 | KV25: 85.12 | KW25: 39.73 | KX25: 39.68 | KY25: 17.26 | KZ25: 47.62 | LA25: 41.82 | LB25: 45.89 | LC25: 48.07 | LD25: 14.73 | LE25: 48.42 | LF25: 39.29 | LG25: 46.78 | LH25: 74.23 | LI25: 96.96 | LJ25: 86.71 | LK25: 99.40 | LL25: 100.00 | LM25: 100.00 | LN25: 92.74 | LO25: 94.64 | LP25: 97.62 | LQ25: ='KPIs SEMANA'!CAB121 -> 49.88 | LR25: =AVERAGE(KN25:LQ25) -> 64.39 | LS25: =IF(LQ25>F25,"J","L") -> L | LT25: 135323.92 | LU25: 2 | LV25: =+LU25/$LU$75 -> 7.7% | LW25: =+LT25/$LT$41 -> 5.6% | LX25: =AVERAGE(LV25:LW25) -> 6.6%
C26: DM | D26: % | F26: 85.0 | G26: 0.0 | H26: 0.0 | I26: 0.0 | J26: 0.0 | K26: 0.0 | L26: 0.0 | M26: 0.0 | N26: 0.0 | O26: 85.0 | P26: 0.0 | Q26: 0.0 | R26: 0.0 | S26: 0.0 | T26: 0.0 | U26: 0.0 | V26: 0.0 | W26: 0.0 | X26: 0.0 | Y26: 0.0 | Z26: 0.0 | AA26: 0.0 | AB26: 0.0 | AC26: 0.0 | AD26: 0.0 | AE26: 0.0 | AF26: 0.0 | AG26: 0.0 | AH26: 0.0 | AI26: 0.0 | AJ26: 0.0 | AK26: 0.0 | AL26: 0.0 | AM26: 0.0 | AN26: 0.0 | AO26: 0.0 | AP26: 0.0 | AQ26: 0.0 | AR26: 0.0 | AS26: 0.0 | AT26: 0.0 | AU26: 0.0 | AV26: 0.0 | AW26: 0.0 | AX26: 0.0 | AY26: 0.0 | AZ26: 0.0 | BA26: 0.0 | BB26: 0.0 | BC26: 0.0 | BD26: 0.0 | BE26: 0.0 | BF26: 0.0 | BG26: 0.0 | BH26: 0.0 | BI26: 0.0 | BJ26: 0.0 | BK26: 0.0 | BL26: 0.0 | BM26: 0.0 | BN26: 0.0 | BO26: 0.0 | BP26: 0.0 | BQ26: 0.0 | BR26: 0.0 | BS26: 0.0 | BT26: 0.0 | BU26: 0.0 | BV26: 0.0 | BW26: 0.0 | BX26: 84.0 | BY26: 0.0 | BZ26: 0.0 | CA26: 0.0 | CB26: 43.9 | CC26: 36.1 | CD26: 43.9 | CE26: 18.6 | CF26: 46.4 | CG26: 91.4 | CH26: 43.5 | CI26: 38.7 | CJ26: 24.5 | CK26: 41.8 | CL26: 41.3 | CM26: 43.9 | CN26: 43.8 | CO26: 45.0 | CP26: 18.8 | CQ26: 48.1 | CR26: 12.2 | CS26: 97.9 | CT26: 95.8 | CU26: 100.0 | CV26: 98.5 | CW26: 85.9 | CX26: 78.1 | CY26: 94.3 | CZ26: 55.7 | DA26: 30.9 | DB26: 44.9 | DC26: 11.5 | DD26: 43.6 | DE26: 43.9 | DF26: 9.8 | DG26: 39.4 | DH26: 48.2 | DI26: 48.5 | DJ26: 49.6 | DK26: 48.8 | DL26: 40.2 | DM26: 11.6 | DN26: 40.0 | DO26: 45.0 | DP26: 0.0 | DQ26: 23.2 | DR26: 50.0 | DS26: 50.0 | DT26: 50.0 | DU26: 73.5 | DV26: 100.0 | DW26: 86.2 | DX26: 95.9 | DY26: 87.6 | DZ26: 30.1 | EA26: 30.1 | EB26: 46.6 | EC26: 21.9 | ED26: 48.2 | EE26: 50.0 | EF26: 41.3 | EG26: 0.0 | EH26: 50.0 | EI26: 37.8 | EJ26: 22.8 | EK26: 39.4 | EL26: 42.1 | EM26: 52.1 | EN26: 65.9 | EO26: 63.8 | EP26: 96.1 | EQ26: 99.4 | ER26: 80.1 | ES26: 45.5 | ET26: 50.0 | EU26: 98.9 | LS26: =IF(IN26>F26,"J","L") -> L | LV26: =+LU26/$LU$75 -> 0.0% | LW26: =+LU26/$LW$75 -> 0.0% | LX26: =+LU26/$LX$75 -> 0.0%
C27: UF | D27: % | E27: 1.1% | F27: 20.0 | G27: 3.7 | H27: 0.0 | I27: 5.4 | J27: 6.7 | K27: 13.9 | L27: 30.7 | M27: 0.0 | N27: 0.0 | O27: 0.0 | P27: 0.0 | Q27: 16.6 | R27: 12.7 | S27: 13.0 | T27: 5.7 | U27: 4.5 | V27: 9.6 | W27: 11.6 | X27: 18.5 | Y27: 30.7 | Z27: 0.0 | AA27: 2.5 | AB27: 10.8 | AC27: 1.4 | AD27: 3.0 | AE27: 0.9 | AF27: 2.7 | AG27: 7.0 | AH27: 0.0 | AI27: 3.7 | AJ27: 9.1 | AK27: 0.0 | AL27: 0.0 | AM27: 10.7 | AN27: 11.6 | AO27: 4.2 | AP27: 15.8 | AQ27: 13.2 | AR27: 0.9 | AS27: 0.0 | AT27: 5.8 | AU27: 18.4 | AV27: 13.6 | AW27: 3.1 | AX27: 22.0 | AY27: 20.5 | AZ27: 16.2 | BA27: 19.9 | BB27: 6.3 | BC27: 10.5 | BD27: 11.3 | BE27: 7.7 | BF27: 7.2 | BG27: 8.7 | BH27: 8.0 | BI27: 0.0 | BJ27: 7.6 | BK27: 5.9 | BL27: 0.0 | BM27: 6.5 | BN27: 21.7 | BO27: 15.3 | BP27: 7.9 | BQ27: 10.5 | BR27: 6.7 | BS27: 9.8 | BT27: 1.2 | BU27: 0.0 | BV27: 0.6 | BW27: 8.0 | BX27: 10.0 | BY27: 2.5 | BZ27: 0.4 | CA27: 2.5 | CB27: 2.8 | CC27: 1.4 | CD27: 2.8 | CE27: 0.3 | CF27: 1.9 | CG27: 2.7 | CH27: 6.4 | CI27: 2.6 | CJ27: 3.7 | CK27: 2.4 | CL27: 1.8 | CM27: 2.8 | CN27: 2.6 | CO27: 0.0 | CP27: 9.2 | CQ27: 2.1 | CR27: 4.8 | CS27: 2.1 | CT27: 0.5 | CU27: 0.0 | CV27: 0.0 | CW27: 2.5 | CX27: 1.0 | CY27: 0.8 | CZ27: 3.0 | DA27: 0.0 | DB27: 0.0 | DC27: 11.9 | DD27: 0.0 | DE27: 0.4 | DF27: 1.8 | DG27: 0.4 | DH27: 3.9 | DI27: 0.0 | DJ27: 0.3 | DK27: 22.8 | DL27: 2.7 | DM27: 0.0 | DN27: 8.9 | DO27: 2.5 | DP27: 0.0 | DQ27: 5.8 | DR27: 0.4 | DS27: 0.0 | DT27: 0.0 | DU27: 0.0 | DV27: 0.0 | DW27: 9.0 | DX27: 6.6 | DY27: 16.5 | DZ27: 3.8 | EA27: 3.8 | EB27: 2.0 | EC27: 3.7 | ED27: 0.8 | EE27: 3.9 | EF27: 4.2 | EG27: 0.0 | EH27: 0.0 | EI27: 0.0 | EJ27: 3.7 | EK27: 11.1 | EL27: 2.7 | EM27: 2.4 | EN27: 2.4 | EO27: 6.9 | EP27: 0.4 | EQ27: 0.0 | ER27: 12.5 | ES27: 1.0 | ET27: 18.8 | EU27: 8.1 | EV27: 2.9 | EW27: 25.7 | EX27: 5.1 | EY27: 0.6 | EZ27: 8.9 | FA27: 3.8 | FB27: 2.3 | FC27: 0.9 | FD27: 0.0 | FE27: 21.5 | FF27: 30.6 | FG27: 30.60 | FH27: 1.45 | FI27: 0.77 | FJ27: 0.01 | FK27: 0.01 | FL27: 3.69 | FM27: 4.32 | FN27: 0.69 | FO27: 12.93 | FP27: 0.00 | FQ27: 0.56 | FR27: 0.00 | FS27: 32.82 | FT27: 20.93 | FU27: 32.39 | FV27: 21.25 | FW27: 24.82 | FX27: 10.89 | FY27: 23.92 | FZ27: 19.40 | GA27: 12.50 | GB27: 3.03 | GC27: 2.76 | GD27: 0.00 | GE27: 12.10 | GF27: 9.72 | GG27: 16.41 | GH27: 11.86 | GI27: 0.00 | GJ27: 11.90 | GK27: 3.37 | GL27: 8.01 | GM27: 10.30 | GN27: 0.00 | GO27: 2.17 | GP27: 0.17 | GQ27: 0.50 | GR27: 0.00 | GS27: 0.30 | GT27: 0.00 | GU27: 0.00 | GV27: 1.52 | GW27: 0.04 | GX27: 0.85 | GY27: 1.31 | GZ27: 0.00 | HA27: 0.00 | HB27: 0.24 | HC27: 1.23 | HD27: 3.96 | HE27: 1.10 | HF27: 1.66 | HG27: 0.19 | HH27: 0.00 | HI27: 0.51 | HJ27: 0.00 | HK27: 1.45 | HL27: 2.07 | HM27: 0.00 | HN27: 0.00 | HO27: 0.00 | HP27: 3.27 | HQ27: 3.15 | HR27: 0.28 | HS27: 0.41 | HT27: 0.28 | HU27: 1.47 | HV27: 1.58 | HW27: 0.86 | HX27: 1.13 | HY27: 1.15 | HZ27: 0.40 | IA27: 0.58 | IB27: 0.43 | IC27: 0.00 | ID27: 0.64 | IE27: 0.00 | IF27: 2.14 | IG27: 0.00 | IH27: 0.20 | II27: 0.89 | IJ27: 2.27 | IK27: 0.57 | IL27: 0.00 | IM27: 0.00 | IN27: 0.00 | IO27: 0.00 | IP27: 5.06 | IQ27: 0.72 | IR27: 0.29 | IS27: 0.49 | IT27: 0.73 | IU27: 0.00 | IV27: 0.00 | IW27: 0.09 | IX27: 0.09 | IY27: 2.15 | IZ27: 0.00 | JA27: 2.07 | JB27: 1.95 | JC27: 0.66 | JD27: 0.00 | JE27: 0.00 | JF27: 1.10 | JG27: 0.54 | JH27: 1.40 | JI27: 0.65 | JJ27: 0.06 | JK27: 0.00 | JL27: 0.67 | JM27: 1.52 | JN27: 0.46 | JO27: 0.38 | JP27: 1.13 | JQ27: 1.68 | JR27: 1.44 | JS27: 2.23 | JT27: 1.91 | JU27: 2.16 | JV27: 1.76 | JW27: 1.10 | JX27: 1.22 | JY27: 1.37 | JZ27: 0.87 | KA27: 1.43 | KB27: 1.44 | KC27: 1.70 | KD27: 1.22 | KE27: 2.82 | KF27: 1.83 | KG27: 1.32 | KH27: 2.06 | KI27: 1.28 | KJ27: 5.03 | KK27: 0.49 | KL27: 0.00 | KM27: 0.00 | KN27: 0.00 | KO27: 0.00 | KP27: 2.17 | KQ27: 1.34 | KR27: 0.97 | KS27: 4.95 | KT27: 2.29 | KU27: 1.08 | KV27: 3.46 | KW27: 3.49 | KX27: 5.63 | KY27: 0.00 | KZ27: 2.58 | LA27: 1.84 | LB27: 1.77 | LC27: 1.60 | LD27: 2.45 | LE27: 0.41 | LF27: 1.90 | LG27: 1.55 | LH27: 1.85 | LI27: 5.76 | LJ27: 4.36 | LK27: 2.50 | LL27: 2.48 | LM27: 0.00 | LN27: 1.94 | LO27: 2.57 | LP27: 8.23 | LQ27: ='KPIs SEMANA'!CAB122 -> 1.79 | LR27: =AVERAGE(KN27:LQ27) -> 2.37 | LS27: =IF(LQ27>F27,"J","L") -> L
C28: UO | D28: % | E28: 2.2% | F28: 20.0 | IO28: 0.00 | IP28: 6.10 | IQ28: 0.89 | IR28: 0.34 | IS28: 0.59 | IT28: 0.88 | IU28: 0.00 | IV28: 0.00 | IW28: 0.11 | IX28: 0.09 | IY28: 2.58 | IZ28: 0.00 | JA28: 2.52 | JB28: 2.33 | JC28: 0.79 | JD28: 0.00 | JE28: 0.00 | JF28: 1.34 | JG28: 0.65 | JH28: 40.54 | JI28: 0.78 | JJ28: 0.08 | JK28: 0.00 | JL28: 0.81 | JM28: 1.83 | JN28: 0.55 | JO28: 0.46 | JP28: 1.38 | JQ28: 2.03 | JR28: 1.76 | JS28: 2.83 | JT28: 2.33 | JU28: 2.61 | JV28: 2.15 | JW28: 1.32 | JX28: 1.46 | JY28: 1.73 | JZ28: 1.05 | KA28: 1.73 | KB28: 1.76 | KC28: 2.06 | KD28: 1.47 | KE28: 3.41 | KF28: 2.23 | KG28: 1.62 | KH28: 2.50 | KI28: 1.56 | KJ28: 6.10 | KK28: 0.59 | KL28: 0.00 | KM28: 0.00 | KN28: 0.00 | KO28: 0.00 | KP28: 2.72 | KQ28: 1.62 | KR28: 1.23 | KS28: 6.03 | KT28: 3.04 | KU28: 1.36 | KV28: 4.17 | KW28: 4.41 | KX28: 7.12 | LA28: 2.29 | LB28: 2.16 | LC28: 1.93 | LD28: 5.65 | LE28: 0.49 | LF28: 2.41 | LG28: 1.88 | LH28: 2.38 | LI28: 6.95 | LJ28: 5.40 | LK28: ='[10]KPIs SEMANA'!BYL123 -> 3.00 | LL28: 2.98 | LM28: 0.00 | LN28: 2.36 | LO28: 3.13 | LP28: 9.93 | LQ28: ='KPIs SEMANA'!CAB123 -> 2.69 | LR28: =AVERAGE(KN28:LQ28) -> 3.12 | LS28: =IF(LQ28>F28,"J","L") -> L | LV28: =+LU28/$LU$75 -> 0.0% | LW28: =+LU28/$LW$75 -> 0.0% | LX28: =+LU28/$LX$75 -> 0.0%
B29: MEZCLADOR DE CONCRETO (MIXER: 01, 02, 03, 04) | C29: DF | D29: % | E29: 91.1% | F29: 85.0 | G29: 92.5 | H29: 76.9 | I29: 54.5 | J29: 61.8 | K29: 71.4 | L29: 65.7 | M29: 72.6 | N29: 75.6 | O29: 97.2 | P29: 99.7 | Q29: 97.9 | R29: 97.4 | S29: 95.8 | T29: 84.1 | U29: 80.7 | V29: 95.0 | W29: 92.5 | X29: 95.5 | Y29: 85.0 | Z29: 93.1 | AA29: 98.0 | AB29: 93.2 | AC29: 98.9 | AD29: 95.2 | AE29: 99.8 | AF29: 76.4 | AG29: 90.9 | AH29: 74.1 | AI29: 56.0 | AJ29: 54.6 | AK29: 77.7 | AL29: 98.3 | AM29: 96.9 | AN29: 95.6 | AO29: 95.5 | AP29: 95.2 | AQ29: 98.2 | AR29: 78.0 | AS29: 91.5 | AT29: 89.0 | AU29: 97.9 | AV29: 98.0 | AW29: 91.8 | AX29: 81.8 | AY29: 58.7 | AZ29: 65.3 | BA29: 65.1 | BB29: 58.9 | BC29: 70.2 | BD29: 78.6 | BE29: 91.4 | BF29: 92.2 | BG29: 78.5 | BH29: 97.7 | BI29: 92.6 | BJ29: 99.1 | BK29: 83.8 | BL29: 95.3 | BM29: 94.4 | BN29: 97.1 | BO29: 85.4 | BP29: 94.6 | BQ29: 73.8 | BR29: 70.3 | BS29: 61.5 | BT29: 39.3 | BU29: 63.9 | BV29: 65.7 | BW29: 65.7 | BX29: 97.9 | BY29: 99.7 | BZ29: 62.1 | CA29: 95.3 | CB29: 99.7 | CC29: 97.0 | CD29: 98.3 | CE29: 92.5 | CF29: 96.6 | CG29: 94.2 | CH29: 94.0 | CI29: 91.0 | CJ29: 98.3 | CK29: 92.6 | CL29: 84.8 | CM29: 60.3 | CN29: 81.0 | CO29: 95.5 | CP29: 97.9 | CQ29: 96.5 | CR29: 99.7 | CS29: 92.8 | CT29: 93.8 | CU29: 93.6 | CV29: 82.8 | CW29: 93.4 | CX29: 93.8 | CY29: 93.2 | CZ29: 85.0 | DA29: 96.7 | DB29: 93.4 | DC29: 99.5 | DD29: 96.3 | DE29: 99.2 | DF29: 91.6 | DG29: 68.1 | DH29: 89.4 | DI29: 76.5 | DJ29: 61.2 | DK29: 67.0 | DL29: 93.5 | DM29: 97.9 | DN29: 95.5 | DO29: 86.6 | DP29: 95.0 | DQ29: 94.6 | DR29: 97.8 | DS29: 100.0 | DT29: 98.0 | DU29: 100.0 | DV29: 100.0 | DW29: 85.0 | DX29: 86.5 | DY29: 94.0 | DZ29: 92.9 | EA29: 92.9 | EB29: 98.9 | EC29: 94.7 | ED29: 91.7 | EE29: 90.6 | EF29: 91.2 | EG29: 100.0 | EH29: 98.8 | EI29: 77.7 | EJ29: 96.2 | EK29: 93.7 | EL29: 96.4 | EM29: 100.0 | EN29: 95.0 | EO29: 95.2 | EP29: 96.8 | EQ29: 94.3 | ER29: 97.9 | ES29: 85.0 | ET29: 92.3 | EU29: 92.7 | EV29: 90.5 | EW29: 92.1 | EX29: 87.4 | EY29: 98.1 | EZ29: 95.7 | FA29: 88.5 | FB29: 93.3 | FC29: 94.3 | FD29: 100.0 | FE29: 96.3 | FF29: 96.6 | FG29: 88.41 | FH29: 91.53 | FI29: 95.73 | FJ29: 85.05 | FK29: 79.89 | FL29: 96.43 | FM29: 88.18 | FN29: 91.25 | FO29: 98.69 | FP29: 85.62 | FQ29: 95.22 | FR29: 87.75 | FS29: 73.08 | FT29: 91.11 | FU29: 91.11 | FV29: 95.11 | FW29: 93.75 | FX29: 96.13 | FY29: 81.34 | FZ29: 95.93 | GA29: 93.85 | GB29: 92.25 | GC29: 88.23 | GD29: 93.35 | GE29: 97.12 | GF29: 96.60 | GG29: 93.01 | GH29: 97.62 | GI29: 93.15 | GJ29: 93.40 | GK29: 98.21 | GL29: 96.43 | GM29: 98.81 | GN29: 94.94 | GO29: 88.31 | GP29: 95.70 | GQ29: 95.68 | GR29: 89.23 | GS29: 88.00 | GT29: 95.78 | GU29: 99.27 | GV29: 87.29 | GW29: 96.36 | GX29: 94.10 | GY29: 93.25 | GZ29: 87.20 | HA29: 97.62 | HB29: 95.52 | HC29: 89.22 | HD29: 91.12 | HE29: 72.57 | HF29: 85.38 | HG29: 91.55 | HH29: 90.08 | HI29: 96.73 | HJ29: 98.07 | HK29: 93.99 | HL29: 99.06 | HM29: 98.41 | HN29: 72.52 | HO29: 85.58 | HP29: 95.09 | HQ29: 89.09 | HR29: 99.60 | HS29: 98.26 | HT29: 95.04 | HU29: 84.92 | HV29: 95.34 | HW29: 89.75 | HX29: 94.39 | HY29: 97.19 | HZ29: 94.31 | IA29: 90.77 | IB29: 94.61 | IC29: 93.85 | ID29: 96.43 | IE29: 98.02 | IF29: 87.91 | IG29: 87.60 | IH29: 96.43 | II29: 96.43 | IJ29: 93.87 | IK29: 92.36 | IL29: 93.65 | IM29: 97.72 | IN29: 97.29 | IO29: 94.05 | IP29: 90.77 | IQ29: 99.11 | IR29: 95.88 | IS29: 97.52 | IT29: 92.19 | IU29: 87.50 | IV29: 92.79 | IW29: 96.27 | IX29: 85.42 | IY29: 85.44 | IZ29: 91.12 | JA29: 93.32 | JB29: 93.19 | JC29: 95.36 | JD29: 97.22 | JE29: 95.83 | JF29: 83.61 | JG29: 94.84 | JH29: 96.83 | JI29: 91.83 | JJ29: 96.09 | JK29: 97.59 | JL29: 91.10 | JM29: 92.06 | JN29: 81.65 | JO29: 85.72 | JP29: 93.45 | JQ29: 99.35 | JR29: 85.85 | JS29: 89.95 | JT29: 92.83 | JU29: 98.61 | JV29: 91.87 | JW29: 96.23 | JX29: 92.26 | JY29: 96.83 | JZ29: 96.83 | KA29: 68.99 | KB29: 63.64 | KC29: 77.38 | KD29: 95.45 | KE29: 93.15 | KF29: 94.05 | KG29: 94.06 | KH29: 66.07 | KI29: 88.29 | KJ29: 98.21 | KK29: 96.77 | KL29: 88.27 | KM29: 85.71 | KN29: 95.14 | KO29: 96.99 | KP29: 94.54 | KQ29: 98.95 | KR29: 94.97 | KS29: 97.62 | KT29: 96.23 | KU29: 97.70 | KV29: 95.59 | KW29: 94.05 | KX29: 99.11 | KY29: 95.63 | KZ29: 97.22 | LA29: 96.53 | LB29: 86.61 | LC29: 78.67 | LD29: 86.97 | LE29: 77.58 | LF29: 98.81 | LG29: 95.01 | LH29: 90.28 | LI29: 99.76 | LJ29: 86.67 | LK29: 56.85 | LL29: 37.50 | LM29: 93.08 | LN29: 97.32 | LO29: 95.58 | LP29: 95.48 | LQ29: ='KPIs SEMANA'!CAB142 -> 96.73 | LR29: =AVERAGE(KN29:LQ29) -> 90.77 | LS29: =IF(LQ29>F29,"J","L") -> J | LT29: 90339.01 | LU29: 3 | LV29: =+LU29/$LU$75 -> 11.5% | LW29: =+LT29/$LT$41 -> 3.7% | LX29: =AVERAGE(LV29:LW29) -> 7.6%
C30: DM | D30: % | F30: 85.0 | G30: 92.5 | H30: 76.9 | I30: 54.5 | J30: 61.8 | K30: 71.4 | L30: 65.7 | M30: 72.6 | N30: 75.6 | O30: 97.2 | P30: 99.7 | Q30: 97.9 | R30: 97.4 | S30: 95.8 | T30: 84.1 | U30: 80.7 | V30: 95.0 | W30: 92.5 | X30: 95.5 | Y30: 85.0 | Z30: 93.1 | AA30: 98.0 | AB30: 93.2 | AC30: 98.9 | AD30: 95.2 | AE30: 99.8 | AF30: 76.4 | AG30: 90.9 | AH30: 74.1 | AI30: 56.0 | AJ30: 54.6 | AK30: 77.7 | AL30: 98.3 | AM30: 96.9 | AN30: 95.6 | AO30: 95.5 | AP30: 95.2 | AQ30: 98.2 | AR30: 78.0 | AS30: 91.5 | AT30: 89.0 | AU30: 97.9 | AV30: 98.0 | AW30: 91.8 | AX30: 81.8 | AY30: 58.7 | AZ30: 65.3 | BA30: 65.1 | BB30: 58.9 | BC30: 70.2 | BD30: 78.6 | BE30: 91.4 | BF30: 92.2 | BG30: 78.5 | BH30: 97.7 | BI30: 92.6 | BJ30: 99.1 | BK30: 83.8 | BL30: 95.3 | BM30: 94.4 | BN30: 97.1 | BO30: 85.4 | BP30: 94.6 | BQ30: 73.8 | BR30: 70.3 | BS30: 61.5 | BT30: 39.3 | BU30: 63.9 | BV30: 65.7 | BW30: 65.7 | BX30: 97.9 | BY30: 99.7 | BZ30: 62.1 | CA30: 95.3 | CB30: 99.7 | CC30: 97.0 | CD30: 98.3 | CE30: 92.5 | CF30: 96.6 | CG30: 94.2 | CH30: 94.0 | CI30: 91.0 | CJ30: 98.3 | CK30: 92.6 | CL30: 84.8 | CM30: 60.3 | CN30: 81.0 | CO30: 95.5 | CP30: 97.9 | CQ30: 96.5 | CR30: 99.7 | CS30: 92.8 | CT30: 93.8 | CU30: 93.6 | CV30: 82.8 | CW30: 93.4 | CX30: 93.8 | CY30: 93.2 | CZ30: 85.0 | DA30: 96.7 | DB30: 93.4 | DC30: 99.5 | DD30: 96.3 | DE30: 99.2 | DF30: 91.6 | DG30: 68.1 | DH30: 89.4 | DI30: 76.5 | DJ30: 61.2 | DK30: 67.0 | DL30: 93.5 | DM30: 97.9 | DN30: 95.5 | DO30: 86.6 | DP30: 95.0 | DQ30: 94.6 | DR30: 97.8 | DS30: 100.0 | DT30: 98.0 | DU30: 100.0 | DV30: 100.0 | DW30: 85.0 | DX30: 86.5 | DY30: 94.0 | DZ30: 92.9 | EA30: 92.9 | EB30: 98.9 | EC30: 94.7 | ED30: 91.7 | EE30: 90.6 | EF30: 91.2 | EG30: 100.0 | EH30: 98.8 | EI30: 77.7 | EJ30: 96.2 | EK30: 93.7 | EL30: 96.4 | EM30: 100.0 | EN30: 95.0 | EO30: 95.4 | EP30: 96.8 | EQ30: 94.3 | ER30: 97.9 | ES30: 85.0 | ET30: 92.3 | EU30: 92.7 | LS30: =IF(IN30>F30,"J","L") -> L | LV30: =+LU30/$LU$75 -> 0.0% | LW30: =+LU30/$LW$75 -> 0.0% | LX30: =+LU30/$LX$75 -> 0.0%
C31: UF | D31: % | E31: 32.0% | F31: 30.0 | G31: 11.3 | H31: 24.9 | I31: 30.9 | J31: 22.6 | K31: 30.9 | L31: 36.2 | M31: 27.3 | N31: 28.4 | O31: 21.3 | P31: 11.4 | Q31: 28.2 | R31: 31.0 | S31: 27.1 | T31: 28.3 | U31: 20.8 | V31: 31.7 | W31: 31.1 | X31: 31.8 | Y31: 24.7 | Z31: 20.7 | AA31: 12.6 | AB31: 23.0 | AC31: 24.4 | AD31: 35.2 | AE31: 22.8 | AF31: 26.8 | AG31: 23.4 | AH31: 24.4 | AI31: 25.2 | AJ31: 24.9 | AK31: 17.2 | AL31: 17.3 | AM31: 21.7 | AN31: 24.6 | AO31: 23.5 | AP31: 22.3 | AQ31: 36.8 | AR31: 34.5 | AS31: 36.0 | AT31: 15.6 | AU31: 23.7 | AV31: 26.1 | AW31: 35.4 | AX31: 36.2 | AY31: 16.1 | AZ31: 15.3 | BA31: 21.0 | BB31: 35.3 | BC31: 30.1 | BD31: 30.9 | BE31: 31.9 | BF31: 30.4 | BG31: 25.2 | BH31: 29.3 | BI31: 28.5 | BJ31: 33.2 | BK31: 14.5 | BL31: 24.2 | BM31: 23.0 | BN31: 18.2 | BO31: 31.3 | BP31: 34.0 | BQ31: 30.8 | BR31: 27.3 | BS31: 34.2 | BT31: 24.4 | BU31: 27.0 | BV31: 21.2 | BW31: 21.2 | BX31: 23.4 | BY31: 20.3 | BZ31: 24.8 | CA31: 31.9 | CB31: 20.3 | CC31: 24.2 | CD31: 33.2 | CE31: 30.7 | CF31: 25.2 | CG31: 19.5 | CH31: 25.2 | CI31: 38.5 | CJ31: 27.4 | CK31: 24.9 | CL31: 32.1 | CM31: 32.0 | CN31: 28.8 | CO31: 31.8 | CP31: 24.1 | CQ31: 19.2 | CR31: 29.1 | CS31: 47.9 | CT31: 33.1 | CU31: 42.5 | CV31: 37.8 | CW31: 27.3 | CX31: 23.6 | CY31: 41.0 | CZ31: 30.4 | DA31: 34.0 | DB31: 18.3 | DC31: 28.1 | DD31: 32.9 | DE31: 29.5 | DF31: 38.7 | DG31: 19.4 | DH31: 31.9 | DI31: 45.3 | DJ31: 29.7 | DK31: 34.0 | DL31: 36.0 | DM31: 29.5 | DN31: 41.3 | DO31: 28.7 | DP31: 35.0 | DQ31: 40.2 | DR31: 7.7 | DS31: 0.0 | DT31: 0.0 | DU31: 0.0 | DV31: 0.0 | DW31: 27.8 | DX31: 50.3 | DY31: 51.2 | DZ31: 49.3 | EA31: 49.3 | EB31: 40.0 | EC31: 35.6 | ED31: 33.2 | EE31: 19.1 | EF31: 42.5 | EG31: 21.4 | EH31: 11.8 | EI31: 5.8 | EJ31: 40.1 | EK31: 25.8 | EL31: 37.4 | EM31: 25.8 | EN31: 23.9 | EO31: 21.8 | EP31: 17.3 | EQ31: 5.0 | ER31: 32.6 | ES31: 26.8 | ET31: 25.1 | EU31: 30.4 | EV31: 28.8 | EW31: 28.9 | EX31: 23.0 | EY31: 33.6 | EZ31: 27.7 | FA31: 30.2 | FB31: 19.6 | FC31: 26.6 | FD31: 0.0 | FE31: 15.2 | FF31: 22.2 | FG31: 29.33 | FH31: 18.11 | FI31: 19.55 | FJ31: 34.27 | FK31: 15.90 | FL31: 22.87 | FM31: 27.82 | FN31: 32.05 | FO31: 38.20 | FP31: 34.84 | FQ31: 20.39 | FR31: 21.38 | FS31: 36.06 | FT31: 29.03 | FU31: 20.54 | FV31: 20.76 | FW31: 26.74 | FX31: 33.56 | FY31: 19.33 | FZ31: 0.00 | GA31: 13.99 | GB31: 31.67 | GC31: 36.30 | GD31: 32.84 | GE31: 25.15 | GF31: 30.97 | GG31: 34.01 | GH31: 28.78 | GI31: 31.13 | GJ31: 29.37 | GK31: 25.28 | GL31: 23.75 | GM31: 22.03 | GN31: 15.73 | GO31: 15.47 | GP31: 20.82 | GQ31: 20.12 | GR31: 15.89 | GS31: 19.46 | GT31: 8.79 | GU31: 29.12 | GV31: 23.39 | GW31: 30.53 | GX31: 23.38 | GY31: 24.93 | GZ31: 24.14 | HA31: 18.05 | HB31: 31.19 | HC31: 36.94 | HD31: 28.44 | HE31: 46.53 | HF31: 39.80 | HG31: 30.13 | HH31: 34.32 | HI31: 35.36 | HJ31: 29.59 | HK31: 30.33 | HL31: 39.52 | HM31: 30.74 | HN31: 27.30 | HO31: 24.58 | HP31: 25.30 | HQ31: 25.66 | HR31: 22.94 | HS31: 25.99 | HT31: 18.79 | HU31: 33.58 | HV31: 24.59 | HW31: 28.26 | HX31: 28.66 | HY31: 12.15 | HZ31: 26.86 | IA31: 30.54 | IB31: 28.42 | IC31: 28.44 | ID31: 33.59 | IE31: 29.53 | IF31: 30.32 | IG31: 39.58 | IH31: 33.00 | II31: 25.13 | IJ31: 24.98 | IK31: 17.44 | IL31: 20.42 | IM31: 14.26 | IN31: 19.11 | IO31: 18.86 | IP31: 25.82 | IQ31: 19.52 | IR31: 24.71 | IS31: 26.20 | IT31: 26.97 | IU31: 39.54 | IV31: 40.06 | IW31: 32.29 | IX31: 48.13 | IY31: 38.93 | IZ31: 30.59 | JA31: 33.23 | JB31: 28.74 | JC31: 36.82 | JD31: 36.07 | JE31: 23.81 | JF31: 39.04 | JG31: 41.19 | JH31: 34.53 | JI31: 45.18 | JJ31: 35.61 | JK31: 34.72 | JL31: 40.44 | JM31: 44.06 | JN31: 27.87 | JO31: 33.38 | JP31: 37.12 | JQ31: 29.60 | JR31: 33.90 | JS31: 35.78 | JT31: 34.03 | JU31: 32.22 | JV31: 38.31 | JW31: 24.20 | JX31: 31.66 | JY31: 36.79 | JZ31: 29.33 | KA31: 24.97 | KB31: 25.87 | KC31: 30.44 | KD31: 33.37 | KE31: 29.93 | KF31: 29.13 | KG31: 29.89 | KH31: 37.88 | KI31: 30.21 | KJ31: 22.90 | KK31: 31.54 | KL31: 25.30 | KM31: 24.14 | KN31: 25.93 | KO31: 29.02 | KP31: 23.60 | KQ31: 21.14 | KR31: 27.79 | KS31: 23.01 | KT31: 28.47 | KU31: 30.78 | KV31: 19.78 | KW31: 27.76 | KX31: 23.43 | KY31: 20.73 | KZ31: 20.31 | LA31: 20.92 | LB31: 28.68 | LC31: 23.13 | LD31: 17.92 | LE31: 12.38 | LF31: 23.14 | LG31: 27.54 | LH31: 26.76 | LI31: 29.07 | LJ31: 19.77 | LK31: 16.17 | LL31: 29.07 | LM31: 23.55 | LN31: 24.80 | LO31: 26.97 | LP31: 34.30 | LQ31: ='KPIs SEMANA'!CAB144 -> 30.73 | LR31: =AVERAGE(KN31:LQ31) -> 24.55 | LS31: =IF(LQ31>F31,"J","L") -> J
C32: UO | D32: % | E32: 39.5% | F32: 30.0 | IO32: 22.90 | IP32: 30.52 | IQ32: 23.49 | IR32: 30.02 | IS32: 31.65 | IT32: 33.25 | IU32: 49.15 | IV32: 48.86 | IW32: 39.14 | IX32: 61.49 | IY32: 48.54 | IZ32: 37.53 | JA32: 40.62 | JB32: 34.94 | JC32: 44.68 | JD32: 43.58 | JE32: 28.82 | JF32: 49.23 | JG32: 49.97 | JH32: 41.73 | JI32: 55.21 | JJ32: 43.11 | JK32: 42.77 | JL32: 49.56 | JM32: 54.06 | JN32: 33.82 | JO32: 41.47 | JP32: 45.22 | JQ32: 35.58 | JR32: 42.19 | JS32: 44.08 | JT32: 41.60 | JU32: 38.80 | JV32: 46.82 | JW32: 29.24 | JX32: 38.62 | JY32: 44.35 | JZ32: 35.42 | KA32: 30.01 | KB32: 31.65 | KC32: 41.62 | KD32: 40.47 | KE32: 36.42 | KF32: 35.39 | KG32: 36.38 | KH32: 46.11 | KI32: 37.31 | KJ32: 27.58 | KK32: 38.00 | KL32: 31.81 | KM32: 30.63 | KN32: 32.69 | KO32: 35.04 | KP32: 28.86 | KQ32: 25.44 | KR32: 33.82 | KS32: 27.81 | KT32: 34.50 | KU32: 37.08 | KV32: 23.90 | KW32: 33.98 | KX32: 28.22 | LA32: 25.38 | LB32: 36.21 | LC32: 29.01 | LD32: 22.10 | LE32: 15.95 | LF32: 27.85 | LG32: 33.71 | LH32: 50.04 | LI32: 34.90 | LJ32: 25.25 | LK32: 19.42 | LL32: 35.97 | LM32: 28.83 | LN32: 30.00 | LO32: 32.90 | LP32: 41.65 | LQ32: ='KPIs SEMANA'!CAB145 -> 37.05 | LR32: =AVERAGE(KN32:LQ32) -> 30.98 | LS32: =IF(LQ32>F32,"J","L") -> J | LV32: =+LU32/$LU$75 -> 0.0% | LW32: =+LU32/$LW$75 -> 0.0% | LX32: =+LU32/$LX$75 -> 0.0%
B33: CARGADOR DE ANFO (ANFO: 01, 05, 07) | C33: DF | D33: % | E33: 83.1% | F33: 85.0 | G33: 60.0 | H33: 52.6 | I33: 64.3 | J33: 63.0 | K33: 55.2 | L33: 60.9 | M33: 57.3 | N33: 63.0 | O33: 61.4 | P33: 54.7 | Q33: 59.6 | R33: 63.8 | S33: 65.0 | T33: 61.7 | U33: 61.9 | V33: 65.2 | W33: 64.5 | X33: 59.6 | Y33: 62.1 | Z33: 58.7 | AA33: 64.1 | AB33: 63.1 | AC33: 59.0 | AD33: 65.1 | AE33: 63.0 | AF33: 60.7 | AG33: 63.6 | AH33: 61.9 | AI33: 57.2 | AJ33: 62.5 | AK33: 80.1 | AL33: 94.7 | AM33: 97.9 | AN33: 90.5 | AO33: 71.0 | AP33: 96.5 | AQ33: 94.3 | AR33: 91.6 | AS33: 92.1 | AT33: 98.0 | AU33: 65.4 | AV33: 94.7 | AW33: 98.2 | AX33: 97.2 | AY33: 91.5 | AZ33: 88.5 | BA33: 93.7 | BB33: 99.0 | BC33: 90.3 | BD33: 97.1 | BE33: 93.4 | BF33: 97.6 | BG33: 67.3 | BH33: 96.4 | BI33: 96.1 | BJ33: 100.0 | BK33: 75.0 | BL33: 60.6 | BM33: 95.8 | BN33: 89.7 | BO33: 98.1 | BP33: 94.6 | BQ33: 97.1 | BR33: 95.2 | BS33: 58.5 | BT33: 63.5 | BU33: 65.4 | BV33: 62.6 | BW33: 62.6 | BX33: 92.2 | BY33: 97.3 | BZ33: 98.5 | CA33: 93.0 | CB33: 97.3 | CC33: 96.4 | CD33: 77.8 | CE33: 89.6 | CF33: 86.2 | CG33: 87.0 | CH33: 93.9 | CI33: 98.1 | CJ33: 95.3 | CK33: 98.1 | CL33: 96.3 | CM33: 96.5 | CN33: 97.4 | CO33: 97.4 | CP33: 91.2 | CQ33: 99.1 | CR33: 97.7 | CS33: 95.7 | CT33: 79.2 | CU33: 64.4 | CV33: 59.8 | CW33: 64.3 | CX33: 65.0 | CY33: 53.2 | CZ33: 60.1 | DA33: 65.4 | DB33: 62.7 | DC33: 92.9 | DD33: 75.8 | DE33: 63.9 | DF33: 65.8 | DG33: 80.6 | DH33: 97.0 | DI33: 95.0 | DJ33: 79.7 | DK33: 85.6 | DL33: 94.6 | DM33: 92.2 | DN33: 86.7 | DO33: 93.9 | DP33: 97.8 | DQ33: 78.5 | DR33: 68.4 | DS33: 66.7 | DT33: 66.7 | DU33: 96.4 | DV33: 100.0 | DW33: 96.3 | DX33: 96.3 | DY33: 91.5 | DZ33: 77.1 | EA33: 77.1 | EB33: 82.3 | EC33: 73.5 | ED33: 82.3 | EE33: 94.3 | EF33: 89.2 | EG33: 66.3 | EH33: 97.7 | EI33: 94.3 | EJ33: 90.7 | EK33: 82.8 | EL33: 84.8 | EM33: 87.7 | EN33: 94.7 | EO33: 89.4 | EP33: 99.6 | EQ33: 99.7 | ER33: 88.0 | ES33: 85.5 | ET33: 86.6 | EU33: 65.8 | EV33: 58.8 | EW33: 65.6 | EX33: 81.7 | EY33: 96.6 | EZ33: 95.4 | FA33: 87.0 | FB33: 89.5 | FC33: 89.5 | FD33: 100.00 | FE33: 91.7 | FF33: 94.2 | FG33: 91.17 | FH33: 97.14 | FI33: 98.68 | FJ33: 96.83 | FK33: 98.43 | FL33: 97.07 | FM33: 87.50 | FN33: 94.65 | FO33: 91.01 | FP33: 97.36 | FQ33: 98.48 | FR33: 92.36 | FS33: 97.76 | FT33: 95.01 | FU33: 93.14 | FV33: 84.57 | FW33: 87.60 | FX33: 94.63 | FY33: 97.37 | FZ33: 99.80 | GA33: 91.90 | GB33: 91.65 | GC33: 65.28 | GD33: 87.60 | GE33: 88.69 | GF33: 96.11 | GG33: 97.98 | GH33: 95.50 | GI33: 93.85 | GJ33: 74.57 | GK33: 63.06 | GL33: 91.17 | GM33: 91.77 | GN33: 63.74 | GO33: 94.35 | GP33: 95.24 | GQ33: 98.05 | GR33: 94.94 | GS33: 96.83 | GT33: 94.97 | GU33: 97.36 | GV33: 94.73 | GW33: 95.90 | GX33: 97.72 | GY33: 92.26 | GZ33: 85.62 | HA33: 91.57 | HB33: 85.98 | HC33: 90.23 | HD33: 97.37 | HE33: 92.59 | HF33: 97.04 | HG33: 95.92 | HH33: 96.56 | HI33: 96.57 | HJ33: 74.82 | HK33: 91.19 | HL33: 97.02 | HM33: 97.39 | HN33: 98.51 | HO33: 71.30 | HP33: 63.55 | HQ33: 66.27 | HR33: 60.98 | HS33: 65.24 | HT33: 65.41 | HU33: 59.54 | HV33: 60.88 | HW33: 65.18 | HX33: 94.16 | HY33: 87.58 | HZ33: 92.58 | IA33: 94.54 | IB33: 80.23 | IC33: 78.14 | ID33: 96.53 | IE33: 94.84 | IF33: 88.53 | IG33: 97.72 | IH33: 82.41 | II33: 95.65 | IJ33: 97.82 | IK33: 98.40 | IL33: 90.63 | IM33: 96.96 | IN33: 94.18 | IO33: 92.78 | IP33: 85.05 | IQ33: 98.35 | IR33: 98.03 | IS33: 85.42 | IT33: 96.61 | IU33: 96.23 | IV33: 61.87 | IW33: 63.86 | IX33: 63.40 | IY33: 84.98 | IZ33: 82.59 | JA33: 69.38 | JB33: 61.71 | JC33: 93.22 | JD33: 97.12 | JE33: 97.12 | JF33: 93.15 | JG33: 94.05 | JH33: 97.82 | JI33: 98.51 | JJ33: 93.15 | JK33: 97.22 | JL33: 97.89 | JM33: 88.59 | JN33: 94.98 | JO33: 92.33 | JP33: 96.15 | JQ33: 97.32 | JR33: 90.67 | JS33: 70.04 | JT33: 97.98 | JU33: 96.03 | JV33: 93.85 | JW33: 95.47 | JX33: 96.03 | JY33: 97.12 | JZ33: 88.97 | KA33: 66.87 | KB33: 64.68 | KC33: 67.35 | KD33: 62.66 | KE33: 62.90 | KF33: 65.62 | KG33: 62.57 | KH33: 62.70 | KI33: 64.55 | KJ33: 66.27 | KK33: 63.00 | KL33: 63.99 | KM33: 61.41 | KN33: 64.47 | KO33: 61.71 | KP33: 64.54 | KQ33: 70.63 | KR33: 96.48 | KS33: 85.52 | KT33: 61.11 | KU33: 58.19 | KV33: 66.16 | KW33: 66.47 | KX33: 65.60 | KY33: 76.19 | KZ33: 96.73 | LA33: 93.32 | LB33: 87.30 | LC33: 93.19 | LD33: 86.31 | LE33: 94.58 | LF33: 97.96 | LG33: 95.02 | LH33: 63.52 | LI33: 60.18 | LJ33: 61.20 | LK33: 56.71 | LL33: 61.31 | LM33: 65.76 | LN33: 65.38 | LO33: 62.74 | LP33: 63.19 | LQ33: ='KPIs SEMANA'!CAB160 -> 61.85 | LR33: =AVERAGE(KN33:LQ33) -> 73.44 | LS33: =IF(LQ33>F33,"J","L") -> L | LT33: 104622.21 | LU33: 3 | LV33: =+LU33/$LU$75 -> 11.5% | LW33: =+LT33/$LT$41 -> 4.3% | LX33: =AVERAGE(LV33:LW33) -> 7.9%
C34: DM | D34: % | F34: 85.0 | G34: 0.0 | H34: 0.0 | I34: 0.0 | J34: 0.0 | K34: 0.0 | L34: 0.0 | M34: 0.0 | N34: 0.0 | O34: 0.0 | P34: 0.0 | Q34: 0.0 | R34: 0.0 | S34: 0.0 | T34: 0.0 | U34: 0.0 | V34: 0.0 | W34: 0.0 | X34: 0.0 | Y34: 0.0 | Z34: 0.0 | AA34: 0.0 | AB34: 0.0 | AC34: 0.0 | AD34: 0.0 | AE34: 0.0 | AF34: 0.0 | AG34: 0.0 | AH34: 0.0 | AI34: 0.0 | AJ34: 0.0 | AK34: 0.0 | AL34: 0.0 | AM34: 0.0 | AN34: 0.0 | AO34: 0.0 | AP34: 0.0 | AQ34: 0.0 | AR34: 0.0 | AS34: 0.0 | AT34: 0.0 | AU34: 0.0 | AV34: 0.0 | AW34: 0.0 | AX34: 0.0 | AY34: 0.0 | AZ34: 0.0 | BA34: 0.0 | BB34: 0.0 | BC34: 0.0 | BD34: 0.0 | BE34: 0.0 | BF34: 0.0 | BG34: 0.0 | BH34: 0.0 | BI34: 0.0 | BJ34: 0.0 | BK34: 0.0 | BL34: 0.0 | BM34: 0.0 | BN34: 0.0 | BO34: 0.0 | BP34: 0.0 | BQ34: 0.0 | BR34: 0.0 | BS34: 0.0 | BT34: 0.0 | BU34: 0.0 | BV34: 0.0 | BW34: 0.0 | BX34: 0.0 | BY34: 0.0 | BZ34: 0.0 | CA34: 0.0 | CB34: 97.3 | CC34: 96.4 | CD34: 77.8 | CE34: 89.6 | CF34: 86.2 | CG34: 87.0 | CH34: 93.9 | CI34: 98.1 | CJ34: 95.3 | CK34: 98.1 | CL34: 96.3 | CM34: 96.5 | CN34: 97.4 | CO34: 97.4 | CP34: 91.2 | CQ34: 99.1 | CR34: 97.7 | CS34: 95.7 | CT34: 79.2 | CU34: 64.4 | CV34: 59.8 | CW34: 64.3 | CX34: 65.0 | CY34: 53.2 | CZ34: 60.1 | DA34: 65.4 | DB34: 62.7 | DC34: 92.9 | DD34: 75.8 | DE34: 63.9 | DF34: 65.8 | DG34: 80.6 | DH34: 97.0 | DI34: 95.0 | DJ34: 79.7 | DK34: 85.6 | DL34: 94.6 | DM34: 92.2 | DN34: 86.7 | DO34: 93.9 | DP34: 97.8 | DQ34: 78.5 | DR34: 68.4 | DS34: 66.7 | DT34: 66.7 | DU34: 96.4 | DV34: 100.0 | DW34: 96.3 | DX34: 96.3 | DY34: 91.5 | DZ34: 77.1 | EA34: 77.1 | EB34: 82.3 | EC34: 73.5 | ED34: 82.3 | EE34: 94.3 | EF34: 89.2 | EG34: 66.3 | EH34: 97.7 | EI34: 94.3 | EJ34: 90.7 | EK34: 82.8 | EL34: 84.8 | EM34: 87.7 | EN34: 94.7 | EO34: 89.7 | EP34: 99.6 | EQ34: 99.7 | ER34: 88.0 | ES34: 85.5 | ET34: 86.6 | EU34: 65.8 | LS34: =IF(IN34>F34,"J","L") -> L | LV34: =+LU34/$LU$75 -> 0.0% | LW34: =+LU34/$LW$75 -> 0.0% | LX34: =+LU34/$LX$75 -> 0.0%
C35: UF | D35: % | E35: 3.7% | F35: 18.0 | G35: 8.0 | H35: 9.6 | I35: 11.3 | J35: 8.7 | K35: 8.9 | L35: 8.4 | M35: 12.2 | N35: 7.5 | O35: 11.2 | P35: 12.1 | Q35: 9.7 | R35: 12.3 | S35: 10.4 | T35: 9.7 | U35: 9.2 | V35: 12.1 | W35: 10.0 | X35: 13.7 | Y35: 13.1 | Z35: 7.5 | AA35: 5.6 | AB35: 4.2 | AC35: 8.9 | AD35: 9.9 | AE35: 8.3 | AF35: 7.4 | AG35: 7.2 | AH35: 8.4 | AI35: 7.4 | AJ35: 15.0 | AK35: 7.3 | AL35: 7.6 | AM35: 7.6 | AN35: 8.0 | AO35: 8.7 | AP35: 4.7 | AQ35: 5.9 | AR35: 6.0 | AS35: 13.2 | AT35: 5.4 | AU35: 7.0 | AV35: 8.6 | AW35: 6.6 | AX35: 6.1 | AY35: 10.7 | AZ35: 5.2 | BA35: 6.4 | BB35: 8.4 | BC35: 7.1 | BD35: 6.6 | BE35: 8.4 | BF35: 7.0 | BG35: 4.3 | BH35: 9.3 | BI35: 6.5 | BJ35: 7.0 | BK35: 6.3 | BL35: 8.4 | BM35: 7.0 | BN35: 8.5 | BO35: 7.5 | BP35: 8.9 | BQ35: 6.9 | BR35: 7.1 | BS35: 9.2 | BT35: 8.7 | BU35: 3.6 | BV35: 7.1 | BW35: 7.1 | BX35: 2.5 | BY35: 2.7 | BZ35: 2.9 | CA35: 3.8 | CB35: 2.7 | CC35: 2.9 | CD35: 3.0 | CE35: 2.7 | CF35: 3.1 | CG35: 3.1 | CH35: 4.0 | CI35: 2.8 | CJ35: 2.6 | CK35: 2.8 | CL35: 4.5 | CM35: 3.6 | CN35: 3.0 | CO35: 3.7 | CP35: 3.8 | CQ35: 2.3 | CR35: 4.7 | CS35: 5.0 | CT35: 2.7 | CU35: 0.9 | CV35: 2.4 | CW35: 2.3 | CX35: 2.3 | CY35: 2.5 | CZ35: 2.2 | DA35: 1.9 | DB35: 16.5 | DC35: 3.3 | DD35: 9.8 | DE35: 0.6 | DF35: 2.9 | DG35: 2.9 | DH35: 3.4 | DI35: 3.0 | DJ35: 5.9 | DK35: 5.3 | DL35: 1.2 | DM35: 2.8 | DN35: 7.2 | DO35: 1.7 | DP35: 2.4 | DQ35: 6.5 | DR35: 0.3 | DS35: 0.0 | DT35: 0.0 | DU35: 0.0 | DV35: 0.0 | DW35: 1.7 | DX35: 3.4 | DY35: 3.0 | DZ35: 7.3 | EA35: 7.3 | EB35: 6.9 | EC35: 4.3 | ED35: 4.9 | EE35: 1.8 | EF35: 20.9 | EG35: 14.3 | EH35: 2.0 | EI35: 2.8 | EJ35: 4.8 | EK35: 14.1 | EL35: 3.2 | EM35: 4.4 | EN35: 3.3 | EO35: 4.5 | EP35: 2.0 | EQ35: 0.9 | ER35: 9.7 | ES35: 11.5 | ET35: 6.3 | EU35: 17.3 | EV35: 2.1 | EW35: 5.4 | EX35: 3.7 | EY35: 6.6 | EZ35: 6.0 | FA35: 15.1 | FB35: 3.8 | FC35: 3.3 | FD35: 0.0 | FE35: 10.2 | FF35: 8.3 | FG35: 9.87 | FH35: 3.68 | FI35: 3.38 | FJ35: 9.43 | FK35: 2.87 | FL35: 6.95 | FM35: 11.39 | FN35: 2.98 | FO35: 3.71 | FP35: 1.93 | FQ35: 13.55 | FR35: 9.30 | FS35: 3.19 | FT35: 3.41 | FU35: 4.31 | FV35: 3.72 | FW35: 3.70 | FX35: 3.01 | FY35: 2.56 | FZ35: 2.38 | GA35: 2.17 | GB35: 3.23 | GC35: 2.42 | GD35: 10.03 | GE35: 3.84 | GF35: 3.13 | GG35: 3.52 | GH35: 3.80 | GI35: 3.83 | GJ35: 3.79 | GK35: 2.68 | GL35: 4.99 | GM35: 3.05 | GN35: 1.90 | GO35: 3.48 | GP35: 3.32 | GQ35: 2.82 | GR35: 1.51 | GS35: 3.67 | GT35: 4.16 | GU35: 4.09 | GV35: 2.92 | GW35: 5.18 | GX35: 3.09 | GY35: 3.77 | GZ35: 3.90 | HA35: 1.72 | HB35: 2.86 | HC35: 4.15 | HD35: 2.94 | HE35: 2.37 | HF35: 3.93 | HG35: 2.46 | HH35: 3.46 | HI35: 3.05 | HJ35: 3.32 | HK35: 3.55 | HL35: 4.13 | HM35: 4.07 | HN35: 3.02 | HO35: 3.61 | HP35: 3.62 | HQ35: 4.85 | HR35: 3.11 | HS35: 3.66 | HT35: 2.87 | HU35: 4.36 | HV35: 2.99 | HW35: 3.03 | HX35: 5.02 | HY35: 3.74 | HZ35: 2.98 | IA35: 4.37 | IB35: 4.49 | IC35: 3.30 | ID35: 4.09 | IE35: 2.53 | IF35: 4.13 | IG35: 4.15 | IH35: 5.62 | II35: 3.52 | IJ35: 2.09 | IK35: 3.11 | IL35: 2.83 | IM35: 4.05 | IN35: 2.43 | IO35: 2.70 | IP35: 4.91 | IQ35: 3.90 | IR35: 3.43 | IS35: 3.25 | IT35: 4.21 | IU35: 3.72 | IV35: 3.61 | IW35: 3.15 | IX35: 3.76 | IY35: 3.84 | IZ35: 5.60 | JA35: 1.77 | JB35: 4.46 | JC35: 4.20 | JD35: 1.36 | JE35: 4.21 | JF35: 3.72 | JG35: 5.36 | JH35: 4.38 | JI35: 3.20 | JJ35: 2.92 | JK35: 4.06 | JL35: 3.44 | JM35: 2.91 | JN35: 2.13 | JO35: 3.88 | JP35: 2.83 | JQ35: 3.64 | JR35: 3.59 | JS35: 2.97 | JT35: 4.27 | JU35: 4.05 | JV35: 4.69 | JW35: 3.24 | JX35: 3.77 | JY35: 3.73 | JZ35: 4.72 | KA35: 3.79 | KB35: 2.23 | KC35: 4.99 | KD35: 4.52 | KE35: 3.59 | KF35: 2.84 | KG35: 3.18 | KH35: 3.81 | KI35: 3.44 | KJ35: 3.92 | KK35: 4.05 | KL35: 3.75 | KM35: 7.30 | KN35: 2.72 | KO35: 3.37 | KP35: 3.11 | KQ35: 3.11 | KR35: 2.43 | KS35: 4.02 | KT35: 1.72 | KU35: 3.03 | KV35: 2.53 | KW35: 1.68 | KX35: 3.00 | KY35: 4.02 | KZ35: 4.78 | LA35: 2.67 | LB35: 2.46 | LC35: 2.56 | LD35: 5.85 | LE35: 2.95 | LF35: 3.16 | LG35: 3.50 | LH35: 3.10 | LI35: 3.95 | LJ35: 3.70 | LK35: 5.73 | LL35: 5.25 | LM35: 2.61 | LN35: 3.41 | LO35: 4.40 | LP35: 3.65 | LQ35: ='KPIs SEMANA'!CAB162 -> 3.84 | LR35: =AVERAGE(KN35:LQ35) -> 3.41 | LS35: =IF(LQ35>F35,"J","L") -> L
C36: UO | D36: % | E36: 4.6% | F36: 18.0 | IO36: 3.29 | IP36: 6.24 | IQ36: 4.71 | IR36: 4.14 | IS36: 4.13 | IT36: 5.11 | IU36: 4.51 | IV36: 4.40 | IW36: 3.82 | IX36: 4.55 | IY36: 4.72 | IZ36: 7.15 | JA36: 2.23 | JB36: 5.44 | JC36: 5.12 | JD36: 1.66 | JE36: 5.09 | JF36: 4.62 | JG36: 6.55 | JH36: 5.29 | JI36: 3.86 | JJ36: 3.58 | JK36: 5.10 | JL36: 4.15 | JM36: 3.59 | JN36: 2.62 | JO36: 4.73 | JP36: 3.44 | JQ36: 4.40 | JR36: 4.39 | JS36: 3.62 | JT36: 5.16 | JU36: 4.93 | JV36: 5.74 | JW36: 3.96 | JX36: 4.59 | JY36: 4.53 | JZ36: 5.83 | KA36: 4.61 | KB36: 2.73 | KC36: 6.94 | KD36: 5.50 | KE36: 4.38 | KF36: 3.43 | KG36: 3.87 | KH36: 4.62 | KI36: 4.16 | KJ36: 4.71 | KK36: 4.92 | KL36: 4.54 | KM36: 8.91 | KN36: 3.40 | KO36: 4.09 | KP36: 3.76 | KQ36: 3.78 | KR36: 2.95 | KS36: 5.14 | KT36: 2.09 | KU36: 3.77 | KV36: 3.04 | KW36: 2.02 | KX36: 4.44 | LA36: 3.25 | LB36: 3.12 | LC36: 3.14 | LD36: 7.38 | LE36: 3.60 | LF36: 3.81 | LG36: 4.27 | LH36: 3.83 | LI36: 4.94 | LJ36: 4.53 | LK36: ='[10]KPIs SEMANA'!BYL163 -> 7.17 | LL36: 0.00 | LM36: 0.00 | LN36: 4.10 | LO36: 5.35 | LP36: 4.43 | LQ36: ='KPIs SEMANA'!CAB163 -> 4.67 | LR36: 3.79 | LS36: L | LV36: =+LU36/$LU$75 -> 0.0% | LW36: =+LU36/$LW$75 -> 0.0% | LX36: =+LU36/$LX$75 -> 0.0%
B37: LANZADOR DE CONCRETO ( PUTZMEISTER01,02) | C37: DF | D37: % | E37: 85.3% | F37: 85.0 | G37: 91.7 | H37: 81.0 | I37: 97.7 | J37: 92.7 | K37: 75.5 | L37: 88.8 | M37: 98.5 | N37: 87.7 | O37: 97.4 | P37: 60.7 | Q37: 52.2 | R37: 45.9 | S37: 92.6 | T37: 94.9 | U37: 96.3 | V37: 96.3 | W37: 85.0 | X37: 93.8 | Y37: 94.7 | Z37: 90.1 | AA37: 80.6 | AB37: 76.6 | AC37: 97.5 | AD37: 85.1 | AE37: 83.3 | AF37: 89.6 | AG37: 82.0 | AH37: 95.0 | AI37: 99.2 | AJ37: 97.0 | AK37: 81.1 | AL37: 99.6 | AM37: 72.7 | AN37: 99.2 | AO37: 98.5 | AP37: 91.1 | AQ37: 96.2 | AR37: 88.1 | AS37: 90.1 | AT37: 97.8 | AU37: 92.4 | AV37: 96.4 | AW37: 96.9 | AX37: 97.8 | AY37: 92.6 | AZ37: 75.5 | BA37: 50.8 | BB37: 77.7 | BC37: 95.7 | BD37: 85.8 | BE37: 93.8 | BF37: 98.5 | BG37: 99.8 | BH37: 93.4 | BI37: 88.4 | BJ37: 89.9 | BK37: 86.1 | BL37: 95.1 | BM37: 88.0 | BN37: 99.0 | BO37: 95.2 | BP37: 94.6 | BQ37: 87.6 | BR37: 63.9 | BS37: 91.8 | BT37: 95.7 | BU37: 94.6 | BV37: 47.5 | BW37: 47.5 | BX37: 63.5 | BY37: 97.6 | BZ37: 76.6 | CA37: 90.8 | CB37: 97.6 | CC37: 96.9 | CD37: 90.9 | CE37: 92.3 | CF37: 95.3 | CG37: 98.8 | CH37: 89.3 | CI37: 94.2 | CJ37: 94.8 | CK37: 86.4 | CL37: 97.5 | CM37: 97.6 | CN37: 89.2 | CO37: 98.8 | CP37: 91.4 | CQ37: 87.3 | CR37: 95.7 | CS37: 95.4 | CT37: 85.2 | CU37: 65.3 | CV37: 91.3 | CW37: 73.9 | CX37: 87.6 | CY37: 97.4 | CZ37: 95.6 | DA37: 98.6 | DB37: 97.3 | DC37: 94.0 | DD37: 94.3 | DE37: 98.6 | DF37: 93.6 | DG37: 99.2 | DH37: 66.8 | DI37: 63.2 | DJ37: 65.3 | DK37: 66.4 | DL37: 96.0 | DM37: 82.8 | DN37: 52.8 | DO37: 65.8 | DP37: 60.6 | DQ37: 62.4 | DR37: 66.7 | DS37: 66.7 | DT37: 50.6 | DU37: 66.7 | DV37: 66.7 | DW37: 78.5 | DX37: 91.6 | DY37: 91.0 | DZ37: 93.4 | EA37: 93.4 | EB37: 94.2 | EC37: 85.2 | ED37: 99.9 | EE37: 86.3 | EF37: 86.1 | EG37: 98.9 | EH37: 97.0 | EI37: 62.7 | EJ37: 93.6 | EK37: 97.0 | EL37: 93.8 | EM37: 98.1 | EN37: 91.1 | EO37: 74.7 | EP37: 56.8 | EQ37: 50.0 | ER37: 47.7 | ES37: 39.0 | ET37: 55.9 | EU37: 96.6 | EV37: 85.4 | EW37: 97.7 | EX37: 92.3 | EY37: 94.4 | EZ37: 97.9 | FA37: 85.1 | FB37: 92.6 | FC37: 72.9 | FD37: 97.3 | FE37: 90.9 | FF37: 88.7 | FG37: 75.10 | FH37: 87.15 | FI37: 88.69 | FJ37: 91.35 | FK37: 78.77 | FL37: 92.86 | FM37: 94.94 | FN37: 94.79 | FO37: 88.19 | FP37: 74.63 | FQ37: 94.20 | FR37: 89.88 | FS37: 85.10 | FT37: 95.83 | FU37: 97.42 | FV37: 81.46 | FW37: 82.34 | FX37: 92.26 | FY37: 86.71 | FZ37: 94.94 | GA37: 87.50 | GB37: 86.81 | GC37: 79.46 | GD37: 88.24 | GE37: 85.06 | GF37: 95.83 | GG37: 88.69 | GH37: 86.71 | GI37: 84.13 | GJ37: 63.39 | GK37: 39.11 | GL37: 74.55 | GM37: 86.73 | GN37: 90.92 | GO37: 92.96 | GP37: 87.65 | GQ37: 99.33 | GR37: 94.15 | GS37: 59.82 | GT37: 56.12 | GU37: 59.77 | GV37: 56.50 | GW37: 70.41 | GX37: 78.79 | GY37: 88.99 | GZ37: 84.99 | HA37: 88.99 | HB37: 86.90 | HC37: 97.42 | HD37: 85.19 | HE37: 75.03 | HF37: 87.95 | HG37: 90.75 | HH37: 96.13 | HI37: 85.57 | HJ37: 91.29 | HK37: 78.44 | HL37: 88.59 | HM37: 93.87 | HN37: 95.39 | HO37: 92.43 | HP37: 95.12 | HQ37: 87.50 | HR37: 75.32 | HS37: 85.42 | HT37: 94.94 | HU37: 91.02 | HV37: 89.76 | HW37: 94.35 | HX37: 98.07 | HY37: 73.83 | HZ37: 89.88 | IA37: 95.21 | IB37: 94.54 | IC37: 95.09 | ID37: 93.87 | IE37: 86.58 | IF37: 89.66 | IG37: 94.20 | IH37: 87.30 | II37: 92.41 | IJ37: 88.64 | IK37: 97.81 | IL37: 87.83 | IM37: 92.31 | IN37: 96.82 | IO37: 90.48 | IP37: 98.13 | IQ37: 89.43 | IR37: 82.44 | IS37: 67.81 | IT37: 48.44 | IU37: 85.42 | IV37: 89.29 | IW37: 90.43 | IX37: 87.62 | IY37: 88.63 | IZ37: 97.02 | JA37: 86.03 | JB37: 91.37 | JC37: 89.43 | JD37: 93.93 | JE37: 96.49 | JF37: 91.54 | JG37: 90.03 | JH37: 92.86 | JI37: 88.17 | JJ37: 88.90 | JK37: 92.71 | JL37: 90.00 | JM37: 88.90 | JN37: 96.58 | JO37: 86.16 | JP37: 89.43 | JQ37: 88.69 | JR37: 89.88 | JS37: 95.24 | JT37: 55.60 | JU37: 75.45 | JV37: 89.73 | JW37: 93.82 | JX37: 85.10 | JY37: 89.58 | JZ37: 91.10 | KA37: 85.76 | KB37: 85.27 | KC37: 89.81 | KD37: 89.72 | KE37: 92.86 | KF37: 85.12 | KG37: 54.19 | KH37: 88.69 | KI37: 86.90 | KJ37: 63.39 | KK37: 0.00 | KL37: 72.05 | KM37: 47.92 | KN37: 78.99 | KO37: 89.91 | KP37: 91.22 | KQ37: 96.23 | KR37: 91.22 | KS37: 92.01 | KT37: 96.13 | KU37: 82.34 | KV37: 77.40 | KW37: 95.30 | KX37: 85.32 | KY37: 77.98 | KZ37: 73.51 | LA37: 88.74 | LB37: 92.41 | LC37: 91.34 | LD37: 96.83 | LE37: 93.30 | LF37: 92.32 | LG37: 86.57 | LH37: 73.66 | LI37: 94.59 | LJ37: 78.15 | LK37: 88.10 | LL37: 79.46 | LM37: 94.26 | LN37: 77.03 | LO37: 94.85 | LP37: 98.33 | LQ37: ='KPIs SEMANA'!CAB177 -> 85.03 | LR37: 87.75 | LS37: =IF(LQ37>F37,"J","L") -> J | LT37: 200921.84 | LU37: 2 | LV37: =+LU37/$LU$75 -> 7.7% | LW37: =+LT37/$LT$41 -> 8.3% | LX37: =AVERAGE(LV37:LW37) -> 8.0%
C38: DM | D38: % | E38: 55.4% | F38: 85.0 | G38: 0.0 | H38: 0.0 | I38: 0.0 | J38: 0.0 | K38: 0.0 | L38: 0.0 | M38: 0.0 | N38: 0.0 | O38: 0.0 | P38: 0.0 | Q38: 0.0 | R38: 0.0 | S38: 0.0 | T38: 0.0 | U38: 0.0 | V38: 0.0 | W38: 0.0 | X38: 0.0 | Y38: 0.0 | Z38: 0.0 | AA38: 0.0 | AB38: 0.0 | AC38: 0.0 | AD38: 0.0 | AE38: 0.0 | AF38: 0.0 | AG38: 0.0 | AH38: 0.0 | AI38: 0.0 | AJ38: 0.0 | AK38: 0.0 | AL38: 0.0 | AM38: 0.0 | AN38: 0.0 | AO38: 0.0 | AP38: 0.0 | AQ38: 0.0 | AR38: 0.0 | AS38: 0.0 | AT38: 0.0 | AU38: 0.0 | AV38: 0.0 | AW38: 0.0 | AX38: 0.0 | AY38: 0.0 | AZ38: 0.0 | BA38: 0.0 | BB38: 0.0 | BC38: 0.0 | BD38: 0.0 | BE38: 0.0 | BF38: 0.0 | BG38: 0.0 | BH38: 0.0 | BI38: 0.0 | BJ38: 0.0 | BK38: 0.0 | BL38: 0.0 | BM38: 0.0 | BN38: 0.0 | BO38: 0.0 | BP38: 0.0 | BQ38: 0.0 | BR38: 0.0 | BS38: 0.0 | BT38: 0.0 | BU38: 0.0 | BV38: 0.0 | BW38: 0.0 | BX38: 0.0 | BY38: 0.0 | BZ38: 0.0 | CA38: 0.0 | CB38: 97.6 | CC38: 96.9 | CD38: 90.9 | CE38: 92.3 | CF38: 95.3 | CG38: 98.8 | CH38: 89.3 | CI38: 94.2 | CJ38: 94.8 | CK38: 86.4 | CL38: 97.5 | CM38: 97.6 | CN38: 89.2 | CO38: 98.8 | CP38: 91.4 | CQ38: 87.3 | CR38: 95.7 | CS38: 95.4 | CT38: 85.2 | CU38: 65.3 | CV38: 91.3 | CW38: 73.9 | CX38: 87.6 | CY38: 97.4 | CZ38: 95.6 | DA38: 98.6 | DB38: 97.3 | DC38: 94.0 | DD38: 94.3 | DE38: 98.6 | DF38: 93.6 | DG38: 99.2 | DH38: 66.8 | DI38: 63.2 | DJ38: 65.3 | DK38: 66.4 | DL38: 96.0 | DM38: 82.8 | DN38: 52.8 | DO38: 65.8 | DP38: 60.6 | DQ38: 62.4 | DR38: 66.7 | DS38: 66.7 | DT38: 50.6 | DU38: 66.7 | DV38: 66.7 | DW38: 78.5 | DX38: 91.6 | DY38: 91.0 | DZ38: 93.4 | EA38: 93.4 | EB38: 94.2 | EC38: 85.2 | ED38: 99.9 | EE38: 86.3 | EF38: 86.1 | EG38: 98.9 | EH38: 97.0 | EI38: 62.7 | EJ38: 93.6 | EK38: 97.0 | EL38: 93.8 | EM38: 98.1 | EN38: 91.1 | EO38: 74.7 | EP38: 56.8 | EQ38: 50.0 | ER38: 47.7 | ES38: 39.0 | ET38: 55.9 | EU38: 96.6 | FC38: 72.9 | FF38: 81.18016156 | FG38: 80.77 | FH38: 0.00 | FI38: DM | FJ38: 0.00 | FK38: 0.00 | FL38: 0.00 | FM38: 0.00 | FN38: 0.00 | FO38: 0.00 | FP38: 0.00 | FQ38: 0.00 | FR38: 0.00 | FS38: 0.00 | FT38: 0.00 | FU38: 0.00 | FV38: 0.00 | FW38: 0.00 | FX38: 0.00 | FY38: 0.00 | FZ38: 0.00 | GA38: 0.00 | GB38: 0.00 | GC38: 0.00 | GD38: 0.00 | GE38: 0.00 | GF38: 0.00 | GG38: 0.00 | GH38: 0.00 | GI38: 0.00 | GJ38: 0.00 | GK38: 0.00 | GL38: 0.00 | GM38: 0.00 | GN38: 0.00 | GO38: 0.00 | GP38: 0.00 | GQ38: 0.00 | GR38: 0.00 | GS38: 0.00 | GT38: 0.00 | GU38: 0.00 | GV38: 0.00 | GW38: 0.00 | GX38: 0.00 | GY38: 0.00 | GZ38: 0.00 | HA38: 0.00 | HB38: 0.00 | HC38: 0.00 | HD38: 0.00 | HE38: 0.00 | HF38: 0.00 | HG38: 0.00 | HH38: 0.00 | HI38: 0.00 | HJ38: 0.00 | HK38: 0.00 | HL38: 0.00 | HM38: 0.00 | HN38: 0.00 | HO38: 0.00 | HP38: 0.00 | HQ38: 0.00 | HR38: 0.00 | HS38: 0.00 | HT38: 0.00 | HU38: 0.00 | HV38: 0.00 | HW38: 0.00 | HX38: 0.00 | HY38: 0.00 | HZ38: 0.00 | IA38: 0.00 | IB38: 0.00 | IC38: 0.00 | ID38: 0.00 | IE38: 0.00 | IF38: 0.00 | IG38: 0.00 | IH38: 0.00 | II38: 0.00 | IJ38: 0.00 | IK38: 0.00 | IL38: 0.00 | IM38: 0.00 | IN38: 0.00 | IO38: 0.00 | IP38: 0.00 | IQ38: 0.00 | IR38: 0.00 | IS38: 0.00 | IT38: 0.00 | IU38: 0.00 | IV38: 0.00 | IW38: 0.00 | IX38: 0.00 | IY38: 0.00 | IZ38: 0.00 | JA38: 0.00 | JB38: 0.00 | JC38: 0.00 | JD38: 0.00 | JE38: 91.34 | JF38: 91.34 | JG38: 98.78 | JH38: 61.90 | JI38: 58.78 | JJ38: 95.40 | JK38: 95.65 | JL38: 95.65 | JM38: 95.65 | JN38: 52.18 | JO38: 86.16 | JP38: 89.43 | JQ38: 88.69 | JR38: 89.88 | JS38: 95.24 | JT38: 55.60 | JU38: 75.45 | JV38: 89.73 | JW38: 93.82 | JX38: 85.10 | JY38: 89.58 | JZ38: 91.10 | KA38: 85.76 | KB38: 85.27 | KC38: 89.81 | KD38: 89.72 | KE38: 92.86 | KF38: 85.12 | KG38: 54.19 | KH38: 88.69 | KI38: 86.90 | KJ38: 63.39 | KK38: 74.70 | KL38: 72.05 | KM38: 47.92 | KN38: 78.99 | KO38: 89.91 | KP38: 91.22 | KQ38: 96.23 | KR38: 91.22 | KS38: 92.01 | KT38: 96.13 | KU38: 82.34 | KV38: 77.40 | KW38: 95.30 | KX38: 85.32 | LA38: 88.74 | LB38: 92.41 | LC38: 91.34 | LD38: 96.83 | LE38: 93.30 | LF38: 92.32 | LG38: 86.57 | LH38: 73.66 | LI38: 94.59 | LJ38: 78.15 | LK38: ='[10]KPIs SEMANA'!BYL178 -> 88.10 | LL38: 93.75 | LM38: 93.75 | LN38: 77.03 | LO38: 94.85 | LP38: 98.33 | LQ38: ='KPIs SEMANA'!CAB178 -> 85.03 | LR38: 89.10 | LS38: J | LV38: =+LU38/$LU$75 -> 0.0% | LW38: =+LU38/$LW$75 -> 0.0% | LX38: =+LU38/$LX$75 -> 0.0%
C39: UF | D39: % | E39: 7.8% | F39: 18.0 | G39: 3.5 | H39: 6.8 | I39: 6.1 | J39: 6.3 | K39: 7.5 | L39: 11.6 | M39: 8.9 | N39: 11.4 | O39: 10.3 | P39: 7.5 | Q39: 19.5 | R39: 24.2 | S39: 11.5 | T39: 9.4 | U39: 6.2 | V39: 12.5 | W39: 10.6 | X39: 11.9 | Y39: 10.3 | Z39: 6.1 | AA39: 4.8 | AB39: 8.7 | AC39: 6.6 | AD39: 18.5 | AE39: 13.5 | AF39: 3.7 | AG39: 18.8 | AH39: 8.7 | AI39: 8.4 | AJ39: 15.2 | AK39: 21.4 | AL39: 13.6 | AM39: 12.3 | AN39: 8.5 | AO39: 8.2 | AP39: 10.0 | AQ39: 14.4 | AR39: 12.9 | AS39: 15.8 | AT39: 11.1 | AU39: 12.3 | AV39: 11.5 | AW39: 14.0 | AX39: 12.1 | AY39: 11.2 | AZ39: 14.4 | BA39: 14.1 | BB39: 21.4 | BC39: 13.5 | BD39: 15.7 | BE39: 12.7 | BF39: 16.9 | BG39: 5.1 | BH39: 23.0 | BI39: 16.0 | BJ39: 22.4 | BK39: 11.9 | BL39: 16.0 | BM39: 15.9 | BN39: 9.0 | BO39: 15.6 | BP39: 16.2 | BQ39: 12.9 | BR39: 18.3 | BS39: 18.2 | BT39: 9.5 | BU39: 7.7 | BV39: 8.5 | BW39: 8.5 | BX39: 6.7 | BY39: 5.1 | BZ39: 8.3 | CA39: 5.4 | CB39: 5.1 | CC39: 4.4 | CD39: 5.7 | CE39: 7.7 | CF39: 3.5 | CG39: 3.6 | CH39: 2.9 | CI39: 8.9 | CJ39: 6.2 | CK39: 6.5 | CL39: 6.0 | CM39: 12.5 | CN39: 3.4 | CO39: 5.5 | CP39: 1.5 | CQ39: 0.6 | CR39: 2.5 | CS39: 5.3 | CT39: 8.4 | CU39: 2.3 | CV39: 3.1 | CW39: 3.8 | CX39: 3.0 | CY39: 6.6 | CZ39: 1.0 | DA39: 3.7 | DB39: 2.1 | DC39: 0.8 | DD39: 2.1 | DE39: 4.1 | DF39: 3.1 | DG39: 2.1 | DH39: 8.5 | DI39: 4.6 | DJ39: 3.0 | DK39: 18.2 | DL39: 3.4 | DM39: 19.0 | DN39: 5.7 | DO39: 5.4 | DP39: 5.0 | DQ39: 3.9 | DR39: 0.4 | DS39: 0.0 | DT39: 0.0 | DU39: 0.0 | DV39: 0.0 | DW39: 4.7 | DX39: 10.6 | DY39: 6.6 | DZ39: 5.9 | EA39: 5.9 | EB39: 5.6 | EC39: 6.5 | ED39: 3.3 | EE39: 4.1 | EF39: 25.1 | EG39: 5.7 | EH39: 4.5 | EI39: 2.9 | EJ39: 8.8 | EK39: 12.6 | EL39: 5.4 | EM39: 21.0 | EN39: 5.7 | EO39: 8.8 | EP39: 2.9 | EQ39: 0.7 | ER39: 17.0 | ES39: 13.3 | ET39: 14.9 | EU39: 13.4 | EV39: 7.8 | EW39: 9.9 | EX39: 11.1 | EY39: 4.1 | EZ39: 11.4 | FA39: 18.6 | FB39: 10.7 | FC39: 5.2 | FD39: 0.00 | FE39: 8.67 | FF39: 13.30 | FG39: 19.20 | FH39: 3.30 | FI39: 4.62 | FJ39: 20.07 | FK39: 4.67 | FL39: 14.01 | FM39: 16.72 | FN39: 7.40 | FO39: 9.37 | FP39: 10.48 | FQ39: 12.44 | FR39: 13.55 | FS39: 8.57 | FT39: 4.29 | FU39: 5.86 | FV39: 5.92 | FW39: 8.86 | FX39: 7.37 | FY39: 3.46 | FZ39: 0.00 | GA39: 2.35 | GB39: 5.84 | GC39: 6.72 | GD39: 19.91 | GE39: 7.94 | GF39: 7.93 | GG39: 8.68 | GH39: 6.09 | GI39: 5.50 | GJ39: 10.28 | GK39: 5.09 | GL39: 4.65 | GM39: 2.56 | GN39: 1.96 | GO39: 3.17 | GP39: 8.13 | GQ39: 4.15 | GR39: 4.39 | GS39: 2.39 | GT39: 2.73 | GU39: 0.87 | GV39: 1.67 | GW39: 7.03 | GX39: 5.63 | GY39: 6.35 | GZ39: 7.08 | HA39: 5.83 | HB39: 7.73 | HC39: 6.39 | HD39: 6.38 | HE39: 6.70 | HF39: 7.36 | HG39: 6.85 | HH39: 4.18 | HI39: 7.92 | HJ39: 7.21 | HK39: 9.56 | HL39: 8.40 | HM39: 7.98 | HN39: 3.98 | HO39: 6.27 | HP39: 5.76 | HQ39: 3.23 | HR39: 6.15 | HS39: 9.32 | HT39: 3.94 | HU39: 7.63 | HV39: 7.94 | HW39: 6.80 | HX39: 5.41 | HY39: 4.02 | HZ39: 6.72 | IA39: 6.14 | IB39: 7.21 | IC39: 5.16 | ID39: 6.85 | IE39: 6.67 | IF39: 6.36 | IG39: 7.17 | IH39: 8.69 | II39: 7.39 | IJ39: 2.23 | IK39: 5.76 | IL39: 6.71 | IM39: 4.42 | IN39: 5.44 | IO39: 6.41 | IP39: 4.45 | IQ39: 4.74 | IR39: 7.51 | IS39: 7.53 | IT39: 5.34 | IU39: 8.07 | IV39: 8.74 | IW39: 7.38 | IX39: 4.94 | IY39: 8.70 | IZ39: 5.99 | JA39: 7.00 | JB39: 5.95 | JC39: 7.82 | JD39: 5.00 | JE39: 4.73 | JF39: 7.24 | JG39: 2.79 | JH39: 10.43 | JI39: 10.48 | JJ39: 9.89 | JK39: 7.81 | JL39: 8.79 | JM39: 9.16 | JN39: 9.03 | JO39: 9.13 | JP39: 10.15 | JQ39: 8.91 | JR39: 9.41 | JS39: 8.77 | JT39: 11.49 | JU39: 10.14 | JV39: 10.29 | JW39: 6.87 | JX39: 7.35 | JY39: 12.15 | JZ39: 5.86 | KA39: 7.84 | KB39: 8.19 | KC39: 7.57 | KD39: 10.24 | KE39: 9.81 | KF39: 8.56 | KG39: 5.29 | KH39: 8.07 | KI39: 6.67 | KJ39: 6.31 | KK39: 12.43 | KL39: 7.01 | KM39: 7.77 | KN39: 4.35 | KO39: 7.57 | KP39: 7.06 | KQ39: 2.87 | KR39: 8.23 | KS39: 8.56 | KT39: 7.25 | KU39: 8.77 | KV39: 7.97 | KW39: 6.21 | KX39: 11.17 | KY39: 8.73 | KZ39: 13.81 | LA39: 6.08 | LB39: 5.36 | LC39: 6.57 | LD39: 9.06 | LE39: 5.76 | LF39: 8.56 | LG39: 7.35 | LH39: 9.99 | LI39: 8.21 | LJ39: 6.57 | LK39: 7.95 | LL39: 8.78 | LM39: 4.61 | LN39: 7.80 | LO39: 7.44 | LP39: 7.53 | LQ39: ='KPIs SEMANA'!CAB179 -> 6.60 | LR39: 7.56 | LS39: =IF(LQ39>F39,"J","L") -> L
C40: UO | D40: % | E40: 9.8% | F40: 85.0 | G40: 96.8 | H40: 81.2 | I40: 100.0 | J40: 94.9 | K40: 66.5 | L40: 99.6 | M40: 94.1 | N40: 86.2 | O40: 93.6 | P40: 66.8 | Q40: 81.5 | R40: 89.7 | S40: 96.8 | T40: 97.4 | U40: 77.9 | V40: 98.9 | W40: 85.3 | X40: 68.8 | Y40: 77.4 | Z40: 43.8 | AA40: 50.0 | AB40: 50.0 | AC40: 89.3 | AD40: 90.3 | AE40: 50.0 | AF40: 59.8 | AG40: 60.9 | AH40: 85.6 | AI40: 53.6 | AJ40: 78.6 | AK40: 97.7 | AL40: 95.5 | AM40: 80.9 | AN40: 96.6 | AO40: 97.9 | AP40: 92.6 | AQ40: 100.0 | AR40: 91.9 | AS40: 94.4 | AT40: 87.7 | AU40: 99.3 | AV40: 96.4 | AW40: 93.8 | AX40: 82.1 | AY40: 44.9 | AZ40: 94.2 | BA40: 95.2 | BB40: 97.8 | BC40: 97.1 | BD40: 48.4 | BE40: 64.3 | BF40: 94.6 | BG40: 83.5 | BH40: 77.6 | BI40: 99.0 | BJ40: 88.1 | BK40: 99.5 | BL40: 79.6 | BM40: 62.9 | BN40: 0.0 | BO40: 0.0 | BP40: 94.6 | BQ40: 31.8 | BR40: 50.0 | BS40: 51.6 | BT40: 40.1 | BU40: 43.2 | BV40: 47.3 | BW40: 47.3 | BX40: 49.7 | BY40: 49.4 | BZ40: 49.7 | CA40: 49.4 | CB40: 49.4 | CC40: 50.0 | CD40: 48.5 | CE40: 49.3 | CF40: 50.0 | CG40: 50.0 | CH40: 50.0 | CI40: 50.0 | CJ40: 50.0 | CK40: 50.0 | CL40: 50.0 | CM40: 50.0 | CN40: 50.0 | CO40: 50.0 | CP40: 50.0 | CQ40: 50.0 | CR40: 50.0 | IO40: 7.9 | IP40: 5.4 | IQ40: 5.80 | IR40: 9.40 | IS40: 10.00 | IT40: 6.19 | IU40: 6.19 | IV40: 10.83 | IW40: 6.19 | IX40: 6.19 | IY40: 10.06 | IZ40: 9.64 | JA40: 9.64 | JB40: 7.28 | JC40: 9.64 | JD40: 6.11 | JE40: 5.72 | JF40: 8.85 | JG40: 3.44 | JH40: 12.69 | JI40: 12.92 | JJ40: 12.24 | JK40: 9.88 | JL40: 10.86 | JM40: 11.33 | JN40: 10.90 | JO40: 11.32 | JP40: 12.50 | JQ40: 10.96 | JR40: 11.55 | JS40: 10.63 | JT40: 18.83 | JU40: 12.67 | JV40: 12.68 | JW40: 8.35 | JX40: 9.20 | JY40: 14.97 | JZ40: 7.16 | KA40: 9.71 | KB40: 10.18 | KC40: 9.32 | KD40: 12.58 | KE40: 11.96 | KF40: 10.77 | KG40: 6.50 | KH40: 9.82 | KI40: 8.24 | KJ40: 8.23 | KK40: 16.26 | KL40: 9.51 | KM40: 12.57 | KN40: 5.81 | KO40: 9.32 | KP40: 8.66 | KR40: 10.11 | KS40: 10.45 | KT40: 8.77 | KV40: 10.13 | LA40: 6.55 | LB40: 6.55 | LD40: 10.94 | LE40: 7.01 | LG40: 9.11 | LH40: 13.96 | LJ40: 8.39 | LK40: ='KPIs SEMANA'!CAB180 -> 8.15 | LM40: 10.38 | LN40: 10.12 | LO40: 9.07 | LP40: 9.07 | LQ40: ='KPIs SEMANA'!CAB180 -> 8.15 | LR40: 9.04 | LS40: =IF(LQ40>F40,"J","L") -> L | LV40: =+LU40/$LU$75 -> 0.0% | LW40: =+LU40/$LW$75 -> 0.0% | LX40: =+LU40/$LX$75 -> 0.0%
LT41: =SUM(LT13:LT40) -> 2421030.25
B42: EQUIPOS DE SOPORTE DE PRODUCCION SEMANA 30
B43: TIPO | C43: KPIs | D43: UM | E43: PROM. 2023 | F43: OBJ. | G43: SEM 01 | H43: SEM 02 | I43: SEM 03 | J43: SEM 04 | K43: SEM 05 | L43: SEM 06 | M43: SEM 07 | N43: SEM 08 | O43: SEM 09 | P43: SEM 10 | Q43: SEM 11 | R43: SEM 12 | S43: SEM 13 | T43: SEM 14 | U43: SEM 15 | V43: SEM 16 | W43: SEM 17 | X43: SEM 18 | Y43: SEM 19 | Z43: SEM 20 | AA43: SEM 21 | AB43: SEM 22 | AC43: SEM 23 | AD43: SEM 24 | AE43: SEM 25 | AF43: SEM 26 | AG43: SEM 27 | AH43: SEM 28 | AI43: SEM 29 | AJ43: SEM 30 | AK43: SEM 31 | AL43: SEM 32 | AM43: SEM 33 | AN43: SEM 34 | AO43: SEM 35 | AP43: SEM 36 | AQ43: SEM 37 | AR43: SEM 38 | AS43: SEM 39 | AT43: SEM 40 | AU43: SEM 41 | AV43: SEM 42 | AW43: SEM 43 | AX43: SEM 44 | AY43: SEM 45 | AZ43: SEM 46 | BA43: SEM 47 | BB43: SEM 48 | BC43: SEM 49 | BD43: SEM 50 | BE43: SEM 51 | BF43: SEM 52 | BG43: SEM 01 | BH43: SEM 02 | BI43: SEM 03 | BJ43: SEM 04 | BK43: SEM 05 | BL43: SEM 06 | BM43: SEM 07 | BN43: SEM 08 | BO43: SEM 09 | BP43: SEM 10 | BQ43: SEM 11 | BR43: SEM 12 | BS43: SEM 13 | BT43: SEM 14 | BU43: SEM 15 | BV43: SEM 16 | BW43: SEM 17 | BX43: SEM 18 | BY43: SEM 19 | BZ43: SEM 20 | CA43: SEM 21 | CB43: SEM 22 | CC43: SEM 23 | CD43: SEM 24 | CE43: SEM 25 | CF43: SEM 26 | CG43: SEM 27 | CH43: SEM 28 | CI43: SEM 29 | CJ43: SEM 30 | CK43: SEM 31 | CL43: SEM 32 | CM43: SEM 33 | CN43: SEM 34 | CO43: SEM 35 | CP43: SEM 36 | CQ43: SEM 37 | CR43: SEM 38 | CS43: SEM 39 | CT43: SEM 40 | CU43: SEM 41 | CV43: SEM 42 | CW43: SEM 43 | CX43: SEM 44 | CY43: SEM 45 | CZ43: SEM 46 | DA43: SEM 47 | DB43: SEM 48 | DC43: SEM 49 | DD43: SEM 50 | DE43: SEM 51 | DF43: SEM 52 | DG43: SEM 01 | DH43: SEM 02 | DI43: SEM 03 | DJ43: SEM 04 | DK43: SEM 05 | DL43: SEM 06 | DM43: SEM 07 | DN43: SEM 08 | DO43: SEM 09 | DP43: SEM 10 | DQ43: SEM 11 | DR43: SEM 12 | DS43: SEM 13 | DT43: SEM 14 | DU43: SEM 15 | DV43: SEM 16 | DW43: SEM 30 | DX43: SEM 31 | DY43: SEM 32 | DZ43: SEM 33 | EA43: SEM 36 | EB43: SEM 37 | EC43: SEM 38 | ED43: SEM 39 | EE43: SEM 40 | EF43: SEM 41 | EG43: SEM 42 | EH43: SEM 43 | EI43: SEM 44 | EJ43: SEM 45 | EK43: SEM 46 | EL43: SEM 47 | EM43: SEM 48 | EN43: SEM 49 | EO43: SEM 50 | EP43: SEM 51 | EQ43: SEM 52 | ER43: SEM 53 | ES43: SEM 01 | ET43: SEM 02 | EU43: SEM 03 | EV43: SEM 04 | EW43: SEM 05 | EX43: SEM 06 | EY43: SEM 07 | EZ43: SEM 08 | FA43: SEM 09 | FB43: SEM 10 | FC43: SEM 11 | FD43: SEM 17 | FE43: SEM18 | FF43: SEM 19 | FG43: SEM20 | FH43: SEM21 | FI43: SEM22 | FJ43: SEM23 | FK43: SEM24 | FL43: SEM25 | FM43: SEM26 | FN43: SEM27 | FO43: SEM28 | FP43: SEM 29 | FQ43: SEM 30 | FR43: SEM 31 | FS43: SEM 32 | FT43: SEM 33 | FU43: SEM 34 | FV43: SEM 35 | FW43: SEM 36 | FX43: SEM 37 | FY43: SEM 38 | FZ43: SEM 39 | GA43: SEM 40 | GB43: SEM 41 | GC43: SEM 42 | GD43: SEM 43 | GE43: SEM 44 | GF43: SEM 45 | GG43: SEM 46 | GH43: SEM 47 | GI43: SEM 48 | GJ43: SEM 49 | GK43: SEM 50 | GL43: SEM 51 | GM43: SEM 52 | GN43: SEM 01 | GO43: SEM 02 | GP43: SEM 03 | GQ43: SEM 04 | GR43: SEM 05 | GS43: SEM 06 | GT43: SEM 07 | GU43: SEM 08 | GV43: SEM 09 | GW43: SEM 10 | GX43: SEM 11 | GY43: SEM 12 | GZ43: SEM 13 | HA43: SEM 14 | HB43: SEM 15 | HC43: SEM 16 | HD43: SEM 17 | HE43: SEM 18 | HF43: SEM 19 | HG43: SEM 20 | HH43: SEM 21 | HI43: SEM 22 | HJ43: SEM 23 | HK43: SEM 24 | HL43: SEM 25 | HM43: SEM 26 | HN43: SEM 27 | HO43: SEM 28 | HP43: SEM 29 | HQ43: SEM 30 | HR43: SEM 31 | HS43: SEM 32 | HT43: SEM 33 | HU43: SEM 34 | HV43: SEM 35 | HW43: SEM 36 | HX43: SEM 37 | HY43: SEM 38 | HZ43: SEM 39 | IA43: SEM 40 | IB43: SEM 41 | IC43: SEM 42 | ID43: SEM 43 | IE43: SEM 44 | IF43: SEM 45 | IG43: SEM 46 | IH43: SEM 47 | II43: SEM 48 | IJ43: SEM 49 | IK43: SEM 50 | IL43: SEM 51 | IM43: SEM 52 | IN43: SEM 01 | IO43: SEM 02 | IP43: SEM 03 | IQ43: SEM 04 | IR43: SEM 05 | IS43: SEM 06 | IT43: SEM 07 | IU43: SEM 08 | IV43: SEM 09 | IW43: SEM 10 | IX43: SEM 11 | IY43: SEM 12 | IZ43: SEM 13 | JA43: SEM 14 | JB43: SEM 15 | JC43: SEM 16 | JD43: SEM 17 | JE43: SEM 18 | JF43: SEM 19 | JG43: SEM 20 | JH43: SEM 21 | JI43: SEM 22 | JJ43: SEM 23 | JK43: SEM 24 | JL43: SEM 25 | JM43: SEM 26 | JN43: SEM 27 | JO43: SEM 28 | JP43: SEM 29 | JQ43: SEM 30 | JR43: SEM 31 | JS43: SEM 32 | JT43: SEM 33 | JU43: SEM 34 | JV43: SEM 35 | JW43: SEM 36 | JX43: SEM 37 | JY43: SEM 38 | JZ43: SEM 39 | KA43: SEM 40 | KB43: SEM 41 | KC43: SEM 42 | KD43: SEM 43 | KE43: SEM 44 | KF43: SEM 45 | KG43: SEM 46 | KH43: SEM 47 | KI43: SEM 48 | KJ43: SEM 49 | KK43: SEM 50 | KL43: SEM 51 | KM43: SEM 52 | KN43: SEM 01 | KO43: SEM 02 | KP43: SEM 03 | KQ43: SEM 04 | KR43: SEM 05 | KS43: SEM 06 | KT43: SEM 07 | KU43: SEM 08 | KV43: SEM 09 | KW43: SEM 10 | KX43: SEM 11 | KY43: SEM 12 | KZ43: SEM 13 | LA43: SEM 14 | LB43: SEM 15 | LC43: SEM 16 | LD43: SEM 17 | LE43: SEM 18 | LF43: SEM 19 | LG43: SEM 20 | LH43: SEM 21 | LI43: SEM 22 | LJ43: SEM 23 | LK43: SEM 24 | LL43: SEM 25 | LM43: SEM 26 | LN43: SEM 27 | LO43: SEM 28 | LP43: SEM 29 | LQ43: SEM 30 | LR43: PROM. 2024 | LS43: STATUS | LT43: COSTO
B44: SCOOPTRAMS - SERVICIOS (ST 710) | C44: DF | D44: % | E44: 98.8% | F44: 85.0 | G44: 50.0 | H44: 50.7 | I44: 89.1 | J44: 99.7 | K44: 96.6 | L44: 96.4 | M44: 85.0 | N44: 96.7 | O44: 99.3 | P44: 99.9 | Q44: 98.8 | R44: 66.6 | S44: 97.3 | T44: 99.5 | U44: 99.9 | V44: 95.8 | W44: 90.9 | X44: 93.3 | Y44: 88.3 | Z44: 50.0 | AA44: 49.7 | AB44: 80.9 | AC44: 97.4 | AD44: 97.3 | AE44: 77.5 | AF44: 87.8 | AG44: 95.0 | AH44: 92.8 | AI44: 100.0 | AJ44: 99.9 | AK44: 98.7 | AL44: 91.3 | AM44: 68.2 | AN44: 99.7 | AO44: 99.0 | AP44: 71.5 | AQ44: 74.1 | AR44: 98.7 | AS44: 81.6 | AT44: 84.0 | AU44: 87.4 | AV44: 92.3 | AW44: 100.0 | AX44: 97.8 | AY44: 92.9 | AZ44: 100.0 | BA44: 97.8 | BB44: 89.9 | BC44: 100.0 | BD44: 81.0 | BE44: 50.0 | BF44: 47.2 | BG44: 49.6 | BH44: 49.3 | BI44: 49.3 | BJ44: 46.6 | BK44: 49.1 | BL44: 49.4 | BM44: 93.1 | BN44: 90.7 | BO44: 97.4 | BP44: 94.6 | BQ44: 99.9 | BR44: 100.0 | BS44: 59.1 | BT44: 49.9 | BU44: 48.5 | BV44: 50.0 | BW44: 50.0 | BX44: 49.1 | BY44: 35.2 | BZ44: 49.1 | CA44: 97.9 | CB44: 95.5 | CC44: 99.1 | CD44: 96.9 | CE44: 100.0 | CF44: 96.9 | CG44: 87.5 | CH44: 98.5 | CI44: 99.1 | CJ44: 99.4 | CK44: 100.0 | CL44: 100.0 | CM44: 99.7 | CN44: 99.9 | CO44: 54.7 | CP44: 50.0 | CQ44: 50.0 | CR44: 50.0 | CS44: 49.4 | CT44: 85.1 | CU44: 99.9 | CV44: 91.4 | CW44: 70.1 | CX44: 100.0 | CY44: 99.8 | CZ44: 99.9 | DA44: 98.6 | DB44: 95.8 | DC44: 94.1 | DD44: 100.0 | DE44: 98.7 | DF44: 100.0 | DG44: 100.0 | DH44: 99.3 | DI44: 97.1 | DJ44: 100.0 | DK44: 98.1 | DL44: 100.0 | DM44: 99.8 | DN44: 100.0 | DO44: 92.7 | DP44: 100.0 | DQ44: 100.0 | DR44: 94.9 | DS44: 100.0 | DT44: 100.0 | DU44: 100.0 | DV44: 100.0 | DW44: 99.1 | DX44: 94.2 | DY44: 66.4 | DZ44: 48.3 | EA44: 48.3 | EB44: 44.0 | EC44: 48.6 | ED44: 50.0 | EE44: 46.9 | EF44: 48.3 | EG44: 43.6 | EH44: 50.0 | EI44: 47.3 | EJ44: 57.9 | EK44: 50.0 | EL44: 100.0 | EM44: 100.0 | EN44: 100.0 | EO44: 98.5 | EQ44: 98.8 | ER44: 91.4 | ES44: 99.2 | ET44: 85.1 | EU44: 90.7 | EV44: 100.0 | EW44: 97.0 | EX44: 97.5 | EY44: 99.7 | EZ44: 93.2 | FA44: 99.0 | FB44: 91.1 | FC44: 98.6 | FD44: 91.1 | FE44: 95.2 | FF44: 100.0 | FG44: 100.00 | FH44: 100.00 | FI44: 94.35 | FJ44: 100.00 | FK44: 100.00 | FL44: 100.00 | FM44: 92.56 | FN44: 100.00 | FO44: 100.00 | FP44: 95.54 | FQ44: 86.01 | FR44: 64.09 | FS44: 100.00 | FT44: 80.36 | FU44: 98.81 | FV44: 100.00 | FW44: 100.00 | FX44: 98.81 | FY44: 86.01 | FZ44: 100.00 | GA44: 100.00 | GB44: 98.61 | GC44: 55.95 | GD44: 4.76 | GE44: 100.00 | GF44: 96.18 | GG44: 100.00 | GH44: 94.64 | GI44: 98.21 | GJ44: 100.00 | GK44: 100.00 | GL44: 100.00 | GM44: 94.64 | GN44: 86.61 | GO44: 100.00 | GP44: 100.00 | GQ44: 99.40 | GR44: 100.00 | GS44: 100.00 | GT44: 100.00 | GU44: 100.00 | GV44: 100.00 | GW44: 100.00 | GX44: 98.51 | GY44: 97.02 | GZ44: 100.00 | HA44: 100.00 | HB44: 100.00 | HC44: 100.00 | HD44: 100.00 | HE44: 99.31 | HF44: 100.00 | HG44: 100.00 | HH44: 100.00 | HI44: 100.00 | HJ44: 100.00 | HK44: 100.00 | HL44: 100.00 | HM44: 100.00 | HN44: 100.00 | HO44: 100.00 | HP44: 97.92 | HQ44: 100.00 | HR44: 100.00 | HS44: 100.00 | HT44: 100.00 | HU44: 100.00 | HV44: 100.00 | HW44: 100.00 | HX44: 100.00 | HY44: 100.00 | HZ44: 100.00 | IA44: 52.38 | IB44: 100.00 | IC44: 98.21 | ID44: 100.00 | IE44: 100.00 | IF44: 98.51 | IG44: 100.00 | IH44: 99.40 | II44: 100.00 | IJ44: 89.88 | IK44: 93.75 | IL44: 100.00 | IM44: 96.43 | IN44: 98.21 | IO44: 97.62 | IP44: 100.00 | IQ44: 100.00 | IR44: 100.00 | IS44: 95.83 | IT44: 100.00 | IU44: 87.20 | IV44: 100.00 | IW44: 100.00 | IX44: 100.00 | IY44: 100.00 | IZ44: 100.00 | JA44: 100.00 | JB44: 100.00 | JC44: 92.86 | JD44: 100.00 | JE44: 100.00 | JF44: 100.00 | JG44: 97.32 | JH44: 100.00 | JI44: 98.21 | JJ44: 97.32 | JK44: 100.00 | JL44: 99.40 | JM44: 100.00 | JN44: 100.00 | JO44: 100.00 | JP44: 98.21 | JQ44: 100.00 | JR44: 92.86 | JS44: 100.00 | JT44: 100.00 | JU44: 100.00 | JV44: 100.00 | JW44: 100.00 | JX44: 95.83 | JY44: 98.21 | JZ44: 100.00 | KA44: 97.62 | KB44: 94.94 | KC44: 100.00 | KD44: 100.00 | KE44: 100.00 | KF44: 97.02 | KG44: 100.00 | KH44: ='KPIs SEMANA'!BTA49 -> 100.00 | KI44: ='KPIs SEMANA'!BTB49 -> 100.00 | KJ44: ='KPIs SEMANA'!BTC49 -> 100.00 | KK44: ='KPIs SEMANA'!BTD49 -> 100.00 | KL44: ='KPIs SEMANA'!BTE49 -> 100.00 | KM44: ='KPIs SEMANA'!BTF49 -> 100.00 | KN44: ='KPIs SEMANA'!BTG49 -> 100.00 | KO44: 100.00 | KP44: 100.00 | KQ44: 100.00 | KR44: 100.00 | KS44: 100.00 | KT44: 100.00 | KU44: 100.00 | KV44: 100.00 | KW44: 100.00 | KX44: 100.00 | KY44: 100.00 | KZ44: 100.00 | LA44: 100.00 | LB44: 100.00 | LC44: 100.00 | LD44: 100.00 | LE44: 100.00 | LF44: 100.00 | LG44: 100.00 | LH44: 100.00 | LI44: 100.00 | LJ44: 100.00 | LK44: 100.00 | LL44: 100.00 | LM44: 100.00 | LN44: 100.00 | LO44: 100.00 | LP44: 100.00 | LQ44: ='KPIs SEMANA'!CAB49 -> 100.00 | LR44: =AVERAGE(KN44:LQ44) -> 100.00 | LS44: =IF(LQ44>F44,"J","L") -> J | LT44: 10656.89 | LU44: 1 | LV44: =+LU44/$LU$55 -> 20.0% | LW44: =+LT44/$LT$55 -> 5.2% | LX44: =AVERAGE(LV44:LW44) -> 12.6%
C45: UF | D45: % | E45: 1.3% | F45: 50.0 | G45: 7.1 | H45: 20.4 | I45: 10.4 | J45: 5.6 | K45: 7.2 | L45: 17.3 | M45: 2.6 | N45: 15.5 | O45: 4.7 | P45: 14.6 | Q45: 16.5 | R45: 3.1 | S45: 6.7 | T45: 7.5 | U45: 3.0 | V45: 6.5 | W45: 12.9 | X45: 14.3 | Y45: 18.8 | Z45: 0.0 | AA45: 4.5 | AB45: 23.3 | AC45: 2.3 | AD45: 16.7 | AE45: 7.3 | AF45: 14.8 | AG45: 14.1 | AH45: 0.0 | AI45: 0.0 | AJ45: 23.1 | AK45: 6.6 | AL45: 7.1 | AM45: 14.5 | AN45: 0.0 | AO45: 4.5 | AP45: 22.9 | AQ45: 8.4 | AR45: 5.8 | AS45: 6.9 | AT45: 84.0 | AU45: 8.0 | AV45: 6.6 | AW45: 6.0 | AX45: 11.6 | AY45: 17.8 | AZ45: 0.6 | BA45: 10.4 | BB45: 13.4 | BC45: 3.9 | BD45: 9.2 | BE45: 2.4 | BF45: 6.2 | BG45: 0.0 | BH45: 12.9 | BI45: 5.8 | BJ45: 13.8 | BK45: 19.7 | BL45: 8.4 | BM45: 10.6 | BN45: 15.9 | BO45: 3.7 | BP45: 6.2 | BQ45: 12.8 | BR45: 4.5 | BS45: 6.7 | BT45: 0.7 | BU45: 14.7 | BV45: 7.1 | BW45: 7.1 | BX45: 0.0 | BY45: 12.3 | BZ45: 2.2 | CA45: 2.8 | CB45: 8.8 | CC45: 8.3 | CD45: 12.6 | CE45: 13.6 | CF45: 12.6 | CG45: 5.4 | CH45: 5.9 | CI45: 3.4 | CJ45: 7.5 | CK45: 0.0 | CL45: 11.8 | CM45: 21.6 | CN45: 3.3 | CO45: 9.5 | CP45: 6.8 | CQ45: 0.0 | CR45: 0.6 | CS45: 7.8 | CT45: 11.4 | CU45: 1.8 | CV45: 26.6 | CW45: 4.5 | CX45: 0.9 | CY45: 0.0 | CZ45: 0.0 | DA45: 18.1 | DB45: 4.0 | DC45: 9.3 | DD45: 2.4 | DE45: 6.4 | DF45: 5.5 | DG45: 0.0 | DH45: 9.4 | DI45: 9.4 | DJ45: 1.5 | DK45: 11.0 | DL45: 3.8 | DM45: 0.0 | DN45: 7.9 | DO45: 15.7 | DP45: 8.6 | DQ45: 0.0 | DR45: 0.0 | DS45: 0.0 | DT45: 0.0 | DU45: 0.0 | DV45: 0.0 | DW45: 0.0 | DX45: 2.0 | DY45: 1.3 | DZ45: 6.1 | EA45: 6.1 | EB45: 12.8 | EC45: 11.3 | ED45: 17.9 | EE45: 6.6 | EF45: 8.5 | EG45: 0.0 | EH45: 0.0 | EI45: 4.8 | EJ45: 3.6 | EK45: 6.7 | EL45: 5.9 | EM45: 6.4 | EN45: 1.2 | EO45: 0.7 | EP45: 0.0 | EQ45: 0.3 | ER45: 1.5 | ES45: 0.0 | ET45: 0.9 | EU45: 5.7 | EV45: 17.9 | EW45: 0.0 | EX45: 11.8 | EY45: 5.9 | EZ45: 19.2 | FA45: 10.8 | FB45: 15.7 | FC45: 2.0 | FD45: 7.5 | FE45: 7.9 | FF45: 9.1 | FG45: 9.51 | FH45: 11.90 | FI45: 4.90 | FJ45: 0.00 | FK45: 3.45 | FL45: 8.39 | FM45: 6.60 | FN45: 3.33 | FO45: 15.60 | FP45: 2.00 | FQ45: 10.15 | FR45: 3.81 | FS45: 0.00 | FT45: 0.00 | FU45: 0.00 | FV45: 0.00 | FW45: 0.00 | FX45: 0.00 | FY45: 0.00 | FZ45: 0.00 | GA45: 0.00 | GB45: 0.00 | GC45: 0.00 | GD45: 0.00 | GE45: 26.58 | GF45: 0.00 | GG45: 0.00 | GH45: 11.84 | GI45: 5.32 | GJ45: 10.92 | GK45: 19.64 | GL45: 15.18 | GM45: 7.74 | GN45: 12.38 | GO45: 0.00 | GP45: 5.36 | GQ45: 3.59 | GR45: 0.00 | GS45: 10.71 | GT45: 0.00 | GU45: 0.00 | GV45: 0.00 | GW45: 0.00 | GX45: 4.46 | GY45: 0.00 | GZ45: 0.00 | HA45: 0.00 | HB45: 0.00 | HC45: 0.00 | HD45: 1.40 | HE45: 0.00 | HF45: 0.00 | HG45: 0.00 | HH45: 25.00 | HI45: 0.00 | HJ45: 0.00 | HK45: 0.36 | HL45: 0.00 | HM45: 0.00 | HN45: 0.00 | HO45: 3.15 | HP45: 17.63 | HQ45: 0.00 | HR45: 5.83 | HS45: 5.36 | HT45: 0.00 | HU45: 6.07 | HV45: 6.07 | HW45: 0.00 | HX45: 0.00 | HY45: 0.00 | HZ45: 0.00 | IA45: 0.00 | IB45: 0.00 | IC45: 0.00 | ID45: 0.00 | IE45: 0.00 | IF45: 16.31 | IG45: 6.55 | IH45: 0.00 | II45: 0.00 | IJ45: 0.00 | IK45: 0.00 | IL45: 0.00 | IM45: 15.06 | IN45: 10.61 | IO45: 6.40 | IP45: 0.00 | IQ45: 0.00 | IR45: 0.00 | IS45: 17.39 | IT45: 9.23 | IU45: 0.00 | IV45: 0.00 | IW45: 0.00 | IX45: 0.00 | IY45: 0.00 | IZ45: 0.00 | JA45: 0.00 | JB45: 0.00 | JC45: 0.00 | JD45: 0.00 | JE45: 0.00 | JF45: 0.00 | JG45: 2.66 | JH45: 1.40 | JI45: 0.00 | JJ45: 2.44 | JK45: 0.00 | JL45: 0.00 | JM45: 0.00 | JN45: 0.00 | JO45: 0.00 | JP45: 4.85 | JQ45: 0.00 | JR45: 0.00 | JS45: 0.00 | JT45: 0.00 | JU45: 0.00 | JV45: 0.00 | JW45: 0.00 | JX45: 0.00 | JY45: 0.00 | JZ45: 6.07 | KA45: 0.00 | KB45: 7.52 | KC45: 0.00 | KD45: 0.00 | KE45: 0.00 | KF45: 0.00 | KG45: 0.00 | KH45: ='KPIs SEMANA'!BTA51 -> 0.00 | KI45: ='KPIs SEMANA'!BTB51 -> 0.00 | KJ45: ='KPIs SEMANA'!BTC51 -> 0.00 | KK45: ='KPIs SEMANA'!BTD51 -> 0.00 | KL45: ='KPIs SEMANA'!BTE51 -> 0.00 | KM45: ='KPIs SEMANA'!BTF51 -> 0.00 | KN45: ='KPIs SEMANA'!BTG51 -> 0.00 | KO45: 0.00 | KP45: 0.00 | KQ45: 0.00 | KR45: 0.00 | KS45: 0.00 | KT45: 0.00 | KU45: 0.00 | KV45: 0.00 | KW45: 0.00 | KX45: 0.00 | KY45: 0.00 | KZ45: 0.00 | LA45: 0.00 | LB45: 0.00 | LC45: 0.00 | LD45: 0.00 | LE45: 0.00 | LF45: 0.00 | LG45: 0.00 | LH45: 0.00 | LI45: 0.00 | LJ45: 0.00 | LK45: 0.00 | LL45: 0.00 | LM45: 0.00 | LN45: 0.00 | LO45: 0.00 | LP45: 0.00 | LQ45: ='KPIs SEMANA'!CAB51 -> 0.00 | LR45: =AVERAGE(KN45:LQ45) -> 0.00 | LS45: L
C46: UO | D46: % | E46: 1.4% | F46: 50.0 | IO46: 7.72 | IP46: 0.00 | IQ46: 0.00 | IR46: 0.00 | IS46: 21.05 | IT46: 11.07 | IU46: 0.00 | IV46: 0.00 | IW46: 0.00 | IX46: 0.00 | IY46: 0.00 | IZ46: 0.00 | JA46: 0.00 | JB46: 0.00 | JC46: 0.00 | JD46: 0.00 | JE46: 0.00 | JF46: 0.00 | JG46: 3.21 | JH46: 1.69 | JI46: 0.00 | JJ46: 2.94 | JK46: 0.00 | JL46: 0.00 | JM46: 0.00 | JN46: 0.00 | JO46: 0.00 | JP46: 5.84 | JQ46: 0.00 | JR46: 0.00 | JS46: 0.00 | JT46: 0.00 | JU46: 0.00 | JV46: 0.00 | JW46: 0.00 | JX46: 0.00 | JY46: 0.00 | JZ46: 7.29 | KA46: 0.00 | KB46: 9.13 | KC46: 0.00 | KD46: 0.00 | KE46: 0.00 | KF46: 0.00 | KG46: 0.00 | KH46: ='KPIs SEMANA'!BTA52 -> 0.00 | KI46: ='KPIs SEMANA'!BTB52 -> 0.00 | KJ46: ='KPIs SEMANA'!BTC52 -> 0.00 | KK46: ='KPIs SEMANA'!BTD52 -> 0.00 | KL46: ='KPIs SEMANA'!BTE52 -> 0.00 | KM46: ='KPIs SEMANA'!BTF52 -> 0.00 | KN46: ='KPIs SEMANA'!BTG52 -> 0.00 | KO46: 0.00 | KP46: 0.00 | KQ46: 0.00 | KR46: 0.00 | KS46: 0.00 | KT46: 0.00 | KU46: 0.00 | KV46: 0.00 | KW46: 0.00 | KX46: 0.00 | LA46: 0.00 | LB46: 0.00 | LC46: 0.00 | LD46: 0.00 | LE46: 0.00 | LF46: 0.00 | LG46: 0.00 | LH46: 0.00 | LI46: 0.00 | LJ46: 0.00 | LK46: ='[10]KPIs SEMANA'!BYL52 -> 0.00 | LL46: 0.00 | LM46: 0.00 | LN46: 0.00 | LO46: 0.00 | LP46: 0.00 | LQ46: ='KPIs SEMANA'!CAB52 -> 0.00 | LR46: =AVERAGE(KN46:LQ46) -> 0.00 | LS46: L
B47: EQUIPOS DE VIAS ( TRACTOR D3) | C47: DF | D47: % | E47: 97.1% | F47: 85.0 | G47: 91.7 | H47: 81.0 | I47: 97.7 | J47: 92.7 | K47: 75.5 | L47: 88.8 | M47: 98.5 | N47: 87.7 | O47: 97.4 | P47: 60.7 | Q47: 52.2 | R47: 45.9 | S47: 92.6 | T47: 94.9 | U47: 96.3 | V47: 96.3 | W47: 85.0 | X47: 93.8 | Y47: 94.7 | Z47: 90.1 | AA47: 80.6 | AB47: 76.6 | AC47: 97.5 | AD47: 85.1 | AE47: 83.3 | AF47: 89.6 | AG47: 82.0 | AH47: 95.0 | AI47: 99.2 | AJ47: 97.0 | AK47: 81.1 | AL47: 99.6 | AM47: 72.7 | AN47: 99.2 | AO47: 98.5 | AP47: 91.1 | AQ47: 96.2 | AR47: 88.1 | AS47: 90.1 | AT47: 97.8 | AU47: 92.4 | AV47: 96.4 | AW47: 96.9 | AX47: 97.8 | AY47: 92.6 | AZ47: 75.5 | BA47: 50.8 | BB47: 77.7 | BC47: 95.7 | BD47: 85.8 | BE47: 93.8 | BF47: 98.5 | BG47: 99.8 | BH47: 93.4 | BI47: 88.4 | BJ47: 89.9 | BK47: 86.1 | BL47: 95.1 | BM47: 88.0 | BN47: 99.0 | BO47: 95.2 | BP47: 94.6 | BQ47: 87.6 | BR47: 63.9 | BS47: 91.8 | BT47: 95.7 | BU47: 94.6 | BV47: 47.5 | BW47: 47.5 | BX47: 63.5 | BY47: 97.6 | BZ47: 76.6 | CA47: 90.8 | CB47: 97.6 | CC47: 96.9 | CD47: 90.9 | CE47: 92.3 | CF47: 95.3 | CG47: 98.8 | CH47: 89.3 | CI47: 94.2 | CJ47: 94.8 | CK47: 86.4 | CL47: 97.5 | CM47: 97.6 | CN47: 89.2 | CO47: 98.8 | CP47: 91.4 | CQ47: 87.3 | CR47: 95.7 | CS47: 95.4 | CT47: 85.2 | CU47: 65.3 | CV47: 91.3 | CW47: 73.9 | CX47: 87.6 | CY47: 97.4 | CZ47: 95.6 | DA47: 98.6 | DB47: 97.3 | DC47: 94.0 | DD47: 94.3 | DE47: 98.6 | DF47: 93.6 | DG47: 99.2 | DH47: 66.8 | DI47: 63.2 | DJ47: 65.3 | DK47: 66.4 | DL47: 96.0 | DM47: 82.8 | DN47: 52.8 | DO47: 65.8 | DP47: 60.6 | DQ47: 62.4 | DR47: 66.7 | DS47: 66.7 | DT47: 50.6 | DU47: 66.7 | DV47: 66.7 | DW47: 78.5 | DX47: 91.6 | DY47: 91.0 | DZ47: 93.4 | EA47: 93.4 | EB47: 94.2 | EC47: 85.2 | ED47: 99.9 | EE47: 86.3 | EF47: 86.1 | EG47: 98.9 | EH47: 97.0 | EI47: 62.7 | EJ47: 93.6 | EK47: 97.0 | EL47: 93.8 | EM47: 98.1 | EN47: 91.1 | EO47: 74.7 | EP47: 56.8 | EQ47: 50.0 | ER47: 47.7 | ES47: 39.0 | ET47: 55.9 | EU47: 96.6 | EV47: 85.4 | EW47: 97.7 | EX47: 92.3 | EY47: 94.4 | EZ47: 97.9 | FA47: 85.1 | FB47: 92.6 | FC47: 72.9 | FD47: 97.3 | FE47: 90.9 | FF47: 88.7 | FG47: 75.10 | FH47: 87.15 | FI47: 88.69 | FJ47: 91.35 | FK47: 78.77 | FL47: 92.86 | FM47: 94.94 | FN47: 94.79 | FO47: 88.19 | FP47: 74.63 | FQ47: 94.20 | FR47: 89.88 | FS47: 85.10 | FT47: 95.83 | FU47: 97.42 | FV47: 81.46 | FW47: 82.34 | FX47: 92.26 | FY47: 86.71 | FZ47: 94.94 | GA47: 87.50 | GB47: 86.81 | GC47: 79.46 | GD47: 88.24 | GE47: 85.06 | GF47: 95.83 | GG47: 88.69 | GH47: 86.71 | GI47: 84.13 | GJ47: 63.39 | GK47: 39.11 | GL47: 74.55 | GM47: 86.73 | GN47: 90.92 | GO47: 92.96 | GP47: 87.65 | GQ47: 99.33 | GR47: 94.15 | GS47: 59.82 | GT47: 56.12 | GU47: 59.77 | GV47: 56.50 | GW47: 70.41 | GX47: 78.79 | GY47: 88.99 | GZ47: 84.99 | HA47: 88.99 | HB47: 86.90 | HC47: 97.42 | HD47: 85.19 | HE47: 75.03 | HF47: 87.95 | HG47: 90.75 | HH47: 96.13 | HI47: 85.57 | HJ47: 91.29 | HK47: 78.44 | HL47: 88.59 | HM47: 93.87 | HN47: 95.39 | HO47: 92.43 | HP47: 95.12 | HQ47: 87.50 | HR47: 75.32 | HS47: 85.42 | HT47: 94.94 | HU47: 91.02 | HV47: 89.76 | HW47: 94.35 | HX47: 98.07 | HY47: 73.83 | HZ47: 89.88 | IA47: 95.21 | JB47: 89.29 | JC47: 100.00 | JD47: 96.13 | JE47: 100.00 | JF47: 100.00 | JG47: 97.62 | JH47: 97.02 | JI47: 95.24 | JJ47: 98.51 | JK47: 89.58 | JL47: 99.40 | JM47: 100.00 | JN47: 94.05 | JO47: 93.75 | JP47: 100.00 | JQ47: 97.02 | JR47: 97.02 | JS47: 98.21 | JT47: 94.05 | JU47: 97.62 | JV47: 92.86 | JW47: 97.02 | JX47: 91.07 | JY47: 98.21 | JZ47: 100.00 | KA47: 92.86 | KB47: 98.81 | KC47: 100.00 | KD47: 100.00 | KE47: 98.81 | KF47: 95.83 | KG47: 100.00 | KH47: ='KPIs SEMANA'!BTA187 -> 100.00 | KI47: ='KPIs SEMANA'!BTB187 -> 79.17 | KJ47: ='KPIs SEMANA'!BTC187 -> 100.00 | KK47: ='KPIs SEMANA'!BTD187 -> 100.00 | KL47: ='KPIs SEMANA'!BTE187 -> 100.00 | KM47: ='KPIs SEMANA'!BTF187 -> 100.00 | KN47: ='KPIs SEMANA'!BTG187 -> 100.00 | KO47: 100.00 | KP47: 97.02 | KQ47: 96.13 | KR47: 93.75 | KS47: 100.00 | KT47: 100.00 | KU47: 97.92 | KV47: 100.00 | KW47: 85.12 | KX47: 100.00 | KY47: 94.05 | KZ47: 97.02 | LA47: 100.00 | LB47: 100.00 | LC47: 91.07 | LD47: 100.00 | LE47: 96.49 | LF47: 97.87 | LG47: 93.75 | LH47: 98.51 | LI47: 95.90 | LJ47: 100.00 | LK47: 57.14 | LL47: 0.00 | LM47: 100.00 | LN47: 91.07 | LO47: 97.86 | LP47: 100.00 | LQ47: ='KPIs SEMANA'!CAB187 -> 100.00 | LR47: =AVERAGE(KN47:LQ47) -> 92.69 | LS47: J | LT47: 9406.54 | LU47: 1 | LV47: =+LU47/$LU$55 -> 20.0% | LW47: =+LT47/$LT$55 -> 4.6% | LX47: =AVERAGE(LV47:LW47) -> 12.3%
C48: DM | D48: % | E48: 97.1% | F48: 85.0 | G48: 0.0 | H48: 0.0 | I48: 0.0 | J48: 0.0 | K48: 0.0 | L48: 0.0 | M48: 0.0 | N48: 0.0 | O48: 0.0 | P48: 0.0 | Q48: 0.0 | R48: 0.0 | S48: 0.0 | T48: 0.0 | U48: 0.0 | V48: 0.0 | W48: 0.0 | X48: 0.0 | Y48: 0.0 | Z48: 0.0 | AA48: 0.0 | AB48: 0.0 | AC48: 0.0 | AD48: 0.0 | AE48: 0.0 | AF48: 0.0 | AG48: 0.0 | AH48: 0.0 | AI48: 0.0 | AJ48: 0.0 | AK48: 0.0 | AL48: 0.0 | AM48: 0.0 | AN48: 0.0 | AO48: 0.0 | AP48: 0.0 | AQ48: 0.0 | AR48: 0.0 | AS48: 0.0 | AT48: 0.0 | AU48: 0.0 | AV48: 0.0 | AW48: 0.0 | AX48: 0.0 | AY48: 0.0 | AZ48: 0.0 | BA48: 0.0 | BB48: 0.0 | BC48: 0.0 | BD48: 0.0 | BE48: 0.0 | BF48: 0.0 | BG48: 0.0 | BH48: 0.0 | BI48: 0.0 | BJ48: 0.0 | BK48: 0.0 | BL48: 0.0 | BM48: 0.0 | BN48: 0.0 | BO48: 0.0 | BP48: 0.0 | BQ48: 0.0 | BR48: 0.0 | BS48: 0.0 | BT48: 0.0 | BU48: 0.0 | BV48: 0.0 | BW48: 0.0 | BX48: 0.0 | BY48: 0.0 | BZ48: 0.0 | CA48: 0.0 | CB48: 97.6 | CC48: 96.9 | CD48: 90.9 | CE48: 92.3 | CF48: 95.3 | CG48: 98.8 | CH48: 89.3 | CI48: 94.2 | CJ48: 94.8 | CK48: 86.4 | CL48: 97.5 | CM48: 97.6 | CN48: 89.2 | CO48: 98.8 | CP48: 91.4 | CQ48: 87.3 | CR48: 95.7 | CS48: 95.4 | CT48: 85.2 | CU48: 65.3 | CV48: 91.3 | CW48: 73.9 | CX48: 87.6 | CY48: 97.4 | CZ48: 95.6 | DA48: 98.6 | DB48: 97.3 | DC48: 94.0 | DD48: 94.3 | DE48: 98.6 | DF48: 93.6 | DG48: 99.2 | DH48: 66.8 | DI48: 63.2 | DJ48: 65.3 | DK48: 66.4 | DL48: 96.0 | DM48: 82.8 | DN48: 52.8 | DO48: 65.8 | DP48: 60.6 | DQ48: 62.4 | DR48: 66.7 | DS48: 66.7 | DT48: 50.6 | DU48: 66.7 | DV48: 66.7 | DW48: 78.5 | DX48: 91.6 | DY48: 91.0 | DZ48: 93.4 | EA48: 93.4 | EB48: 94.2 | EC48: 85.2 | ED48: 99.9 | EE48: 86.3 | EF48: 86.1 | EG48: 98.9 | EH48: 97.0 | EI48: 62.7 | EJ48: 93.6 | EK48: 97.0 | EL48: 93.8 | EM48: 98.1 | EN48: 91.1 | EO48: 74.7 | EP48: 56.8 | EQ48: 50.0 | ER48: 47.7 | ES48: 39.0 | ET48: 55.9 | EU48: 96.6 | FC48: 72.9 | FF48: 81.18016156 | FG48: 80.77 | FH48: 0.00 | FI48: DM | FJ48: 0.00 | FK48: 0.00 | FL48: 0.00 | FM48: 0.00 | FN48: 0.00 | FO48: 0.00 | FP48: 0.00 | FQ48: 0.00 | FR48: 0.00 | FS48: 0.00 | FT48: 0.00 | FU48: 0.00 | FV48: 0.00 | FW48: 0.00 | FX48: 0.00 | FY48: 0.00 | FZ48: 0.00 | GA48: 0.00 | GB48: 0.00 | GC48: 0.00 | GD48: 0.00 | GE48: 0.00 | GF48: 0.00 | GG48: 0.00 | GH48: 0.00 | GI48: 0.00 | GJ48: 0.00 | GK48: 0.00 | GL48: 0.00 | GM48: 0.00 | GN48: 0.00 | GO48: 0.00 | GP48: 0.00 | GQ48: 0.00 | GR48: 0.00 | GS48: 0.00 | GT48: 0.00 | GU48: 0.00 | GV48: 0.00 | GW48: 0.00 | GX48: 0.00 | GY48: 0.00 | GZ48: 0.00 | HA48: 0.00 | HB48: 0.00 | HC48: 0.00 | HD48: 0.00 | HE48: 0.00 | HF48: 0.00 | HG48: 0.00 | HH48: 0.00 | HI48: 0.00 | HJ48: 0.00 | HK48: 0.00 | HL48: 0.00 | HM48: 0.00 | HN48: 0.00 | HO48: 0.00 | HP48: 0.00 | HQ48: 0.00 | HR48: 0.00 | HS48: 0.00 | HT48: 0.00 | HU48: 0.00 | HV48: 0.00 | HW48: 0.00 | HX48: 0.00 | HY48: 0.00 | HZ48: 0.00 | IA48: 0.00 | JB48: 89.29 | JC48: 100.00 | JD48: 96.13 | JE48: 100.00 | JF48: 100.00 | JG48: 97.62 | JH48: 97.02 | JI48: 95.24 | JJ48: 98.51 | JK48: 89.58 | JL48: 99.40 | JM48: 100.00 | JN48: 94.05 | JO48: 93.75 | JP48: 100.00 | JQ48: 97.02 | JR48: 97.02 | JS48: 98.21 | JT48: 94.05 | JU48: 97.62 | JV48: 92.86 | JW48: 97.02 | JX48: 91.07 | JY48: 98.21 | JZ48: 100.00 | KA48: 92.86 | KB48: 98.81 | KC48: 100.00 | KD48: 100.00 | KE48: 98.81 | KF48: 95.83 | KG48: 100.00 | KH48: ='KPIs SEMANA'!BTA188 -> 100.00 | KI48: ='KPIs SEMANA'!BTB188 -> 79.17 | KJ48: ='KPIs SEMANA'!BTC188 -> 100.00 | KK48: ='KPIs SEMANA'!BTD188 -> 100.00 | KL48: ='KPIs SEMANA'!BTE188 -> 100.00 | KM48: ='KPIs SEMANA'!BTF188 -> 100.00 | KN48: ='KPIs SEMANA'!BTG188 -> 100.00 | KO48: 100.00 | KP48: 97.02 | KQ48: 96.13 | KR48: 93.75 | KS48: 100.00 | KT48: 100.00 | KU48: 97.92 | KV48: 100.00 | KW48: 85.12 | KX48: 100.00 | LA48: 100.00 | LB48: 100.00 | LC48: 91.07 | LD48: 100.00 | LE48: 96.49 | LF48: 97.87 | LG48: 93.75 | LH48: 98.51 | LI48: 95.90 | LJ48: 100.00 | LK48: ='[10]KPIs SEMANA'!BYL188 -> 57.14 | LL48: 95.83 | LM48: 100.00 | LN48: 91.07 | LO48: 97.86 | LP48: 100.00 | LQ48: ='KPIs SEMANA'!CAB188 -> 100.00 | LR48: =AVERAGE(KN48:LQ48) -> 95.91 | LS48: J | LV48: =+LU48/$LU$75 -> 0.0% | LW48: =+LU48/$LW$75 -> 0.0% | LX48: =+LU48/$LX$75 -> 0.0%
C49: UF | D49: % | E49: 25.6% | F49: 18.0 | G49: 3.5 | H49: 6.8 | I49: 6.1 | J49: 6.3 | K49: 7.5 | L49: 11.6 | M49: 8.9 | N49: 11.4 | O49: 10.3 | P49: 7.5 | Q49: 19.5 | R49: 24.2 | S49: 11.5 | T49: 9.4 | U49: 6.2 | V49: 12.5 | W49: 10.6 | X49: 11.9 | Y49: 10.3 | Z49: 6.1 | AA49: 4.8 | AB49: 8.7 | AC49: 6.6 | AD49: 18.5 | AE49: 13.5 | AF49: 3.7 | AG49: 18.8 | AH49: 8.7 | AI49: 8.4 | AJ49: 15.2 | AK49: 21.4 | AL49: 13.6 | AM49: 12.3 | AN49: 8.5 | AO49: 8.2 | AP49: 10.0 | AQ49: 14.4 | AR49: 12.9 | AS49: 15.8 | AT49: 11.1 | AU49: 12.3 | AV49: 11.5 | AW49: 14.0 | AX49: 12.1 | AY49: 11.2 | AZ49: 14.4 | BA49: 14.1 | BB49: 21.4 | BC49: 13.5 | BD49: 15.7 | BE49: 12.7 | BF49: 16.9 | BG49: 5.1 | BH49: 23.0 | BI49: 16.0 | BJ49: 22.4 | BK49: 11.9 | BL49: 16.0 | BM49: 15.9 | BN49: 9.0 | BO49: 15.6 | BP49: 16.2 | BQ49: 12.9 | BR49: 18.3 | BS49: 18.2 | BT49: 9.5 | BU49: 7.7 | BV49: 8.5 | BW49: 8.5 | BX49: 6.7 | BY49: 5.1 | BZ49: 8.3 | CA49: 5.4 | CB49: 5.1 | CC49: 4.4 | CD49: 5.7 | CE49: 7.7 | CF49: 3.5 | CG49: 3.6 | CH49: 2.9 | CI49: 8.9 | CJ49: 6.2 | CK49: 6.5 | CL49: 6.0 | CM49: 12.5 | CN49: 3.4 | CO49: 5.5 | CP49: 1.5 | CQ49: 0.6 | CR49: 2.5 | CS49: 5.3 | CT49: 8.4 | CU49: 2.3 | CV49: 3.1 | CW49: 3.8 | CX49: 3.0 | CY49: 6.6 | CZ49: 1.0 | DA49: 3.7 | DB49: 2.1 | DC49: 0.8 | DD49: 2.1 | DE49: 4.1 | DF49: 3.1 | DG49: 2.1 | DH49: 8.5 | DI49: 4.6 | DJ49: 3.0 | DK49: 18.2 | DL49: 3.4 | DM49: 19.0 | DN49: 5.7 | DO49: 5.4 | DP49: 5.0 | DQ49: 3.9 | DR49: 0.4 | DS49: 0.0 | DT49: 0.0 | DU49: 0.0 | DV49: 0.0 | DW49: 4.7 | DX49: 10.6 | DY49: 6.6 | DZ49: 5.9 | EA49: 5.9 | EB49: 5.6 | EC49: 6.5 | ED49: 3.3 | EE49: 4.1 | EF49: 25.1 | EG49: 5.7 | EH49: 4.5 | EI49: 2.9 | EJ49: 8.8 | EK49: 12.6 | EL49: 5.4 | EM49: 21.0 | EN49: 5.7 | EO49: 8.8 | EP49: 2.9 | EQ49: 0.7 | ER49: 17.0 | ES49: 13.3 | ET49: 14.9 | EU49: 13.4 | EV49: 7.8 | EW49: 9.9 | EX49: 11.1 | EY49: 4.1 | EZ49: 11.4 | FA49: 18.6 | FB49: 10.7 | FC49: 5.2 | FD49: 0.00 | FE49: 8.67 | FF49: 13.30 | FG49: 19.20 | FH49: 3.30 | FI49: 4.62 | FJ49: 20.07 | FK49: 4.67 | FL49: 14.01 | FM49: 16.72 | FN49: 7.40 | FO49: 9.37 | FP49: 10.48 | FQ49: 12.44 | FR49: 13.55 | FS49: 8.57 | FT49: 4.29 | FU49: 5.86 | FV49: 5.92 | FW49: 8.86 | FX49: 7.37 | FY49: 3.46 | FZ49: 0.00 | GA49: 2.35 | GB49: 5.84 | GC49: 6.72 | GD49: 19.91 | GE49: 7.94 | GF49: 7.93 | GG49: 8.68 | GH49: 6.09 | GI49: 5.50 | GJ49: 10.28 | GK49: 5.09 | GL49: 4.65 | GM49: 2.56 | GN49: 1.96 | GO49: 3.17 | GP49: 8.13 | GQ49: 4.15 | GR49: 4.39 | GS49: 2.39 | GT49: 2.73 | GU49: 0.87 | GV49: 1.67 | GW49: 7.03 | GX49: 5.63 | GY49: 6.35 | GZ49: 7.08 | HA49: 5.83 | HB49: 7.73 | HC49: 6.39 | HD49: 6.38 | HE49: 6.70 | HF49: 7.36 | HG49: 6.85 | HH49: 4.18 | HI49: 7.92 | HJ49: 7.21 | HK49: 9.56 | HL49: 8.40 | HM49: 7.98 | HN49: 3.98 | HO49: 6.27 | HP49: 5.76 | HQ49: 3.23 | HR49: 6.15 | HS49: 9.32 | HT49: 3.94 | HU49: 7.63 | HV49: 7.94 | HW49: 6.80 | HX49: 5.41 | HY49: 4.02 | HZ49: 6.72 | IA49: 6.14 | JB49: 40.68 | JC49: 20.63 | JD49: 26.93 | JE49: 35.71 | JF49: 42.71 | JG49: 41.71 | JH49: 23.75 | JI49: 38.75 | JJ49: 46.70 | JK49: 10.64 | JL49: 39.97 | JM49: 44.05 | JN49: 16.84 | JO49: 24.89 | JP49: 41.67 | JQ49: 42.94 | JR49: 22.09 | JS49: 20.38 | JT49: 22.72 | JU49: 20.50 | JV49: 11.54 | JW49: 19.35 | JX49: 30.46 | JY49: 10.80 | JZ49: 23.85 | KA49: 14.10 | KB49: 4.46 | KC49: 39.64 | KD49: 37.56 | KE49: 10.07 | KF49: 20.00 | KG49: 39.88 | KH49: ='KPIs SEMANA'!BTA189 -> 30.54 | KI49: ='KPIs SEMANA'!BTB189 -> 31.58 | KJ49: ='KPIs SEMANA'!BTC189 -> 50.00 | KK49: ='KPIs SEMANA'!BTD189 -> 45.83 | KL49: ='KPIs SEMANA'!BTE189 -> 45.83 | KM49: ='KPIs SEMANA'!BTF189 -> 0.00 | KN49: ='KPIs SEMANA'!BTG189 -> 0.00 | KO49: 0.00 | KP49: 24.54 | KQ49: 6.19 | KR49: 30.49 | KS49: 34.94 | KT49: 0.00 | KU49: 20.85 | KV49: 14.70 | KW49: 1.55 | KX49: 40.20 | KY49: 37.97 | KZ49: 36.81 | LA49: 5.17 | LB49: 13.39 | LC49: 16.27 | LD49: 36.31 | LE49: 20.97 | LF49: 30.41 | LG49: 26.03 | LH49: 30.21 | LI49: 57.72 | LJ49: 23.23 | LK49: 21.88 | LL49: 0.00 | LM49: 10.71 | LN49: 21.76 | LO49: 22.10 | LP49: 10.36 | LQ49: ='KPIs SEMANA'!CAB189 -> 32.74 | LR49: =AVERAGE(KN49:LQ49) -> 20.92 | LS49: J
C50: UO | D50: % | E50: 27.5% | F50: 85.0 | G50: 96.8 | H50: 81.2 | I50: 100.0 | J50: 94.9 | K50: 66.5 | L50: 99.6 | M50: 94.1 | N50: 86.2 | O50: 93.6 | P50: 66.8 | Q50: 81.5 | R50: 89.7 | S50: 96.8 | T50: 97.4 | U50: 77.9 | V50: 98.9 | W50: 85.3 | X50: 68.8 | Y50: 77.4 | Z50: 43.8 | AA50: 50.0 | AB50: 50.0 | AC50: 89.3 | AD50: 90.3 | AE50: 50.0 | AF50: 59.8 | AG50: 60.9 | AH50: 85.6 | AI50: 53.6 | AJ50: 78.6 | AK50: 97.7 | AL50: 95.5 | AM50: 80.9 | AN50: 96.6 | AO50: 97.9 | AP50: 92.6 | AQ50: 100.0 | AR50: 91.9 | AS50: 94.4 | AT50: 87.7 | AU50: 99.3 | AV50: 96.4 | AW50: 93.8 | AX50: 82.1 | AY50: 44.9 | AZ50: 94.2 | BA50: 95.2 | BB50: 97.8 | BC50: 97.1 | BD50: 48.4 | BE50: 64.3 | BF50: 94.6 | BG50: 83.5 | BH50: 77.6 | BI50: 99.0 | BJ50: 88.1 | BK50: 99.5 | BL50: 79.6 | BM50: 62.9 | BN50: 0.0 | BO50: 0.0 | BP50: 94.6 | BQ50: 31.8 | BR50: 50.0 | BS50: 51.6 | BT50: 40.1 | BU50: 43.2 | BV50: 47.3 | BW50: 47.3 | BX50: 49.7 | BY50: 49.4 | BZ50: 49.7 | CA50: 49.4 | CB50: 49.4 | CC50: 50.0 | CD50: 48.5 | CE50: 49.3 | CF50: 50.0 | CG50: 50.0 | CH50: 50.0 | CI50: 50.0 | CJ50: 50.0 | CK50: 50.0 | CL50: 50.0 | CM50: 50.0 | CN50: 50.0 | CO50: 50.0 | CP50: 50.0 | CQ50: 50.0 | CR50: 50.0 | IO50: 7.9 | IP50: 5.4 | IQ50: 5.80 | IR50: 9.40 | IS50: 10.00 | IT50: 6.19 | IU50: 6.19 | JC50: 32.58 | JD50: 32.58 | JE50: 42.00 | JF50: 56.21 | JG50: 56.21 | JH50: 40.00 | JI50: 56.21 | JJ50: 56.21 | JK50: 13.58 | JL50: 48.02 | JM50: 52.86 | JN50: 20.46 | JO50: 30.27 | JP50: 50.00 | JQ50: 51.85 | JR50: 26.67 | JS50: 24.54 | JT50: 27.62 | JU50: 24.72 | JV50: 14.06 | JW50: 23.36 | JX50: 37.28 | JY50: 13.01 | JZ50: 28.61 | KA50: 17.19 | KB50: 5.37 | KC50: 47.57 | KD50: 45.07 | KE50: 12.12 | KF50: 24.21 | KG50: 47.85 | KH50: ='KPIs SEMANA'!BTA190 -> 36.65 | KI50: ='KPIs SEMANA'!BTB190 -> 40.00 | KJ50: ='KPIs SEMANA'!BTC190 -> 60.00 | KK50: ='KPIs SEMANA'!BTD190 -> 55.00 | KL50: ='KPIs SEMANA'!BTE190 -> 55.00 | KM50: ='KPIs SEMANA'!BTF190 -> 0.00 | KN50: ='KPIs SEMANA'!BTG190 -> 0.00 | KO50: 0.00 | KP50: 29.63 | KQ50: 7.49 | KR50: 37.08 | KS50: 41.93 | KT50: 0.00 | KU50: 25.13 | KV50: 17.64 | KW50: 1.93 | KX50: 48.24 | LA50: 6.21 | LB50: 16.07 | LC50: 19.92 | LD50: 43.57 | LE50: 25.35 | LF50: 36.65 | LG50: 31.65 | LH50: 36.36 | LI50: 69.87 | LJ50: 27.87 | LK50: ='[10]KPIs SEMANA'!BYL190 -> 30.88 | LL50: 24.21 | LM50: 12.86 | LN50: 26.64 | LO50: 26.63 | LP50: 12.43 | LQ50: ='KPIs SEMANA'!CAB190 -> 39.29 | LR50: 24.84 | LS50: L
B51: EQUIPOS DE TRANSP MINERAL ( VOLQUETE : 01,07,08) | C51: DF | D51: % | E51: 71.2% | F51: 85.0 | G51: 91.7 | H51: 81.0 | I51: 97.7 | J51: 92.7 | K51: 75.5 | L51: 88.8 | M51: 98.5 | N51: 87.7 | O51: 97.4 | P51: 60.7 | Q51: 52.2 | R51: 45.9 | S51: 92.6 | T51: 94.9 | U51: 96.3 | V51: 96.3 | W51: 85.0 | X51: 93.8 | Y51: 94.7 | Z51: 90.1 | AA51: 80.6 | AB51: 76.6 | AC51: 97.5 | AD51: 85.1 | AE51: 83.3 | AF51: 89.6 | AG51: 82.0 | AH51: 95.0 | AI51: 99.2 | AJ51: 97.0 | AK51: 81.1 | AL51: 99.6 | AM51: 72.7 | AN51: 99.2 | AO51: 98.5 | AP51: 91.1 | AQ51: 96.2 | AR51: 88.1 | AS51: 90.1 | AT51: 97.8 | AU51: 92.4 | AV51: 96.4 | AW51: 96.9 | AX51: 97.8 | AY51: 92.6 | AZ51: 75.5 | BA51: 50.8 | BB51: 77.7 | BC51: 95.7 | BD51: 85.8 | BE51: 93.8 | BF51: 98.5 | BG51: 99.8 | BH51: 93.4 | BI51: 88.4 | BJ51: 89.9 | BK51: 86.1 | BL51: 95.1 | BM51: 88.0 | BN51: 99.0 | BO51: 95.2 | BP51: 94.6 | BQ51: 87.6 | BR51: 63.9 | BS51: 91.8 | BT51: 95.7 | BU51: 94.6 | BV51: 47.5 | BW51: 47.5 | BX51: 63.5 | BY51: 97.6 | BZ51: 76.6 | CA51: 90.8 | CB51: 97.6 | CC51: 96.9 | CD51: 90.9 | CE51: 92.3 | CF51: 95.3 | CG51: 98.8 | CH51: 89.3 | CI51: 94.2 | CJ51: 94.8 | CK51: 86.4 | CL51: 97.5 | CM51: 97.6 | CN51: 89.2 | CO51: 98.8 | CP51: 91.4 | CQ51: 87.3 | CR51: 95.7 | CS51: 95.4 | CT51: 85.2 | CU51: 65.3 | CV51: 91.3 | CW51: 73.9 | CX51: 87.6 | CY51: 97.4 | CZ51: 95.6 | DA51: 98.6 | DB51: 97.3 | DC51: 94.0 | DD51: 94.3 | DE51: 98.6 | DF51: 93.6 | DG51: 99.2 | DH51: 66.8 | DI51: 63.2 | DJ51: 65.3 | DK51: 66.4 | DL51: 96.0 | DM51: 82.8 | DN51: 52.8 | DO51: 65.8 | DP51: 60.6 | DQ51: 62.4 | DR51: 66.7 | DS51: 66.7 | DT51: 50.6 | DU51: 66.7 | DV51: 66.7 | DW51: 78.5 | DX51: 91.6 | DY51: 91.0 | DZ51: 93.4 | EA51: 93.4 | EB51: 94.2 | EC51: 85.2 | ED51: 99.9 | EE51: 86.3 | EF51: 86.1 | EG51: 98.9 | EH51: 97.0 | EI51: 62.7 | EJ51: 93.6 | EK51: 97.0 | EL51: 93.8 | EM51: 98.1 | EN51: 91.1 | EO51: 74.7 | EP51: 56.8 | EQ51: 50.0 | ER51: 47.7 | ES51: 39.0 | ET51: 55.9 | EU51: 96.6 | EV51: 85.4 | EW51: 97.7 | EX51: 92.3 | EY51: 94.4 | EZ51: 97.9 | FA51: 85.1 | FB51: 92.6 | FC51: 72.9 | FD51: 97.3 | FE51: 90.9 | FF51: 88.7 | FG51: 75.10 | FH51: 87.15 | FI51: 88.69 | FJ51: 91.35 | FK51: 78.77 | FL51: 92.86 | FM51: 94.94 | FN51: 94.79 | FO51: 88.19 | FP51: 74.63 | FQ51: 94.20 | FR51: 89.88 | FS51: 85.10 | FT51: 95.83 | FU51: 97.42 | FV51: 81.46 | FW51: 82.34 | FX51: 92.26 | FY51: 86.71 | FZ51: 94.94 | GA51: 87.50 | GB51: 86.81 | GC51: 79.46 | GD51: 88.24 | GE51: 85.06 | GF51: 95.83 | GG51: 88.69 | GH51: 86.71 | GI51: 84.13 | GJ51: 63.39 | GK51: 39.11 | GL51: 74.55 | GM51: 86.73 | GN51: 90.92 | GO51: 92.96 | GP51: 87.65 | GQ51: 99.33 | GR51: 94.15 | GS51: 59.82 | GT51: 56.12 | GU51: 59.77 | GV51: 56.50 | GW51: 70.41 | GX51: 78.79 | GY51: 88.99 | GZ51: 84.99 | HA51: 88.99 | HB51: 86.90 | HC51: 97.42 | HD51: 85.19 | HE51: 75.03 | HF51: 87.95 | HG51: 90.75 | HH51: 96.13 | HI51: 85.57 | HJ51: 91.29 | HK51: 78.44 | HL51: 88.59 | HM51: 93.87 | HN51: 95.39 | HO51: 92.43 | HP51: 95.12 | HQ51: 87.50 | HR51: 75.32 | HS51: 85.42 | HT51: 94.94 | HU51: 91.02 | HV51: 89.76 | HW51: 94.35 | HX51: 98.07 | HY51: 73.83 | HZ51: 89.88 | IA51: 95.21 | JB51: 89.29 | JK51: 48.96 | JL51: 70.24 | JM51: 72.17 | JN51: 73.66 | JO51: 72.62 | JP51: 92.26 | JQ51: 97.10 | JR51: 90.25 | JS51: 69.17 | JT51: 71.43 | JU51: 73.36 | JV51: 47.62 | JW51: 60.34 | JX51: 69.49 | JY51: 55.51 | JZ51: 63.64 | KA51: 69.67 | KB51: 67.29 | KC51: 71.91 | KD51: 67.35 | KE51: 69.28 | KF51: 70.24 | KG51: 72.41 | KH51: ='KPIs SEMANA'!BTA209 -> 86.39 | KI51: ='KPIs SEMANA'!BTB209 -> 100.00 | KJ51: ='KPIs SEMANA'!BTC209 -> 100.00 | KK51: ='KPIs SEMANA'!BTD209 -> 100.00 | KL51: ='KPIs SEMANA'!BTE209 -> 100.00 | KM51: ='KPIs SEMANA'!BTF209 -> 91.67 | KN51: ='KPIs SEMANA'!BTG209 -> 87.50 | KO51: 95.83 | KP51: 96.43 | KQ51: 96.83 | KR51: 89.05 | KS51: 93.47 | KT51: 85.58 | KU51: 77.98 | KV51: 94.44 | KW51: 92.68 | KX51: 94.72 | KY51: 94.44 | KZ51: 96.71 | LA51: 87.02 | LB51: 95.63 | LC51: 93.30 | LD51: 83.92 | LE51: 78.53 | LF51: 74.58 | LG51: 96.55 | LH51: 91.48 | LI51: 86.82 | LJ51: 87.30 | LK51: 93.12 | LL51: 93.12 | LM51: 92.66 | LN51: 87.18 | LO51: 92.50 | LP51: 97.60 | LQ51: ='KPIs SEMANA'!CAB209 -> 91.35 | LR51: 90.61 | LS51: J | LT51: 186202.76 | LU51: 3 | LV51: =+LU51/$LU$55 -> 60.0% | LW51: =+LT51/$LT$55 -> 90.3% | LX51: =AVERAGE(LV51:LW51) -> 75.1%
C52: DM | D52: % | E52: 69.8% | F52: 85.0 | G52: 0.0 | H52: 0.0 | I52: 0.0 | J52: 0.0 | K52: 0.0 | L52: 0.0 | M52: 0.0 | N52: 0.0 | O52: 0.0 | P52: 0.0 | Q52: 0.0 | R52: 0.0 | S52: 0.0 | T52: 0.0 | U52: 0.0 | V52: 0.0 | W52: 0.0 | X52: 0.0 | Y52: 0.0 | Z52: 0.0 | AA52: 0.0 | AB52: 0.0 | AC52: 0.0 | AD52: 0.0 | AE52: 0.0 | AF52: 0.0 | AG52: 0.0 | AH52: 0.0 | AI52: 0.0 | AJ52: 0.0 | AK52: 0.0 | AL52: 0.0 | AM52: 0.0 | AN52: 0.0 | AO52: 0.0 | AP52: 0.0 | AQ52: 0.0 | AR52: 0.0 | AS52: 0.0 | AT52: 0.0 | AU52: 0.0 | AV52: 0.0 | AW52: 0.0 | AX52: 0.0 | AY52: 0.0 | AZ52: 0.0 | BA52: 0.0 | BB52: 0.0 | BC52: 0.0 | BD52: 0.0 | BE52: 0.0 | BF52: 0.0 | BG52: 0.0 | BH52: 0.0 | BI52: 0.0 | BJ52: 0.0 | BK52: 0.0 | BL52: 0.0 | BM52: 0.0 | BN52: 0.0 | BO52: 0.0 | BP52: 0.0 | BQ52: 0.0 | BR52: 0.0 | BS52: 0.0 | BT52: 0.0 | BU52: 0.0 | BV52: 0.0 | BW52: 0.0 | BX52: 0.0 | BY52: 0.0 | BZ52: 0.0 | CA52: 0.0 | CB52: 97.6 | CC52: 96.9 | CD52: 90.9 | CE52: 92.3 | CF52: 95.3 | CG52: 98.8 | CH52: 89.3 | CI52: 94.2 | CJ52: 94.8 | CK52: 86.4 | CL52: 97.5 | CM52: 97.6 | CN52: 89.2 | CO52: 98.8 | CP52: 91.4 | CQ52: 87.3 | CR52: 95.7 | CS52: 95.4 | CT52: 85.2 | CU52: 65.3 | CV52: 91.3 | CW52: 73.9 | CX52: 87.6 | CY52: 97.4 | CZ52: 95.6 | DA52: 98.6 | DB52: 97.3 | DC52: 94.0 | DD52: 94.3 | DE52: 98.6 | DF52: 93.6 | DG52: 99.2 | DH52: 66.8 | DI52: 63.2 | DJ52: 65.3 | DK52: 66.4 | DL52: 96.0 | DM52: 82.8 | DN52: 52.8 | DO52: 65.8 | DP52: 60.6 | DQ52: 62.4 | DR52: 66.7 | DS52: 66.7 | DT52: 50.6 | DU52: 66.7 | DV52: 66.7 | DW52: 78.5 | DX52: 91.6 | DY52: 91.0 | DZ52: 93.4 | EA52: 93.4 | EB52: 94.2 | EC52: 85.2 | ED52: 99.9 | EE52: 86.3 | EF52: 86.1 | EG52: 98.9 | EH52: 97.0 | EI52: 62.7 | EJ52: 93.6 | EK52: 97.0 | EL52: 93.8 | EM52: 98.1 | EN52: 91.1 | EO52: 74.7 | EP52: 56.8 | EQ52: 50.0 | ER52: 47.7 | ES52: 39.0 | ET52: 55.9 | EU52: 96.6 | FC52: 72.9 | FF52: 81.18016156 | FG52: 80.77 | FH52: 0.00 | FI52: DM | FJ52: 0.00 | FK52: 0.00 | FL52: 0.00 | FM52: 0.00 | FN52: 0.00 | FO52: 0.00 | FP52: 0.00 | FQ52: 0.00 | FR52: 0.00 | FS52: 0.00 | FT52: 0.00 | FU52: 0.00 | FV52: 0.00 | FW52: 0.00 | FX52: 0.00 | FY52: 0.00 | FZ52: 0.00 | GA52: 0.00 | GB52: 0.00 | GC52: 0.00 | GD52: 0.00 | GE52: 0.00 | GF52: 0.00 | GG52: 0.00 | GH52: 0.00 | GI52: 0.00 | GJ52: 0.00 | GK52: 0.00 | GL52: 0.00 | GM52: 0.00 | GN52: 0.00 | GO52: 0.00 | GP52: 0.00 | GQ52: 0.00 | GR52: 0.00 | GS52: 0.00 | GT52: 0.00 | GU52: 0.00 | GV52: 0.00 | GW52: 0.00 | GX52: 0.00 | GY52: 0.00 | GZ52: 0.00 | HA52: 0.00 | HB52: 0.00 | HC52: 0.00 | HD52: 0.00 | HE52: 0.00 | HF52: 0.00 | HG52: 0.00 | HH52: 0.00 | HI52: 0.00 | HJ52: 0.00 | HK52: 0.00 | HL52: 0.00 | HM52: 0.00 | HN52: 0.00 | HO52: 0.00 | HP52: 0.00 | HQ52: 0.00 | HR52: 0.00 | HS52: 0.00 | HT52: 0.00 | HU52: 0.00 | HV52: 0.00 | HW52: 0.00 | HX52: 0.00 | HY52: 0.00 | HZ52: 0.00 | IA52: 0.00 | JB52: 89.29 | JK52: 50.00 | JL52: 50.00 | JM52: 50.00 | JN52: 73.66 | JO52: 72.62 | JP52: 92.26 | JQ52: 97.10 | JR52: 90.25 | JS52: 69.17 | JT52: 71.43 | JU52: 73.36 | JV52: 47.62 | JW52: 60.34 | JX52: 69.49 | JY52: 55.51 | JZ52: 63.64 | KA52: 69.67 | KB52: 67.29 | KC52: 71.91 | KD52: 67.35 | KE52: 69.28 | KF52: 70.24 | KG52: 72.41 | KH52: ='KPIs SEMANA'!BTA210 -> 86.39 | KI52: ='KPIs SEMANA'!BTB210 -> 100.00 | KJ52: ='KPIs SEMANA'!BTC210 -> 100.00 | KK52: ='KPIs SEMANA'!BTD210 -> 100.00 | KL52: ='KPIs SEMANA'!BTE210 -> 100.00 | KM52: ='KPIs SEMANA'!BTF210 -> 91.67 | KN52: ='KPIs SEMANA'!BTG210 -> 87.50 | KO52: 95.83 | KP52: 96.43 | KQ52: 96.83 | KR52: 89.05 | KS52: 93.47 | KT52: 85.58 | KU52: 77.98 | KV52: 94.44 | KW52: 92.68 | KX52: 94.72 | LA52: 87.02 | LB52: 95.63 | LC52: 93.30 | LD52: 83.92 | LE52: 78.53 | LF52: 74.58 | LG52: 96.55 | LH52: 91.48 | LI52: 86.82 | LJ52: 87.30 | LK52: ='[10]KPIs SEMANA'!BYL210 -> 93.12 | LL52: 0.00 | LM52: 92.66 | LN52: 87.18 | LO52: 92.50 | LP52: 97.60 | LQ52: ='KPIs SEMANA'!CAB210 -> 91.35 | LR52: 86.93 | LS52: J
C53: UF | D53: % | E53: 37.2% | F53: 50.0 | G53: 3.5 | H53: 6.8 | I53: 6.1 | J53: 6.3 | K53: 7.5 | L53: 11.6 | M53: 8.9 | N53: 11.4 | O53: 10.3 | P53: 7.5 | Q53: 19.5 | R53: 24.2 | S53: 11.5 | T53: 9.4 | U53: 6.2 | V53: 12.5 | W53: 10.6 | X53: 11.9 | Y53: 10.3 | Z53: 6.1 | AA53: 4.8 | AB53: 8.7 | AC53: 6.6 | AD53: 18.5 | AE53: 13.5 | AF53: 3.7 | AG53: 18.8 | AH53: 8.7 | AI53: 8.4 | AJ53: 15.2 | AK53: 21.4 | AL53: 13.6 | AM53: 12.3 | AN53: 8.5 | AO53: 8.2 | AP53: 10.0 | AQ53: 14.4 | AR53: 12.9 | AS53: 15.8 | AT53: 11.1 | AU53: 12.3 | AV53: 11.5 | AW53: 14.0 | AX53: 12.1 | AY53: 11.2 | AZ53: 14.4 | BA53: 14.1 | BB53: 21.4 | BC53: 13.5 | BD53: 15.7 | BE53: 12.7 | BF53: 16.9 | BG53: 5.1 | BH53: 23.0 | BI53: 16.0 | BJ53: 22.4 | BK53: 11.9 | BL53: 16.0 | BM53: 15.9 | BN53: 9.0 | BO53: 15.6 | BP53: 16.2 | BQ53: 12.9 | BR53: 18.3 | BS53: 18.2 | BT53: 9.5 | BU53: 7.7 | BV53: 8.5 | BW53: 8.5 | BX53: 6.7 | BY53: 5.1 | BZ53: 8.3 | CA53: 5.4 | CB53: 5.1 | CC53: 4.4 | CD53: 5.7 | CE53: 7.7 | CF53: 3.5 | CG53: 3.6 | CH53: 2.9 | CI53: 8.9 | CJ53: 6.2 | CK53: 6.5 | CL53: 6.0 | CM53: 12.5 | CN53: 3.4 | CO53: 5.5 | CP53: 1.5 | CQ53: 0.6 | CR53: 2.5 | CS53: 5.3 | CT53: 8.4 | CU53: 2.3 | CV53: 3.1 | CW53: 3.8 | CX53: 3.0 | CY53: 6.6 | CZ53: 1.0 | DA53: 3.7 | DB53: 2.1 | DC53: 0.8 | DD53: 2.1 | DE53: 4.1 | DF53: 3.1 | DG53: 2.1 | DH53: 8.5 | DI53: 4.6 | DJ53: 3.0 | DK53: 18.2 | DL53: 3.4 | DM53: 19.0 | DN53: 5.7 | DO53: 5.4 | DP53: 5.0 | DQ53: 3.9 | DR53: 0.4 | DS53: 0.0 | DT53: 0.0 | DU53: 0.0 | DV53: 0.0 | DW53: 4.7 | DX53: 10.6 | DY53: 6.6 | DZ53: 5.9 | EA53: 5.9 | EB53: 5.6 | EC53: 6.5 | ED53: 3.3 | EE53: 4.1 | EF53: 25.1 | EG53: 5.7 | EH53: 4.5 | EI53: 2.9 | EJ53: 8.8 | EK53: 12.6 | EL53: 5.4 | EM53: 21.0 | EN53: 5.7 | EO53: 8.8 | EP53: 2.9 | EQ53: 0.7 | ER53: 17.0 | ES53: 13.3 | ET53: 14.9 | EU53: 13.4 | EV53: 7.8 | EW53: 9.9 | EX53: 11.1 | EY53: 4.1 | EZ53: 11.4 | FA53: 18.6 | FB53: 10.7 | FC53: 5.2 | FD53: 0.00 | FE53: 8.67 | FF53: 13.30 | FG53: 19.20 | FH53: 3.30 | FI53: 4.62 | FJ53: 20.07 | FK53: 4.67 | FL53: 14.01 | FM53: 16.72 | FN53: 7.40 | FO53: 9.37 | FP53: 10.48 | FQ53: 12.44 | FR53: 13.55 | FS53: 8.57 | FT53: 4.29 | FU53: 5.86 | FV53: 5.92 | FW53: 8.86 | FX53: 7.37 | FY53: 3.46 | FZ53: 0.00 | GA53: 2.35 | GB53: 5.84 | GC53: 6.72 | GD53: 19.91 | GE53: 7.94 | GF53: 7.93 | GG53: 8.68 | GH53: 6.09 | GI53: 5.50 | GJ53: 10.28 | GK53: 5.09 | GL53: 4.65 | GM53: 2.56 | GN53: 1.96 | GO53: 3.17 | GP53: 8.13 | GQ53: 4.15 | GR53: 4.39 | GS53: 2.39 | GT53: 2.73 | GU53: 0.87 | GV53: 1.67 | GW53: 7.03 | GX53: 5.63 | GY53: 6.35 | GZ53: 7.08 | HA53: 5.83 | HB53: 7.73 | HC53: 6.39 | HD53: 6.38 | HE53: 6.70 | HF53: 7.36 | HG53: 6.85 | HH53: 4.18 | HI53: 7.92 | HJ53: 7.21 | HK53: 9.56 | HL53: 8.40 | HM53: 7.98 | HN53: 3.98 | HO53: 6.27 | HP53: 5.76 | HQ53: 3.23 | HR53: 6.15 | HS53: 9.32 | HT53: 3.94 | HU53: 7.63 | HV53: 7.94 | HW53: 6.80 | HX53: 5.41 | HY53: 4.02 | HZ53: 6.72 | IA53: 6.14 | JB53: 40.68 | JK53: 29.82 | JL53: 34.96 | JM53: 35.15 | JN53: 48.43 | JO53: 28.48 | JP53: 45.74 | JQ53: 50.26 | JR53: 44.64 | JS53: 32.54 | JT53: 44.64 | JU53: 28.14 | JV53: 28.90 | JW53: 38.80 | JX53: 37.14 | JY53: 31.50 | JZ53: 35.54 | KA53: 37.78 | KB53: 35.97 | KC53: 37.31 | KD53: 39.95 | KE53: 37.29 | KF53: 30.60 | KG53: 40.40 | KH53: ='KPIs SEMANA'!BTA211 -> 57.92 | KI53: ='KPIs SEMANA'!BTB211 -> 41.67 | KJ53: ='KPIs SEMANA'!BTC211 -> 64.58 | KK53: ='KPIs SEMANA'!BTD211 -> 45.83 | KL53: ='KPIs SEMANA'!BTE211 -> 67.08 | KM53: ='KPIs SEMANA'!BTF211 -> 60.37 | KN53: ='KPIs SEMANA'!BTG211 -> 58.60 | KO53: 50.58 | KP53: 55.31 | KQ53: 61.50 | KR53: 49.86 | KS53: 51.02 | KT53: 56.41 | KU53: 63.14 | KV53: 48.42 | KW53: 45.12 | KX53: 57.50 | KY53: 53.12 | KZ53: 47.75 | LA53: 46.82 | LB53: 45.89 | LC53: 50.75 | LD53: 58.54 | LE53: 14.75 | LF53: 40.53 | LG53: 55.55 | LH53: 54.05 | LI53: 49.00 | LJ53: 43.56 | LK53: 48.27 | LL53: 48.97 | LM53: 35.06 | LN53: 30.51 | LO53: 37.20 | LP53: 59.97 | LQ53: ='KPIs SEMANA'!CAB211 -> 41.72 | LR53: 48.65 | LS53: L
C54: UO | D54: % | E54: 35.7% | F54: 85.0 | G54: 96.8 | H54: 81.2 | I54: 100.0 | J54: 94.9 | K54: 66.5 | L54: 99.6 | M54: 94.1 | N54: 86.2 | O54: 93.6 | P54: 66.8 | Q54: 81.5 | R54: 89.7 | S54: 96.8 | T54: 97.4 | U54: 77.9 | V54: 98.9 | W54: 85.3 | X54: 68.8 | Y54: 77.4 | Z54: 43.8 | AA54: 50.0 | AB54: 50.0 | AC54: 89.3 | AD54: 90.3 | AE54: 50.0 | AF54: 59.8 | AG54: 60.9 | AH54: 85.6 | AI54: 53.6 | AJ54: 78.6 | AK54: 97.7 | AL54: 95.5 | AM54: 80.9 | AN54: 96.6 | AO54: 97.9 | AP54: 92.6 | AQ54: 100.0 | AR54: 91.9 | AS54: 94.4 | AT54: 87.7 | AU54: 99.3 | AV54: 96.4 | AW54: 93.8 | AX54: 82.1 | AY54: 44.9 | AZ54: 94.2 | BA54: 95.2 | BB54: 97.8 | BC54: 97.1 | BD54: 48.4 | BE54: 64.3 | BF54: 94.6 | BG54: 83.5 | BH54: 77.6 | BI54: 99.0 | BJ54: 88.1 | BK54: 99.5 | BL54: 79.6 | BM54: 62.9 | BN54: 0.0 | BO54: 0.0 | BP54: 94.6 | BQ54: 31.8 | BR54: 50.0 | BS54: 51.6 | BT54: 40.1 | BU54: 43.2 | BV54: 47.3 | BW54: 47.3 | BX54: 49.7 | BY54: 49.4 | BZ54: 49.7 | CA54: 49.4 | CB54: 49.4 | CC54: 50.0 | CD54: 48.5 | CE54: 49.3 | CF54: 50.0 | CG54: 50.0 | CH54: 50.0 | CI54: 50.0 | CJ54: 50.0 | CK54: 50.0 | CL54: 50.0 | CM54: 50.0 | CN54: 50.0 | CO54: 50.0 | CP54: 50.0 | CQ54: 50.0 | CR54: 50.0 | IO54: 7.9 | IP54: 5.4 | IQ54: 5.80 | IR54: 9.40 | IS54: 10.00 | IT54: 6.19 | IU54: 6.19 | JM54: ='KPIs SEMANA'!CAB226 -> 0.00 | JO54: 34.38 | JP54: 56.07 | JQ54: 60.67 | JR54: 33.92 | JS54: 39.74 | JT54: 33.92 | JU54: 33.92 | JW54: 52.54 | JX54: ='KPIs SEMANA'!CAB226 -> 0.00 | JZ54: 46.12 | KA54: 46.12 | KD54: 49.08 | KE54: 45.52 | KF54: 37.22 | KG54: 48.82 | KH54: ='KPIs SEMANA'!BTA212 -> 74.01 | KI54: ='KPIs SEMANA'!BTB212 -> 50.00 | KJ54: ='KPIs SEMANA'!BTC212 -> 77.50 | KK54: ='KPIs SEMANA'!BTD212 -> 55.00 | KL54: ='KPIs SEMANA'!BTE212 -> 80.50 | KM54: ='KPIs SEMANA'!BTF212 -> 73.87 | KN54: ='KPIs SEMANA'!BTG212 -> 73.86 | KO54: 61.28 | KP54: 66.93 | KQ54: 74.30 | KR54: 61.86 | KS54: 62.09 | KT54: 71.28 | KV54: 58.70 | KW54: 55.16 | LA54: 59.04 | LB54: 55.58 | LD54: 74.87 | LE54: 17.98 | LG54: 67.17 | LH54: 66.03 | LI54: 60.62 | LJ54: 54.00 | LK54: ='KPIs SEMANA'!CAB212 -> 51.06 | LM54: 42.79 | LN54: 37.01 | LQ54: ='KPIs SEMANA'!CAB212 -> 51.06 | LR54: 58.22 | LS54: L
LT55: =SUM(LT44:LT54) -> 206266.19 | LU55: =SUM(LU44:LU54) -> 5 | LW55: 5 | LX55: 5 | MB55: SC-SERV | MC55: EQUI-VIAS | MD55: EQUI-TRA
E56: EQUIPOS DE PRODUCCION SEMANA 30 | MA56: OBJ DF | MB56: 85.00 | MC56: 85.00 | MD56: 85.00
E57: KPI | F57: OBJ. | G57: SEM 01 | H57: SEM 02 | I57: SEM 03 | J57: SEM 04 | K57: SEM 05 | L57: SEM 06 | M57: SEM 07 | N57: SEM 08 | O57: SEM 09 | P57: SEM 10 | Q57: SEM 11 | R57: SEM 12 | S57: SEM 13 | T57: SEM 14 | U57: SEM 15 | V57: SEM 16 | W57: SEM 17 | X57: SEM 18 | Y57: SEM 19 | Z57: SEM 20 | AA57: SEM 21 | AB57: SEM 22 | AC57: SEM 23 | AD57: SEM 24 | AE57: SEM 25 | AF57: SEM 26 | AG57: SEM 27 | AH57: SEM 28 | AI57: SEM 29 | AJ57: SEM 30 | AK57: SEM 31 | AL57: SEM 32 | AM57: SEM 33 | AN57: SEM 34 | AO57: SEM 35 | AP57: SEM 36 | AQ57: SEM 37 | AR57: SEM 38 | AS57: SEM 39 | AT57: SEM 40 | AU57: SEM 41 | AV57: SEM 42 | AW57: SEM 43 | AX57: SEM 44 | AY57: SEM 45 | AZ57: SEM 46 | BA57: SEM 47 | BB57: SEM 48 | BC57: SEM 49 | BD57: SEM 50 | BE57: SEM 51 | BF57: SEM 52 | BG57: SEM 01 | BH57: SEM 02 | BI57: SEM 03 | BJ57: SEM 04 | BK57: SEM 05 | BL57: SEM 06 | BM57: SEM 07 | BN57: SEM 08 | BO57: SEM 09 | BP57: SEM 10 | BQ57: SEM 11 | BR57: SEM 12 | BS57: SEM 13 | BT57: SEM 14 | BU57: SEM 15 | BV57: SEM 16 | BW57: SEM 17 | BX57: SEM 18 | BY57: SEM 19 | BZ57: SEM 20 | CA57: SEM 21 | CB57: SEM 22 | CC57: SEM 23 | CD57: SEM 24 | CE57: SEM 25 | CF57: SEM 26 | CG57: SEM 27 | CH57: SEM 28 | CI57: SEM 29 | CJ57: SEM 30 | CK57: SEM 31 | CL57: SEM 32 | CM57: SEM 33 | CN57: SEM 34 | CO57: SEM 35 | CP57: SEM 36 | CQ57: SEM 37 | CR57: SEM 38 | CS57: SEM 39 | CT57: SEM 40 | CU57: SEM 41 | CV57: SEM 42 | CW57: SEM 43 | CX57: SEM 44 | CY57: SEM 45 | CZ57: SEM 46 | DA57: SEM 47 | DB57: SEM 48 | DC57: SEM 49 | DD57: SEM 50 | DE57: SEM 51 | DF57: SEM 52 | DG57: SEM 01 | DH57: SEM 02 | DI57: SEM 03 | DJ57: SEM 04 | DK57: SEM 05 | DL57: SEM 06 | DM57: SEM 07 | DN57: SEM 08 | DO57: SEM 09 | DP57: SEM 10 | DQ57: SEM 11 | DR57: SEM 12 | DS57: SEM 13 | DT57: SEM 14 | DU57: SEM 15 | DV57: SEM 16 | DW57: SEM 30 | DX57: SEM 31 | DY57: SEM 32 | DZ57: SEM 33 | EA57: SEM 36 | EB57: SEM 37 | EC57: SEM 38 | ED57: SEM 39 | EE57: SEM 40 | EF57: SEM 41 | EG57: SEM 42 | EH57: SEM 43 | EI57: SEM 44 | EJ57: SEM 45 | EK57: SEM 46 | EL57: SEM 47 | EM57: SEM 48 | EN57: SEM 49 | EO57: SEM 50 | EP57: SEM 51 | EQ57: SEM 52 | ER57: SEM 53 | ES57: SEM 01 | ET57: SEM 02 | EU57: SEM 03 | EV57: SEM 04 | EW57: SEM 05 | EX57: SEM 06 | EY57: SEM 07 | EZ57: SEM 08 | FA57: SEM 09 | FB57: SEM 10 | FC57: SEM 11 | FD57: SEM 17 | FE57: SEM18 | FF57: SEM 19 | FG57: SEM20 | FH57: SEM21 | FI57: SEM22 | FJ57: SEM23 | FK57: SEM24 | FL57: SEM25 | FM57: SEM26 | FN57: SEM27 | FO57: SEM28 | FP57: SEM 29 | FQ57: SEM 30 | FR57: SEM 31 | FS57: SEM 32 | FT57: SEM 33 | FU57: SEM 34 | FV57: SEM 35 | FW57: SEM 36 | FX57: SEM 37 | FY57: SEM 38 | FZ57: SEM 39 | GA57: SEM 40 | GB57: SEM 41 | GC57: SEM 42 | GD57: SEM 43 | GE57: SEM 44 | GF57: SEM 45 | GG57: SEM 46 | GH57: SEM 47 | GI57: SEM 48 | GJ57: SEM 49 | GK57: SEM 50 | GL57: SEM 51 | GM57: SEM 52 | GN57: SEM 01 | GO57: SEM 02 | GP57: SEM 03 | GQ57: SEM 04 | GR57: SEM 05 | GS57: SEM 06 | GT57: SEM 07 | GU57: SEM 08 | GV57: SEM 09 | GW57: SEM 10 | GX57: SEM 11 | GY57: SEM 12 | GZ57: SEM 13 | HA57: SEM 14 | HB57: SEM 15 | HC57: SEM 16 | HD57: SEM 17 | HE57: SEM 18 | HF57: SEM 19 | HG57: SEM 20 | HH57: SEM 21 | HI57: SEM 22 | HJ57: SEM 23 | HK57: SEM 24 | HL57: SEM 25 | HM57: SEM 26 | HN57: SEM 27 | HO57: SEM 28 | HP57: SEM 29 | HQ57: SEM 30 | HR57: SEM 31 | HS57: SEM 32 | HT57: SEM 33 | HU57: SEM 34 | HV57: SEM 35 | HW57: SEM 36 | HX57: SEM 37 | HY57: SEM 38 | HZ57: SEM 39 | IA57: SEM 40 | IB57: SEM 41 | IC57: SEM 42 | ID57: SEM 43 | IE57: SEM 44 | IF57: SEM 45 | IG57: SEM 46 | IH57: SEM 47 | II57: SEM 48 | IJ57: SEM 49 | IK57: SEM 50 | IL57: SEM 51 | IM57: SEM 52 | IN57: SEM 01 | IO57: SEM 02 | IP57: SEM 03 | IQ57: SEM 04 | IR57: SEM 05 | IS57: SEM 06 | IT57: SEM 07 | IU57: SEM 08 | IV57: SEM 09 | IW57: SEM 10 | IX57: SEM 11 | IY57: SEM 12 | IZ57: SEM 13 | JA57: SEM 14 | JB57: SEM 15 | JC57: SEM 16 | JD57: SEM 17 | JE57: SEM 18 | JF57: SEM 19 | JG57: SEM 20 | JH57: SEM 21 | JI57: SEM 22 | JJ57: SEM 23 | JK57: SEM 24 | JL57: SEM 25 | JM57: SEM 26 | JN57: SEM 27 | JO57: SEM 28 | JP57: SEM 29 | JQ57: SEM 30 | JR57: SEM 31 | JS57: SEM 32 | JT57: SEM 33 | JU57: SEM 34 | JV57: SEM 35 | JW57: SEM 36 | JX57: SEM 37 | JY57: SEM 38 | JZ57: SEM 39 | KA57: SEM 40 | KB57: SEM 41 | KC57: SEM 42 | KD57: SEM 43 | KE57: SEM 44 | KF57: SEM 45 | KG57: SEM 46 | KH57: SEM 47 | KI57: SEM 48 | KJ57: SEM 49 | KK57: SEM 50 | KL57: SEM 51 | KM57: SEM 52 | KN57: SEM 01 | KO57: SEM 02 | KP57: SEM 03 | KQ57: SEM 04 | KR57: SEM 05 | KS57: SEM 06 | KT57: SEM 07 | KU57: SEM 08 | KV57: SEM 09 | KW57: SEM 10 | KX57: SEM 11 | KY57: SEM 12 | KZ57: SEM 13 | LA57: SEM 14 | LB57: SEM 15 | LC57: SEM 16 | LD57: SEM 17 | LE57: SEM 18 | LF57: SEM 19 | LG57: SEM 20 | LH57: SEM 21 | LI57: SEM 22 | LJ57: SEM 23 | LK57: SEM 24 | LL57: SEM 25 | LM57: SEM 26 | LN57: SEM 27 | LO57: SEM 28 | LP57: SEM 29 | LQ57: SEM 30 | LR57: PROM. 2024 | MA57: OBJ UT | MB57: 50% | MC57: 18% | MD57: 50%
E58: DF | F58: 85.0 | G58: 80.5 | H58: 77.5 | I58: 77.4 | J58: 78.3 | K58: 68.0 | L58: 74.8 | M58: 77.7 | N58: 79.8 | O58: 81.8 | P58: 82.7 | Q58: 74.4 | R58: 70.7 | S58: 73.2 | T58: 79.7 | U58: 82.0 | V58: 78.4 | W58: 74.2 | X58: 78.0 | Y58: 78.1 | Z58: 77.2 | AA58: 78.0 | AB58: 80.3 | AC58: 80.0 | AD58: 79.3 | AE58: 75.8 | AF58: 69.6 | AG58: 73.7 | AH58: 66.4 | AI58: 73.0 | AJ58: 77.3 | AK58: 86.5 | AL58: 91.8 | AM58: 85.8 | AN58: 94.1 | AO58: 89.6 | AP58: 87.5 | AQ58: 84.8 | AR58: 80.2 | AS58: 81.5 | AT58: 83.4 | AU58: 74.6 | AV58: 81.8 | AW58: 85.8 | AX58: 84.8 | AY58: 77.3 | AZ58: 75.3 | BA58: 70.9 | BB58: 82.3 | BC58: 82.2 | BD58: 81.7 | BE58: 83.9 | BF58: 86.5 | BG58: 83.5 | BH58: 82.3 | BI58: 82.8 | BJ58: 83.9 | BK58: 81.6 | BL58: 76.6 | BM58: 82.1 | BN58: 85.7 | BO58: 84.4 | BP58: 94.6 | BQ58: 85.2 | BR58: 83.8 | BS58: 83.4 | BT58: 75.6 | BU58: 82.8 | BV58: 81.9 | BW58: 78.5 | BX58: 86.5 | BY58: 88.4 | BZ58: 83.0 | CA58: 89.8 | CB58: 87.4 | CC58: 87.8 | CD58: 82.3 | CE58: 79.4 | CF58: 85.4 | CG58: 87.8 | CH58: 84.2 | CI58: 80.7 | CJ58: 75.6 | CK58: 77.7 | CL58: 76.8 | CM58: 75.7 | CN58: 81.6 | CO58: 83.5 | CP58: 71.2 | CQ58: 78.9 | CR58: 77.8 | CS58: 86.3 | CT58: 82.3 | CU58: 73.6 | CV58: 79.7 | CW58: 83.0 | CX58: 81.2 | CY58: 84.1 | CZ58: 73.5 | DA58: 71.7 | DB58: 78.4 | DC58: 77.4 | DD58: 78.8 | DE58: 76.3 | DF58: 69.5 | DG58: 75.3 | DH58: 79.9 | DI58: 76.3 | DJ58: 73.0 | DK58: 73.8 | DL58: 81.7 | DM58: 75.9 | DN58: 77.3 | DO58: 75.2 | DP58: 75.6 | DQ58: 80.3 | DR58: 76.6 | DS58: 68.1 | DT58: 78.1 | DU58: 87.6 | DV58: 83.5 | DW58: 89.3 | DX58: 89.9 | DY58: 86.0 | DZ58: 85.5 | EA58: 85.5 | EB58: 85.1 | EC58: 77.5 | ED58: 75.6 | EE58: 74.8 | EF58: 79.9 | EG58: 67.7 | EH58: 88.8 | EI58: 80.6 | EJ58: 83.8 | EK58: 82.8 | EL58: 80.9 | EM58: 84.2 | EN58: 85.9 | EO58: 88.7 | EQ58: 86.8 | ER58: 76.7 | ES58: 75.2 | ET58: 80.1 | EU58: 81.1 | EV58: 78.0 | EW58: 77.2 | EX58: 77.3 | EY58: 80.5 | EZ58: 82.9 | FA58: 80.6 | FB58: 80.9 | FC58: 78.9 | FD58: 93.0 | FE58: 83.5 | FF58: 85.6 | FG58: 78.4 | FH58: 80.5 | FI58: 83.9 | FJ58: 82.9 | FK58: 81.9 | FL58: 82.9 | FM58: 85.4 | FN58: 86.5 | FO58: 83.3 | FP58: 87.0 | FQ58: 88.5 | FR58: 90.2 | FS58: 86.0 | FT58: 88.6 | FU58: 85.9 | FV58: 88.9 | FW58: 87.1 | FX58: 89.6 | FY58: 90.0 | FZ58: 91.2 | GA58: 91.5 | GB58: 87.2 | GC58: 88.4 | GD58: 90.8 | GE58: 89.3 | GF58: 87.7 | GG58: 81.7 | GH58: 88.6 | GI58: 85.0 | GJ58: 82.7 | GK58: 81.5 | GL58: 86.7 | GM58: 82.6 | GN58: 82.8 | GO58: 77.6 | GP58: 74.7 | GQ58: 84.5 | GR58: 81.8 | GS58: 78.8 | GT58: 84.0 | GU58: 81.9 | GV58: 78.8 | GW58: 76.4 | GX58: 77.6 | GY58: 80.6 | GZ58: 77.5 | HA58: 88.1 | HB58: 79.3 | HC58: 83.5 | HD58: 84.2 | HE58: 82.3 | HF58: 83.7 | HG58: 83.3 | HH58: 82.0 | HI58: 82.2 | HJ58: 80.7 | HK58: 82.4 | HL58: 78.3 | HM58: 82.0 | HN58: 80.1 | HO58: 77.8 | HP58: 79.1 | HQ58: 82.1 | HR58: 84.8 | HS58: 83.3 | HT58: 80.3 | HU58: 83.7 | HV58: 78.1 | HW58: 80.8 | HX58: 77.0 | HY58: 80.1 | IA58: 82.3 | IB58: 82.2 | IC58: 75.2 | ID58: 79.2 | IE58: 86.9 | IF58: 84.9 | IG58: 89.9 | IH58: 92.0 | II58: 92.4 | IJ58: 90.6 | IK58: 89.3 | IL58: 85.4 | IM58: 87.3 | IN58: 86.8 | IO58: 82.6 | IP58: 85.4 | IQ58: 87.8 | IR58: 86.7 | IS58: 80.9 | IT58: 80.4 | IU58: 79.4 | IV58: 77.6 | IW58: 75.7 | IX58: 79.9 | IY58: 82.6 | IZ58: 82.4 | JA58: 76.1 | JB58: 81.9 | JC58: 89.7 | JD58: 91.6 | JE58: 95.4 | JF58: 93.5 | JG58: 95.9 | JH58: 88.1 | JI58: 90.6 | JJ58: 91.9 | JK58: 97.4 | JL58: 96.6 | JM58: 97.0 | JN58: 83.8 | JO58: 79.1 | JP58: 87.7 | JQ58: 93.2 | JR58: 89.9 | JS58: 85.1 | JT58: 95.3 | JU58: 104.2 | JV58: 96.9 | JW58: 101.1 | JX58: 103.6 | JY58: 87.3 | JZ58: 89.0 | KA58: 84.1 | KB58: 83.7 | KC58: 98.2 | KD58: 98.3 | KE58: 96.5 | KF58: 94.0 | KG58: 95.4 | KH58: =+KH13*$LX$13+KH17*$LX$17+KH21*$LX$21+KH25*$LX$25+KH29*$LX$29+KH33*$LX$33+KH37*$LX$37 -> 87.4 | KI58: 80.4 | KJ58: 76.1 | KK58: 76.6 | KL58: 80.0 | KM58: 80.6 | KN58: 81.8 | KO58: 80.8 | KP58: 82.5 | KQ58: 75.2 | KR58: 76.2 | KS58: 80.7 | KT58: 78.0 | KU58: 78.5 | KV58: =+KV13*$LX$13+KV17*$LX$17+KV21*$LX$21+KV25*$LX$25+KV29*$LX$29+KV33*$LX$33+KV37*$LX$37 -> 85.0 | KW58: =+KW13*$LX$13+KW17*$LX$17+KW21*$LX$21+KW25*$LX$25+KW29*$LX$29+KW33*$LX$33+KW37*$LX$37 -> 82.4 | KX58: 80.1 | KY58: 77.0 | KZ58: 81.8 | LA58: 82.0 | LB58: 86.0 | LC58: 85.0 | LD58: 83.7 | LE58: =+LE13*$LX$13+LE17*$LX$17+LE21*$LX$21+LE25*$LX$25+LE29*$LX$29+LE33*$LX$33+LE37*$LX$37 -> 87.8 | LF58: 89.2 | LG58: 82.0 | LH58: =+LH13*$LX$13+LH17*$LX$17+LH21*$LX$21+LH25*$LX$25+LH29*$LX$29+LH33*$LX$33+LH37*$LX$37 -> 84.8 | LI58: 87.4 | LJ58: 83.9 | LK58: 78.9 | LL58: 78.9 | LM58: =+LM13*$LX$13+LM17*$LX$17+LM21*$LX$21+LM25*$LX$25+LM29*$LX$29+LM33*$LX$33+LM37*$LX$37 -> 86.5 | LN58: 87.6 | LO58: 89.4 | LP58: 84.4 | LQ58: =+LQ13*$LX$13+LQ17*$LX$17+LQ21*$LX$21+LQ25*$LX$25+LQ29*$LX$29+LQ33*$LX$33+LQ37*$LX$37 -> 82.0 | LR58: =AVERAGE(KN58:LQ58) -> 82.7 | MA58: DF | MB58: =LQ44/100 -> 100.0% | MC58: =LQ47/100 -> 100.0% | MD58: =LQ51/100 -> 91.3%
E59: UF | F59: 28.3 | G59: 13.7 | H59: 21.1 | I59: 21.3 | J59: 22.4 | K59: 22.4 | L59: 30.5 | M59: 25.3 | N59: 25.7 | O59: 24.5 | P59: 22.0 | Q59: 27.5 | R59: 27.1 | S59: 28.8 | T59: 23.3 | U59: 19.2 | V59: 24.7 | W59: 23.5 | X59: 24.3 | Y59: 27.8 | Z59: 19.0 | AA59: 10.7 | AB59: 24.0 | AC59: 19.0 | AD59: 21.8 | AE59: 16.5 | AF59: 18.6 | AG59: 25.2 | AH59: 25.7 | AI59: 26.9 | AJ59: 24.7 | AK59: 22.1 | AL59: 24.6 | AM59: 26.7 | AN59: 23.2 | AO59: 25.7 | AP59: 26.2 | AQ59: 28.7 | AR59: 26.7 | AS59: 32.0 | AT59: 33.7 | AU59: 25.3 | AV59: 26.7 | AW59: 23.4 | AX59: 25.4 | AY59: 23.0 | AZ59: 19.7 | BA59: 24.4 | BB59: 29.0 | BC59: 23.1 | BD59: 24.8 | BE59: 23.8 | BF59: 24.3 | BG59: 17.2 | BH59: 22.5 | BI59: 22.0 | BJ59: 21.8 | BK59: 20.0 | BL59: 21.9 | BM59: 26.2 | BN59: 24.6 | BO59: 23.5 | BP59: 27.0 | BQ59: 26.2 | BR59: 24.7 | BS59: 27.8 | BT59: 23.1 | BU59: 16.6 | BV59: 23.6 | BW59: 24.2 | BX59: 14.0 | BY59: 17.1 | BZ59: 17.2 | CA59: 18.3 | CB59: 18.0 | CC59: 18.1 | CD59: 20.2 | CE59: 17.4 | CF59: 18.6 | CG59: 14.1 | CH59: 15.1 | CI59: 19.7 | CJ59: 17.7 | CK59: 18.3 | CL59: 18.1 | CM59: 18.4 | CN59: 16.0 | CO59: 23.7 | CP59: 16.5 | CQ59: 9.1 | CR59: 17.0 | CS59: 20.4 | CT59: 16.4 | CU59: 15.4 | CV59: 20.5 | CW59: 14.8 | CX59: 16.6 | CY59: 20.8 | CZ59: 14.9 | DA59: 16.7 | DB59: 14.0 | DC59: 17.4 | DD59: 19.0 | DE59: 13.9 | DF59: 18.2 | DG59: 12.6 | DH59: 17.5 | DI59: 17.1 | DJ59: 15.3 | DK59: 21.4 | DL59: 14.8 | DM59: 18.0 | DN59: 20.3 | DO59: 15.7 | DP59: 15.8 | DQ59: 18.0 | DR59: 3.1 | DS59: 0.0 | DT59: 0.0 | DU59: 0.0 | DV59: 0.0 | DW59: 16.6 | DX59: 22.5 | DY59: 29.0 | DZ59: 19.1 | EA59: 19.1 | EB59: 22.8 | EC59: 22.5 | ED59: 18.9 | EE59: 14.9 | EF59: 31.0 | EG59: 18.1 | EH59: 9.8 | EI59: 8.8 | EJ59: 21.9 | EK59: 27.9 | EL59: 20.6 | EM59: 17.7 | EN59: 20.0 | EO59: 18.1 | EP59: 11.6 | EQ59: 4.9 | ER59: 29.2 | ES59: 23.9 | ET59: 30.6 | EU59: 29.4 | EV59: 18.1 | EW59: 20.7 | EX59: 23.1 | EY59: 19.0 | EZ59: 26.4 | FA59: 33.9 | FB59: 18.5 | FC59: 16.7 | FD59: 0.3 | FE59: 19.9 | FF59: 21.1 | FG59: 22.0 | FH59: 12.6 | FI59: 15.5 | FJ59: 24.3 | FK59: 9.7 | FL59: 21.0 | FM59: 21.9 | FN59: 20.0 | FO59: 23.4 | FP59: 15.5 | FQ59: 21.9 | FR59: 20.6 | FS59: 23.1 | FT59: 16.4 | FU59: 17.9 | FV59: 18.1 | FW59: 19.8 | FX59: 21.1 | FY59: 16.7 | FZ59: 7.0 | GA59: 10.2 | GB59: 15.1 | GC59: 15.6 | GD59: 20.4 | GE59: 16.0 | GF59: 17.4 | GG59: 19.9 | GH59: 17.1 | GI59: 17.3 | GJ59: 19.3 | GK59: 14.6 | GL59: 17.5 | GM59: 15.5 | GN59: 10.6 | GO59: 13.0 | GP59: 14.0 | GQ59: 11.1 | GR59: 10.1 | GS59: 13.0 | GT59: 15.8 | GU59: 13.8 | GV59: 13.8 | GW59: 13.4 | GX59: 13.4 | GY59: 16.4 | GZ59: 15.3 | HA59: 12.7 | HB59: 19.7 | HC59: 18.8 | HD59: 16.4 | HE59: 15.3 | HF59: 20.3 | HG59: 14.7 | HH59: 15.3 | HI59: 17.9 | HJ59: 16.4 | HK59: 17.4 | HL59: 18.1 | HM59: 18.0 | HN59: 12.7 | HO59: 15.2 | HP59: 16.7 | HQ59: 15.2 | HR59: 14.2 | HS59: 14.5 | HT59: 12.3 | HU59: 18.2 | HV59: 18.8 | HW59: 13.2 | HX59: 19.4 | HY59: 13.3 | HZ59: 14.0 | IA59: 16.6 | IB59: 15.9 | IC59: 15.7 | ID59: 16.7 | IE59: 16.3 | IF59: 15.7 | IG59: 20.0 | IH59: 18.9 | II59: 17.3 | IJ59: 11.5 | IK59: 16.2 | IL59: 14.2 | IM59: 14.9 | IN59: 13.4 | IO59: 14.7 | IP59: 16.6 | IQ59: 16.8 | IR59: 19.2 | IS59: 16.6 | IT59: 17.4 | IU59: 18.3 | IV59: 18.6 | IW59: 19.7 | IX59: 17.2 | IY59: 20.7 | IZ59: 19.6 | JA59: 17.9 | JB59: 18.3 | JC59: 19.0 | JD59: 18.3 | JE59: 15.7 | JF59: 20.0 | JG59: 22.4 | JH59: 19.8 | JI59: 21.4 | JJ59: 20.6 | JK59: 22.4 | JL59: 26.0 | JM59: 28.3 | JN59: 21.3 | JO59: 21.1 | JP59: 24.3 | JQ59: 20.9 | JR59: 23.6 | JS59: 21.6 | JT59: 24.5 | JU59: 24.4 | JV59: 24.9 | JW59: 21.3 | JX59: 22.7 | JY59: 20.3 | JZ59: 20.0 | KA59: 18.9 | KB59: 18.4 | KC59: 23.3 | KD59: 25.3 | KE59: 22.6 | KF59: 21.4 | KG59: 23.1 | KH59: =+KH15*$LX$13+KH19*$LX$17+KH23*$LX$21+KH27*$LX$25+KH31*$LX$29+KH35*$LX$33+KH39*$LX$37 -> 19.7 | KI59: 20.0 | KJ59: 19.5 | KK59: 17.2 | KL59: 17.7 | KM59: 17.6 | KN59: 12.5 | KO59: 17.1 | KP59: 16.1 | KQ59: 16.5 | KR59: 18.5 | KS59: 18.3 | KT59: 19.7 | KU59: 16.7 | KV59: =+KV15*$LX$13+KV19*$LX$17+KV23*$LX$21+KV27*$LX$25+KV31*$LX$29+KV35*$LX$33+KV39*$LX$37 -> 19.7 | KW59: =+KW15*$LX$13+KW19*$LX$17+KW23*$LX$21+KW27*$LX$25+KW31*$LX$29+KW35*$LX$33+KW39*$LX$37 -> 20.0 | KX59: 19.3 | KY59: 18.7 | KZ59: 18.9 | LA59: 15.0 | LB59: 16.0 | LC59: 15.3 | LD59: 19.8 | LE59: =+LE15*$LX$13+LE19*$LX$17+LE23*$LX$21+LE27*$LX$25+LE31*$LX$29+LE35*$LX$33+LE39*$LX$37 -> 13.9 | LF59: 20.6 | LG59: 19.2 | LH59: =+LH15*$LX$13+LH19*$LX$17+LH23*$LX$21+LH27*$LX$25+LH31*$LX$29+LH35*$LX$33+LH39*$LX$37 -> 17.2 | LI59: 23.6 | LJ59: 17.0 | LK59: 17.8 | LL59: 17.8 | LM59: =+LM15*$LX$13+LM19*$LX$17+LM23*$LX$21+LM27*$LX$25+LM31*$LX$29+LM35*$LX$33+LM39*$LX$37 -> 18.6 | LN59: 21.4 | LO59: 15.1 | LP59: 22.3 | LQ59: =+LQ15*$LX$13+LQ19*$LX$17+LQ23*$LX$21+LQ27*$LX$25+LQ31*$LX$29+LQ35*$LX$33+LQ39*$LX$37 -> 21.3 | LR59: =AVERAGE(KN59:LQ59) -> 18.1 | MA59: UF | MB59: =+LQ45/100 -> 0.0% | MC59: =LQ49/100 -> 32.7% | MD59: =LQ53/100 -> 41.7%
E60: UO | G60: 7.4 | H60: 6.2 | I60: 7.7 | J60: 7.3 | K60: 5.1 | L60: 7.7 | M60: 7.2 | N60: 6.6 | O60: 7.2 | P60: 5.1 | Q60: 6.3 | R60: 6.9 | S60: 7.4 | T60: 7.5 | U60: 6.0 | V60: 7.6 | W60: 6.6 | X60: 5.3 | Y60: 6.0 | Z60: 3.4 | AA60: 3.8 | AB60: 3.8 | AC60: 6.9 | AD60: 6.9 | AE60: 3.8 | AF60: 4.6 | AG60: 4.7 | AH60: 6.6 | AI60: 4.1 | AJ60: 6.0 | AK60: 7.5 | AL60: 7.3 | AM60: 6.2 | AN60: 7.4 | AO60: 7.5 | AP60: 7.1 | AQ60: 7.7 | AR60: 7.1 | AS60: 7.3 | AT60: 6.7 | AU60: 7.6 | AV60: 7.4 | AW60: 7.2 | AX60: 6.3 | AY60: 3.5 | AZ60: 7.2 | BA60: 7.3 | BB60: 7.5 | BC60: 7.5 | BD60: 3.7 | BE60: 4.9 | BF60: 7.3 | BG60: 6.4 | BH60: 6.0 | BI60: 7.6 | BJ60: 6.8 | BK60: 7.7 | BL60: 6.1 | BM60: 4.8 | BN60: 0.0 | BO60: 0.0 | BP60: 7.3 | BQ60: 2.4 | BR60: 3.8 | BS60: 4.0 | BT60: 3.1 | BU60: 3.3 | BV60: 3.6 | BW60: 3.6 | BX60: 3.8 | BY60: 3.8 | BZ60: 3.8 | CA60: 3.8 | CB60: 3.8 | CC60: 3.8 | CD60: 3.7 | CE60: 3.8 | CF60: 3.8 | CG60: 3.8 | CH60: 3.8 | CI60: 3.8 | CJ60: 3.8 | CK60: 3.8 | CL60: 3.8 | CM60: 3.8 | CN60: 3.8 | CO60: 3.8 | CP60: 3.8 | CQ60: 3.8 | CR60: 3.8 | CS60: 0.0 | CT60: 0.0 | CU60: 0.0 | CV60: 0.0 | CW60: 0.0 | CX60: 0.0 | CY60: 0.0 | CZ60: 0.0 | DA60: 0.0 | DB60: 0.0 | DC60: 0.0 | DD60: 0.0 | DE60: 0.0 | DF60: 0.0 | DG60: 0.0 | DH60: 0.0 | DI60: 0.0 | DJ60: 0.0 | DK60: 0.0 | DL60: 0.0 | DM60: 0.0 | DN60: 0.0 | DO60: 0.0 | DP60: 0.0 | DQ60: 0.0 | DR60: 0.0 | DS60: 0.0 | DT60: 0.0 | DU60: 0.0 | DV60: 0.0 | DW60: 0.0 | DX60: 0.0 | DY60: 0.0 | DZ60: 0.0 | EA60: 0.0 | EB60: 0.0 | EC60: 0.0 | ED60: 0.0 | EE60: 0.0 | EF60: 0.0 | EG60: 0.0 | EH60: 0.0 | EI60: 0.0 | EJ60: 0.0 | EK60: 0.0 | EL60: 0.0 | EM60: 0.0 | EN60: 0.0 | EO60: 0.0 | EP60: 0.0 | EQ60: 0.0 | ER60: 0.0 | ES60: 0.0 | ET60: 0.0 | EU60: 0.0 | EV60: 0.0 | EW60: 0.0 | EX60: 0.0 | EY60: 0.0 | EZ60: 0.0 | FA60: 0.0 | FB60: 0.0 | FC60: 0.0 | FD60: 0.0 | FE60: 0.0 | FF60: 0.0 | FG60: 0.0 | FH60: 0.0 | FI60: 0.0 | FJ60: 0.0 | FK60: 0.0 | FL60: 0.0 | FM60: 0.0 | FN60: 0.0 | FO60: 0.0 | FP60: 0.0 | FQ60: 0.0 | FR60: 0.0 | FS60: 0.0 | FT60: 0.0 | FU60: 0.0 | FV60: 0.0 | FW60: 0.0 | FX60: 0.0 | FY60: 0.0 | FZ60: 0.0 | GA60: 0.0 | GB60: 0.0 | GC60: 0.0 | GD60: 0.0 | GE60: 0.0 | GF60: 0.0 | GG60: 0.0 | GH60: 0.0 | GI60: 0.0 | GJ60: 0.0 | GK60: 0.0 | GL60: 0.0 | GM60: 0.0 | GN60: 0.0 | GO60: 0.0 | GP60: 0.0 | GQ60: 0.0 | GR60: 0.0 | GS60: 0.0 | GT60: 0.0 | GU60: 0.0 | GV60: 0.0 | GW60: 0.0 | GX60: 0.0 | GY60: 0.0 | GZ60: 0.0 | HA60: 0.0 | HB60: 0.0 | HC60: 0.0 | HD60: 0.0 | HE60: 0.0 | HF60: 0.0 | HG60: 0.0 | HH60: 0.0 | HI60: 0.0 | HJ60: 0.0 | HK60: 0.0 | HL60: 0.0 | HM60: 0.0 | HN60: 0.0 | HO60: 0.0 | HP60: 0.0 | HQ60: 0.0 | HR60: 0.0 | HS60: 0.0 | HT60: 0.0 | HU60: 0.0 | HV60: 0.0 | HW60: 0.0 | HX60: 0.0 | HY60: 0.0 | HZ60: 0.0 | IA60: 0.0 | IB60: 0.0 | IC60: 0.0 | ID60: 0.0 | IE60: 0.0 | IF60: 0.0 | IG60: 0.0 | IH60: 0.0 | II60: 0.0 | IJ60: 0.0 | IK60: 0.0 | IL60: 0.0 | IM60: 0.0 | IN60: 0.0 | IO60: 18.4 | IP60: 20.5 | IQ60: 21.0 | IR60: 23.7 | IS60: 20.4 | IT60: 21.4 | IU60: 22.2 | IV60: 22.7 | IW60: 23.6 | IX60: 21.3 | IY60: 26.3 | IZ60: 25.2 | JA60: 21.6 | JB60: 20.5 | JC60: 23.5 | JD60: 22.5 | JE60: 19.2 | JF60: 24.9 | JG60: 27.5 | JH60: 27.9 | JI60: 26.8 | JJ60: 25.2 | JK60: 24.8 | JL60: 24.8 | JM60: 24.8 | JN60: 18.2 | JO60: 26.7 | JP60: 30.1 | JQ60: 25.6 | JR60: 29.3 | JS60: 26.3 | JT60: 28.0 | JU60: 29.7 | JV60: 26.6 | JW60: 26.7 | JX60: 24.4 | JY60: 25.6 | JZ60: 24.8 | KA60: 23.4 | KB60: 22.5 | KC60: 25.9 | KD60: 31.2 | KE60: 27.7 | KF60: 26.7 | KG60: 28.0 | KH60: =+KH16*$LX13+KH20*$LX17+KH24*$LX21+KH28*$LX25+KH32*$LX29+KH36*$LX33+KH40*$LX37 -> 24.0 | KI60: 25.9 | KJ60: 24.9 | KK60: 21.0 | KL60: 22.4 | KM60: 21.9 | KN60: 16.1 | KO60: 21.3 | KP60: 20.0 | KQ60: 20.1 | KR60: 23.8 | KS60: 22.5 | KT60: 24.9 | KU60: 20.4 | KV60: =+KV16*$LX13+KV20*$LX17+KV24*$LX21+KV28*$LX25+KV32*$LX29+KV36*$LX33+KV40*$LX37 -> 24.4 | KW60: 24.5 | KX60: 24.0 | KY60: 23.7 | KZ60: 23.7 | LA60: 20.1 | LB60: 20.2 | LC60: 18.7 | LD60: 24.7 | LE60: =+LE16*$LX13+LE20*$LX17+LE24*$LX21+LE28*$LX25+LE32*$LX29+LE36*$LX33+LE40*$LX37 -> 17.1 | LF60: 25.8 | LG60: 25.0 | LH60: =+LH16*$LX13+LH20*$LX17+LH24*$LX21+LH28*$LX25+LH32*$LX29+LH36*$LX33+LH40*$LX37 -> 22.8 | LI60: 29.3 | LJ60: 21.4 | LK60: 22.0 | LL60: 22.1 | LM60: =+LM16*$LX13+LM20*$LX17+LM24*$LX21+LM28*$LX25+LM32*$LX29+LM36*$LX33+LM40*$LX37 -> 24.5 | LN60: 25.9 | LO60: 18.4 | LP60: 28.8 | LQ60: =+LQ16*$LX13+LQ20*$LX17+LQ24*$LX21+LQ28*$LX25+LQ32*$LX29+LQ36*$LX33+LQ40*$LX37 -> 26.1 | LR60: =AVERAGE(KN60:LQ60) -> 22.7 | MA60: UO | MB60: =+LQ46/100 -> 0.0% | MC60: =LQ50/100 -> 39.3% | MD60: =LQ54/100 -> 51.1%
E61: OBJ DF | F61: 85 | G61: 85 | H61: 85 | I61: 85 | J61: 85 | K61: 85 | L61: 85 | M61: 85 | N61: 85 | O61: 85 | P61: 85 | Q61: 85 | R61: 85 | S61: 85 | T61: 85 | U61: 85 | V61: 85 | W61: 85 | X61: 85 | Y61: 85 | Z61: 85 | AA61: 85 | AB61: 85 | AC61: 85 | AD61: 85 | AE61: 85 | AF61: 85 | AG61: 85 | AH61: 85 | AI61: 85 | AJ61: 85 | AK61: 85 | AL61: 85 | AM61: 85 | AN61: 85 | AO61: 85 | AP61: 85 | AQ61: 85 | AR61: 85 | AS61: 85 | AT61: 85 | AU61: 85 | AV61: 85 | AW61: 85 | AX61: 85 | AY61: 85 | AZ61: 85 | BA61: 85 | BB61: 85 | BC61: 85 | BD61: 85 | BE61: 85 | BF61: 85 | BG61: 85 | BH61: 85 | BI61: 85 | BJ61: 85 | BK61: 85 | BL61: 85 | BM61: 85 | BN61: 85 | BO61: 85 | BP61: 85 | BQ61: 85 | BR61: 85 | BS61: 85 | BT61: 85 | BU61: 85 | BV61: 85 | BW61: 85 | BX61: 85 | BY61: 85 | BZ61: 85 | CA61: 85 | CB61: 85 | CC61: 85 | CD61: 85 | CE61: 85 | CF61: 85 | CG61: 85 | CH61: 85 | CI61: 85 | CJ61: 85 | CK61: 85 | CL61: 85 | CM61: 85 | CN61: 85 | CO61: 85 | CP61: 85 | CQ61: 85 | CR61: 85 | CS61: 85 | CT61: 85 | CU61: 85 | CV61: 85 | CW61: 85 | CX61: 85 | CY61: 85 | CZ61: 85 | DA61: 85 | DB61: 85 | DC61: 85 | DD61: 85 | DE61: 85 | DF61: 85 | DG61: 85 | DH61: 85 | DI61: 85 | DJ61: 85 | DK61: 85 | DL61: 85 | DM61: 85 | DN61: 85 | DO61: 85 | DP61: 85 | DQ61: 85 | DR61: 85 | DS61: 85 | DT61: 85 | DU61: 85 | DV61: 85 | DW61: 85 | DX61: 85 | DY61: 85 | DZ61: 85 | EA61: 85 | EB61: 85 | EC61: 85 | ED61: 85 | EE61: 85 | EF61: 85 | EG61: 85 | EH61: 85 | EI61: 85 | EJ61: 85 | EK61: 85 | EL61: 85 | EM61: 85 | EN61: 85 | EO61: 85 | EP61: 85 | EQ61: 85 | ER61: 85 | ES61: 85 | ET61: 85 | EU61: 85 | EV61: 85 | EW61: 85 | EX61: 85 | EY61: 85 | EZ61: 85 | FA61: 85 | FB61: 85 | FC61: 85 | FD61: 85 | FE61: 85 | FF61: 85 | FG61: 85 | FH61: 85 | FI61: 85 | FJ61: 85 | FK61: 85 | FL61: 85 | FM61: 85 | FN61: 85 | FO61: 85 | FP61: 85 | FQ61: 85 | FR61: 85 | FS61: 85 | FT61: 85 | FU61: 85 | FV61: 85 | FW61: 85 | FX61: 85 | FY61: 85 | FZ61: 85 | GA61: 85 | GB61: 85 | GC61: 85 | GD61: 85 | GE61: 85 | GF61: 85 | GG61: 85 | GH61: 85 | GI61: 85 | GJ61: 85 | GK61: 85 | GL61: 85 | GM61: 85 | GN61: 85 | GO61: 85 | GP61: 85 | GQ61: 85 | GR61: 85 | GS61: 85 | GT61: 85 | GU61: 85 | GV61: 85 | GW61: 85 | GX61: 85 | GY61: 85 | GZ61: 85 | HA61: 85 | HB61: 85 | HC61: 85 | HD61: 85 | HE61: 85 | HF61: 85 | HG61: 85 | HH61: 85 | HI61: 85 | HJ61: 85 | HK61: 85 | HL61: 85 | HM61: 85 | HN61: 85 | HO61: 85 | HP61: 85 | HQ61: 85 | HR61: 85 | HS61: 85 | HT61: 85 | HU61: 85 | HV61: 85 | HW61: 85 | HX61: 85 | HY61: 85 | HZ61: 85 | IA61: 85 | IB61: 85 | IC61: 85 | ID61: 85 | IE61: 85 | IF61: 85 | IG61: 85 | IH61: 85 | II61: 85 | IJ61: 85 | IK61: 85 | IL61: 85 | IM61: 85 | IN61: 85 | IO61: 85 | IP61: 85 | IQ61: 85 | IR61: 85 | IS61: 85 | IT61: 85 | IU61: 85 | IV61: 85 | IW61: 85 | IX61: 85 | IY61: 85 | IZ61: 85 | JA61: 85 | JB61: 84 | JC61: 85 | JD61: 85 | JE61: 85 | JF61: 85 | JG61: 85 | JH61: 85 | JI61: 85 | JJ61: 85 | JK61: 85 | JL61: 85 | JM61: 85 | JN61: 85 | JO61: 85 | JP61: 85 | JQ61: 85 | JR61: 85 | JS61: 85 | JT61: 85 | JU61: 85 | JV61: 86 | JW61: 85 | JX61: 85 | JY61: 86 | JZ61: 85 | KA61: 85 | KB61: 85 | KC61: 85 | KD61: 85 | KE61: 85 | KF61: 85 | KG61: 85 | KH61: 85 | KI61: 85 | KJ61: 85 | KK61: 85 | KL61: 85 | KM61: 85 | KN61: 85 | KO61: 85 | KP61: 85 | KQ61: 85 | KR61: 85 | KS61: 85 | KT61: 85 | KU61: 85 | KV61: 85 | KW61: 85 | KX61: 85 | KY61: 85 | KZ61: 85 | LA61: 85 | LB61: 85 | LC61: 85 | LD61: 85 | LE61: 85 | LF61: 85 | LG61: 85 | LH61: 85 | LI61: 85 | LJ61: 85 | LK61: 85 | LL61: 85 | LM61: 85 | LN61: 85 | LO61: 85 | LP61: 85 | LQ61: 85 | LR61: =AVERAGE(KO61:LQ61) -> 85.0 | MA61: DF PR-23 | MB61: =E44 -> 98.8% | MC61: =E47 -> 97.1% | MD61: =E51 -> 71.2%
E63: EQUIPOS DE SOPORTE DE PRODUCCION SEMANA 30
E64: KPI | F64: OBJ. | G64: SEM 01 | H64: SEM 02 | I64: SEM 03 | J64: SEM 04 | K64: SEM 05 | L64: SEM 06 | M64: SEM 07 | N64: SEM 08 | O64: SEM 09 | P64: SEM 10 | Q64: SEM 11 | R64: SEM 12 | S64: SEM 13 | T64: SEM 14 | U64: SEM 15 | V64: SEM 16 | W64: SEM 17 | X64: SEM 18 | Y64: SEM 19 | Z64: SEM 20 | AA64: SEM 21 | AB64: SEM 22 | AC64: SEM 23 | AD64: SEM 24 | AE64: SEM 25 | AF64: SEM 26 | AG64: SEM 27 | AH64: SEM 28 | AI64: SEM 29 | AJ64: SEM 30 | AK64: SEM 31 | AL64: SEM 32 | AM64: SEM 33 | AN64: SEM 34 | AO64: SEM 35 | AP64: SEM 36 | AQ64: SEM 37 | AR64: SEM 38 | AS64: SEM 39 | AT64: SEM 40 | AU64: SEM 41 | AV64: SEM 42 | AW64: SEM 43 | AX64: SEM 44 | AY64: SEM 45 | AZ64: SEM 46 | BA64: SEM 47 | BB64: SEM 48 | BC64: SEM 49 | BD64: SEM 50 | BE64: SEM 51 | BF64: SEM 52 | BG64: SEM 01 | BH64: SEM 02 | BI64: SEM 03 | BJ64: SEM 04 | BK64: SEM 05 | BL64: SEM 06 | BM64: SEM 07 | BN64: SEM 08 | BO64: SEM 09 | BP64: SEM 10 | BQ64: SEM 11 | BR64: SEM 12 | BS64: SEM 13 | BT64: SEM 14 | BU64: SEM 15 | BV64: SEM 16 | BW64: SEM 17 | BX64: SEM 18 | BY64: SEM 19 | BZ64: SEM 20 | CA64: SEM 21 | CB64: SEM 22 | CC64: SEM 23 | CD64: SEM 24 | CE64: SEM 25 | CF64: SEM 26 | CG64: SEM 27 | CH64: SEM 28 | CI64: SEM 29 | CJ64: SEM 30 | CK64: SEM 31 | CL64: SEM 32 | CM64: SEM 33 | CN64: SEM 34 | CO64: SEM 35 | CP64: SEM 36 | CQ64: SEM 37 | CR64: SEM 38 | CS64: SEM 39 | CT64: SEM 40 | CU64: SEM 41 | CV64: SEM 42 | CW64: SEM 43 | CX64: SEM 44 | CY64: SEM 45 | CZ64: SEM 46 | DA64: SEM 47 | DB64: SEM 48 | DC64: SEM 49 | DD64: SEM 50 | DE64: SEM 51 | DF64: SEM 52 | DG64: SEM 01 | DH64: SEM 02 | DI64: SEM 03 | DJ64: SEM 04 | DK64: SEM 05 | DL64: SEM 06 | DM64: SEM 07 | DN64: SEM 08 | DO64: SEM 09 | DP64: SEM 10 | DQ64: SEM 11 | DR64: SEM 12 | DS64: SEM 13 | DT64: SEM 14 | DU64: SEM 15 | DV64: SEM 16 | DW64: SEM 30 | DX64: SEM 31 | DY64: SEM 32 | DZ64: SEM 33 | EA64: SEM 36 | EB64: SEM 37 | EC64: SEM 38 | ED64: SEM 39 | EE64: SEM 40 | EF64: SEM 41 | EG64: SEM 42 | EH64: SEM 43 | EI64: SEM 44 | EJ64: SEM 45 | EK64: SEM 46 | EL64: SEM 47 | EM64: SEM 48 | EN64: SEM 49 | EO64: SEM 50 | EP64: SEM 51 | EQ64: SEM 52 | ER64: SEM 53 | ES64: SEM 01 | ET64: SEM 02 | EU64: SEM 03 | EV64: SEM 04 | EW64: SEM 05 | EX64: SEM 06 | EY64: SEM 07 | EZ64: SEM 08 | FA64: SEM 09 | FB64: SEM 10 | FC64: SEM 11 | FD64: SEM 17 | FE64: SEM18 | FF64: SEM 19 | FG64: SEM20 | FH64: SEM21 | FI64: SEM22 | FJ64: SEM23 | FK64: SEM24 | FL64: SEM25 | FM64: SEM26 | FN64: SEM27 | FO64: SEM28 | FP64: SEM 29 | FQ64: SEM 30 | FR64: SEM 31 | FS64: SEM 32 | FT64: SEM 33 | FU64: SEM 34 | FV64: SEM 35 | FW64: SEM 36 | FX64: SEM 37 | FY64: SEM 38 | FZ64: SEM 39 | GA64: SEM 40 | GB64: SEM 41 | GC64: SEM 42 | GD64: SEM 43 | GE64: SEM 44 | GF64: SEM 45 | GG64: SEM 46 | GH64: SEM 47 | GI64: SEM 48 | GJ64: SEM 49 | GK64: SEM 50 | GL64: SEM 51 | GM64: SEM 52 | GN64: SEM 01 | GO64: SEM 02 | GP64: SEM 03 | GQ64: SEM 04 | GR64: SEM 05 | GS64: SEM 06 | GT64: SEM 07 | GU64: SEM 08 | GV64: SEM 09 | GW64: SEM 10 | GX64: SEM 11 | GY64: SEM 12 | GZ64: SEM 13 | HA64: SEM 14 | HB64: SEM 15 | HC64: SEM 16 | HD64: SEM 17 | HE64: SEM 18 | HF64: SEM 19 | HG64: SEM 20 | HH64: SEM 21 | HI64: SEM 22 | HJ64: SEM 23 | HK64: SEM 24 | HL64: SEM 25 | HM64: SEM 26 | HN64: SEM 27 | HO64: SEM 28 | HP64: SEM 29 | HQ64: SEM 30 | HR64: SEM 31 | HS64: SEM 32 | HT64: SEM 33 | HU64: SEM 34 | HV64: SEM 35 | HW64: SEM 36 | HX64: SEM 37 | HY64: SEM 38 | HZ64: SEM 39 | IA64: SEM 40 | IB64: SEM 41 | IC64: SEM 42 | ID64: SEM 43 | IE64: SEM 44 | IF64: SEM 45 | IG64: SEM 46 | IH64: SEM 47 | II64: SEM 48 | IJ64: SEM 49 | IK64: SEM 50 | IL64: SEM 51 | IM64: SEM 52 | IN64: SEM 01 | IO64: SEM 02 | IP64: SEM 03 | IQ64: SEM 04 | IR64: SEM 05 | IS64: SEM 06 | IT64: SEM 07 | IU64: SEM 08 | IV64: SEM 09 | IW64: SEM 10 | IX64: SEM 11 | IY64: SEM 12 | IZ64: SEM 13 | JA64: SEM 14 | JB64: SEM 15 | JC64: SEM 16 | JD64: SEM 17 | JE64: SEM 18 | JF64: SEM 19 | JG64: SEM 20 | JH64: SEM 21 | JI64: SEM 22 | JJ64: SEM 23 | JK64: SEM 24 | JL64: SEM 25 | JM64: SEM 26 | JN64: SEM 27 | JO64: SEM 28 | JP64: SEM 29 | JQ64: SEM 30 | JR64: SEM 31 | JS64: SEM 32 | JT64: SEM 33 | JU64: SEM 34 | JV64: SEM 35 | JW64: SEM 36 | JX64: SEM 37 | JY64: SEM 38 | JZ64: SEM 39 | KA64: SEM 40 | KB64: SEM 41 | KC64: SEM 42 | KD64: SEM 43 | KE64: SEM 44 | KF64: SEM 45 | KG64: SEM 46 | KH64: SEM 47 | KI64: SEM 48 | KJ64: SEM 49 | KK64: SEM 50 | KL64: SEM 51 | KM64: SEM 52 | KN64: SEM 01 | KO64: SEM 02 | KP64: SEM 03 | KQ64: SEM 04 | KR64: SEM 05 | KS64: SEM 06 | KT64: SEM 07 | KU64: SEM 08 | KV64: SEM 09 | KW64: SEM 10 | KX64: SEM 11 | KY64: SEM 12 | KZ64: SEM 13 | LA64: SEM 14 | LB64: SEM 15 | LC64: SEM 16 | LD64: SEM 17 | LE64: SEM 18 | LF64: SEM 19 | LG64: SEM 20 | LH64: SEM 21 | LI64: SEM 22 | LJ64: SEM 23 | LK64: SEM 24 | LL64: SEM 25 | LM64: SEM 26 | LN64: SEM 27 | LO64: SEM 28 | LP64: SEM 29 | LQ64: SEM 30 | LR64: PROM. 2024
E65: DF | F65: 85.0 | G65: 80.5 | H65: 77.5 | I65: 77.4 | J65: 78.3 | K65: 68.0 | L65: 74.8 | M65: 77.7 | N65: 79.8 | O65: 81.8 | P65: 82.7 | Q65: 74.4 | R65: 70.7 | S65: 73.2 | T65: 79.7 | U65: 82.0 | V65: 78.4 | W65: 74.2 | X65: 78.0 | Y65: 78.1 | Z65: 77.2 | AA65: 78.0 | AB65: 80.3 | AC65: 80.0 | AD65: 79.3 | AE65: 75.8 | AF65: 69.6 | AG65: 73.7 | AH65: 66.4 | AI65: 73.0 | AJ65: 77.3 | AK65: 86.5 | AL65: 91.8 | AM65: 85.8 | AN65: 94.1 | AO65: 89.6 | AP65: 87.5 | AQ65: 84.8 | AR65: 80.2 | AS65: 81.5 | AT65: 83.4 | AU65: 74.6 | AV65: 81.8 | AW65: 85.8 | AX65: 84.8 | AY65: 77.3 | AZ65: 75.3 | BA65: 70.9 | BB65: 82.3 | BC65: 82.2 | BD65: 81.7 | BE65: 83.9 | BF65: 86.5 | BG65: 83.5 | BH65: 82.3 | BI65: 82.8 | BJ65: 83.9 | BK65: 81.6 | BL65: 76.6 | BM65: 82.1 | BN65: 85.7 | BO65: 84.4 | BP65: 94.6 | BQ65: 85.2 | BR65: 83.8 | BS65: 83.4 | BT65: 75.6 | BU65: 82.8 | BV65: 81.9 | BW65: 78.5 | BX65: 86.5 | BY65: 88.4 | BZ65: 83.0 | CA65: 89.8 | CB65: 87.4 | CC65: 87.8 | CD65: 82.3 | CE65: 79.4 | CF65: 85.4 | CG65: 87.8 | CH65: 84.2 | CI65: 80.7 | CJ65: 75.6 | CK65: 77.7 | CL65: 76.8 | CM65: 75.7 | CN65: 81.6 | CO65: 83.5 | CP65: 71.2 | CQ65: 78.9 | CR65: 77.8 | CS65: 86.3 | CT65: 82.3 | CU65: 73.6 | CV65: 79.7 | CW65: 83.0 | CX65: 81.2 | CY65: 84.1 | CZ65: 73.5 | DA65: 71.7 | DB65: 78.4 | DC65: 77.4 | DD65: 78.8 | DE65: 76.3 | DF65: 69.5 | DG65: 75.3 | DH65: 79.9 | DI65: 76.3 | DJ65: 73.0 | DK65: 73.8 | DL65: 81.7 | DM65: 75.9 | DN65: 77.3 | DO65: 75.2 | DP65: 75.6 | DQ65: 80.3 | DR65: 76.6 | DS65: 68.1 | DT65: 78.1 | DU65: 87.6 | DV65: 83.5 | DW65: 89.3 | DX65: 89.9 | DY65: 86.0 | DZ65: 85.5 | EA65: 85.5 | EB65: 85.1 | EC65: 77.5 | ED65: 75.6 | EE65: 74.8 | EF65: 79.9 | EG65: 67.7 | EH65: 88.8 | EI65: 80.6 | EJ65: 83.8 | EK65: 82.8 | EL65: 80.9 | EM65: 84.2 | EN65: 85.9 | EO65: 88.7 | EQ65: 86.8 | ER65: 76.7 | ES65: 75.2 | ET65: 80.1 | EU65: 81.1 | EV65: 78.0 | EW65: 77.2 | EX65: 77.3 | EY65: 80.5 | EZ65: 82.9 | FA65: 80.6 | FB65: 80.9 | FC65: 78.9 | FD65: 93.0 | FE65: 83.5 | FF65: 85.6 | FG65: 78.4 | FH65: 80.5 | FI65: 83.9 | FJ65: 82.9 | FK65: 81.9 | FL65: 82.9 | FM65: 85.4 | FN65: 86.5 | FO65: 83.3 | FP65: 87.0 | FQ65: 88.5 | FR65: 90.2 | FS65: 86.0 | FT65: 88.6 | FU65: 85.9 | FV65: 88.9 | FW65: 87.1 | FX65: 89.6 | FY65: 90.0 | FZ65: 91.2 | GA65: 91.5 | GB65: 87.2 | GC65: 88.4 | GD65: 90.8 | GE65: 89.3 | GF65: 87.7 | GG65: 81.7 | GH65: 88.6 | GI65: 85.0 | GJ65: 82.7 | GK65: 81.5 | GL65: 86.7 | GM65: 82.6 | GN65: 82.8 | GO65: 77.6 | GP65: 74.7 | GQ65: 84.5 | GR65: 81.8 | GS65: 78.8 | GT65: 84.0 | GU65: 81.9 | GV65: 78.8 | GW65: 76.4 | GX65: 77.6 | GY65: 80.6 | GZ65: 77.5 | HA65: 88.1 | HB65: 79.3 | HC65: 83.5 | HD65: 84.2 | HE65: 82.3 | HF65: 83.7 | HG65: 83.3 | HH65: 82.0 | HI65: 82.2 | HJ65: 80.7 | HK65: 82.4 | HL65: 78.3 | HM65: 82.0 | HN65: 80.1 | HO65: 77.8 | HP65: 79.1 | HQ65: 82.1 | HR65: 84.8 | HS65: 83.3 | HT65: 80.3 | HU65: 83.7 | HV65: 78.1 | HW65: 80.8 | HX65: 77.0 | HY65: 80.1 | IA65: 82.3 | IB65: 82.2 | IC65: 75.2 | ID65: 79.2 | IE65: 86.9 | IF65: 84.9 | IG65: 89.9 | IH65: 92.0 | II65: 92.4 | IJ65: 90.6 | IK65: 89.3 | IL65: 85.4 | IM65: 87.3 | IN65: 86.8 | IO65: 82.6 | IP65: 85.4 | IQ65: 87.8 | IR65: 86.7 | IS65: 80.9 | IT65: 80.4 | IU65: 79.4 | IV65: 77.6 | IW65: 75.7 | IX65: 79.9 | IY65: 82.6 | IZ65: 82.4 | JA65: 76.1 | JB65: 81.9 | JC65: 89.7 | JD65: 91.6 | JE65: 95.4 | JF65: 93.5 | JG65: 95.9 | JH65: 88.1 | JI65: 90.6 | JJ65: 91.9 | JK65: 97.4 | JL65: 96.6 | JM65: 97.0 | JN65: 83.8 | JO65: 79.1 | JP65: 87.7 | JQ65: 93.2 | JR65: 89.9 | JS65: 85.1 | JT65: 95.3 | JU65: 104.2 | JV65: 96.9 | JW65: 101.1 | JX65: 103.6 | JY65: 87.3 | JZ65: 89.0 | KA65: 84.1 | KB65: 83.7 | KC65: 98.2 | KD65: 98.3 | KE65: 96.5 | KF65: 94.0 | KG65: 95.4 | KH65: =KH44*$LX$44+KH47*$LX$47+KH51*$LX$51 -> 89.8 | KI65: 97.4 | KJ65: 100.0 | KK65: 100.0 | KL65: 100.0 | KM65: 93.7 | KN65: 90.6 | KO65: 96.9 | KP65: 97.0 | KQ65: 97.1 | KR65: 91.0 | KS65: 95.1 | KT65: 89.2 | KU65: 83.2 | KV65: 95.8 | KW65: 92.7 | KX65: 96.0 | KY65: 95.1 | KZ65: 96.8 | LA65: 90.3 | LB65: 96.7 | LC65: 93.9 | LD65: 87.9 | LE65: =LE44*$LX$44+LE47*$LX$47+LE51*$LX$51 -> 83.4 | LF65: 80.6 | LG65: 96.6 | LH65: =LH44*$LX$44+LH47*$LX$47+LH51*$LX$51 -> 93.4 | LI65: =LI44*$LX$44+LI47*$LX$47+LI51*$LX$51 -> 89.6 | LJ65: 90.5 | LK65: =LK44*$LX$44+LK47*$LX$47+LK51*$LX$51 -> 89.6 | LL65: 89.6 | LM65: =LM44*$LX$44+LM47*$LX$47+LM51*$LX$51 -> 94.5 | LN65: 87.6 | LO65: 94.1 | LP65: 98.2 | LQ65: =LQ44*$LX$44+LQ47*$LX$47+LQ51*$LX$51 -> 93.5 | LR65: =AVERAGE(KN65:LQ65) -> 92.2
E66: UF | F66: 28.3 | G66: 13.7 | H66: 21.1 | I66: 21.3 | J66: 22.4 | K66: 22.4 | L66: 30.5 | M66: 25.3 | N66: 25.7 | O66: 24.5 | P66: 22.0 | Q66: 27.5 | R66: 27.1 | S66: 28.8 | T66: 23.3 | U66: 19.2 | V66: 24.7 | W66: 23.5 | X66: 24.3 | Y66: 27.8 | Z66: 19.0 | AA66: 10.7 | AB66: 24.0 | AC66: 19.0 | AD66: 21.8 | AE66: 16.5 | AF66: 18.6 | AG66: 25.2 | AH66: 25.7 | AI66: 26.9 | AJ66: 24.7 | AK66: 22.1 | AL66: 24.6 | AM66: 26.7 | AN66: 23.2 | AO66: 25.7 | AP66: 26.2 | AQ66: 28.7 | AR66: 26.7 | AS66: 32.0 | AT66: 33.7 | AU66: 25.3 | AV66: 26.7 | AW66: 23.4 | AX66: 25.4 | AY66: 23.0 | AZ66: 19.7 | BA66: 24.4 | BB66: 29.0 | BC66: 23.1 | BD66: 24.8 | BE66: 23.8 | BF66: 24.3 | BG66: 17.2 | BH66: 22.5 | BI66: 22.0 | BJ66: 21.8 | BK66: 20.0 | BL66: 21.9 | BM66: 26.2 | BN66: 24.6 | BO66: 23.5 | BP66: 27.0 | BQ66: 26.2 | BR66: 24.7 | BS66: 27.8 | BT66: 23.1 | BU66: 16.6 | BV66: 23.6 | BW66: 24.2 | BX66: 14.0 | BY66: 17.1 | BZ66: 17.2 | CA66: 18.3 | CB66: 18.0 | CC66: 18.1 | CD66: 20.2 | CE66: 17.4 | CF66: 18.6 | CG66: 14.1 | CH66: 15.1 | CI66: 19.7 | CJ66: 17.7 | CK66: 18.3 | CL66: 18.1 | CM66: 18.4 | CN66: 16.0 | CO66: 23.7 | CP66: 16.5 | CQ66: 9.1 | CR66: 17.0 | CS66: 20.4 | CT66: 16.4 | CU66: 15.4 | CV66: 20.5 | CW66: 14.8 | CX66: 16.6 | CY66: 20.8 | CZ66: 14.9 | DA66: 16.7 | DB66: 14.0 | DC66: 17.4 | DD66: 19.0 | DE66: 13.9 | DF66: 18.2 | DG66: 12.6 | DH66: 17.5 | DI66: 17.1 | DJ66: 15.3 | DK66: 21.4 | DL66: 14.8 | DM66: 18.0 | DN66: 20.3 | DO66: 15.7 | DP66: 15.8 | DQ66: 18.0 | DR66: 3.1 | DS66: 0.0 | DT66: 0.0 | DU66: 0.0 | DV66: 0.0 | DW66: 16.6 | DX66: 22.5 | DY66: 29.0 | DZ66: 19.1 | EA66: 19.1 | EB66: 22.8 | EC66: 22.5 | ED66: 18.9 | EE66: 14.9 | EF66: 31.0 | EG66: 18.1 | EH66: 9.8 | EI66: 8.8 | EJ66: 21.9 | EK66: 27.9 | EL66: 20.6 | EM66: 17.7 | EN66: 20.0 | EO66: 18.1 | EP66: 11.6 | EQ66: 4.9 | ER66: 29.2 | ES66: 23.9 | ET66: 30.6 | EU66: 29.4 | EV66: 18.1 | EW66: 20.7 | EX66: 23.1 | EY66: 19.0 | EZ66: 26.4 | FA66: 33.9 | FB66: 18.5 | FC66: 16.7 | FD66: 0.3 | FE66: 19.9 | FF66: 21.1 | FG66: 22.0 | FH66: 12.6 | FI66: 15.5 | FJ66: 24.3 | FK66: 9.7 | FL66: 21.0 | FM66: 21.9 | FN66: 20.0 | FO66: 23.4 | FP66: 15.5 | FQ66: 21.9 | FR66: 20.6 | FS66: 23.1 | FT66: 16.4 | FU66: 17.9 | FV66: 18.1 | FW66: 19.8 | FX66: 21.1 | FY66: 16.7 | FZ66: 7.0 | GA66: 10.2 | GB66: 15.1 | GC66: 15.6 | GD66: 20.4 | GE66: 16.0 | GF66: 17.4 | GG66: 19.9 | GH66: 17.1 | GI66: 17.3 | GJ66: 19.3 | GK66: 14.6 | GL66: 17.5 | GM66: 15.5 | GN66: 10.6 | GO66: 13.0 | GP66: 14.0 | GQ66: 11.1 | GR66: 10.1 | GS66: 13.0 | GT66: 15.8 | GU66: 13.8 | GV66: 13.8 | GW66: 13.4 | GX66: 13.4 | GY66: 16.4 | GZ66: 15.3 | HA66: 12.7 | HB66: 19.7 | HC66: 18.8 | HD66: 16.4 | HE66: 15.3 | HF66: 20.3 | HG66: 14.7 | HH66: 15.3 | HI66: 17.9 | HJ66: 16.4 | HK66: 17.4 | HL66: 18.1 | HM66: 18.0 | HN66: 12.7 | HO66: 15.2 | HP66: 16.7 | HQ66: 15.2 | HR66: 14.2 | HS66: 14.5 | HT66: 12.3 | HU66: 18.2 | HV66: 18.8 | HW66: 13.2 | HX66: 19.4 | HY66: 13.3 | HZ66: 14.0 | IA66: 16.6 | IB66: 15.9 | IC66: 15.7 | ID66: 16.7 | IE66: 16.3 | IF66: 15.7 | IG66: 20.0 | IH66: 18.9 | II66: 17.3 | IJ66: 11.5 | IK66: 16.2 | IL66: 14.2 | IM66: 14.9 | IN66: 13.4 | IO66: 14.7 | IP66: 16.6 | IQ66: 16.8 | IR66: 19.2 | IS66: 16.6 | IT66: 17.4 | IU66: 18.3 | IV66: 18.6 | IW66: 19.7 | IX66: 17.2 | IY66: 20.7 | IZ66: 19.6 | JA66: 17.9 | JB66: 18.3 | JC66: 19.0 | JD66: 18.3 | JE66: 15.7 | JF66: 20.0 | JG66: 22.4 | JH66: 19.8 | JI66: 21.4 | JJ66: 20.6 | JK66: 22.4 | JL66: 26.0 | JM66: 28.3 | JN66: 21.3 | JO66: 21.1 | JP66: 24.3 | JQ66: 20.9 | JR66: 23.6 | JS66: 21.6 | JT66: 24.5 | JU66: 24.4 | JV66: 24.9 | JW66: 21.3 | JX66: 22.7 | JY66: 20.3 | JZ66: 20.0 | KA66: 18.9 | KB66: 18.4 | KC66: 23.3 | KD66: 25.3 | KE66: 22.6 | KF66: 21.4 | KG66: 23.1 | KH66: =+KH45*$LX$44+KH49*$LX$47+KH51*$LX$51 -> 68.7 | KI66: 79.0 | KJ66: 81.3 | KK66: 80.8 | KL66: 80.8 | KM66: 68.9 | KN66: =+KN45*$LX$44+KN49*$LX$47+KN53*$LX$51 -> 44.0 | KO66: 38.0 | KP66: 44.6 | KQ66: 47.0 | KR66: 41.2 | KS66: 42.6 | KT66: 42.4 | KU66: 50.0 | KV66: 38.2 | KW66: 34.1 | KX66: 48.1 | KY66: 44.6 | KZ66: 40.4 | LA66: 35.8 | LB66: 36.1 | LC66: 40.1 | LD66: 48.4 | LE66: =+LE45*$LX$44+LE49*$LX$47+LE53*$LX$51 -> 13.7 | LF66: 34.2 | LG66: 44.9 | LH66: =+LH45*$LX$44+LH49*$LX$47+LH53*$LX$51 -> 44.3 | LI66: =+LI45*$LX$44+LI49*$LX$47+LI53*$LX$51 -> 43.9 | LJ66: 35.6 | LK66: =+LK45*$LX$44+LK49*$LX$47+LK53*$LX$51 -> 39.0 | LL66: 39.0 | LM66: =+LM45*$LX$44+LM49*$LX$47+LM53*$LX$51 -> 27.7 | LN66: 21.4 | LO66: 30.7 | LP66: 46.3 | LQ66: =+LQ45*$LX$44+LQ49*$LX$47+LQ53*$LX$51 -> 35.4 | LR66: =AVERAGE(KN66:LQ66) -> 39.1
E67: UO | G67: 7.4 | H67: 6.2 | I67: 7.7 | J67: 7.3 | K67: 5.1 | L67: 7.7 | M67: 7.2 | N67: 6.6 | O67: 7.2 | P67: 5.1 | Q67: 6.3 | R67: 6.9 | S67: 7.4 | T67: 7.5 | U67: 6.0 | V67: 7.6 | W67: 6.6 | X67: 5.3 | Y67: 6.0 | Z67: 3.4 | AA67: 3.8 | AB67: 3.8 | AC67: 6.9 | AD67: 6.9 | AE67: 3.8 | AF67: 4.6 | AG67: 4.7 | AH67: 6.6 | AI67: 4.1 | AJ67: 6.0 | AK67: 7.5 | AL67: 7.3 | AM67: 6.2 | AN67: 7.4 | AO67: 7.5 | AP67: 7.1 | AQ67: 7.7 | AR67: 7.1 | AS67: 7.3 | AT67: 6.7 | AU67: 7.6 | AV67: 7.4 | AW67: 7.2 | AX67: 6.3 | AY67: 3.5 | AZ67: 7.2 | BA67: 7.3 | BB67: 7.5 | BC67: 7.5 | BD67: 3.7 | BE67: 4.9 | BF67: 7.3 | BG67: 6.4 | BH67: 6.0 | BI67: 7.6 | BJ67: 6.8 | BK67: 7.7 | BL67: 6.1 | BM67: 4.8 | BN67: 0.0 | BO67: 0.0 | BP67: 7.3 | BQ67: 2.4 | BR67: 3.8 | BS67: 4.0 | BT67: 3.1 | BU67: 3.3 | BV67: 3.6 | BW67: 3.6 | BX67: 3.8 | BY67: 3.8 | BZ67: 3.8 | CA67: 3.8 | CB67: 3.8 | CC67: 3.8 | CD67: 3.7 | CE67: 3.8 | CF67: 3.8 | CG67: 3.8 | CH67: 3.8 | CI67: 3.8 | CJ67: 3.8 | CK67: 3.8 | CL67: 3.8 | CM67: 3.8 | CN67: 3.8 | CO67: 3.8 | CP67: 3.8 | CQ67: 3.8 | CR67: 3.8 | CS67: 0.0 | CT67: 0.0 | CU67: 0.0 | CV67: 0.0 | CW67: 0.0 | CX67: 0.0 | CY67: 0.0 | CZ67: 0.0 | DA67: 0.0 | DB67: 0.0 | DC67: 0.0 | DD67: 0.0 | DE67: 0.0 | DF67: 0.0 | DG67: 0.0 | DH67: 0.0 | DI67: 0.0 | DJ67: 0.0 | DK67: 0.0 | DL67: 0.0 | DM67: 0.0 | DN67: 0.0 | DO67: 0.0 | DP67: 0.0 | DQ67: 0.0 | DR67: 0.0 | DS67: 0.0 | DT67: 0.0 | DU67: 0.0 | DV67: 0.0 | DW67: 0.0 | DX67: 0.0 | DY67: 0.0 | DZ67: 0.0 | EA67: 0.0 | EB67: 0.0 | EC67: 0.0 | ED67: 0.0 | EE67: 0.0 | EF67: 0.0 | EG67: 0.0 | EH67: 0.0 | EI67: 0.0 | EJ67: 0.0 | EK67: 0.0 | EL67: 0.0 | EM67: 0.0 | EN67: 0.0 | EO67: 0.0 | EP67: 0.0 | EQ67: 0.0 | ER67: 0.0 | ES67: 0.0 | ET67: 0.0 | EU67: 0.0 | EV67: 0.0 | EW67: 0.0 | EX67: 0.0 | EY67: 0.0 | EZ67: 0.0 | FA67: 0.0 | FB67: 0.0 | FC67: 0.0 | FD67: 0.0 | FE67: 0.0 | FF67: 0.0 | FG67: 0.0 | FH67: 0.0 | FI67: 0.0 | FJ67: 0.0 | FK67: 0.0 | FL67: 0.0 | FM67: 0.0 | FN67: 0.0 | FO67: 0.0 | FP67: 0.0 | FQ67: 0.0 | FR67: 0.0 | FS67: 0.0 | FT67: 0.0 | FU67: 0.0 | FV67: 0.0 | FW67: 0.0 | FX67: 0.0 | FY67: 0.0 | FZ67: 0.0 | GA67: 0.0 | GB67: 0.0 | GC67: 0.0 | GD67: 0.0 | GE67: 0.0 | GF67: 0.0 | GG67: 0.0 | GH67: 0.0 | GI67: 0.0 | GJ67: 0.0 | GK67: 0.0 | GL67: 0.0 | GM67: 0.0 | GN67: 0.0 | GO67: 0.0 | GP67: 0.0 | GQ67: 0.0 | GR67: 0.0 | GS67: 0.0 | GT67: 0.0 | GU67: 0.0 | GV67: 0.0 | GW67: 0.0 | GX67: 0.0 | GY67: 0.0 | GZ67: 0.0 | HA67: 0.0 | HB67: 0.0 | HC67: 0.0 | HD67: 0.0 | HE67: 0.0 | HF67: 0.0 | HG67: 0.0 | HH67: 0.0 | HI67: 0.0 | HJ67: 0.0 | HK67: 0.0 | HL67: 0.0 | HM67: 0.0 | HN67: 0.0 | HO67: 0.0 | HP67: 0.0 | HQ67: 0.0 | HR67: 0.0 | HS67: 0.0 | HT67: 0.0 | HU67: 0.0 | HV67: 0.0 | HW67: 0.0 | HX67: 0.0 | HY67: 0.0 | HZ67: 0.0 | IA67: 0.0 | IB67: 0.0 | IC67: 0.0 | ID67: 0.0 | IE67: 0.0 | IF67: 0.0 | IG67: 0.0 | IH67: 0.0 | II67: 0.0 | IJ67: 0.0 | IK67: 0.0 | IL67: 0.0 | IM67: 0.0 | IN67: 0.0 | IO67: 18.4 | IP67: 20.5 | IQ67: 21.0 | IR67: 23.7 | IS67: 20.4 | IT67: 21.4 | IU67: 22.2 | IV67: 22.7 | IW67: 23.6 | IX67: 21.3 | IY67: 26.3 | IZ67: 25.2 | JA67: 21.6 | JB67: 20.5 | JC67: 23.5 | JD67: 22.5 | JE67: 19.2 | JF67: 24.9 | JG67: 27.5 | JH67: 27.9 | JI67: 26.8 | JJ67: 25.2 | JK67: 24.8 | JL67: 24.8 | JM67: 24.8 | JN67: 18.2 | JO67: 26.7 | JP67: 30.1 | JQ67: 25.6 | JR67: 29.3 | JS67: 26.3 | JT67: 28.0 | JU67: 29.7 | JV67: 26.6 | JW67: 26.7 | JX67: 24.4 | JY67: 25.6 | JZ67: 24.8 | KA67: 23.4 | KB67: 22.5 | KC67: 25.9 | KD67: 31.2 | KE67: 27.7 | KF67: 26.7 | KG67: 28.0 | KH67: =KH46*$LX$44+KH50*$LX$47+KH54*$LX$51 -> 60.1 | KI67: 42.5 | KJ67: 65.6 | KK67: 48.1 | KL67: 67.2 | KM67: 55.5 | KN67: 55.5 | KO67: 46.0 | KP67: 53.9 | KQ67: 56.7 | KR67: 51.0 | KS67: 51.8 | KT67: 53.6 | KU67: 3.1 | KV67: 46.3 | KW67: 41.7 | KX67: 58.4 | KY67: 54.2 | KZ67: 48.9 | LA67: 45.1 | LB67: 43.7 | LC67: 48.9 | LD67: 61.6 | LE67: =LE46*$LX$44+LE50*$LX$47+LE54*$LX$51 -> 16.6 | LF67: 52.8 | LG67: 54.4 | LH67: =LH46*$LX$44+LH50*$LX$47+LH54*$LX$51 -> 54.1 | LI67: =LI46*$LX$44+LI50*$LX$47+LI54*$LX$51 -> 54.1 | LJ67: 44.0 | LK67: 43.0 | LL67: 48.9 | LM67: 30.0 | LN67: 25.9 | LO67: 33.7 | LP67: 33.7 | LQ67: =LQ46*$LX$44+LQ50*$LX$47+LQ54*$LX$51 -> 43.2 | LR67: =AVERAGE(KO67:LQ67) -> 44.8
E68: OBJ DF | F68: 85 | G68: 85 | H68: 85 | I68: 85 | J68: 85 | K68: 85 | L68: 85 | M68: 85 | N68: 85 | O68: 85 | P68: 85 | Q68: 85 | R68: 85 | S68: 85 | T68: 85 | U68: 85 | V68: 85 | W68: 85 | X68: 85 | Y68: 85 | Z68: 85 | AA68: 85 | AB68: 85 | AC68: 85 | AD68: 85 | AE68: 85 | AF68: 85 | AG68: 85 | AH68: 85 | AI68: 85 | AJ68: 85 | AK68: 85 | AL68: 85 | AM68: 85 | AN68: 85 | AO68: 85 | AP68: 85 | AQ68: 85 | AR68: 85 | AS68: 85 | AT68: 85 | AU68: 85 | AV68: 85 | AW68: 85 | AX68: 85 | AY68: 85 | AZ68: 85 | BA68: 85 | BB68: 85 | BC68: 85 | BD68: 85 | BE68: 85 | BF68: 85 | BG68: 85 | BH68: 85 | BI68: 85 | BJ68: 85 | BK68: 85 | BL68: 85 | BM68: 85 | BN68: 85 | BO68: 85 | BP68: 85 | BQ68: 85 | BR68: 85 | BS68: 85 | BT68: 85 | BU68: 85 | BV68: 85 | BW68: 85 | BX68: 85 | BY68: 85 | BZ68: 85 | CA68: 85 | CB68: 85 | CC68: 85 | CD68: 85 | CE68: 85 | CF68: 85 | CG68: 85 | CH68: 85 | CI68: 85 | CJ68: 85 | CK68: 85 | CL68: 85 | CM68: 85 | CN68: 85 | CO68: 85 | CP68: 85 | CQ68: 85 | CR68: 85 | CS68: 85 | CT68: 85 | CU68: 85 | CV68: 85 | CW68: 85 | CX68: 85 | CY68: 85 | CZ68: 85 | DA68: 85 | DB68: 85 | DC68: 85 | DD68: 85 | DE68: 85 | DF68: 85 | DG68: 85 | DH68: 85 | DI68: 85 | DJ68: 85 | DK68: 85 | DL68: 85 | DM68: 85 | DN68: 85 | DO68: 85 | DP68: 85 | DQ68: 85 | DR68: 85 | DS68: 85 | DT68: 85 | DU68: 85 | DV68: 85 | DW68: 85 | DX68: 85 | DY68: 85 | DZ68: 85 | EA68: 85 | EB68: 85 | EC68: 85 | ED68: 85 | EE68: 85 | EF68: 85 | EG68: 85 | EH68: 85 | EI68: 85 | EJ68: 85 | EK68: 85 | EL68: 85 | EM68: 85 | EN68: 85 | EO68: 85 | EP68: 85 | EQ68: 85 | ER68: 85 | ES68: 85 | ET68: 85 | EU68: 85 | EV68: 85 | EW68: 85 | EX68: 85 | EY68: 85 | EZ68: 85 | FA68: 85 | FB68: 85 | FC68: 85 | FD68: 85 | FE68: 85 | FF68: 85 | FG68: 85 | FH68: 85 | FI68: 85 | FJ68: 85 | FK68: 85 | FL68: 85 | FM68: 85 | FN68: 85 | FO68: 85 | FP68: 85 | FQ68: 85 | FR68: 85 | FS68: 85 | FT68: 85 | FU68: 85 | FV68: 85 | FW68: 85 | FX68: 85 | FY68: 85 | FZ68: 85 | GA68: 85 | GB68: 85 | GC68: 85 | GD68: 85 | GE68: 85 | GF68: 85 | GG68: 85 | GH68: 85 | GI68: 85 | GJ68: 85 | GK68: 85 | GL68: 85 | GM68: 85 | GN68: 85 | GO68: 85 | GP68: 85 | GQ68: 85 | GR68: 85 | GS68: 85 | GT68: 85 | GU68: 85 | GV68: 85 | GW68: 85 | GX68: 85 | GY68: 85 | GZ68: 85 | HA68: 85 | HB68: 85 | HC68: 85 | HD68: 85 | HE68: 85 | HF68: 85 | HG68: 85 | HH68: 85 | HI68: 85 | HJ68: 85 | HK68: 85 | HL68: 85 | HM68: 85 | HN68: 85 | HO68: 85 | HP68: 85 | HQ68: 85 | HR68: 85 | HS68: 85 | HT68: 85 | HU68: 85 | HV68: 85 | HW68: 85 | HX68: 85 | HY68: 85 | HZ68: 85 | IA68: 85 | IB68: 85 | IC68: 85 | ID68: 85 | IE68: 85 | IF68: 85 | IG68: 85 | IH68: 85 | II68: 85 | IJ68: 85 | IK68: 85 | IL68: 85 | IM68: 85 | IN68: 85 | IO68: 85 | IP68: 85 | IQ68: 85 | IR68: 85 | IS68: 85 | IT68: 85 | IU68: 85 | IV68: 85 | IW68: 85 | IX68: 85 | IY68: 85 | IZ68: 85 | JA68: 85 | JB68: 84 | JC68: 85 | JD68: 85 | JE68: 85 | JF68: 85 | JG68: 85 | JH68: 85 | JI68: 85 | JJ68: 85 | JK68: 85 | JL68: 85 | JM68: 85 | JN68: 85 | JO68: 85 | JP68: 85 | JQ68: 85 | JR68: 85 | JS68: 85 | JT68: 85 | JU68: 85 | JV68: 86 | JW68: 85 | JX68: 85 | JY68: 86 | JZ68: 85 | KA68: 85 | KB68: 85 | KC68: 85 | KD68: 85 | KE68: 85 | KF68: 85 | KG68: 85 | KH68: 85 | KI68: 85 | KJ68: 85 | KK68: 85 | KL68: 85 | KM68: 85 | KN68: 85 | KO68: 85 | KP68: 85 | KQ68: 84 | KR68: 85 | KS68: 85 | KT68: 85 | KU68: 85 | KV68: 85 | KW68: 85 | KX68: 85 | KY68: 85 | KZ68: 85 | LA68: 85 | LB68: 85 | LC68: 85 | LD68: 85 | LE68: 85 | LF68: 85 | LG68: 85 | LH68: 85 | LI68: 85 | LJ68: 85 | LK68: 85 | LL68: 85 | LM68: 85 | LN68: 85 | LO68: 85 | LP68: 85 | LQ68: 85 | LR68: =AVERAGE(KN68:LQ68) -> 85.0
F72: OBJ | G72: =+#REF! ->  | H72: =+#REF! ->  | I72: =+#REF! ->  | J72: =+#REF! ->  | K72: =+#REF! ->  | L72: =+#REF! ->  | M72: =+#REF! ->  | N72: =+#REF! ->  | O72: =+#REF! ->  | P72: =+#REF! ->  | Q72: =+#REF! ->  | R72: =+#REF! ->  | S72: =+#REF! ->  | T72: =+#REF! ->  | U72: =+#REF! ->  | V72: =+#REF! ->  | W72: =+#REF! ->  | X72: =+#REF! ->  | Y72: =+#REF! ->  | Z72: =+#REF! ->  | AA72: =+#REF! ->  | AB72: =+#REF! ->  | AC72: =+#REF! ->  | AD72: =+#REF! ->  | AE72: =+#REF! ->  | AF72: =+#REF! ->  | AG72: =+#REF! ->  | AH72: =+#REF! ->  | AI72: =+#REF! ->  | AJ72: =+#REF! ->  | AK72: =+#REF! ->  | AL72: =+#REF! ->  | AM72: =+#REF! ->  | AN72: =+#REF! ->  | AO72: =+#REF! ->  | AP72: =+#REF! ->  | AQ72: =+#REF! ->  | AR72: =+#REF! ->  | AS72: =+#REF! ->  | AT72: =+#REF! ->  | AU72: =+#REF! ->  | AV72: =+#REF! ->  | AW72: =+#REF! ->  | AX72: =+#REF! ->  | AY72: =+#REF! ->  | AZ72: =+#REF! ->  | BA72: =+#REF! ->  | BB72: =+#REF! ->  | BC72: =+#REF! ->  | BD72: =+#REF! ->  | BE72: =+#REF! ->  | BF72: =+#REF! ->  | BG72: =+#REF! ->  | BH72: =+#REF! ->  | BI72: =+#REF! ->  | BJ72: =+#REF! ->  | BK72: =+#REF! ->  | BL72: =+#REF! ->  | BM72: =+#REF! ->  | BN72: =+#REF! ->  | BO72: =+#REF! ->  | BP72: =+#REF! ->  | BQ72: =+#REF! ->  | BR72: =+#REF! ->  | BS72: =+#REF! ->  | BT72: =+#REF! ->  | BU72: =+#REF! ->  | BV72: =+#REF! ->  | BW72: =+#REF! ->  | BX72: =+#REF! ->  | BY72: =+#REF! ->  | BZ72: =+#REF! ->  | CA72: =+#REF! ->  | CB72: =+#REF! ->  | CC72: =+#REF! ->  | CD72: =+#REF! ->  | CE72: =+#REF! ->  | CF72: =+#REF! ->  | CG72: =+#REF! ->  | CH72: =+#REF! ->  | CI72: =+#REF! ->  | CJ72: =+#REF! ->  | CK72: =+#REF! ->  | CL72: =+#REF! ->  | CM72: =+#REF! ->  | CN72: =+#REF! ->  | CO72: =+#REF! ->  | CP72: =+#REF! ->  | CQ72: =+#REF! ->  | CR72: =+#REF! ->  | CS72: =+#REF! ->  | CT72: =+#REF! ->  | CU72: =+#REF! ->  | CV72: =+#REF! ->  | CW72: =+#REF! ->  | CX72: =+#REF! ->  | CY72: =+#REF! ->  | CZ72: =+#REF! ->  | DA72: =+#REF! ->  | DB72: =+#REF! ->  | DC72: =+#REF! ->  | DD72: =+#REF! ->  | DE72: =+#REF! ->  | DF72: =+#REF! ->  | DG72: =+#REF! ->  | DH72: =+#REF! ->  | DI72: =+#REF! ->  | DJ72: =+#REF! ->  | DK72: =+#REF! ->  | DL72: =+#REF! ->  | DM72: =+#REF! ->  | DN72: =+#REF! ->  | DO72: =+#REF! ->  | DP72: =+#REF! ->  | DQ72: =+#REF! ->  | DR72: =+#REF! ->  | DS72: =+#REF! ->  | DT72: =+#REF! ->  | DU72: =+#REF! ->  | DV72: =+#REF! ->  | DW72: =+#REF! ->  | DX72: =+#REF! ->  | DY72: =+#REF! ->  | DZ72: =+#REF! ->  | EA72: =+#REF! ->  | EB72: =+#REF! ->  | EC72: =+#REF! ->  | ED72: =+#REF! ->  | EE72: =+#REF! ->  | EF72: =+#REF! ->  | EG72: =+#REF! ->  | EH72: =+#REF! ->  | EI72: =+#REF! ->  | EJ72: =+#REF! ->  | EK72: =+#REF! ->  | EL72: =+#REF! ->  | EM72: =+#REF! ->  | EN72: =+#REF! ->  | EO72: =+#REF! ->  | EP72: =+#REF! ->  | EQ72: =+#REF! ->  | ER72: =+#REF! ->  | ES72: =+#REF! ->  | ET72: =+#REF! ->  | EU72: =+#REF! ->  | EV72: =+#REF! ->  | EW72: =+#REF! ->  | EX72: =+#REF! ->  | EY72: =+#REF! ->  | EZ72: =+#REF! ->  | FA72: =+#REF! ->  | FB72: =+#REF! ->  | FC72: =+#REF! ->  | FD72: =+#REF! ->  | FE72: =+#REF! ->  | FF72: =+#REF! ->  | FG72: =+#REF! ->  | FH72: =+#REF! ->  | FI72: =+#REF! ->  | FJ72: =+#REF! ->  | FK72: =+#REF! ->  | FL72: =+#REF! ->  | FM72: =+#REF! ->  | FN72: =+#REF! ->  | FO72: =+#REF! ->  | FP72: =+#REF! ->  | FQ72: =+#REF! ->  | FR72: =+#REF! ->  | FS72: =+#REF! ->  | FT72: =+#REF! ->  | FU72: =+#REF! ->  | FV72: =+#REF! ->  | FW72: =+#REF! ->  | FX72: =+#REF! ->  | FY72: =+#REF! ->  | FZ72: =+#REF! ->  | GA72: =+#REF! ->  | GB72: =+#REF! ->  | GC72: =+#REF! ->  | GD72: =+#REF! ->  | GE72: =+#REF! ->  | GF72: =+#REF! ->  | GG72: =+#REF! ->  | GH72: =+#REF! ->  | GI72: =+#REF! ->  | GJ72: =+#REF! ->  | GK72: =+#REF! ->  | GL72: =+#REF! ->  | GM72: =+#REF! ->  | GN72: =+GN57 -> SEM 01 | GO72: SEM 02 | GP72: SEM 03 | GQ72: SEM 04 | GR72: SEM 05 | GS72: SEM 06 | GT72: SEM 07 | GU72: SEM 08 | GV72: SEM 09 | GW72: SEM 10 | GX72: SEM 11 | GY72: SEM 12 | GZ72: SEM 13 | HA72: SEM 14 | HB72: SEM 15 | HC72: SEM 16 | HD72: SEM 17 | HE72: SEM 18 | HF72: SEM 19 | HG72: SEM 20 | HH72: SEM 21 | HI72: SEM 22 | HJ72: SEM 23 | HK72: SEM 24 | HL72: SEM 25 | HM72: SEM 26 | HN72: SEM 27 | HO72: SEM 28 | HP72: SEM 29 | HQ72: SEM 30 | HR72: SEM 31 | HS72: SEM 32 | HT72: SEM 33 | HU72: SEM 34 | HV72: SEM 35 | HW72: SEM 36 | HX72: SEM 37 | HY72: SEM 38 | HZ72: SEM 39 | IA72: SEM 40 | IB72: SEM 41 | IC72: SEM 42 | ID72: SEM 43 | IE72: SEM 44 | IF72: SEM 45 | IG72: SEM 46 | IH72: SEM 47 | II72: =+II57 -> SEM 48 | IJ72: SEM 49 | IK72: =+IK57 -> SEM 50 | IL72: SEM 51 | IM72: SEM 52 | IN72: SEM 01 | IO72: SEM 02 | IP72: SEM 03 | IQ72: SEM 04 | IR72: SEM 05 | IS72: SEM 06 | IT72: =+IT57 -> SEM 07 | IU72: =+IU57 -> SEM 08 | IV72: SEM 09 | IW72: =+IW57 -> SEM 10 | IX72: SEM 11 | IY72: SEM 12 | IZ72: SEM 13 | JA72: SEM 14 | JB72: SEM 15 | JC72: SEM 16 | JD72: SEM 17 | JE72: SEM 18 | JF72: SEM 19 | JG72: SEM 20 | JH72: SEM 21 | JI72: SEM 22 | JJ72: SEM 23 | JK72: SEM 24 | JL72: =+JL57 -> SEM 25 | JM72: SEM 26 | JN72: SEM 27 | JO72: SEM 28 | JP72: SEM 29 | JQ72: =+JQ57 -> SEM 30 | JR72: SEM 31 | JS72: SEM 32 | JT72: SEM 33 | JU72: SEM 34 | JV72: SEM 35 | JW72: SEM 36 | JX72: SEM 37 | JY72: SEM 38 | JZ72: SEM 39 | KA72: SEM 40 | KB72: SEM 41 | KC72: =+KC57 -> SEM 42 | KD72: SEM 43 | KE72: SEM 44 | KF72: SEM 45 | KG72: SEM 46 | KH72: SEM 47 | KI72: SEM 48 | KJ72: SEM 49 | KK72: SEM 50 | KL72: SEM 51 | KM72: SEM 52 | KN72: SEM 01 | KO72: SEM 02 | KP72: SEM 03 | KQ72: SEM 04 | KR72: SEM 05 | KS72: SEM 06 | KT72: SEM 07 | KU72: SEM 08 | KV72: SEM 09 | KW72: SEM 10 | KX72: SEM 11 | KY72: SEM 12 | KZ72: SEM 13 | LA72: SEM 14 | LB72: SEM 15 | LC72: SEM 16 | LD72: SEM 17 | LE72: SEM 18 | LF72: SEM 19 | LG72: SEM 20 | LH72: SEM 21 | LI72: SEM 22 | LJ72: SEM 23 | LK72: SEM 24 | LL72: SEM 25 | LM72: SEM 26 | LN72: SEM 27 | LO72: SEM 28 | LP72: SEM 29 | LQ72: SEM 30 | LR72: PROM. 2024
E73: DF-SC-PR | F73: =+F13 -> 85.0 | G73: =AVERAGE(#REF!,G19,G23,G27,G31,G35,G39,#REF!) ->  | H73: =AVERAGE(#REF!,H19,H23,H27,H31,H35,H39,#REF!) ->  | I73: =AVERAGE(#REF!,I19,I23,I27,I31,I35,I39,#REF!) ->  | J73: =AVERAGE(#REF!,J19,J23,J27,J31,J35,J39,#REF!) ->  | K73: =AVERAGE(#REF!,K19,K23,K27,K31,K35,K39,#REF!) ->  | L73: =AVERAGE(#REF!,L19,L23,L27,L31,L35,L39,#REF!) ->  | M73: =AVERAGE(#REF!,M19,M23,M27,M31,M35,M39,#REF!) ->  | N73: =AVERAGE(#REF!,N19,N23,N27,N31,N35,N39,#REF!) ->  | O73: =AVERAGE(#REF!,O19,O23,O27,O31,O35,O39,#REF!) ->  | P73: =AVERAGE(#REF!,P19,P23,P27,P31,P35,P39,#REF!) ->  | Q73: =AVERAGE(#REF!,Q19,Q23,Q27,Q31,Q35,Q39,#REF!) ->  | R73: =AVERAGE(#REF!,R19,R23,R27,R31,R35,R39,#REF!) ->  | S73: =AVERAGE(#REF!,S19,S23,S27,S31,S35,S39,#REF!) ->  | T73: =AVERAGE(#REF!,T19,T23,T27,T31,T35,T39,#REF!) ->  | U73: =AVERAGE(#REF!,U19,U23,U27,U31,U35,U39,#REF!) ->  | V73: =AVERAGE(#REF!,V19,V23,V27,V31,V35,V39,#REF!) ->  | W73: =AVERAGE(#REF!,W19,W23,W27,W31,W35,W39,#REF!) ->  | X73: =AVERAGE(#REF!,X19,X23,X27,X31,X35,X39,#REF!) ->  | Y73: =AVERAGE(#REF!,Y19,Y23,Y27,Y31,Y35,Y39,#REF!) ->  | Z73: =AVERAGE(#REF!,Z19,Z23,Z27,Z31,Z35,Z39,#REF!) ->  | AA73: =AVERAGE(#REF!,AA19,AA23,AA27,AA31,AA35,AA39,#REF!) ->  | AB73: =AVERAGE(#REF!,AB19,AB23,AB27,AB31,AB35,AB39,#REF!) ->  | AC73: =AVERAGE(#REF!,AC19,AC23,AC27,AC31,AC35,AC39,#REF!) ->  | AD73: =AVERAGE(#REF!,AD19,AD23,AD27,AD31,AD35,AD39,#REF!) ->  | AE73: =AVERAGE(#REF!,AE19,AE23,AE27,AE31,AE35,AE39,#REF!) ->  | AF73: =AVERAGE(#REF!,AF19,AF23,AF27,AF31,AF35,AF39,#REF!) ->  | AG73: =AVERAGE(#REF!,AG19,AG23,AG27,AG31,AG35,AG39,#REF!) ->  | AH73: =AVERAGE(#REF!,AH19,AH23,AH27,AH31,AH35,AH39,#REF!) ->  | AI73: =AVERAGE(#REF!,AI19,AI23,AI27,AI31,AI35,AI39,#REF!) ->  | AJ73: =AVERAGE(#REF!,AJ19,AJ23,AJ27,AJ31,AJ35,AJ39,#REF!) ->  | AK73: =AVERAGE(#REF!,AK19,AK23,AK27,AK31,AK35,AK39,#REF!) ->  | AL73: =AVERAGE(#REF!,AL19,AL23,AL27,AL31,AL35,AL39,#REF!) ->  | AM73: =AVERAGE(#REF!,AM19,AM23,AM27,AM31,AM35,AM39,#REF!) ->  | AN73: =AVERAGE(#REF!,AN19,AN23,AN27,AN31,AN35,AN39,#REF!) ->  | AO73: =AVERAGE(#REF!,AO19,AO23,AO27,AO31,AO35,AO39,#REF!) ->  | AP73: =AVERAGE(#REF!,AP19,AP23,AP27,AP31,AP35,AP39,#REF!) ->  | AQ73: =AVERAGE(#REF!,AQ19,AQ23,AQ27,AQ31,AQ35,AQ39,#REF!) ->  | AR73: =AVERAGE(#REF!,AR19,AR23,AR27,AR31,AR35,AR39,#REF!) ->  | AS73: =AVERAGE(#REF!,AS19,AS23,AS27,AS31,AS35,AS39,#REF!) ->  | AT73: =AVERAGE(#REF!,AT19,AT23,AT27,AT31,AT35,AT39,#REF!) ->  | AU73: =AVERAGE(#REF!,AU19,AU23,AU27,AU31,AU35,AU39,#REF!) ->  | AV73: =AVERAGE(#REF!,AV19,AV23,AV27,AV31,AV35,AV39,#REF!) ->  | AW73: =AVERAGE(#REF!,AW19,AW23,AW27,AW31,AW35,AW39,#REF!) ->  | AX73: =AVERAGE(#REF!,AX19,AX23,AX27,AX31,AX35,AX39,#REF!) ->  | AY73: =AVERAGE(#REF!,AY19,AY23,AY27,AY31,AY35,AY39,#REF!) ->  | AZ73: =AVERAGE(#REF!,AZ19,AZ23,AZ27,AZ31,AZ35,AZ39,#REF!) ->  | BA73: =AVERAGE(#REF!,BA19,BA23,BA27,BA31,BA35,BA39,#REF!) ->  | BB73: =AVERAGE(#REF!,BB19,BB23,BB27,BB31,BB35,BB39,#REF!) ->  | BC73: =AVERAGE(#REF!,BC19,BC23,BC27,BC31,BC35,BC39,#REF!) ->  | BD73: =AVERAGE(#REF!,BD19,BD23,BD27,BD31,BD35,BD39,#REF!) ->  | BE73: =AVERAGE(#REF!,BE19,BE23,BE27,BE31,BE35,BE39,#REF!) ->  | BF73: =AVERAGE(#REF!,BF19,BF23,BF27,BF31,BF35,BF39,#REF!) ->  | BG73: =AVERAGE(#REF!,BG19,BG23,BG27,BG31,BG35,BG39,#REF!) ->  | BH73: =AVERAGE(#REF!,BH19,BH23,BH27,BH31,BH35,BH39,#REF!) ->  | BI73: =AVERAGE(#REF!,BI19,BI23,BI27,BI31,BI35,BI39,#REF!) ->  | BJ73: =AVERAGE(#REF!,BJ19,BJ23,BJ27,BJ31,BJ35,BJ39,#REF!) ->  | BK73: =AVERAGE(#REF!,BK19,BK23,BK27,BK31,BK35,BK39,#REF!) ->  | BL73: =AVERAGE(#REF!,BL19,BL23,BL27,BL31,BL35,BL39,#REF!) ->  | BM73: =AVERAGE(#REF!,BM19,BM23,BM27,BM31,BM35,BM39,#REF!) ->  | BN73: =AVERAGE(#REF!,BN19,BN23,BN27,BN31,BN35,BN39,#REF!) ->  | BO73: =AVERAGE(#REF!,BO19,BO23,BO27,BO31,BO35,BO39,#REF!) ->  | BP73: =AVERAGE(#REF!,BP19,BP23,BP27,BP31,BP35,BP39,#REF!) ->  | BQ73: =AVERAGE(#REF!,BQ19,BQ23,BQ27,BQ31,BQ35,BQ39,#REF!) ->  | BR73: =AVERAGE(#REF!,BR19,BR23,BR27,BR31,BR35,BR39,#REF!) ->  | BS73: =AVERAGE(#REF!,BS19,BS23,BS27,BS31,BS35,BS39,#REF!) ->  | BT73: =AVERAGE(#REF!,BT19,BT23,BT27,BT31,BT35,BT39,#REF!) ->  | BU73: =AVERAGE(#REF!,BU19,BU23,BU27,BU31,BU35,BU39,#REF!) ->  | BV73: =AVERAGE(#REF!,BV19,BV23,BV27,BV31,BV35,BV39,#REF!) ->  | BW73: =AVERAGE(#REF!,BW19,BW23,BW27,BW31,BW35,BW39,#REF!) ->  | BX73: =AVERAGE(#REF!,BX19,BX23,BX27,BX31,BX35,BX39,#REF!) ->  | BY73: =AVERAGE(#REF!,BY19,BY23,BY27,BY31,BY35,BY39,#REF!) ->  | BZ73: =AVERAGE(#REF!,BZ19,BZ23,BZ27,BZ31,BZ35,BZ39,#REF!) ->  | CA73: =AVERAGE(#REF!,CA19,CA23,CA27,CA31,CA35,CA39,#REF!) ->  | CB73: =AVERAGE(#REF!,CB19,CB23,CB27,CB31,CB35,CB39,#REF!) ->  | CC73: =AVERAGE(#REF!,CC19,CC23,CC27,CC31,CC35,CC39,#REF!) ->  | CD73: =AVERAGE(#REF!,CD19,CD23,CD27,CD31,CD35,CD39,#REF!) ->  | CE73: =AVERAGE(#REF!,CE19,CE23,CE27,CE31,CE35,CE39,#REF!) ->  | CF73: =AVERAGE(#REF!,CF19,CF23,CF27,CF31,CF35,CF39,#REF!) ->  | CG73: =AVERAGE(#REF!,CG19,CG23,CG27,CG31,CG35,CG39,#REF!) ->  | CH73: =AVERAGE(#REF!,CH19,CH23,CH27,CH31,CH35,CH39,#REF!) ->  | CI73: =AVERAGE(#REF!,CI19,CI23,CI27,CI31,CI35,CI39,#REF!) ->  | CJ73: =AVERAGE(#REF!,CJ19,CJ23,CJ27,CJ31,CJ35,CJ39,#REF!) ->  | CK73: =AVERAGE(#REF!,CK19,CK23,CK27,CK31,CK35,CK39,#REF!) ->  | CL73: =AVERAGE(#REF!,CL19,CL23,CL27,CL31,CL35,CL39,#REF!) ->  | CM73: =AVERAGE(#REF!,CM19,CM23,CM27,CM31,CM35,CM39,#REF!) ->  | CN73: =AVERAGE(#REF!,CN19,CN23,CN27,CN31,CN35,CN39,#REF!) ->  | CO73: =AVERAGE(#REF!,CO19,CO23,CO27,CO31,CO35,CO39,#REF!) ->  | CP73: =AVERAGE(#REF!,CP19,CP23,CP27,CP31,CP35,CP39,#REF!) ->  | CQ73: =AVERAGE(#REF!,CQ19,CQ23,CQ27,CQ31,CQ35,CQ39,#REF!) ->  | CR73: =AVERAGE(#REF!,CR19,CR23,CR27,CR31,CR35,CR39,#REF!) ->  | CS73: =AVERAGE(#REF!,CS19,CS23,CS27,CS31,CS35,CS39,#REF!) ->  | CT73: =AVERAGE(#REF!,CT19,CT23,CT27,CT31,CT35,CT39,#REF!) ->  | CU73: =AVERAGE(#REF!,CU19,CU23,CU27,CU31,CU35,CU39,#REF!) ->  | CV73: =AVERAGE(#REF!,CV19,CV23,CV27,CV31,CV35,CV39,#REF!) ->  | CW73: =AVERAGE(#REF!,CW19,CW23,CW27,CW31,CW35,CW39,#REF!) ->  | CX73: =AVERAGE(#REF!,CX19,CX23,CX27,CX31,CX35,CX39,#REF!) ->  | CY73: =AVERAGE(#REF!,CY19,CY23,CY27,CY31,CY35,CY39,#REF!) ->  | CZ73: =AVERAGE(#REF!,CZ19,CZ23,CZ27,CZ31,CZ35,CZ39,#REF!) ->  | DA73: =AVERAGE(#REF!,DA19,DA23,DA27,DA31,DA35,DA39,#REF!) ->  | DB73: =AVERAGE(#REF!,DB19,DB23,DB27,DB31,DB35,DB39,#REF!) ->  | DC73: =AVERAGE(#REF!,DC19,DC23,DC27,DC31,DC35,DC39,#REF!) ->  | DD73: =AVERAGE(#REF!,DD19,DD23,DD27,DD31,DD35,DD39,#REF!) ->  | DE73: =AVERAGE(#REF!,DE19,DE23,DE27,DE31,DE35,DE39,#REF!) ->  | DF73: =AVERAGE(#REF!,DF19,DF23,DF27,DF31,DF35,DF39,#REF!) ->  | DG73: =AVERAGE(#REF!,DG19,DG23,DG27,DG31,DG35,DG39,#REF!) ->  | DH73: =AVERAGE(#REF!,DH19,DH23,DH27,DH31,DH35,DH39,#REF!) ->  | DI73: =AVERAGE(#REF!,DI19,DI23,DI27,DI31,DI35,DI39,#REF!) ->  | DJ73: =AVERAGE(#REF!,DJ19,DJ23,DJ27,DJ31,DJ35,DJ39,#REF!) ->  | DK73: =AVERAGE(#REF!,DK19,DK23,DK27,DK31,DK35,DK39,#REF!) ->  | DL73: =AVERAGE(#REF!,DL19,DL23,DL27,DL31,DL35,DL39,#REF!) ->  | DM73: =AVERAGE(#REF!,DM19,DM23,DM27,DM31,DM35,DM39,#REF!) ->  | DN73: =AVERAGE(#REF!,DN19,DN23,DN27,DN31,DN35,DN39,#REF!) ->  | DO73: =AVERAGE(#REF!,DO19,DO23,DO27,DO31,DO35,DO39,#REF!) ->  | DP73: =AVERAGE(#REF!,DP19,DP23,DP27,DP31,DP35,DP39,#REF!) ->  | DQ73: =AVERAGE(#REF!,DQ19,DQ23,DQ27,DQ31,DQ35,DQ39,#REF!) ->  | DR73: =AVERAGE(#REF!,DR19,DR23,DR27,DR31,DR35,DR39,#REF!) ->  | DS73: =AVERAGE(#REF!,DS19,DS23,DS27,DS31,DS35,DS39,#REF!) ->  | DT73: =AVERAGE(#REF!,DT19,DT23,DT27,DT31,DT35,DT39,#REF!) ->  | DU73: =AVERAGE(#REF!,DU19,DU23,DU27,DU31,DU35,DU39,#REF!) ->  | DV73: =AVERAGE(#REF!,DV19,DV23,DV27,DV31,DV35,DV39,#REF!) ->  | DW73: =AVERAGE(#REF!,DW19,DW23,DW27,DW31,DW35,DW39,#REF!) ->  | DX73: =AVERAGE(#REF!,DX19,DX23,DX27,DX31,DX35,DX39,#REF!) ->  | DY73: =AVERAGE(#REF!,DY19,DY23,DY27,DY31,DY35,DY39,#REF!) ->  | DZ73: =AVERAGE(#REF!,DZ19,DZ23,DZ27,DZ31,DZ35,DZ39,#REF!) ->  | EA73: =AVERAGE(#REF!,EA19,EA23,EA27,EA31,EA35,EA39,#REF!) ->  | EB73: =AVERAGE(#REF!,EB19,EB23,EB27,EB31,EB35,EB39,#REF!) ->  | EC73: =AVERAGE(#REF!,EC19,EC23,EC27,EC31,EC35,EC39,#REF!) ->  | ED73: =AVERAGE(#REF!,ED19,ED23,ED27,ED31,ED35,ED39,#REF!) ->  | EE73: =AVERAGE(#REF!,EE19,EE23,EE27,EE31,EE35,EE39,#REF!) ->  | EF73: =AVERAGE(#REF!,EF19,EF23,EF27,EF31,EF35,EF39,#REF!) ->  | EG73: =AVERAGE(#REF!,EG19,EG23,EG27,EG31,EG35,EG39,#REF!) ->  | EH73: =AVERAGE(#REF!,EH19,EH23,EH27,EH31,EH35,EH39,#REF!) ->  | EI73: =AVERAGE(#REF!,EI19,EI23,EI27,EI31,EI35,EI39,#REF!) ->  | EJ73: =AVERAGE(#REF!,EJ19,EJ23,EJ27,EJ31,EJ35,EJ39,#REF!) ->  | EK73: =AVERAGE(#REF!,EK19,EK23,EK27,EK31,EK35,EK39,#REF!) ->  | EL73: =AVERAGE(#REF!,EL19,EL23,EL27,EL31,EL35,EL39,#REF!) ->  | EM73: =AVERAGE(#REF!,EM19,EM23,EM27,EM31,EM35,EM39,#REF!) ->  | EN73: =AVERAGE(#REF!,EN19,EN23,EN27,EN31,EN35,EN39,#REF!) ->  | EO73: =AVERAGE(#REF!,EO19,EO23,EO27,EO31,EO35,EO39,#REF!) ->  | EP73: =AVERAGE(#REF!,EP19,EP23,EP27,EP31,EP35,EP39,#REF!) ->  | EQ73: =AVERAGE(#REF!,EQ19,EQ23,EQ27,EQ31,EQ35,EQ39,#REF!) ->  | ER73: =AVERAGE(#REF!,ER19,ER23,ER27,ER31,ER35,ER39,#REF!) ->  | ES73: =AVERAGE(#REF!,ES19,ES23,ES27,ES31,ES35,ES39,#REF!) ->  | ET73: =AVERAGE(#REF!,ET19,ET23,ET27,ET31,ET35,ET39,#REF!) ->  | EU73: =AVERAGE(#REF!,EU19,EU23,EU27,EU31,EU35,EU39,#REF!) ->  | EV73: =AVERAGE(#REF!,EV19,EV23,EV27,EV31,EV35,EV39,#REF!) ->  | EW73: =AVERAGE(#REF!,EW19,EW23,EW27,EW31,EW35,EW39,#REF!) ->  | EX73: =AVERAGE(#REF!,EX19,EX23,EX27,EX31,EX35,EX39,#REF!) ->  | EY73: =AVERAGE(#REF!,EY19,EY23,EY27,EY31,EY35,EY39,#REF!) ->  | EZ73: =AVERAGE(#REF!,EZ19,EZ23,EZ27,EZ31,EZ35,EZ39,#REF!) ->  | FA73: =AVERAGE(#REF!,FA19,FA23,FA27,FA31,FA35,FA39,#REF!) ->  | FB73: =AVERAGE(#REF!,FB19,FB23,FB27,FB31,FB35,FB39,#REF!) ->  | FC73: =AVERAGE(#REF!,FC19,FC23,FC27,FC31,FC35,FC39,#REF!) ->  | FD73: =AVERAGE(#REF!,FD19,FD23,FD27,FD31,FD35,FD39,#REF!) ->  | FE73: =AVERAGE(#REF!,FE19,FE23,FE27,FE31,FE35,FE39,#REF!) ->  | FF73: =AVERAGE(#REF!,FF19,FF23,FF27,FF31,FF35,FF39,#REF!) ->  | FG73: =AVERAGE(#REF!,FG19,FG23,FG27,FG31,FG35,FG39,#REF!) ->  | FH73: =AVERAGE(#REF!,FH19,FH23,FH27,FH31,FH35,FH39,#REF!) ->  | FI73: =AVERAGE(#REF!,FI19,FI23,FI27,FI31,FI35,FI39,#REF!) ->  | FJ73: =AVERAGE(#REF!,FJ19,FJ23,FJ27,FJ31,FJ35,FJ39,#REF!) ->  | FK73: =AVERAGE(#REF!,FK19,FK23,FK27,FK31,FK35,FK39,#REF!) ->  | FL73: =AVERAGE(#REF!,FL19,FL23,FL27,FL31,FL35,FL39,#REF!) ->  | FM73: =AVERAGE(#REF!,FM19,FM23,FM27,FM31,FM35,FM39,#REF!) ->  | FN73: =AVERAGE(#REF!,FN19,FN23,FN27,FN31,FN35,FN39,#REF!) ->  | FO73: =AVERAGE(#REF!,FO19,FO23,FO27,FO31,FO35,FO39,#REF!) ->  | FP73: =AVERAGE(#REF!,FP19,FP23,FP27,FP31,FP35,FP39,#REF!) ->  | FQ73: =AVERAGE(#REF!,FQ19,FQ23,FQ27,FQ31,FQ35,FQ39,#REF!) ->  | FR73: =AVERAGE(#REF!,FR19,FR23,FR27,FR31,FR35,FR39,#REF!) ->  | FS73: =AVERAGE(#REF!,FS19,FS23,FS27,FS31,FS35,FS39,#REF!) ->  | FT73: =AVERAGE(#REF!,FT19,FT23,FT27,FT31,FT35,FT39,#REF!) ->  | FU73: =AVERAGE(#REF!,FU19,FU23,FU27,FU31,FU35,FU39,#REF!) ->  | FV73: =AVERAGE(#REF!,FV19,FV23,FV27,FV31,FV35,FV39,#REF!) ->  | FW73: =AVERAGE(#REF!,FW19,FW23,FW27,FW31,FW35,FW39,#REF!) ->  | FX73: =AVERAGE(#REF!,FX19,FX23,FX27,FX31,FX35,FX39,#REF!) ->  | FY73: =AVERAGE(#REF!,FY19,FY23,FY27,FY31,FY35,FY39,#REF!) ->  | FZ73: =AVERAGE(#REF!,FZ19,FZ23,FZ27,FZ31,FZ35,FZ39,#REF!) ->  | GA73: =AVERAGE(#REF!,GA19,GA23,GA27,GA31,GA35,GA39,#REF!) ->  | GB73: =AVERAGE(#REF!,GB19,GB23,GB27,GB31,GB35,GB39,#REF!) ->  | GC73: =AVERAGE(#REF!,GC19,GC23,GC27,GC31,GC35,GC39,#REF!) ->  | GD73: =AVERAGE(#REF!,GD19,GD23,GD27,GD31,GD35,GD39,#REF!) ->  | GE73: =AVERAGE(#REF!,GE19,GE23,GE27,GE31,GE35,GE39,#REF!) ->  | GF73: =AVERAGE(#REF!,GF19,GF23,GF27,GF31,GF35,GF39,#REF!) ->  | GG73: =AVERAGE(#REF!,GG19,GG23,GG27,GG31,GG35,GG39,#REF!) ->  | GH73: =AVERAGE(#REF!,GH19,GH23,GH27,GH31,GH35,GH39,#REF!) ->  | GI73: =AVERAGE(#REF!,GI19,GI23,GI27,GI31,GI35,GI39,#REF!) ->  | GJ73: =AVERAGE(#REF!,GJ19,GJ23,GJ27,GJ31,GJ35,GJ39,#REF!) ->  | GK73: =AVERAGE(#REF!,GK19,GK23,GK27,GK31,GK35,GK39,#REF!) ->  | GL73: =AVERAGE(#REF!,GL19,GL23,GL27,GL31,GL35,GL39,#REF!) ->  | GM73: =AVERAGE(#REF!,GM19,GM23,GM27,GM31,GM35,GM39,#REF!) ->  | GN73: =+GN13 -> 75.2 | GO73: 60.1 | GP73: 55.7 | GQ73: 67.5 | GR73: 63.9 | GS73: 72.2 | GT73: 79.3 | GU73: 65.9 | GV73: 66.6 | GW73: 50.6 | GX73: 57.5 | GY73: 74.6 | GZ73: 67.6 | HA73: 77.7 | HB73: 69.0 | HC73: 72.3 | HD73: 67.0 | HE73: 72.7 | HF73: 70.5 | HG73: 64.8 | HH73: 64.6 | HI73: 65.7 | HJ73: 63.7 | HK73: 62.8 | HL73: 66.7 | HM73: 68.7 | HN73: 70.4 | HO73: 66.7 | HP73: 60.7 | HQ73: 72.0 | HR73: 88.2 | HS73: 75.6 | HT73: 75.3 | HU73: 86.5 | HV73: 67.8 | HW73: 74.9 | HX73: 72.1 | HY73: 80.5 | HZ73: 74.8 | IA73: 72.4 | IB73: 85.9 | IC73: 77.0 | ID73: 80.6 | IE73: 87.1 | IF73: 85.2 | IG73: 81.7 | IH73: =+IH13 -> 95.2 | II73: =+II13 -> 91.8 | IJ73: 90.6 | IK73: =+IK13 -> 84.4 | IL73: 78.8 | IM73: 71.4 | IN73: 90.3 | IO73: 89.9 | IP73: 90.0 | IQ73: 93.3 | IR73: 80.8 | IS73: 63.5 | IT73: =+IT13 -> 63.3 | IU73: 69.0 | IV73: 65.3 | IW73: 64.4 | IX73: 78.4 | IY73: 79.9 | IZ73: 82.3 | JA73: 74.6 | JB73: 81.1 | JC73: 87.1 | JD73: 91.0 | JE73: 92.5 | JF73: 94.9 | JG73: 96.5 | JH73: 88.9 | JI73: 89.8 | JJ73: 90.4 | JK73: 85.0 | JL73: 80.7 | JM73: 85.1 | JN73: 88.7 | JO73: 78.9 | JP73: 85.2 | JQ73: =+JQ13 -> 89.7 | JR73: 87.0 | JS73: 92.9 | JT73: 93.3 | JU73: 93.8 | JV73: 89.4 | JW73: 92.2 | JX73: 92.1 | JY73: 89.2 | JZ73: 88.7 | KA73: 89.6 | KB73: 91.6 | KC73: =+KC13 -> 88.0 | KD73: 84.9 | KE73: 78.6 | KF73: 70.2 | KG73: 81.3 | KH73: 91.1 | KI73: 82.8 | KJ73: 64.3 | KK73: 67.5 | KL73: 75.4 | KM73: 77.9 | KN73: 65.6 | KO73: 70.2 | KP73: =+KP13 -> 78.5 | KQ73: 76.2 | KR73: 72.9 | KS73: 85.0 | KT73: 82.2 | KU73: 80.3 | KV73: 85.6 | KW73: =+KW13 -> 82.6 | KX73: 75.6 | KY73: 72.6 | KZ73: 76.6 | LA73: 72.3 | LB73: 85.5 | LC73: 94.0 | LD73: 90.4 | LE73: =+LE13 -> 91.4 | LF73: 90.7 | LG73: 81.1 | LH73: =+LH13 -> 86.1 | LI73: =+LI13 -> 88.5 | LJ73: 82.0 | LK73: =+LK13 -> 78.4 | LL73: 82.6 | LM73: =+LM13 -> 88.5 | LN73: =+LN13 -> 86.7 | LO73: =+LO13 -> 92.2 | LP73: =+LP13 -> 81.8 | LQ73: 90.0 | LR73: =+LR13 -> 82.2
E74: DF-SC-SV | F74: 85.0 | GN74: =+#REF! ->  | GO74: =+#REF! ->  | GP74: =+#REF! ->  | GQ74: =+#REF! ->  | GR74: =+#REF! ->  | GS74: =+#REF! ->  | GT74: =+#REF! ->  | GU74: =+#REF! ->  | GV74: =+#REF! ->  | GW74: =+#REF! ->  | GX74: =+#REF! ->  | GY74: =+#REF! ->  | GZ74: =+#REF! ->  | HA74: =+#REF! ->  | HB74: =+#REF! ->  | HC74: =+#REF! ->  | HD74: =+#REF! ->  | HE74: =+#REF! ->  | HF74: =+#REF! ->  | HG74: =+#REF! ->  | HH74: =+#REF! ->  | HI74: =+#REF! ->  | HJ74: =+#REF! ->  | HK74: =+#REF! ->  | HL74: =+#REF! ->  | HM74: =+#REF! ->  | HN74: =+#REF! ->  | HO74: =+#REF! ->  | HP74: =+#REF! ->  | HQ74: =+#REF! ->  | HR74: =+#REF! ->  | HS74: =+#REF! ->  | HT74: =+#REF! ->  | HU74: =+#REF! ->  | HV74: =+#REF! ->  | HW74: =+#REF! ->  | HX74: =+#REF! ->  | HY74: =+#REF! ->  | HZ74: =+#REF! ->  | IA74: =+#REF! ->  | IB74: =+#REF! ->  | IC74: =+#REF! ->  | ID74: 100.0 | IE74: 100.0 | IF74: 98.5 | IG74: 100.0 | IH74: =+#REF! ->  | II74: =+#REF! ->  | IJ74: 89.9 | IK74: =+#REF! ->  | IL74: =+#REF! ->  | IM74: =+#REF! ->  | IN74: =+#REF! ->  | IO74: =+#REF! ->  | IP74: =+#REF! ->  | IQ74: =+#REF! ->  | IR74: =+#REF! ->  | IS74: 95.8 | IT74: =+#REF! ->  | IU74: =+#REF! ->  | IV74: =+#REF! ->  | IW74: =+#REF! ->  | IX74: =+#REF! ->  | IY74: =+#REF! ->  | IZ74: =+#REF! ->  | JA74: =+#REF! ->  | JB74: =+#REF! ->  | JC74: =+#REF! ->  | JD74: =+#REF! ->  | JE74: =+#REF! ->  | JF74: =+#REF! ->  | JG74: =+#REF! ->  | JH74: =+#REF! ->  | JI74: =+#REF! ->  | JJ74: =+#REF! ->  | JK74: =+#REF! ->  | JL74: =+#REF! ->  | JM74: =+#REF! ->  | JN74: 100.0 | JO74: 100.0 | JP74: 98.2 | JQ74: =+#REF! ->  | JR74: =+#REF! ->  | JS74: =+#REF! ->  | JT74: =+#REF! ->  | JU74: =+#REF! ->  | JV74: =+#REF! ->  | JW74: =+#REF! ->  | JX74: =+#REF! ->  | JY74: 98.2 | JZ74: 100.0 | KA74: 97.6 | KB74: 94.9 | KC74: =+#REF! ->  | KD74: =+#REF! ->  | KE74: =+#REF! ->  | KF74: =+#REF! ->  | KG74: =+#REF! ->  | KH74: =KH44 -> 100.0 | KI74: 100.0 | KJ74: 100.0 | KK74: 100.0 | KL74: 100.0 | KM74: 100.0 | KN74: 100.0 | KO74: =KO44 -> 100.0 | KP74: 100.0 | KQ74: 100.0 | KR74: 100.0 | KS74: 100.0 | KT74: 100.0 | KU74: 100.0 | KV74: 100.0 | KW74: =KW44 -> 100.0 | KX74: 100.0 | KY74: 100.0 | KZ74: 100.0 | LA74: 100.0 | LB74: 100.0 | LC74: 100.0 | LD74: 100.0 | LE74: =LE44 -> 100.0 | LF74: 100.0 | LG74: 100.0 | LH74: =LH44 -> 100.0 | LI74: =LI44 -> 100.0 | LJ74: 100.0 | LK74: =LK44 -> 100.0 | LL74: =LL44 -> 100.0 | LM74: 100.0 | LN74: =LN44 -> 100.0 | LO74: =LO44 -> 100.0 | LP74: 100.0 | LQ74: 100.0 | LR74: =LR44 -> 100.0
E75: DF-JU-PR | F75: 85.0 | GN75: =+GN17 -> 77.1 | GO75: 73.6 | GP75: 68.1 | GQ75: 71.4 | GR75: 93.5 | GS75: 83.6 | GT75: 85.1 | GU75: 88.3 | GV75: 89.0 | GW75: 88.7 | GX75: 90.2 | GY75: 88.1 | GZ75: 89.8 | HA75: 86.3 | HB75: 86.2 | HC75: 88.0 | HD75: 87.1 | HE75: 89.4 | HF75: 89.0 | HG75: 93.8 | HH75: 86.1 | HI75: 72.0 | HJ75: 94.7 | HK75: 91.8 | HL75: 81.8 | HM75: 86.9 | HN75: 83.3 | HO75: 82.3 | HP75: 81.4 | HQ75: 88.3 | HR75: 92.6 | HS75: 85.2 | HT75: 91.4 | HU75: 86.2 | HV75: 87.8 | HW75: 80.8 | HX75: 65.9 | HY75: 74.1 | HZ75: 89.8 | IA75: 89.2 | IB75: 72.9 | IC75: 72.3 | ID75: 55.7 | IE75: 82.3 | IF75: 69.1 | IG75: 88.9 | IH75: =+IH17 -> 89.3 | II75: =+II17 -> 89.8 | IJ75: 86.0 | IK75: =+IK17 -> 89.4 | IL75: 72.4 | IM75: 87.6 | IN75: 87.5 | IO75: 79.5 | IP75: 79.8 | IQ75: 88.4 | IR75: 87.2 | IS75: 91.9 | IT75: =+IT17 -> 86.6 | IU75: 86.6 | IV75: 93.7 | IW75: 86.6 | IX75: 92.1 | IY75: 91.9 | IZ75: 82.8 | JA75: 70.8 | JB75: 72.7 | JC75: 81.4 | JD75: 92.8 | JE75: 91.1 | JF75: 91.1 | JG75: 89.8 | JH75: 91.0 | JI75: 89.6 | JJ75: 91.1 | JK75: 92.4 | JL75: 89.1 | JM75: 93.1 | JN75: 92.3 | JO75: 76.9 | JP75: 81.5 | JQ75: =+JQ17 -> 87.1 | JR75: 90.0 | JS75: 89.0 | JT75: 76.4 | JU75: 86.7 | JV75: 88.2 | JW75: 75.2 | JX75: 91.5 | JY75: 93.6 | JZ75: 94.5 | KA75: 92.7 | KB75: 95.2 | KC75: =+KC17 -> 87.3 | KD75: 88.3 | KE75: 86.9 | KF75: 90.1 | KG75: 90.5 | KH75: 92.8 | KI75: 87.7 | KJ75: 92.0 | KK75: 94.0 | KL75: 87.7 | KM75: 85.0 | KN75: 90.3 | KO75: 88.6 | KP75: =+KP17 -> 73.8 | KQ75: 48.0 | KR75: 60.3 | KS75: 63.0 | KT75: 68.2 | KU75: =+KU17 -> 70.8 | KV75: 82.8 | KW75: =+KW17 -> 82.6 | KX75: =+KX17 -> 85.5 | KY75: 95.4 | KZ75: 87.4 | LA75: 90.5 | LB75: 90.0 | LC75: 85.5 | LD75: 83.8 | LE75: =+LE17 -> 92.8 | LF75: 92.9 | LG75: 73.0 | LH75: =+LH17 -> 96.9 | LI75: =+LI17 -> 85.3 | LJ75: 84.9 | LK75: =+LK17 -> 89.0 | LL75: 96.2 | LM75: 87.1 | LN75: 92.5 | LO75: =+LO17 -> 88.3 | LP75: 82.4 | LQ75: 69.8 | LR75: 82.6 | LU75: =SUM(LU13:LU37) -> 26 | LW75: =SUM(LU13:LU39) -> 26 | LX75: =SUM(LU13:LU37) -> 26
E76: DF-JU-SO | F76: 85.0 | GN76: =+GN21 -> 93.8 | GO76: 78.1 | GP76: 74.1 | GQ76: 91.9 | GR76: 73.0 | GS76: 66.8 | GT76: 80.7 | GU76: 80.9 | GV76: 73.4 | GW76: 71.9 | GX76: 64.3 | GY76: 59.1 | GZ76: 62.3 | HA76: 90.9 | HB76: 63.3 | HC76: 76.5 | HD76: 87.2 | HE76: 86.9 | HF76: 86.0 | HG76: 79.2 | HH76: 77.6 | HI76: 87.9 | HJ76: 75.2 | HK76: 85.2 | HL76: 60.9 | HM76: 65.5 | HN76: 70.8 | HO76: 74.1 | HP76: 89.1 | HQ76: 87.4 | HR76: 78.3 | HS76: 87.2 | HT76: 67.7 | HU76: 83.6 | HV76: 71.9 | HW76: 81.2 | HX76: 57.1 | HY76: 66.4 | HZ76: 61.7 | IA76: 66.0 | IB76: 66.3 | IC76: 43.9 | ID76: 61.6 | IE76: 74.3 | IF76: 88.8 | IG76: 92.9 | IH76: =+IH21 -> 91.5 | II76: =+II21 -> 87.7 | IJ76: 85.3 | IK76: =+IK21 -> 86.9 | IL76: 91.2 | IM76: 89.9 | IN76: 61.7 | IO76: 52.4 | IP76: 70.1 | IQ76: 63.8 | IR76: 78.9 | IS76: 81.7 | IT76: =+IT21 -> 88.0 | IU76: 62.5 | IV76: 68.7 | IW76: 62.7 | IX76: 68.0 | IY76: 66.5 | IZ76: 65.6 | JA76: 64.0 | JB76: 66.8 | JC76: 70.6 | JD76: 61.9 | JE76: 79.7 | JF76: 79.2 | JG76: 83.4 | JH76: 77.1 | JI76: 85.1 | JJ76: 90.7 | JK76: 92.6 | JL76: 86.7 | JM76: 84.3 | JN76: 73.9 | JO76: 75.5 | JP76: 85.5 | JQ76: =+JQ21 -> 90.5 | JR76: 91.7 | JS76: 76.8 | JT76: 67.2 | JU76: 91.1 | JV76: 75.8 | JW76: 88.9 | JX76: 89.9 | JY76: 87.2 | JZ76: 91.6 | KA76: 91.5 | KB76: 90.2 | KC76: =+KC21 -> 93.1 | KD76: 90.7 | KE76: 91.0 | KF76: 88.9 | KG76: 93.0 | KH76: 90.6 | KI76: 66.6 | KJ76: 73.5 | KK76: 95.0 | KL76: 81.3 | KM76: 94.8 | KN76: 95.6 | KO76: 83.0 | KP76: =+KP21 -> 91.5 | KQ76: 89.6 | KR76: 81.3 | KS76: 82.8 | KT76: 86.6 | KU76: =+KU21 -> 93.1 | KV76: 92.1 | KW76: =+KW21 -> 92.3 | KX76: =+KX21 -> 91.4 | KY76: 80.0 | KZ76: 87.3 | LA76: 89.5 | LB76: 92.7 | LC76: 80.0 | LD76: 88.6 | LE76: =+LE21 -> 89.9 | LF76: 91.7 | LG76: 90.4 | LH76: =+LH21 -> 86.4 | LI76: =+LI21 -> 87.4 | LJ76: 94.5 | LK76: =+LK21 -> 77.3 | LL76: 57.8 | LM76: 81.3 | LN76: 91.9 | LO76: =+LO21 -> 90.2 | LP76: 84.2 | LQ76: 91.7 | LR76: 87.1
E77: DF-JU-TL | F77: 85.0 | GN77: =+GN25 -> 94.9 | GO77: 89.1 | GP77: 80.4 | GQ77: 99.6 | GR77: 100.0 | GS77: 100.0 | GT77: 100.0 | GU77: 100.0 | GV77: 100.0 | GW77: 100.0 | GX77: 99.4 | GY77: 96.4 | GZ77: 91.4 | HA77: 100.0 | HB77: 100.0 | HC77: 98.4 | HD77: 100.0 | HE77: 96.2 | HF77: 86.6 | HG77: 98.2 | HH77: 97.6 | HI77: 100.0 | HJ77: 97.8 | HK77: 99.0 | HL77: 85.7 | HM77: 100.0 | HN77: 100.0 | HO77: 100.0 | HP77: 97.7 | HQ77: 99.6 | HR77: 96.2 | HS77: 99.7 | HT77: 92.3 | HU77: 96.5 | HV77: 99.1 | HW77: 97.3 | HX77: 92.9 | HY77: 94.6 | IA77: 100.0 | IB77: 100.0 | IC77: 100.0 | ID77: 99.1 | IE77: 98.8 | IF77: 91.2 | IG77: 100.0 | IH77: =+IH25 -> 100.0 | II77: =+II25 -> 100.0 | IJ77: 98.8 | IK77: =+IK25 -> 85.1 | IL77: 97.3 | IM77: 100.0 | IN77: 98.8 | IO77: 99.0 | IP77: 98.8 | IQ77: 93.5 | IR77: 99.3 | IS77: 99.3 | IT77: =+IT25 -> 99.4 | IU77: 100.0 | IV77: 100.0 | IW77: 98.2 | IX77: 98.8 | IY77: 100.0 | IZ77: 96.4 | JA77: 96.5 | JB77: 100.0 | JC77: 99.7 | JD77: 98.9 | JE77: 98.9 | JF77: 96.8 | JG77: 98.2 | JH77: 26.0 | JI77: 50.0 | JJ77: 47.9 | JK77: 49.3 | JL77: 50.0 | JM77: 48.7 | JN77: 50.0 | JO77: 50.0 | JP77: 69.3 | JQ77: =+JQ25 -> 98.5 | JR77: 95.5 | JS77: 89.6 | JT77: 95.6 | JU77: 98.8 | JV77: 95.2 | JW77: 99.0 | JX77: 100.0 | JY77: 89.9 | JZ77: 99.1 | KA77: 97.6 | KB77: 96.4 | KC77: =+KC25 -> 97.2 | KD77: 99.1 | KE77: 98.5 | KF77: 95.5 | KG77: 95.1 | KH77: 97.5 | KI77: 96.7 | KJ77: 97.6 | KK77: 98.8 | KL77: 95.2 | KM77: 91.7 | KN77: 98.6 | KO77: 95.2 | KP77: =+KP25 -> 91.7 | KQ77: 49.1 | KR77: 54.0 | KS77: 62.3 | KT77: 33.6 | KU77: =+KU25 -> 40.5 | KV77: 85.1 | KW77: =+KW25 -> 39.7 | KX77: =+KX25 -> 39.7 | KY77: 17.3 | KZ77: 47.6 | LA77: 41.8 | LB77: 45.9 | LC77: 48.1 | LD77: 14.7 | LE77: =+LE25 -> 48.4 | LF77: 39.3 | LG77: 46.8 | LH77: =+LH25 -> 74.2 | LI77: =+LI25 -> 97.0 | LJ77: 86.7 | LK77: =+LK25 -> 99.4 | LL77: 100.0 | LM77: 100.0 | LN77: 92.7 | LO77: =+LO25 -> 94.6 | LP77: 97.6 | LQ77: 49.9 | LR77: 64.4
E78: DF-MZ-CO | F78: 85.0 | GN78: =+GN29 -> 94.9 | GO78: 88.3 | GP78: 95.7 | GQ78: 95.7 | GR78: 89.2 | GS78: 88.0 | GT78: 95.8 | GU78: 99.3 | GV78: 87.3 | GW78: 96.4 | GX78: 94.1 | GY78: 93.3 | GZ78: 87.2 | HA78: 97.6 | HB78: 95.5 | HC78: 89.2 | HD78: 91.1 | HE78: 72.6 | HF78: 85.4 | HG78: 91.6 | HH78: 90.1 | HI78: 96.7 | HJ78: 98.1 | HK78: 94.0 | HL78: 99.1 | HM78: 98.4 | HN78: 72.5 | HO78: 85.6 | HP78: 95.1 | HQ78: 89.1 | HR78: 99.6 | HS78: 98.3 | HT78: 95.0 | HU78: 84.9 | HV78: 95.3 | HW78: 89.8 | HX78: 94.4 | HY78: 97.2 | HZ78: 94.3 | IA78: 90.8 | IB78: 94.6 | IC78: 93.8 | ID78: 96.4 | IE78: 98.0 | IF78: 87.9 | IG78: 87.6 | IH78: =+IH29 -> 96.4 | II78: =+II29 -> 96.4 | IJ78: 93.9 | IK78: =+IK29 -> 92.4 | IL78: 93.7 | IM78: 97.7 | IN78: 97.3 | IO78: 94.0 | IP78: 90.8 | IQ78: 99.1 | IR78: 95.9 | IS78: 97.5 | IT78: =+IT29 -> 92.2 | IU78: 87.5 | IV78: 92.8 | IW78: 96.3 | IX78: 85.4 | IY78: 85.4 | IZ78: 91.1 | JA78: 93.3 | JB78: 93.2 | JC78: 95.4 | JD78: 97.2 | JE78: 95.8 | JF78: 83.6 | JG78: 94.8 | JH78: 96.8 | JI78: 91.8 | JJ78: 96.1 | JK78: 97.6 | JL78: 91.1 | JM78: 92.1 | JN78: 81.6 | JO78: 85.7 | JP78: 93.5 | JQ78: =+JQ29 -> 99.3 | JR78: 85.9 | JS78: 89.9 | JT78: 92.8 | JU78: 98.6 | JV78: 91.9 | JW78: 96.2 | JX78: 92.3 | JY78: 96.8 | JZ78: 96.8 | KA78: 69.0 | KB78: 63.6 | KC78: =+KC29 -> 77.4 | KD78: 95.5 | KE78: 93.2 | KF78: 94.0 | KG78: 94.1 | KH78: 66.1 | KI78: 88.3 | KJ78: 98.2 | KK78: 96.8 | KL78: 88.3 | KM78: 85.7 | KN78: 95.1 | KO78: 97.0 | KP78: =+KP29 -> 94.5 | KQ78: 98.9 | KR78: 95.0 | KS78: 97.6 | KT78: 96.2 | KU78: =+KU29 -> 97.7 | KV78: 95.6 | KW78: =+KW29 -> 94.0 | KX78: =+KX29 -> 99.1 | KY78: 95.6 | KZ78: 97.2 | LA78: 96.5 | LB78: 86.6 | LC78: 78.7 | LD78: 87.0 | LE78: =+LE29 -> 77.6 | LF78: 98.8 | LG78: 95.0 | LH78: =+LH29 -> 90.3 | LI78: =+LI29 -> 99.8 | LJ78: 86.7 | LK78: =+LK29 -> 56.9 | LL78: 37.5 | LM78: 93.1 | LN78: 97.3 | LO78: =+LO29 -> 95.6 | LP78: 95.5 | LQ78: 96.7 | LR78: 90.8
E79: DF-CA-AN | F79: 85.0 | GN79: =+GN33 -> 63.7 | GO79: 94.3 | GP79: 95.2 | GQ79: 98.0 | GR79: 94.9 | GS79: 96.8 | GT79: 95.0 | GU79: 97.4 | GV79: 94.7 | GW79: 95.9 | GX79: 97.7 | GY79: 92.3 | GZ79: 85.6 | HA79: 91.6 | HB79: 86.0 | HC79: 90.2 | HD79: 97.4 | HE79: 92.6 | HF79: 97.0 | HG79: 95.9 | HH79: 96.6 | HI79: 96.6 | HJ79: 74.8 | HK79: 91.2 | HL79: 97.0 | HM79: 97.4 | HN79: 98.5 | HO79: 71.3 | HP79: 63.5 | HQ79: 66.3 | HR79: 61.0 | HS79: 65.2 | HT79: 65.4 | HU79: 59.5 | HV79: 60.9 | HW79: 65.2 | HX79: 94.2 | HY79: 87.6 | HZ79: 92.6 | IA79: 94.5 | IB79: 80.2 | IC79: 78.1 | ID79: 96.5 | IE79: 94.8 | IF79: 88.5 | IG79: 97.7 | IH79: =+IH33 -> 82.4 | II79: =+II33 -> 95.6 | IJ79: 97.8 | IK79: =+IK33 -> 98.4 | IL79: 90.6 | IM79: 97.0 | IN79: 94.2 | IO79: 92.8 | IP79: 85.1 | IQ79: 98.3 | IR79: 98.0 | IS79: 85.4 | IT79: =+IT33 -> 96.6 | IU79: 96.2 | IV79: 61.9 | IW79: 63.9 | IX79: 63.4 | IY79: 85.0 | IZ79: 82.6 | JA79: 69.4 | JB79: 61.7 | JC79: 93.2 | JD79: 97.1 | JE79: 97.1 | JF79: 93.2 | JG79: 94.0 | JH79: 97.8 | JI79: 98.5 | JJ79: 93.2 | JK79: 97.2 | JL79: 97.9 | JM79: 88.6 | JN79: 95.0 | JO79: 92.3 | JP79: 96.1 | JQ79: =+JQ33 -> 97.3 | JR79: 90.7 | JS79: 70.0 | JT79: 98.0 | JU79: 96.0 | JV79: 93.8 | JW79: 95.5 | JX79: 96.0 | JY79: 97.1 | JZ79: 89.0 | KA79: 66.9 | KB79: 64.7 | KC79: =+KC33 -> 67.3 | KD79: 62.7 | KE79: 62.9 | KF79: 65.6 | KG79: 62.6 | KH79: 62.7 | KI79: 64.6 | KJ79: 66.3 | KK79: 63.0 | KL79: 64.0 | KM79: 61.4 | KN79: 64.5 | KO79: 61.7 | KP79: =+KP33 -> 64.5 | KQ79: 70.6 | KR79: 96.5 | KS79: 85.5 | KT79: 61.1 | KU79: =+KU33 -> 58.2 | KV79: 66.2 | KW79: =+KW33 -> 66.5 | KX79: =+KX33 -> 65.6 | KY79: 76.2 | KZ79: 96.7 | LA79: 93.3 | LB79: 87.3 | LC79: 93.2 | LD79: 86.3 | LE79: =+LE33 -> 94.6 | LF79: 98.0 | LG79: 95.0 | LH79: =+LH33 -> 63.5 | LI79: =+LI33 -> 60.2 | LJ79: 61.2 | LK79: =+LK33 -> 56.7 | LL79: 61.3 | LM79: 65.8 | LN79: 65.4 | LO79: =+LO33 -> 62.7 | LP79: 63.2 | LQ79: 61.9 | LR79: 73.4
E80: DF-LZ-CO | F80: 85.0 | GN80: =+GN37 -> 90.9 | GO80: 93.0 | GP80: 87.6 | GQ80: 99.3 | GR80: 94.1 | GS80: 59.8 | GT80: 56.1 | GU80: 59.8 | GV80: 56.5 | GW80: 70.4 | GX80: 78.8 | GY80: 89.0 | GZ80: 85.0 | HA80: 89.0 | HB80: 86.9 | HC80: 97.4 | HD80: 85.2 | HE80: 75.0 | HF80: 87.9 | HG80: 90.8 | HH80: 96.1 | HI80: 85.6 | HJ80: 91.3 | HK80: 78.4 | HL80: 88.6 | HM80: 93.9 | HN80: 95.4 | HO80: 92.4 | HP80: 95.1 | HQ80: 87.5 | HR80: 75.3 | HS80: 85.4 | HT80: 94.9 | HU80: 91.0 | HV80: 89.8 | HW80: 94.3 | HX80: 98.1 | HY80: 73.8 | HZ80: 89.9 | IA80: 95.2 | IB80: 94.5 | IC80: 95.1 | ID80: 93.9 | IE80: 86.6 | IF80: 89.7 | IG80: 94.2 | IH80: =+IH37 -> 87.3 | II80: =+II37 -> 92.4 | IJ80: 88.6 | IK80: =+IK37 -> 97.8 | IL80: 87.8 | IM80: 92.3 | IN80: 96.8 | IO80: 90.5 | IP80: 98.1 | IQ80: 89.4 | IR80: 82.4 | IS80: 67.8 | IT80: =+IT37 -> 48.4 | IU80: 85.4 | IV80: 89.3 | IW80: 90.4 | IX80: 87.6 | IY80: 88.6 | IZ80: 97.0 | JA80: 86.0 | JB80: 91.4 | JC80: 89.4 | JD80: 93.9 | JE80: 96.5 | JF80: 91.5 | JG80: 90.0 | JH80: 92.9 | JI80: 88.2 | JJ80: 88.9 | JK80: 92.7 | JL80: 90.0 | JM80: 88.9 | JN80: 96.6 | JO80: 86.2 | JP80: 89.4 | JQ80: =+JQ37 -> 88.7 | JR80: 89.9 | JS80: 95.2 | JT80: 55.6 | JU80: 75.4 | JV80: 89.7 | JW80: 93.8 | JX80: 85.1 | JY80: 89.6 | JZ80: 91.1 | KA80: 85.8 | KB80: 85.3 | KC80: =+KC37 -> 89.8 | KD80: 89.7 | KE80: 92.9 | KF80: 85.1 | KG80: 54.2 | KH80: 88.7 | KI80: 86.9 | KJ80: 63.4 | KK80: 0.0 | KL80: 72.0 | KM80: 47.9 | KN80: 79.0 | KO80: 89.9 | KP80: =+KP37 -> 91.2 | KQ80: 96.2 | KR80: 91.2 | KS80: 92.0 | KT80: 96.1 | KU80: =+KU37 -> 82.3 | KV80: 77.4 | KW80: =+KW37 -> 95.3 | KX80: =+KX37 -> 85.3 | KY80: 78.0 | KZ80: 73.5 | LA80: 88.7 | LB80: 92.4 | LC80: 91.3 | LD80: 96.8 | LE80: =+LE37 -> 93.3 | LF80: 92.3 | LG80: 86.6 | LH80: =+LH37 -> 73.7 | LI80: =+LI37 -> 94.6 | LJ80: 78.1 | LK80: =+LK37 -> 88.1 | LL80: 79.5 | LM80: 94.3 | LN80: 77.0 | LO80: =+LO37 -> 94.9 | LP80: 98.3 | LQ80: 85.0 | LR80: 87.8
E81: DF-EQ-VI | F81: 85.0 | JB81: =+#REF! ->  | JC81: =+#REF! ->  | JD81: =+#REF! ->  | JE81: =+#REF! ->  | JF81: =+#REF! ->  | JG81: =+#REF! ->  | JH81: =+#REF! ->  | JI81: =+#REF! ->  | JJ81: =+#REF! ->  | JK81: =+#REF! ->  | JL81: =+#REF! ->  | JM81: =+#REF! ->  | JN81: 94.0 | JO81: 93.8 | JP81: 100.0 | JQ81: =+#REF! ->  | JR81: =+#REF! ->  | JS81: =+#REF! ->  | JT81: =+#REF! ->  | JU81: =+#REF! ->  | JV81: =+#REF! ->  | JW81: =+#REF! ->  | JX81: =+#REF! ->  | JY81: 98.2 | JZ81: 100.0 | KA81: 92.9 | KB81: 98.8 | KC81: =+#REF! ->  | KD81: =+#REF! ->  | KE81: =+#REF! ->  | KF81: =+#REF! ->  | KG81: =+#REF! ->  | KH81: =KH47 -> 100.0 | KI81: 79.2 | KJ81: 100.0 | KK81: 100.0 | KL81: 100.0 | KM81: 100.0 | KN81: 100.0 | KO81: =KO47 -> 100.0 | KP81: 97.0 | KQ81: 96.1 | KR81: 93.8 | KS81: 100.0 | KT81: =KT47 -> 100.0 | KU81: =KU47 -> 97.9 | KV81: =KV47 -> 100.0 | KW81: =KW47 -> 85.1 | KX81: =KX47 -> 100.0 | KY81: 94.1 | KZ81: 97.0 | LA81: 100.0 | LB81: 100.0 | LC81: 91.1 | LD81: 100.0 | LE81: =LE47 -> 96.5 | LF81: 97.9 | LG81: 93.8 | LH81: =LH47 -> 98.5 | LI81: =LI47 -> 95.9 | LJ81: 100.0 | LK81: =LK47 -> 57.1 | LL81: 0.0 | LM81: 100.0 | LN81: 91.1 | LO81: =LO47 -> 97.9 | LP81: 100.0 | LQ81: 100.0 | LR81: 92.7
E82: DF-EQ-TR | F82: 85.0 | JB82: =+#REF! ->  | JC82: =+#REF! ->  | JK82: =#REF! ->  | JL82: =#REF! ->  | JM82: =#REF! ->  | JN82: 73.7 | JO82: 72.6 | JP82: 92.3 | JQ82: =#REF! ->  | JR82: =#REF! ->  | JS82: =#REF! ->  | JT82: =#REF! ->  | JU82: =#REF! ->  | JV82: =#REF! ->  | JW82: =#REF! ->  | JX82: =#REF! ->  | JY82: 55.5 | JZ82: 63.6 | KA82: 69.7 | KB82: 67.3 | KC82: =#REF! ->  | KD82: =#REF! ->  | KE82: =#REF! ->  | KF82: =#REF! ->  | KG82: =#REF! ->  | KH82: =KH51 -> 86.4 | KI82: 100.0 | KJ82: 100.0 | KK82: 100.0 | KL82: 100.0 | KM82: 91.7 | KN82: 87.5 | KO82: =KO51 -> 95.8 | KP82: 96.4 | KQ82: 96.8 | KR82: 89.0 | KS82: 93.5 | KT82: =KT51 -> 85.6 | KU82: =KU51 -> 78.0 | KV82: =KV51 -> 94.4 | KW82: =KW51 -> 92.7 | KX82: =KX51 -> 94.7 | KY82: 94.4 | KZ82: 96.7 | LA82: 87.0 | LB82: 95.6 | LC82: 93.3 | LD82: 83.9 | LE82: =LE51 -> 78.5 | LF82: 74.6 | LG82: 96.5 | LH82: =LH51 -> 91.5 | LI82: =LI51 -> 86.8 | LJ82: 87.3 | LK82: =LK51 -> 93.1 | LL82: 93.1 | LM82: 92.7 | LN82: 87.2 | LO82: =LO51 -> 92.5 | LP82: 97.6 | LQ82: 91.3 | LR82: 90.6
E83: UTIL | F83: =+F31 -> 30.0 | G83: =AVERAGE(G18,G22,G26,G30,G34,G38,#REF!,G56) ->  | H83: =AVERAGE(H18,H22,H26,H30,H34,H38,#REF!,H56) ->  | I83: =AVERAGE(I18,I22,I26,I30,I34,I38,#REF!,I56) ->  | J83: =AVERAGE(J18,J22,J26,J30,J34,J38,#REF!,J56) ->  | K83: =AVERAGE(K18,K22,K26,K30,K34,K38,#REF!,K56) ->  | L83: =AVERAGE(L18,L22,L26,L30,L34,L38,#REF!,L56) ->  | M83: =AVERAGE(M18,M22,M26,M30,M34,M38,#REF!,M56) ->  | N83: =AVERAGE(N18,N22,N26,N30,N34,N38,#REF!,N56) ->  | O83: =AVERAGE(O18,O22,O26,O30,O34,O38,#REF!,O56) ->  | P83: =AVERAGE(P18,P22,P26,P30,P34,P38,#REF!,P56) ->  | Q83: =AVERAGE(Q18,Q22,Q26,Q30,Q34,Q38,#REF!,Q56) ->  | R83: =AVERAGE(R18,R22,R26,R30,R34,R38,#REF!,R56) ->  | S83: =AVERAGE(S18,S22,S26,S30,S34,S38,#REF!,S56) ->  | T83: =AVERAGE(T18,T22,T26,T30,T34,T38,#REF!,T56) ->  | U83: =AVERAGE(U18,U22,U26,U30,U34,U38,#REF!,U56) ->  | V83: =AVERAGE(V18,V22,V26,V30,V34,V38,#REF!,V56) ->  | W83: =AVERAGE(W18,W22,W26,W30,W34,W38,#REF!,W56) ->  | X83: =AVERAGE(X18,X22,X26,X30,X34,X38,#REF!,X56) ->  | Y83: =AVERAGE(Y18,Y22,Y26,Y30,Y34,Y38,#REF!,Y56) ->  | Z83: =AVERAGE(Z18,Z22,Z26,Z30,Z34,Z38,#REF!,Z56) ->  | AA83: =AVERAGE(AA18,AA22,AA26,AA30,AA34,AA38,#REF!,AA56) ->  | AB83: =AVERAGE(AB18,AB22,AB26,AB30,AB34,AB38,#REF!,AB56) ->  | AC83: =AVERAGE(AC18,AC22,AC26,AC30,AC34,AC38,#REF!,AC56) ->  | AD83: =AVERAGE(AD18,AD22,AD26,AD30,AD34,AD38,#REF!,AD56) ->  | AE83: =AVERAGE(AE18,AE22,AE26,AE30,AE34,AE38,#REF!,AE56) ->  | AF83: =AVERAGE(AF18,AF22,AF26,AF30,AF34,AF38,#REF!,AF56) ->  | AG83: =AVERAGE(AG18,AG22,AG26,AG30,AG34,AG38,#REF!,AG56) ->  | AH83: =AVERAGE(AH18,AH22,AH26,AH30,AH34,AH38,#REF!,AH56) ->  | AI83: =AVERAGE(AI18,AI22,AI26,AI30,AI34,AI38,#REF!,AI56) ->  | AJ83: =AVERAGE(AJ18,AJ22,AJ26,AJ30,AJ34,AJ38,#REF!,AJ56) ->  | AK83: =AVERAGE(AK18,AK22,AK26,AK30,AK34,AK38,#REF!,AK56) ->  | AL83: =AVERAGE(AL18,AL22,AL26,AL30,AL34,AL38,#REF!,AL56) ->  | AM83: =AVERAGE(AM18,AM22,AM26,AM30,AM34,AM38,#REF!,AM56) ->  | AN83: =AVERAGE(AN18,AN22,AN26,AN30,AN34,AN38,#REF!,AN56) ->  | AO83: =AVERAGE(AO18,AO22,AO26,AO30,AO34,AO38,#REF!,AO56) ->  | AP83: =AVERAGE(AP18,AP22,AP26,AP30,AP34,AP38,#REF!,AP56) ->  | AQ83: =AVERAGE(AQ18,AQ22,AQ26,AQ30,AQ34,AQ38,#REF!,AQ56) ->  | AR83: =AVERAGE(AR18,AR22,AR26,AR30,AR34,AR38,#REF!,AR56) ->  | AS83: =AVERAGE(AS18,AS22,AS26,AS30,AS34,AS38,#REF!,AS56) ->  | AT83: =AVERAGE(AT18,AT22,AT26,AT30,AT34,AT38,#REF!,AT56) ->  | AU83: =AVERAGE(AU18,AU22,AU26,AU30,AU34,AU38,#REF!,AU56) ->  | AV83: =AVERAGE(AV18,AV22,AV26,AV30,AV34,AV38,#REF!,AV56) ->  | AW83: =AVERAGE(AW18,AW22,AW26,AW30,AW34,AW38,#REF!,AW56) ->  | AX83: =AVERAGE(AX18,AX22,AX26,AX30,AX34,AX38,#REF!,AX56) ->  | AY83: =AVERAGE(AY18,AY22,AY26,AY30,AY34,AY38,#REF!,AY56) ->  | AZ83: =AVERAGE(AZ18,AZ22,AZ26,AZ30,AZ34,AZ38,#REF!,AZ56) ->  | BA83: =AVERAGE(BA18,BA22,BA26,BA30,BA34,BA38,#REF!,BA56) ->  | BB83: =AVERAGE(BB18,BB22,BB26,BB30,BB34,BB38,#REF!,BB56) ->  | BC83: =AVERAGE(BC18,BC22,BC26,BC30,BC34,BC38,#REF!,BC56) ->  | BD83: =AVERAGE(BD18,BD22,BD26,BD30,BD34,BD38,#REF!,BD56) ->  | BE83: =AVERAGE(BE18,BE22,BE26,BE30,BE34,BE38,#REF!,BE56) ->  | BF83: =AVERAGE(BF18,BF22,BF26,BF30,BF34,BF38,#REF!,BF56) ->  | BG83: =AVERAGE(BG18,BG22,BG26,BG30,BG34,BG38,#REF!,BG56) ->  | BH83: =AVERAGE(BH18,BH22,BH26,BH30,BH34,BH38,#REF!,BH56) ->  | BI83: =AVERAGE(BI18,BI22,BI26,BI30,BI34,BI38,#REF!,BI56) ->  | BJ83: =AVERAGE(BJ18,BJ22,BJ26,BJ30,BJ34,BJ38,#REF!,BJ56) ->  | BK83: =AVERAGE(BK18,BK22,BK26,BK30,BK34,BK38,#REF!,BK56) ->  | BL83: =AVERAGE(BL18,BL22,BL26,BL30,BL34,BL38,#REF!,BL56) ->  | BM83: =AVERAGE(BM18,BM22,BM26,BM30,BM34,BM38,#REF!,BM56) ->  | BN83: =AVERAGE(BN18,BN22,BN26,BN30,BN34,BN38,#REF!,BN56) ->  | BO83: =AVERAGE(BO18,BO22,BO26,BO30,BO34,BO38,#REF!,BO56) ->  | BP83: =AVERAGE(BP18,BP22,BP26,BP30,BP34,BP38,#REF!,BP56) ->  | BQ83: =AVERAGE(BQ18,BQ22,BQ26,BQ30,BQ34,BQ38,#REF!,BQ56) ->  | BR83: =AVERAGE(BR18,BR22,BR26,BR30,BR34,BR38,#REF!,BR56) ->  | BS83: =AVERAGE(BS18,BS22,BS26,BS30,BS34,BS38,#REF!,BS56) ->  | BT83: =AVERAGE(BT18,BT22,BT26,BT30,BT34,BT38,#REF!,BT56) ->  | BU83: =AVERAGE(BU18,BU22,BU26,BU30,BU34,BU38,#REF!,BU56) ->  | BV83: =AVERAGE(BV18,BV22,BV26,BV30,BV34,BV38,#REF!,BV56) ->  | BW83: =AVERAGE(BW18,BW22,BW26,BW30,BW34,BW38,#REF!,BW56) ->  | BX83: =AVERAGE(BX18,BX22,BX26,BX30,BX34,BX38,#REF!,BX56) ->  | BY83: =AVERAGE(BY18,BY22,BY26,BY30,BY34,BY38,#REF!,BY56) ->  | BZ83: =AVERAGE(BZ18,BZ22,BZ26,BZ30,BZ34,BZ38,#REF!,BZ56) ->  | CA83: =AVERAGE(CA18,CA22,CA26,CA30,CA34,CA38,#REF!,CA56) ->  | CB83: =AVERAGE(CB18,CB22,CB26,CB30,CB34,CB38,#REF!,CB56) ->  | CC83: =AVERAGE(CC18,CC22,CC26,CC30,CC34,CC38,#REF!,CC56) ->  | CD83: =AVERAGE(CD18,CD22,CD26,CD30,CD34,CD38,#REF!,CD56) ->  | CE83: =AVERAGE(CE18,CE22,CE26,CE30,CE34,CE38,#REF!,CE56) ->  | CF83: =AVERAGE(CF18,CF22,CF26,CF30,CF34,CF38,#REF!,CF56) ->  | CG83: =AVERAGE(CG18,CG22,CG26,CG30,CG34,CG38,#REF!,CG56) ->  | CH83: =AVERAGE(CH18,CH22,CH26,CH30,CH34,CH38,#REF!,CH56) ->  | CI83: =AVERAGE(CI18,CI22,CI26,CI30,CI34,CI38,#REF!,CI56) ->  | CJ83: =AVERAGE(CJ18,CJ22,CJ26,CJ30,CJ34,CJ38,#REF!,CJ56) ->  | CK83: =AVERAGE(CK18,CK22,CK26,CK30,CK34,CK38,#REF!,CK56) ->  | CL83: =AVERAGE(CL18,CL22,CL26,CL30,CL34,CL38,#REF!,CL56) ->  | CM83: =AVERAGE(CM18,CM22,CM26,CM30,CM34,CM38,#REF!,CM56) ->  | CN83: =AVERAGE(CN18,CN22,CN26,CN30,CN34,CN38,#REF!,CN56) ->  | CO83: =AVERAGE(CO18,CO22,CO26,CO30,CO34,CO38,#REF!,CO56) ->  | CP83: =AVERAGE(CP18,CP22,CP26,CP30,CP34,CP38,#REF!,CP56) ->  | CQ83: =AVERAGE(CQ18,CQ22,CQ26,CQ30,CQ34,CQ38,#REF!,CQ56) ->  | CR83: =AVERAGE(CR18,CR22,CR26,CR30,CR34,CR38,#REF!,CR56) ->  | CS83: =AVERAGE(CS18,CS22,CS26,CS30,CS34,CS38,#REF!,CS56) ->  | CT83: =AVERAGE(CT18,CT22,CT26,CT30,CT34,CT38,#REF!,CT56) ->  | CU83: =AVERAGE(CU18,CU22,CU26,CU30,CU34,CU38,#REF!,CU56) ->  | CV83: =AVERAGE(CV18,CV22,CV26,CV30,CV34,CV38,#REF!,CV56) ->  | CW83: =AVERAGE(CW18,CW22,CW26,CW30,CW34,CW38,#REF!,CW56) ->  | CX83: =AVERAGE(CX18,CX22,CX26,CX30,CX34,CX38,#REF!,CX56) ->  | CY83: =AVERAGE(CY18,CY22,CY26,CY30,CY34,CY38,#REF!,CY56) ->  | CZ83: =AVERAGE(CZ18,CZ22,CZ26,CZ30,CZ34,CZ38,#REF!,CZ56) ->  | DA83: =AVERAGE(DA18,DA22,DA26,DA30,DA34,DA38,#REF!,DA56) ->  | DB83: =AVERAGE(DB18,DB22,DB26,DB30,DB34,DB38,#REF!,DB56) ->  | DC83: =AVERAGE(DC18,DC22,DC26,DC30,DC34,DC38,#REF!,DC56) ->  | DD83: =AVERAGE(DD18,DD22,DD26,DD30,DD34,DD38,#REF!,DD56) ->  | DE83: =AVERAGE(DE18,DE22,DE26,DE30,DE34,DE38,#REF!,DE56) ->  | DF83: =AVERAGE(DF18,DF22,DF26,DF30,DF34,DF38,#REF!,DF56) ->  | DG83: =AVERAGE(DG18,DG22,DG26,DG30,DG34,DG38,#REF!,DG56) ->  | DH83: =AVERAGE(DH18,DH22,DH26,DH30,DH34,DH38,#REF!,DH56) ->  | DI83: =AVERAGE(DI18,DI22,DI26,DI30,DI34,DI38,#REF!,DI56) ->  | DJ83: =AVERAGE(DJ18,DJ22,DJ26,DJ30,DJ34,DJ38,#REF!,DJ56) ->  | DK83: =AVERAGE(DK18,DK22,DK26,DK30,DK34,DK38,#REF!,DK56) ->  | DL83: =AVERAGE(DL18,DL22,DL26,DL30,DL34,DL38,#REF!,DL56) ->  | DM83: =AVERAGE(DM18,DM22,DM26,DM30,DM34,DM38,#REF!,DM56) ->  | DN83: =AVERAGE(DN18,DN22,DN26,DN30,DN34,DN38,#REF!,DN56) ->  | DO83: =AVERAGE(DO18,DO22,DO26,DO30,DO34,DO38,#REF!,DO56) ->  | DP83: =AVERAGE(DP18,DP22,DP26,DP30,DP34,DP38,#REF!,DP56) ->  | DQ83: =AVERAGE(DQ18,DQ22,DQ26,DQ30,DQ34,DQ38,#REF!,DQ56) ->  | DR83: =AVERAGE(DR18,DR22,DR26,DR30,DR34,DR38,#REF!,DR56) ->  | DS83: =AVERAGE(DS18,DS22,DS26,DS30,DS34,DS38,#REF!,DS56) ->  | DT83: =AVERAGE(DT18,DT22,DT26,DT30,DT34,DT38,#REF!,DT56) ->  | DU83: =AVERAGE(DU18,DU22,DU26,DU30,DU34,DU38,#REF!,DU56) ->  | DV83: =AVERAGE(DV18,DV22,DV26,DV30,DV34,DV38,#REF!,DV56) ->  | DW83: =AVERAGE(DW18,DW22,DW26,DW30,DW34,DW38,#REF!,DW56) ->  | DX83: =AVERAGE(DX18,DX22,DX26,DX30,DX34,DX38,#REF!,DX56) ->  | DY83: =AVERAGE(DY18,DY22,DY26,DY30,DY34,DY38,#REF!,DY56) ->  | DZ83: =AVERAGE(DZ18,DZ22,DZ26,DZ30,DZ34,DZ38,#REF!,DZ56) ->  | EA83: =AVERAGE(EA18,EA22,EA26,EA30,EA34,EA38,#REF!,EA56) ->  | EB83: =AVERAGE(EB18,EB22,EB26,EB30,EB34,EB38,#REF!,EB56) ->  | EC83: =AVERAGE(EC18,EC22,EC26,EC30,EC34,EC38,#REF!,EC56) ->  | ED83: =AVERAGE(ED18,ED22,ED26,ED30,ED34,ED38,#REF!,ED56) ->  | EE83: =AVERAGE(EE18,EE22,EE26,EE30,EE34,EE38,#REF!,EE56) ->  | EF83: =AVERAGE(EF18,EF22,EF26,EF30,EF34,EF38,#REF!,EF56) ->  | EG83: =AVERAGE(EG18,EG22,EG26,EG30,EG34,EG38,#REF!,EG56) ->  | EH83: =AVERAGE(EH18,EH22,EH26,EH30,EH34,EH38,#REF!,EH56) ->  | EI83: =AVERAGE(EI18,EI22,EI26,EI30,EI34,EI38,#REF!,EI56) ->  | EJ83: =AVERAGE(EJ18,EJ22,EJ26,EJ30,EJ34,EJ38,#REF!,EJ56) ->  | EK83: =AVERAGE(EK18,EK22,EK26,EK30,EK34,EK38,#REF!,EK56) ->  | EL83: =AVERAGE(EL18,EL22,EL26,EL30,EL34,EL38,#REF!,EL56) ->  | EM83: =AVERAGE(EM18,EM22,EM26,EM30,EM34,EM38,#REF!,EM56) ->  | EN83: =AVERAGE(EN18,EN22,EN26,EN30,EN34,EN38,#REF!,EN56) ->  | EO83: =AVERAGE(EO18,EO22,EO26,EO30,EO34,EO38,#REF!,EO56) ->  | EP83: =AVERAGE(EP18,EP22,EP26,EP30,EP34,EP38,#REF!,EP56) ->  | EQ83: =AVERAGE(EQ18,EQ22,EQ26,EQ30,EQ34,EQ38,#REF!,EQ56) ->  | ER83: =AVERAGE(ER18,ER22,ER26,ER30,ER34,ER38,#REF!,ER56) ->  | ES83: =AVERAGE(ES18,ES22,ES26,ES30,ES34,ES38,#REF!,ES56) ->  | ET83: =AVERAGE(ET18,ET22,ET26,ET30,ET34,ET38,#REF!,ET56) ->  | EU83: =AVERAGE(EU18,EU22,EU26,EU30,EU34,EU38,#REF!,EU56) ->  | EV83: =AVERAGE(EV18,EV22,EV26,EV30,EV34,EV38,#REF!,EV56) ->  | EW83: =AVERAGE(EW18,EW22,EW26,EW30,EW34,EW38,#REF!,EW56) ->  | EX83: =AVERAGE(EX18,EX22,EX26,EX30,EX34,EX38,#REF!,EX56) ->  | EY83: =AVERAGE(EY18,EY22,EY26,EY30,EY34,EY38,#REF!,EY56) ->  | EZ83: =AVERAGE(EZ18,EZ22,EZ26,EZ30,EZ34,EZ38,#REF!,EZ56) ->  | FA83: =AVERAGE(FA18,FA22,FA26,FA30,FA34,FA38,#REF!,FA56) ->  | FB83: =AVERAGE(FB18,FB22,FB26,FB30,FB34,FB38,#REF!,FB56) ->  | FC83: =AVERAGE(FC18,FC22,FC26,FC30,FC34,FC38,#REF!,FC56) ->  | FD83: =AVERAGE(FD18,FD22,FD26,FD30,FD34,FD38,#REF!,FD56) ->  | FE83: =AVERAGE(FE18,FE22,FE26,FE30,FE34,FE38,#REF!,FE56) ->  | FF83: =AVERAGE(FF18,FF22,FF26,FF30,FF34,FF38,#REF!,FF56) ->  | FG83: =AVERAGE(FG18,FG22,FG26,FG30,FG34,FG38,#REF!,FG56) ->  | FH83: =AVERAGE(FH18,FH22,FH26,FH30,FH34,FH38,#REF!,FH56) ->  | FI83: =AVERAGE(FI18,FI22,FI26,FI30,FI34,FI38,#REF!,FI56) ->  | FJ83: =AVERAGE(FJ18,FJ22,FJ26,FJ30,FJ34,FJ38,#REF!,FJ56) ->  | FK83: =AVERAGE(FK18,FK22,FK26,FK30,FK34,FK38,#REF!,FK56) ->  | FL83: =AVERAGE(FL18,FL22,FL26,FL30,FL34,FL38,#REF!,FL56) ->  | FM83: =AVERAGE(FM18,FM22,FM26,FM30,FM34,FM38,#REF!,FM56) ->  | FN83: =AVERAGE(FN18,FN22,FN26,FN30,FN34,FN38,#REF!,FN56) ->  | FO83: =AVERAGE(FO18,FO22,FO26,FO30,FO34,FO38,#REF!,FO56) ->  | FP83: =AVERAGE(FP18,FP22,FP26,FP30,FP34,FP38,#REF!,FP56) ->  | FQ83: =AVERAGE(FQ18,FQ22,FQ26,FQ30,FQ34,FQ38,#REF!,FQ56) ->  | FR83: =AVERAGE(FR18,FR22,FR26,FR30,FR34,FR38,#REF!,FR56) ->  | FS83: =AVERAGE(FS18,FS22,FS26,FS30,FS34,FS38,#REF!,FS56) ->  | FT83: =AVERAGE(FT18,FT22,FT26,FT30,FT34,FT38,#REF!,FT56) ->  | FU83: =AVERAGE(FU18,FU22,FU26,FU30,FU34,FU38,#REF!,FU56) ->  | FV83: =AVERAGE(FV18,FV22,FV26,FV30,FV34,FV38,#REF!,FV56) ->  | FW83: =AVERAGE(FW18,FW22,FW26,FW30,FW34,FW38,#REF!,FW56) ->  | FX83: =AVERAGE(FX18,FX22,FX26,FX30,FX34,FX38,#REF!,FX56) ->  | FY83: =AVERAGE(FY18,FY22,FY26,FY30,FY34,FY38,#REF!,FY56) ->  | FZ83: =AVERAGE(FZ18,FZ22,FZ26,FZ30,FZ34,FZ38,#REF!,FZ56) ->  | GA83: =AVERAGE(GA18,GA22,GA26,GA30,GA34,GA38,#REF!,GA56) ->  | GB83: =AVERAGE(GB18,GB22,GB26,GB30,GB34,GB38,#REF!,GB56) ->  | GC83: =AVERAGE(GC18,GC22,GC26,GC30,GC34,GC38,#REF!,GC56) ->  | GD83: =AVERAGE(GD18,GD22,GD26,GD30,GD34,GD38,#REF!,GD56) ->  | GE83: =AVERAGE(GE18,GE22,GE26,GE30,GE34,GE38,#REF!,GE56) ->  | GF83: =AVERAGE(GF18,GF22,GF26,GF30,GF34,GF38,#REF!,GF56) ->  | GG83: =AVERAGE(GG18,GG22,GG26,GG30,GG34,GG38,#REF!,GG56) ->  | GH83: =AVERAGE(GH18,GH22,GH26,GH30,GH34,GH38,#REF!,GH56) ->  | GI83: =AVERAGE(GI18,GI22,GI26,GI30,GI34,GI38,#REF!,GI56) ->  | GJ83: =AVERAGE(GJ18,GJ22,GJ26,GJ30,GJ34,GJ38,#REF!,GJ56) ->  | GK83: =AVERAGE(GK18,GK22,GK26,GK30,GK34,GK38,#REF!,GK56) ->  | GL83: =AVERAGE(GL18,GL22,GL26,GL30,GL34,GL38,#REF!,GL56) ->  | GM83: =AVERAGE(GM18,GM22,GM26,GM30,GM34,GM38,#REF!,GM56) ->  | GN83: =+GN59 -> 10.6 | GO83: =+GO59 -> 13.0 | GP83: 14.0 | GQ83: 11.1 | GR83: 10.1 | GS83: 13.0 | GT83: 15.8 | GU83: 13.8 | GV83: 13.8 | GW83: 13.4 | GX83: 13.4 | GY83: 16.4 | GZ83: 15.3 | HA83: 12.7 | HB83: 19.7 | HC83: 18.8 | HD83: 16.4 | HE83: 15.3 | HF83: 20.3 | HG83: 14.7 | HH83: 15.3 | HI83: 17.9 | HJ83: 16.4 | HK83: 17.4 | HL83: 18.1 | HM83: 18.0 | HN83: 12.7 | HO83: 15.2 | HP83: 16.7 | HQ83: 15.2 | HR83: 14.2 | HS83: 14.5 | HT83: 12.3 | HU83: 18.2 | HV83: 18.8 | HW83: 13.2 | HX83: 19.4 | HY83: 13.3 | HZ83: 14.0 | IA83: 16.6 | IB83: 15.9 | IC83: 15.7 | ID83: 11.7 | IE83: 11.1 | IF83: 13.3 | IG83: 14.6 | IH83: =+IH59 -> 18.9 | II83: =+II59 -> 17.3 | IJ83: 8.1 | IK83: =+IK59 -> 16.2 | IL83: 14.2 | IM83: 14.9 | IN83: 13.4 | IO83: 14.7 | IP83: 16.6 | IQ83: 16.8 | IR83: 19.2 | IS83: 13.3 | IT83: =+IT59 -> 17.4 | IU83: 18.3 | IV83: 18.6 | IW83: 19.7 | IX83: 17.2 | IY83: 20.7 | IZ83: 19.6 | JA83: 17.9 | JB83: 18.3 | JC83: 19.0 | JD83: 18.3 | JE83: 15.7 | JF83: 20.0 | JG83: 22.4 | JH83: 19.8 | JI83: 21.4 | JJ83: 20.6 | JK83: =+JK59 -> 22.4 | JL83: =+JL59 -> 26.0 | JM83: 28.3 | JN83: 21.3 | JO83: 21.1 | JP83: 24.3 | JQ83: =+JQ59 -> 20.9 | JR83: 23.6 | JS83: 21.6 | JT83: 24.5 | JU83: 24.4 | JV83: 24.9 | JW83: 21.3 | JX83: 22.7 | JY83: 20.3 | JZ83: 20.0 | KA83: 18.9 | KB83: 18.4 | KC83: =+KC59 -> 23.3 | KD83: 25.3 | KE83: 22.6 | KF83: 21.4 | KG83: 23.1 | KH83: 19.7 | KI83: 20.0 | KJ83: 19.5 | KK83: 17.2 | KL83: 17.7 | KM83: 17.6 | KN83: 12.5 | KO83: 17.1 | KP83: 16.1 | KQ83: 16.5 | KR83: 18.5 | KS83: 18.3 | KT83: 19.7 | KU83: =+KU59 -> 16.7 | KV83: =+KV59 -> 19.7 | KW83: =+KW59 -> 20.0 | KX83: =+KX59 -> 19.3 | KY83: 18.7 | KZ83: 18.9 | LA83: 15.0 | LB83: 16.0 | LC83: 15.3 | LD83: 19.8 | LE83: =+LE59 -> 13.9 | LF83: 20.6 | LG83: 19.2 | LH83: =+LH59 -> 17.2 | LI83: =+LI59 -> 23.6 | LJ83: 17.0 | LK83: =+LK59 -> 17.8 | LL83: 17.8 | LM83: 18.6 | LN83: 21.4 | LO83: =+LO59 -> 15.1 | LP83: 22.3 | LQ83: 21.3 | LR83: 18.1
E84: OBJ DF | F84: 85 | G84: 85 | H84: 85 | I84: 85 | J84: 85 | K84: 85 | L84: 85 | M84: 85 | N84: 85 | O84: 85 | P84: 85 | Q84: 85 | R84: 85 | S84: 85 | T84: 85 | U84: 85 | V84: 85 | W84: 85 | X84: 85 | Y84: 85 | Z84: 85 | AA84: 85 | AB84: 85 | AC84: 85 | AD84: 85 | AE84: 85 | AF84: 85 | AG84: 85 | AH84: 85 | AI84: 85 | AJ84: 85 | AK84: 85 | AL84: 85 | AM84: 85 | AN84: 85 | AO84: 85 | AP84: 85 | AQ84: 85 | AR84: 85 | AS84: 85 | AT84: 85 | AU84: 85 | AV84: 85 | AW84: 85 | AX84: 85 | AY84: 85 | AZ84: 85 | BA84: 85 | BB84: 85 | BC84: 85 | BD84: 85 | BE84: 85 | BF84: 85 | BG84: 85 | BH84: 85 | BI84: 85 | BJ84: 85 | BK84: 85 | BL84: 85 | BM84: 85 | BN84: 85 | BO84: 85 | BP84: 85 | BQ84: 85 | BR84: 85 | BS84: 85 | BT84: 85 | BU84: 85 | BV84: 85 | BW84: 85 | BX84: 85 | BY84: 85 | BZ84: 85 | CA84: 85 | CB84: 85 | CC84: 85 | CD84: 85 | CE84: 85 | CF84: 85 | CG84: 85 | CH84: 85 | CI84: 85 | CJ84: 85 | CK84: 85 | CL84: 85 | CM84: 85 | CN84: 85 | CO84: 85 | CP84: 85 | CQ84: 85 | CR84: 85 | CS84: 85 | CT84: 85 | CU84: 85 | CV84: 85 | CW84: 85 | CX84: 85 | CY84: 85 | CZ84: 85 | DA84: 85 | DB84: 85 | DC84: 85 | DD84: 85 | DE84: 85 | DF84: 85 | DG84: 85 | DH84: 85 | DI84: 85 | DJ84: 85 | DK84: 85 | DL84: 85 | DM84: 85 | DN84: 85 | DO84: 85 | DP84: 85 | DQ84: 85 | DR84: 85 | DS84: 85 | DT84: 85 | DU84: 85 | DV84: 85 | DW84: 85 | DX84: 85 | DY84: 85 | DZ84: 85 | EA84: 85 | EB84: 85 | EC84: 85 | ED84: 85 | EE84: 85 | EF84: 85 | EG84: 85 | EH84: 85 | EI84: 85 | EJ84: 85 | EK84: 85 | EL84: 85 | EM84: 85 | EN84: 85 | EO84: 85 | EP84: 85 | EQ84: 85 | ER84: 85 | ES84: 85 | ET84: 85 | EU84: 85 | EV84: 85 | EW84: 85 | EX84: 85 | EY84: 85 | EZ84: 85 | FA84: 85 | FB84: 85 | FC84: 85 | FD84: 85 | FE84: 85 | FF84: 85 | FG84: 85 | FH84: 85 | FI84: 85 | FJ84: 85 | FK84: 85 | FL84: 85 | FM84: 85 | FN84: 85 | FO84: 85 | FP84: 85 | FQ84: 85 | FR84: 85 | FS84: 85 | FT84: 85 | FU84: 85 | FV84: 85 | FW84: 85 | FX84: 85 | FY84: 85 | FZ84: 85 | GA84: 85 | GB84: 85 | GC84: 85 | GD84: 85 | GE84: 85 | GF84: 85 | GG84: 85 | GH84: 85 | GI84: 85 | GJ84: 85 | GK84: 85 | GL84: 85 | GM84: 85 | GN84: 85 | GO84: 85 | GP84: 85 | GQ84: 85 | GR84: 85 | GS84: 85 | GT84: 85 | GU84: 85 | GV84: 85 | GW84: 85 | GX84: 85 | GY84: 85 | GZ84: 85 | HA84: 85 | HB84: 85 | HC84: 85 | HD84: 85 | HE84: 85 | HF84: 85 | HG84: 85 | HH84: 85 | HI84: 85 | HJ84: 85 | HK84: 85 | HL84: 85 | HM84: 85 | HN84: 85 | HO84: 85 | HP84: 85 | HQ84: 85 | HR84: 85 | HS84: 85 | HT84: 85 | HU84: 85 | HV84: 85 | HW84: 85 | HX84: 85 | HY84: 85 | HZ84: 85 | IA84: 85 | IB84: 85 | IC84: 85 | ID84: 85 | IE84: 85 | IF84: 85 | IG84: 85 | IH84: 85 | II84: 85 | IJ84: 85 | IK84: 85 | IL84: 86 | IM84: 85 | IN84: 85 | IO84: 85 | IP84: 85 | IQ84: 85 | IR84: 85 | IS84: 85 | IT84: 85 | IU84: 85 | IV84: 85 | IW84: 85 | IX84: 85 | IY84: 85 | IZ84: 85 | JA84: 85 | JB84: 85 | JC84: 85 | JD84: 85 | JE84: 86 | JF84: 85 | JG84: 85 | JH84: 86 | JI84: 85 | JJ84: 85 | JK84: 85 | JL84: 85 | JM84: 85 | JN84: 85 | JO84: 85 | JP84: 85 | JQ84: 85 | JR84: 85 | JS84: 86 | JT84: 85 | JU84: 85 | JV84: 86 | JW84: 85 | JX84: 85 | JY84: 85 | JZ84: 85 | KA84: 85 | KB84: 85 | KC84: 84 | KD84: 85 | KE84: 85 | KF84: 85 | KG84: 85 | KH84: 86 | KI84: 85 | KJ84: 85 | KK84: 86 | KL84: 85 | KM84: 85 | KN84: 85 | KO84: 85 | KP84: 85 | KQ84: 86 | KR84: 87 | KS84: 85 | KT84: 85 | KU84: 86 | KV84: 85 | KW84: 85 | KX84: 86 | KY84: 87 | KZ84: 88 | LA84: 85 | LB84: 85 | LC84: 85 | LD84: 85 | LE84: 85 | LF84: 85 | LG84: 85 | LH84: 85 | LI84: 86 | LJ84: 85 | LK84: 85 | LL84: 85 | LM84: 85 | LN84: 85 | LO84: 85 | LP84: 86 | LQ84: 87 | LR84: =+LR61 -> 85.0

Sheet SP (hidden)
A1: SBOOPTQZMS PRODUCCION
A2: EQUIPO | B2: PROM. 2020 | C2: SEM 01 | D2: SEM 02 | E2: SEM 03 | F2: SEM 04 | G2: SEM 05 | H2: SEM 06 | I2: SEM 07 | J2: SEM 08 | K2: SEM 09 | L2: SEM 10 | M2: SEM 11 | N2: SEM 12 | O2: SEM 13 | P2: SEM 14 | Q2: SEM 15 | R2: SEM 16 | S2: SEM 17 | T2: SEM 18 | U2: SEM 19 | V2: SEM 20 | W2: SEM 21 | X2: SEM 22 | Y2: SEM 23 | Z2: SEM 24 | AA2: SEM 25 | AB2: SEM 26 | AC2: SEM 27 | AD2: SEM 28 | AE2: SEM 29 | AF2: SEM 30 | AG2: SEM 31 | AH2: SEM 32 | AI2: SEM 33 | AJ2: SEM 34 | AK2: SEM 35 | AL2: SEM 36 | AM2: SEM 37 | AN2: SEM 38 | AO2: SEM 39 | AP2: SEM 40 | AQ2: SEM 41 | AR2: SEM 42 | AS2: SEM 43 | AT2: SEM 44 | AU2: SEM 45 | AV2: SEM 46 | AW2: SEM 47 | AX2: SEM 48 | AY2: SEM 49 | AZ2: SEM 50 | BA2: SEM 51 | BB2: SEM 52 | BC2: SEM 01 | BD2: SEM 02 | BE2: SEM 03 | BF2: SEM 04 | BG2: SEM 05 | BH2: SEM 06 | BI2: SEM 07 | BJ2: SEM 08 | BK2: SEM 09 | BL2: SEM 10 | BM2: SEM 11 | BN2: SEM 12 | BO2: SEM 13 | BP2: SEM 14 | BQ2: SEM 15 | BR2: SEM 16 | BS2: SEM 17 | BT2: SEM 18 | BU2: SEM 19 | BV2: SEM 20 | BW2: SEM 21 | BX2: SEM 22 | BY2: SEM 23 | BZ2: SEM 24 | CA2: SEM 25 | CB2: SEM 26 | CC2: SEM 27 | CD2: SEM 28 | CE2: SEM 29 | CF2: SEM 30 | CG2: SEM 31 | CH2: SEM 32 | CI2: SEM 33 | CJ2: SEM 34 | CK2: SEM 35 | CL2: SEM 36 | CM2: SEM 37 | CN2: SEM 38 | CO2: SEM 39 | CP2: SEM 40 | CQ2: SEM 41 | CR2: SEM 42 | CS2: SEM 43 | CT2: SEM 44 | CU2: SEM 45 | CV2: SEM 46 | CW2: SEM 47 | CX2: SEM 48 | CY2: SEM 49 | CZ2: SEM 50 | DA2: SEM 51 | DB2: SEM 52 | DC2: SEM 01 | DD2: SEM 02 | DE2: SEM 03 | DF2: SEM 04 | DG2: SEM 05 | DH2: SEM 06 | DI2: SEM 07 | DJ2: SEM 08 | DK2: SEM 09 | DL2: SEM 10 | DM2: SEM 11 | DN2: SEM 12 | DO2: SEM 13 | DP2: SEM 14 | DQ2: SEM 15 | DR2: SEM 16 | DS2: SEM 30 | DT2: SEM 31 | DU2: SEM 32 | DV2: SEM 33 | DW2: SEM 36 | DX2: SEM 37 | DY2: SEM 38 | DZ2: SEM 39 | EA2: SEM 40 | EB2: SEM 41 | EC2: SEM 42 | ED2: SEM 43 | EE2: SEM 44 | EF2: SEM 45 | EG2: SEM 46 | EH2: SEM 47 | EI2: SEM 48 | EJ2: SEM 49 | EK2: SEM 50 | EL2: SEM 51 | EM2: SEM 52 | EN2: SEM 53 | EO2: SEM 01 | EP2: SEM 02 | EQ2: SEM 03 | ER2: SEM 04 | ES2: SEM 05 | ET2: SEM 06 | EU2: SEM 07 | EV2: SEM 08 | EW2: SEM 09 | EX2: SEM 10 | EY2: SEM 11 | EZ2: SEM 17 | FA2: SEM 18 | FB2: SEM 19 | FC2: SEM 20 | FD2: SEM 21 | FE2: SEM 22 | FF2: SEM 23 | FG2: SEM 24 | FH2: SEM 25 | FI2: SEM 26 | FJ2: SEM 27 | FK2: SEM 28 | FL2: SEM 29 | FM2: SEM 30 | FN2: SEM 31 | FO2: SEM 32 | FP2: SEM33 | FQ2: SEM 34 | FR2: SEM 35 | FS2: SEM 36 | FT2: SEM 37 | FU2: SEM 38 | FV2: SEM 39 | FW2: SEM 40 | FY2: SEM 05 | FZ2: SEM 06 | GA2: PROM. 2021 | GB2: OBJ. | GH2: =AC2 -> SEM 27 | GI2: SEM 28 | GJ2: SEM 29 | GK2: SEM 30 | GL2: SEM 31 | GM2: SEM 32 | GN2: SEM 33 | GO2: SEM 34 | GP2: SEM 35 | GQ2: SEM 36 | GR2: SEM 37 | GS2: SEM 38 | GT2: SEM 39 | GU2: =XK2 -> 0 | GV2: =AQ2 -> SEM 41 | GW2: SEM 42 | GX2: SEM 43 | GY2: SEM 44 | GZ2: SEM 45 | HA2: SEM 46 | HB2: SEM 47 | HC2: SEM 48 | HD2: SEM 49 | HE2: SEM 50 | HF2: SEM 51 | HG2: SEM 52 | HH2: SEM 01 | HI2: SEM 02 | HJ2: SEM 03 | HK2: SEM 04 | HL2: SEM 05 | HM2: SEM 06 | HN2: SEM 07 | HO2: SEM 08 | HP2: SEM 09 | HQ2: SEM 10 | HR2: =BL2 -> SEM 10 | HS2: SEM 11 | HT2: SEM 12 | HU2: SEM 13 | HV2: SEM 14 | HW2: SEM 15 | HX2: SEM 16 | HY2: SEM 17 | HZ2: SEM 18 | IA2: SEM 19 | IB2: SEM 20 | IC2: SEM 21 | ID2: SEM 22 | IE2: SEM 23 | IF2: SEM 24 | IG2: SEM 25 | IH2: SEM 26 | II2: SEM 27 | IJ2: SEM 28 | IK2: SEM 29 | IL2: SEM 30 | IM2: SEM 31 | IN2: SEM 32 | IO2: SEM 33 | IP2: SEM 34 | IQ2: SEM 35 | IR2: SEM 36 | IS2: SEM 37 | IT2: SEM 38 | IU2: SEM 39 | IV2: SEM 40 | IW2: SEM 41 | IX2: =CR2 -> SEM 42 | IY2: SEM 43 | IZ2: SEM 44 | JA2: SEM 45 | JB2: SEM 46 | JC2: SEM 47 | JD2: SEM 48 | JE2: SEM 49 | JF2: SEM 50 | JG2: SEM 51 | JH2: SEM 52 | JI2: SEM 01 | JJ2: SEM 02 | JK2: SEM 03 | JL2: SEM 04 | JM2: SEM 05 | JN2: SEM 06 | JO2: SEM 07 | JP2: SEM 08 | JQ2: SEM 09 | JR2: SEM 10 | JS2: SEM 11 | JT2: SEM 12 | JU2: SEM 13 | JV2: SEM 14 | JW2: SEM 15 | JX2: SEM 16 | JY2: SEM 30 | JZ2: SEM 31 | KA2: SEM 32 | KB2: SEM 33 | KC2: SEM 36 | KD2: =DX2 -> SEM 37 | KE2: SEM 38 | KF2: SEM 39 | KG2: SEM 40 | KH2: SEM 41 | KI2: SEM 42 | KJ2: SEM 43 | KK2: SEM 44 | KL2: SEM 45 | KM2: SEM 46 | KN2: =GA2 -> PROM. 2021 | KO2: =GB2 -> OBJ.
A3: DISPONIBILIDAD FISICA | B3: 81.4 | C3: 88.1 | D3: 97.4 | E3: 94.2 | F3: 92.4 | G3: 81.8 | H3: 85.0 | I3: 84.0 | J3: 78.5 | K3: 76.9 | L3: 94.5 | M3: 90.5 | N3: 70.6 | O3: 73.2 | P3: 91.4 | Q3: 92.0 | R3: 85.6 | S3: 93.49 | T3: 89.14 | U3: 87.65 | V3: 87.62 | W3: 87.96 | X3: 84.94 | Y3: 83.01 | Z3: 72.22 | AA3: 67.31 | AB3: 76.33 | AC3: 78.94 | AD3: 78.05 | AE3: 83.33 | AF3: 82.02 | AG3: 87.44 | AH3: 89.26 | AI3: 87.96 | AJ3: 92.42 | AK3: 90.37 | AL3: 79.95 | AM3: 74.60 | AN3: 85.91 | AO3: 95.03 | AQ3: 83.43 | AR3: 74.96 | AS3: 73.31 | AT3: 73.12 | AU3: 69.95 | AV3: 73.21 | AW3: 77.64 | AX3: 92.69 | AY3: 78.76 | AZ3: 85.44 | BA3: 90.24 | BB3: 75.31 | BC3: 77.27 | BD3: 72.34 | BE3: 74.41 | BF3: 68.56 | BG3: 74.17 | BH3: 69.16 | BI3: 74.51 | BJ3: 85.55 | BK3: 83.05 | BL3: 94.56 | BM3: 93.07 | BN3: 85.04 | BO3: 91.24 | BP3: 79.14 | BQ3: 76.88 | BR3: 89.58 | BS3: 89.58 | BT3: 76.25 | BU3: 95.46 | BV3: 85.10 | BW3: 95.45 | BX3: 80.10 | BY3: 88.48 | BZ3: 85.66 | CA3: 92.30 | CB3: 85.66 | CC3: 94.42 | CD3: 91.06 | CE3: 91.09 | CF3: 80.28 | CG3: 71.71 | CH3: 71.8 | CI3: 75.1 | CJ3: 78.3 | CK3: 75.6 | CL3: 65.1 | CM3: 82.6 | CN3: 83.5 | CO3: 69.8 | CP3: 66.5 | CQ3: 59.7 | CR3: 69.2 | CS3: 77.1 | CT3: 74.5 | CU3: 84.9 | CV3: 69.2 | CW3: 59.0 | CX3: 80.6 | CY3: 77.4 | CZ3: 76.8 | DA3: 78.4 | DB3: 77.2 | DC3: 72.5 | DD3: 79.4 | DE3: 74.3 | DF3: 76.8 | DG3: 89.3 | DH3: 92.7 | DI3: 89.6 | DJ3: 93.3 | DK3: 82.6 | DL3: 88.8 | DM3: 95.0 | DN3: 80.4 | DO3: 77.9 | DP3: 77.0 | DQ3: 72.6 | DR3: 72.0 | DS3: 87.0 | DT3: 87.0 | DU3: 87.0 | DV3: 88.2 | DW3: 88.2 | DX3: 85.7 | DY3: 79.7 | DZ3: 64.9 | EA3: 58.3 | EB3: 67.8 | EC3: 56.4 | ED3: 83.9 | EE3: 83.6 | EF3: 81.9 | EG3: 80.8 | EH3: 77.2 | EI3: 78.7 | EJ3: 81.1 | EK3: 91.2 | EL3: 85.6 | EM3: 94.3 | EN3: 83.2 | EO3: 83.2 | EP3: 79.2 | EQ3: 86.7 | ER3: 87.8 | ES3: 67.6 | ET3: 78.4 | EU3: 65.4 | EV3: 76.9 | EW3: 91.0 | EX3: 88.9 | EY3: 86.8 | EZ3: 98 | FA3: 88.99 | FB3: 96.58 | FC3: 79.6 | FD3: 79.2 | FE3: 87.0 | FF3: 95.0 | FG3: 92.4 | FH3: 94.47 | FI3: 79.8 | FJ3: 79.8 | FK3: 75.0 | FL3: 86.6 | FM3: 91.8 | FN3: =AVERAGE(FN7:FN13) -> 95.6 | FO3: 74.1 | FP3: 85.0 | FQ3: 89.7 | FR3: 90.3 | FS3: 93.8 | FT3: 93.0 | FU3: 82.6 | FV3: =AVERAGE(FV7:FV13) -> 84.8 | FW3: 93.3 | FY3: 63.9 | FZ3: =AVERAGE(FZ7:FZ13) -> 67.2 | GA3: =AVERAGE(FY3:FZ3) -> 65.6 | GB3: 85.0 | GG3: DF | GH3: =+AC3 -> 78.9 | GI3: 78.0 | GJ3: 83.3 | GK3: 82.0 | GL3: 87.4 | GM3: 89.3 | GN3: 88.0 | GO3: 92.4 | GP3: 90.4 | GQ3: 79.9 | GR3: 74.6 | GS3: 85.9 | GT3: 95.0 | GU3: =+XK3 -> 0.0 | GV3: =+AQ3 -> 83.4 | GW3: 75.0 | GX3: 73.3 | GY3: 73.1 | GZ3: 69.9 | HA3: 73.2 | HB3: 77.6 | HC3: 92.7 | HD3: 78.8 | HE3: 85.4 | HF3: 90.2 | HG3: 75.3 | HH3: 77.3 | HI3: 72.3 | HJ3: 74.4 | HK3: 68.6 | HL3: 74.2 | HM3: 69.2 | HN3: 74.5 | HO3: =BN3 -> 85.0 | HP3: =BO3 -> 91.2 | HQ3: =BP3 -> 79.1 | HR3: =+BL3 -> 94.6 | HS3: 93.1 | HT3: 85.0 | HU3: 91.2 | HV3: 79.1 | HW3: 76.9 | HX3: 89.6 | HY3: 89.6 | HZ3: 76.3 | IA3: 95.5 | IB3: 85.1 | IC3: 95.5 | ID3: 80.1 | IE3: 88.5 | IF3: 85.7 | IG3: 92.3 | IH3: 85.7 | II3: 94.4 | IJ3: 91.1 | IK3: 91.1 | IL3: 80.3 | IM3: 71.7 | IN3: 71.8 | IO3: 75.1 | IP3: 78.3 | IQ3: 75.6 | IR3: 65.1 | IS3: 82.6 | IT3: 83.5 | IU3: 69.8 | IV3: 66.5 | IW3: 59.7 | IX3: =+CR3 -> 69.2 | IY3: 77.1 | IZ3: 74.5 | JA3: 84.9 | JB3: 69.2 | JC3: 59.0 | JD3: 80.6 | JE3: 77.4 | JF3: 76.8 | JG3: 78.4 | JH3: 77.2 | JI3: 72.5 | JJ3: 79.4 | JK3: 74.3 | JL3: 76.8 | JM3: 89.3 | JN3: 92.7 | JO3: 89.6 | JP3: 93.3 | JQ3: 82.6 | JR3: 88.8 | JS3: 95.0 | JT3: 80.4 | JU3: 77.9 | JV3: 77.0 | JW3: 72.6 | JX3: 72.0 | JY3: 87.0 | JZ3: 87.0 | KA3: 87.0 | KB3: 88.2 | KC3: 88.2 | KD3: =+DX3 -> 85.7 | KE3: 79.7 | KF3: 64.9 | KG3: 58.3 | KH3: 67.8 | KI3: 56.4 | KJ3: 83.9 | KK3: 83.6 | KL3: 81.9 | KM3: 80.8 | KN3: =+GA3 -> 65.6 | KO3: =+GB3 -> 85.0
A4: DISPONIBILIDAD MECANICA | B4: 82.0 | CJ4: 92.8 | CK4: 87.5 | CL4: 79.5 | CM4: 96.9 | CN4: 97.8 | CO4: 84.0 | CP4: 80.8 | CQ4: 74.0 | CR4: 69.2 | CS4: 91.4 | CT4: 78.9 | CU4: 85.1 | CV4: 69.2 | CW4: 59.0 | CX4: 80.6 | CY4: 77.4 | CZ4: 76.8 | DA4: 78.4 | DB4: 77.2 | DC4: 72.1 | DD4: 79.4 | DE4: 74.3 | DF4: 76.3 | DG4: 89.3 | DH4: 92.7 | DI4: 89.6 | DJ4: 93.9 | DK4: 94.9 | DL4: 88.8 | DM4: 95.0 | DN4: 80.4 | DO4: 77.9 | DP4: 77.0 | DQ4: 72.6 | DR4: 72.0 | DS4: 87.0 | DT4: 87.0 | DU4: 87.0 | DV4: 88.2 | DW4: 88.2 | DX4: 85.7 | DY4: 85.5 | DZ4: 79.2 | EA4: 58.3 | EB4: 67.8 | EC4: 56.4 | ED4: 83.9 | EE4: 83.6 | EF4: 82.1 | EG4: 80.8 | EH4: 77.2 | EI4: 78.7 | EJ4: 81.1 | EK4: 91.2 | EL4: 85.6 | EM4: 94.3 | EN4: 81.5 | EO4: 81.5 | EP4: 73.7 | EQ4: 86.7 | ER4: 87.8 | ES4: 67.8 | ET4: 68.0 | EU4: 65.4 | EV4: 76.9 | EW4: 91.0 | EX4: 88.9 | EY4: 86.8 | EZ4: 98 | FA4: 88.99 | FB4: 96.58 | FC4: 79.6 | FD4: 79.2 | FE4: 87.0 | FF4: 95.0 | FG4: 92.4 | FH4: 94.47 | FI4: 79.8 | FJ4: 79.8 | FK4: 75.0 | FL4: 86.6 | FM4: 91.8 | FN4: =AVERAGE(FN23:FN29) -> 95.6 | FO4: 74.1 | FP4: 85.0 | FQ4: 89.7 | FR4: 89.8 | FS4: 93.8 | FT4: 93.0 | FU4: 88.7 | FV4: =AVERAGE(FV23:FV29) -> 84.8 | FW4: 93.3 | FY4: 63.9 | FZ4: =AVERAGE(FZ23:FZ29) -> 67.2 | GA4: =AVERAGE(FY4:FZ4) -> 65.6 | GG4: DM | IP4: =+CJ4 -> 92.8 | IQ4: 87.5 | IR4: 79.5 | IS4: 96.9 | IT4: 97.8 | IU4: 84.0 | IV4: 80.8 | IW4: 74.0 | IX4: 69.2 | IY4: 91.4 | IZ4: =+CT4 -> 78.9 | JA4: 85.1 | JB4: 69.2 | JC4: 59.0 | JD4: 80.6 | JE4: 77.4 | JF4: 76.8 | JG4: 78.4 | JH4: 77.2 | JI4: 72.1 | JJ4: =+DD4 -> 79.4 | JK4: 74.3 | JL4: 76.3 | JM4: 89.3 | JN4: 92.7 | JO4: 89.6 | JP4: 93.9 | JQ4: 94.9 | JR4: 88.8 | JS4: 95.0 | JT4: =+DN4 -> 80.4 | JU4: 77.9 | JV4: 77.0 | JW4: 72.6 | JX4: 72.0 | JY4: 87.0 | JZ4: 87.0 | KA4: 87.0 | KB4: 88.2 | KC4: 88.2 | KD4: =+DX4 -> 85.7 | KE4: 85.5 | KF4: 79.2 | KG4: 58.3 | KH4: 67.8 | KI4: 56.4 | KJ4: 83.9 | KK4: 83.6 | KL4: 82.1 | KM4: 80.8 | KN4: =+GA4 -> 65.6
A5: UTILIZACION | B5: 31.1 | C5: 27.7 | D5: 46.9 | E5: 42.4 | F5: 50.8 | G5: 42.8 | H5: 51.0 | I5: 49.2 | J5: 53.7 | K5: 48.5 | L5: 43.4 | M5: 48.5 | N5: 48.8 | O5: 58.1 | P5: 38.9 | Q5: 41.6 | R5: 49.0 | S5: 43.76 | T5: 43.29 | U5: 53.58 | V5: 45.84 | W5: 24.72 | X5: 48.61 | Y5: 43.14 | Z5: 43.74 | AA5: 33.10 | AB5: 42.66 | AC5: 36.88 | AD5: 42.57 | AE5: 54.61 | AF5: 42.90 | AG5: 36.89 | AH5: 46.94 | AI5: 49.97 | AJ5: 44.95 | AK5: 46.78 | AL5: 51.54 | AM5: 43.53 | AN5: 44.22 | AO5: 37.95 | AQ5: 39.52 | AR5: 48.59 | AS5: 37.01 | AT5: 39.53 | AU5: 40.56 | AV5: 33.22 | AW5: 39.49 | AX5: 48.04 | AY5: 37.49 | AZ5: 40.79 | BA5: 39.90 | BB5: 42.51 | BC5: 29.71 | BD5: 32.41 | BE5: 36.24 | BF5: 32.36 | BG5: 38.73 | BH5: 36.96 | BI5: 49.74 | BJ5: 48.56 | BK5: 40.79 | BL5: 52.33 | BM5: 48.99 | BN5: 43.24 | BO5: 45.87 | BP5: 39.39 | BQ5: 37.06 | BR5: 45.92 | BS5: 45.92 | BT5: 28.75 | BU5: 43.20 | BV5: 40.41 | BW5: 42.35 | BX5: 45.36 | BY5: 44.30 | BZ5: 48.15 | CA5: 40.62 | CB5: 48.15 | CC5: 33.99 | CD5: 34.92 | CE5: 42.90 | CF5: 43.57 | CG5: 46.10 | CH5: 38.8 | CI5: 35.6 | CJ5: 36.2 | CK5: 49.0 | CL5: 38.7 | CM5: 20.1 | CN5: 35.6 | CO5: 42.2 | CP5: 35.5 | CQ5: 31.6 | CR5: 49.3 | CS5: 33.1 | CT5: 42.2 | CU5: 46.8 | CV5: 34.4 | CW5: 36.8 | CX5: 31.2 | CY5: 41.7 | CZ5: 44.3 | DA5: 29.6 | DB5: 40.7 | DC5: 30.1 | DD5: 39.3 | DE5: 34.6 | DF5: 31.7 | DG5: 39.7 | DH5: 31.4 | DI5: 39.9 | DJ5: 42.5 | DK5: 35.3 | DL5: 34.1 | DM5: 36.2 | DN5: 6.3 | DO5: 0.0 | DP5: 0.0 | DQ5: 0.0 | DR5: 0.0 | DS5: 54.5 | DT5: 54.5 | DU5: 54.5 | DV5: 39.6 | DW5: 39.6 | DX5: 48.4 | DY5: 52.4 | DZ5: 36.7 | EA5: 27.0 | EB5: 30.5 | EC5: 14.3 | ED5: 4.0 | EE5: 23.2 | EF5: 47.5 | EG5: 48.1 | EH5: 38.8 | EI5: 36.5 | EJ5: 49.9 | EK5: 39.4 | EL5: 28.0 | EM5: 11.5 | EN5: 33.9 | EO5: 33.9 | EP5: 45.0 | EQ5: 45.0 | ER5: 40.5 | ES5: 31.0 | ET5: 32.5 | EU5: 42.6 | EV5: 46.9 | EW5: 56.0 | EX5: 39.2 | EY5: 37.1 | EZ5: 0.7 | FA5: 37.71 | FB5: 35.73 | FC5: 30.6 | FD5: 27.3 | FE5: 36.6 | FF5: 36.4 | FG5: 21.2 | FH5: 39.51 | FI5: 40.8 | FJ5: 40.8 | FK5: 49.6 | FL5: 29.5 | FM5: 37.9 | FN5: =AVERAGE(FN15:FN21) -> 36.7 | FO5: 50.0 | FP5: 32.1 | FQ5: 33.3 | FR5: 40.0 | FS5: 40.6 | FT5: 48.2 | FU5: 37.5 | FV5: =AVERAGE(FV15:FV21) -> 15.0 | FW5: 22.0 | FY5: 24.3 | FZ5: =AVERAGE(FZ15:FZ21) -> 35.8 | GA5: =AVERAGE(FY5:FZ5) -> 30.0 | GB5: 50.0 | GG5: UT | GH5: =+AC5 -> 36.9 | GI5: 42.6 | GJ5: 54.6 | GK5: 42.9 | GL5: 36.9 | GM5: 46.9 | GN5: 50.0 | GO5: 44.9 | GP5: 46.8 | GQ5: 51.5 | GR5: 43.5 | GS5: 44.2 | GT5: 37.9 | GU5: =+XK5 -> 0.0 | GV5: =+AQ5 -> 39.5 | GW5: 48.6 | GX5: 37.0 | GY5: 39.5 | GZ5: 40.6 | HA5: 33.2 | HB5: 39.5 | HC5: 48.0 | HD5: 37.5 | HE5: 40.8 | HF5: 39.9 | HG5: 42.5 | HH5: 29.7 | HI5: 32.4 | HJ5: 36.2 | HK5: 32.4 | HL5: 38.7 | HM5: 37.0 | HN5: 49.7 | HO5: 48.6 | HP5: 40.8 | HQ5: 52.3 | HR5: =+BL5 -> 52.3 | HS5: 49.0 | HT5: 43.2 | HU5: 45.9 | HV5: 39.4 | HW5: 37.1 | HX5: 45.9 | HY5: 45.9 | HZ5: 28.7 | IA5: 43.2 | IB5: 40.4 | IC5: 42.4 | ID5: 45.4 | IE5: 44.3 | IF5: 48.1 | IG5: 40.6 | IH5: 48.1 | II5: 34.0 | IJ5: 34.9 | IK5: 42.9 | IL5: 43.6 | IM5: 46.1 | IN5: 38.8 | IO5: 35.6 | IP5: 36.2 | IQ5: 49.0 | IR5: 38.7 | IS5: 20.1 | IT5: 35.6 | IU5: 42.2 | IV5: 35.5 | IW5: 31.6 | IX5: 49.3 | IY5: 33.1 | IZ5: 42.2 | JA5: 46.8 | JB5: 34.4 | JC5: 36.8 | JD5: 31.2 | JE5: 41.7 | JF5: 44.3 | JG5: 29.6 | JH5: 40.7 | JI5: 30.1 | JJ5: 39.3 | JK5: 34.6 | JL5: 31.7 | JM5: 39.7 | JN5: 31.4 | JO5: 39.9 | JP5: 42.5 | JQ5: 35.3 | JR5: 34.1 | JS5: 36.2 | JT5: 6.3 | JU5: 0.0 | JV5: 0.0 | JW5: 0.0 | JX5: 0.0 | JY5: 54.5 | JZ5: 54.5 | KA5: 54.5 | KB5: 39.6 | KC5: 39.6 | KD5: 48.4 | KE5: 52.4 | KF5: 36.7 | KG5: 27.0 | KH5: 30.5 | KI5: 14.3 | KJ5: 4.0 | KK5: 23.2 | KL5: 47.5 | KM5: 48.1 | KN5: =+GA5 -> 30.0 | KO5: =+GB5 -> 50.0
A6: DISPONIBILIDAD FISICA | GG6: OAj DF | GH6: =+$GB3 -> 85.0 | GI6: 85.0 | GJ6: 85.0 | GK6: 85.0 | GL6: 85.0 | GM6: 85.0 | GN6: 85.0 | GO6: 85.0 | GP6: 85.0 | GQ6: 85.0 | GR6: 85.0 | GS6: 85.0 | GT6: 85.0 | GU6: 85.0 | GV6: 85.0 | GW6: 85.0 | GX6: 85.0 | GY6: 85.0 | GZ6: 85.0 | HA6: 85.0 | HB6: 85.0 | HC6: 85.0 | HD6: 85.0 | HE6: 85.0 | HF6: 85.0 | HG6: 85.0 | HH6: 85.0 | HI6: 85.0 | HJ6: 85.0 | HK6: 85.0 | HL6: 85.0 | HM6: 85.0 | HN6: =+$GB3 -> 85.0 | HO6: 85.0 | HP6: 85.0 | HQ6: 85.0 | HR6: 85.0 | HS6: 85.0 | HT6: 85.0 | HU6: 85.0 | HV6: 85.0 | HW6: 85.0 | HX6: 85.0 | HY6: 85.0 | HZ6: 85.0 | IA6: 85.0 | IB6: 85.0 | IC6: 85.0 | ID6: 85.0 | IE6: 85.0 | IF6: 85.0 | IG6: 85.0 | IH6: 85.0 | II6: 85.0 | IJ6: 85.0 | IK6: 85.0 | IL6: 85.0 | IM6: 85.0 | IN6: 85.0 | IO6: 85.0 | IP6: 85.0 | IQ6: 85.0 | IR6: 85.0 | IS6: 85.0 | IT6: =+$GB3 -> 85.0 | IU6: 85.0 | IV6: 85.0 | IW6: 85.0 | IX6: 85.0 | IY6: 85.0 | IZ6: 85.0 | JA6: 85.0 | JB6: 85.0 | JC6: 85.0 | JD6: 85.0 | JE6: 85.0 | JF6: 85.0 | JG6: 85.0 | JH6: 85.0 | JI6: 85.0 | JJ6: 85.0 | JK6: 85.0 | JL6: 85.0 | JM6: 85.0 | JN6: 85.0 | JO6: 85.0 | JP6: 85.0 | JQ6: 85.0 | JR6: 85.0 | JS6: 85.0 | JT6: 85.0 | JU6: 85.0 | JV6: 85.0 | JW6: 85.0 | JX6: 85.0 | JY6: =+$GB3 -> 85.0 | JZ6: 85.0 | KA6: 85.0 | KB6: 85.0 | KC6: 85.0 | KD6: 85.0 | KE6: 85.0 | KF6: =+$GB3 -> 85.0 | KG6: 85.0 | KH6: =+$GB3 -> 85.0 | KI6: 85.0 | KJ6: 85.0 | KK6: 85.0 | KL6: 85.0 | KM6: 85.0 | KN6: 85.0 | KO6: 85.0
A7: CAT - 02 | C7: 76.5 | D7: 99.2 | E7: 100.0 | F7: 99.4 | G7: 83.0 | H7: 100.0 | I7: 67.9 | J7: 95.2 | K7: 91.5 | L7: 99.8 | M7: 99.3 | N7: 17.8 | O7: 0.0 | P7: 80.6 | Q7: 90.0 | R7: 91.5 | S7: 100.00 | T7: 89.93 | U7: 94.96 | V7: 89.33 | W7: 99.80 | X7: 86.16 | Y7: 89.33 | Z7: 93.45 | AA7: 93.75 | AB7: 18.55 | AC7: 55.38 | AD7: 43.45 | AE7: 73.86 | AF7: 46.43 | AG7: 99.30 | AH7: 80.01 | AI7: 84.13 | AJ7: 81.70 | AK7: 84.50 | AL7: 91.46 | AM7: 93.90 | AN7: 94.35 | AO7: 100.00 | AP7: 98.11 | AQ7: 72.23 | AR7: 0.00 | AS7: 0.00 | AT7: 0.00 | AU7: 0.00 | AV7: 0.00 | AW7: 42.56 | AX7: 92.46 | AY7: 93.90 | AZ7: 98.71 | BA7: 74.41 | BB7: 91.07 | BC7: 95.54 | BD7: 82.89 | BE7: 99.60 | BF7: 96.73 | BG7: 74.14 | BH7: 87.90 | BI7: 88.39 | BJ7: 81.99 | BK7: 94.94 | BL7: 77.38 | BM7: 98.32 | BN7: 73.75 | BO7: 94.61 | BP7: 89.33 | BQ7: 87.30 | BR7: 87.20 | BS7: 87.20 | BT7: 88.29 | BU7: 92.86 | BV7: 77.08 | BW7: 94.14 | BX7: 98.96 | BY7: 94.94 | BZ7: 100.00 | CA7: 83.18 | CB7: 100.00 | CC7: 99.40 | CD7: 94.05 | CE7: 100.00 | CF7: 89.88 | CG7: 80.45 | CH7: 96.9 | CI7: 63.1 | CJ7: 93.2 | CK7: 81.0 | CL7: 86.3 | CM7: 97.0 | CN7: 98.5 | CO7: 91.7 | CP7: 34.8 | CQ7: 72.5 | CR7: 97.9 | CS7: 83.8 | CT7: 76.3 | CU7: 36.9 | CV7: 0.0 | CW7: 0.0 | CX7: 0.0 | CY7: 0.0 | CZ7: 0.0 | DA7: 0.0 | DB7: 0.0 | DC7: 0.0 | DD7: 0.0 | DE7: 0.0 | DF7: 0.0 | DG7: 60.7 | DH7: 100.0 | DI7: 90.6 | DJ7: 94.6 | DK7: 94.0 | DL7: 85.6 | DM7: 97.6 | DN7: 95.2 | DO7: 100.0 | DP7: 100.0 | DQ7: 100.0 | DR7: 100.0 | DS7: 58.3 | DT7: 58.3 | DU7: 58.3 | DV7: 98.8 | DW7: 98.8 | DX7: 85.8 | DY7: 99.5 | DZ7: 79.2 | EA7: 86.8 | EB7: 90.5 | EC7: 100.0 | ED7: 96.9 | EE7: 85.1 | EF7: 67.0 | EG7: 87.6 | EH7: 87.5 | EI7: 88.7 | EJ7: 78.0 | EK7: 98.0 | EL7: 96.9 | EM7: 87.5 | EN7: 99.1 | EO7: 99.1 | EP7: 89.6 | EQ7: 96.6 | ER7: 90.2 | ES7: 94.6 | ET7: 80.2 | EU7: 88.2 | EV7: 87.1 | EW7: 92.7 | EX7: 97.9 | EY7: 88.5 | EZ7: 91.7 | FA7: 100.00 | FB7: 96.89 | FC7: 88.3 | FD7: 84.2 | FE7: 93.9 | FF7: 100.0 | FG7: 96.3 | FH7: 96.43 | FI7: 68.3 | FJ7: 68.3 | FK7: 100.0 | FL7: 99.1 | FM7: 90.5 | FN7: 96.4 | FO7: 66.0 | FP7: 92.9 | FQ7: 76.8 | FR7: 98.4 | FS7: 100.0 | FT7: 89.9 | FU7: 86.5 | FV7: 98.5 | FW7: 86.0 | FY7: 77.8 | FZ7: ='KPIs SEMANA'!CAB5 -> 0.0 | GB7: 85.0 | GG7: OAj UT | GH7: =+$GB5 -> 50.0 | GI7: 50.0 | GJ7: 50.0 | GK7: 50.0 | GL7: 50.0 | GM7: 50.0 | GN7: 50.0 | GO7: 50.0 | GP7: 50.0 | GQ7: 50.0 | GR7: 50.0 | GS7: 50.0 | GT7: 50.0 | GU7: 50.0 | GV7: 50.0 | GW7: 50.0 | GX7: 50.0 | GY7: 50.0 | GZ7: 50.0 | HA7: 50.0 | HB7: 50.0 | HC7: 50.0 | HD7: 50.0 | HE7: 50.0 | HF7: 50.0 | HG7: 50.0 | HH7: 50.0 | HI7: 50.0 | HJ7: 50.0 | HK7: 50.0 | HL7: 50.0 | HM7: 50.0 | HN7: =+$GB5 -> 50.0 | HO7: 50.0 | HP7: 50.0 | HQ7: 50.0 | HR7: 50.0 | HS7: 50.0 | HT7: 50.0 | HU7: 50.0 | HV7: 50.0 | HW7: 50.0 | HX7: 50.0 | HY7: 50.0 | HZ7: 50.0 | IA7: 50.0 | IB7: 50.0 | IC7: 50.0 | ID7: 50.0 | IE7: 50.0 | IF7: 50.0 | IG7: 50.0 | IH7: 50.0 | II7: 50.0 | IJ7: 50.0 | IK7: 50.0 | IL7: 50.0 | IM7: 50.0 | IN7: 50.0 | IO7: 50.0 | IP7: 50.0 | IQ7: 50.0 | IR7: 50.0 | IS7: 50.0 | IT7: =+$GB5 -> 50.0 | IU7: 50.0 | IV7: 50.0 | IW7: 50.0 | IX7: 50.0 | IY7: 50.0 | IZ7: 50.0 | JA7: 50.0 | JB7: 50.0 | JC7: 50.0 | JD7: 50.0 | JE7: 50.0 | JF7: 50.0 | JG7: 50.0 | JH7: 50.0 | JI7: 50.0 | JJ7: 50.0 | JK7: 50.0 | JL7: 50.0 | JM7: 50.0 | JN7: 50.0 | JO7: 50.0 | JP7: 50.0 | JQ7: 50.0 | JR7: 50.0 | JS7: 50.0 | JT7: 50.0 | JU7: 50.0 | JV7: 50.0 | JW7: 50.0 | JX7: 50.0 | JY7: =+$GB5 -> 50.0 | JZ7: 50.0 | KA7: 50.0 | KB7: 50.0 | KC7: 50.0 | KD7: 50.0 | KE7: 50.0 | KF7: =+$GB5 -> 50.0 | KG7: 50.0 | KH7: 50.0 | KI7: 50.0 | KJ7: 50.0 | KK7: 50.0 | KL7: 50.0 | KM7: 50.0 | KN7: 50.0 | KO7: 50.0
A8: CAT - 03 | C8: 78.9 | D8: 100.0 | E8: 95.2 | F8: 89.3 | G8: 90.0 | H8: 95.0 | I8: 86.5 | J8: 95.8 | K8: 29.8 | L8: 89.1 | M8: 81.9 | N8: 90.7 | O8: 90.3 | P8: 100.0 | Q8: 84.4 | R8: 83.0 | S8: 96.13 | T8: 83.80 | U8: 81.81 | V8: 86.01 | W8: 82.00 | X8: 86.71 | Y8: 25.87 | Z8: 31.40 | AA8: 58.68 | AB8: 89.69 | AC8: 76.76 | AD8: 80.53 | AE8: 80.16 | AF8: 88.20 | AG8: 92.56 | AH8: 87.11 | AI8: 88.44 | AJ8: 93.65 | AK8: 91.10 | AL8: 86.42 | AM8: 79.32 | AN8: 79.27 | AO8: 78.72 | AP8: 100.00 | AQ8: 89.58 | AR8: 93.35 | AS8: 96.03 | AT8: 88.64 | AU8: 87.85 | AV8: 89.48 | AW8: 93.80 | AX8: 91.62 | AY8: 99.40 | AZ8: 76.49 | BA8: 95.93 | BB8: 87.15 | BC8: 92.26 | BD8: 73.66 | BE8: 68.36 | BF8: 22.92 | BG8: 0.00 | BH8: 0.00 | BI8: 1.19 | BJ8: 96.28 | BK8: 86.90 | BL8: 98.01 | BM8: 99.70 | BN8: 92.26 | BO8: 99.89 | BP8: 95.34 | BQ8: 99.51 | BR8: 99.40 | BS8: 99.40 | BT8: 4.76 | BU8: 56.95 | BV8: 94.35 | BW8: 92.36 | BX8: 97.62 | BY8: 91.37 | BZ8: 83.02 | CA8: 89.18 | CB8: 83.02 | CC8: 89.29 | CD8: 92.86 | CE8: 89.68 | CF8: 65.58 | CG8: 10.42 | CH8: 0.0 | CI8: 0.0 | CJ8: 0.0 | CK8: 16.6 | CL8: 0.0 | CM8: 0.0 | CN8: 0.0 | CO8: 0.0 | CP8: 0.0 | CQ8: 0.0 | CR8: 0.0 | CS8: 0.0 | CT8: 46.4 | CU8: 90.6 | CV8: 34.4 | CW8: 93.5 | CX8: 95.8 | CY8: 86.9 | CZ8: 94.0 | DA8: 80.7 | DB8: 76.4 | DC8: 93.8 | DD8: 84.8 | DE8: 72.6 | DF8: 88.4 | DG8: 98.9 | DH8: 91.7 | DI8: 94.0 | DJ8: 87.0 | DK8: 90.5 | DL8: 88.7 | DM8: 99.4 | DN8: 67.3 | DO8: 100.0 | DP8: 66.1 | DQ8: 100.0 | DR8: 100.0 | DS8: 92.0 | DT8: 92.0 | DU8: 92.0 | DV8: 96.4 | DW8: 96.4 | DX8: 82.4 | DY8: 59.5 | DZ8: 0.0 | EA8: 18.8 | EB8: 97.0 | EC8: 95.0 | ED8: 90.6 | EE8: 90.5 | EF8: 40.4 | EG8: 90.5 | EH8: 94.6 | EI8: 100.0 | EJ8: 79.8 | EK8: 100.0 | EL8: 88.4 | EM8: 100.0 | EN8: 95.5 | EO8: 95.5 | EP8: 97.2 | EQ8: 89.6 | ER8: 87.1 | ES8: 82.3 | ET8: 100.0 | EU8: 90.8 | EV8: 78.3 | EW8: 89.6 | EX8: 88.8 | EY8: 98.2 | EZ8: 99.1 | FA8: 66.37 | FB8: 87.20 | FC8: 90.3 | FD8: 82.4 | FE8: 97.3 | FF8: 81.4 | FG8: 96.7 | FH8: 92.56 | FI8: 88.3 | FJ8: 88.3 | FK8: 70.0 | FL8: 92.3 | FM8: 89.6 | FN8: 81.1 | FO8: 5.4 | FP8: 25.6 | FQ8: 83.0 | FR8: 94.3 | FS8: 100.0 | FT8: 91.7 | FU8: 84.4 | FV8: 79.2 | FW8: 90.5 | FY8: 92.1 | FZ8: ='KPIs SEMANA'!CAB8 -> 0.0 | GB8: 85.0
A9: CAT - 04 | C9: 74.6 | D9: 95.9 | E9: 89.9 | F9: 88.1 | G9: 99.2 | H9: 80.4 | I9: 94.5 | J9: 83.9 | K9: 96.2 | L9: 90.0 | M9: 92.3 | N9: 82.6 | O9: 84.8 | P9: 89.2 | Q9: 87.6 | R9: 95.6 | S9: 88.79 | T9: 74.17 | U9: 81.83 | V9: 91.78 | W9: 83.57 | X9: 74.80 | Y9: 96.23 | Z9: 36.70 | AA9: 41.31 | AB9: 80.43 | AC9: 87.67 | AD9: 70.09 | AE9: 84.42 | AF9: 71.03 | AG9: 82.25 | AH9: 88.09 | AI9: 86.11 | AJ9: 94.24 | AK9: 89.80 | AL9: 76.74 | AM9: 94.80 | AN9: 85.02 | AO9: 91.87 | AP9: 89.88 | AQ9: 40.63 | AR9: 92.11 | AS9: 73.96 | AT9: 91.61 | AU9: 76.94 | AV9: 79.46 | AW9: 74.90 | AX9: 89.58 | AY9: 70.98 | AZ9: 81.00 | BA9: 89.58 | BB9: 94.05 | BC9: 99.01 | BD9: 89.48 | BE9: 100.00 | BF9: 86.11 | BG9: 90.48 | BH9: 93.95 | BI9: 91.67 | BJ9: 84.92 | BK9: 88.94 | BL9: 77.98 | BM9: 91.57 | BN9: 89.88 | BO9: 99.01 | BP9: 95.89 | BQ9: 89.68 | BR9: 89.32 | BS9: 89.32 | BT9: 97.72 | BU9: 91.04 | BV9: 97.77 | BW9: 88.79 | BX9: 82.65 | BY9: 80.65 | BZ9: 71.03 | CA9: 95.73 | CB9: 71.03 | CC9: 94.61 | CD9: 80.95 | CE9: 95.04 | CF9: 54.07 | CG9: 59.82 | CH9: 84.1 | CI9: 99.4 | CJ9: 80.3 | CK9: 81.4 | CL9: 93.5 | CM9: 89.3 | CN9: 100.0 | CO9: 84.8 | CP9: 98.5 | CQ9: 79.5 | CR9: 95.6 | CS9: 98.2 | CT9: 45.5 | CU9: 94.6 | CV9: 71.1 | CW9: 0.0 | CX9: 93.2 | CY9: 76.6 | CZ9: 69.3 | DA9: 85.7 | DB9: 89.5 | DC9: 37.5 | DD9: 100.0 | DE9: 100.0 | DF9: 95.2 | DG9: 97.9 | DH9: 92.0 | DI9: 91.1 | DJ9: 98.5 | DK9: 98.7 | DL9: 92.7 | DM9: 82.7 | DN9: 100.0 | DO9: 65.5 | DP9: 90.5 | DQ9: 8.3 | DR9: 4.2 | DS9: 86.2 | DT9: 86.2 | DU9: 86.2 | DV9: 42.0 | DW9: 42.0 | DX9: 85.1 | DY9: 93.0 | DZ9: 91.1 | EA9: 99.1 | EB9: 90.8 | EC9: 100.0 | ED9: 100.0 | EE9: 68.8 | EF9: 90.6 | EG9: 57.1 | EH9: 0.0 | EI9: 0.0 | EJ9: 46.4 | EK9: 88.1 | EL9: 96.2 | EM9: 97.6 | EN9: 99.7 | EO9: 99.7 | EP9: 90.7 | EQ9: 87.6 | ER9: 94.6 | ES9: 78.8 | ET9: 100.0 | EU9: 88.1 | EV9: 87.6 | EW9: 90.0 | EX9: 99.6 | EY9: 82.2 | EZ9: 100 | FA9: 88.69 | FB9: 94.94 | FC9: 92.6 | FD9: 97.3 | FE9: 91.1 | FF9: 98.8 | FG9: 90.8 | FH9: 94.94 | FI9: 87.1 | FJ9: 87.1 | FK9: 58.9 | FL9: 97.0 | FM9: 84.5 | FN9: 97.5 | FO9: 99.4 | FP9: 97.6 | FQ9: 97.7 | FR9: 85.2 | FS9: 99.1 | FT9: 82.4 | FU9: 99.6 | FV9: 75.6 | FW9: 100.0 | FY9: 82.4 | FZ9: ='KPIs SEMANA'!CAB12 -> 100.0 | GB9: 85.0
A10: CAT - 05 | C10: 77.4 | D10: 94.0 | E10: 93.2 | F10: 86.0 | G10: 90.3 | H10: 88.7 | I10: 63.4 | J10: 18.6 | K10: 59.8 | L10: 96.3 | M10: 89.1 | N10: 95.7 | O10: 87.3 | P10: 94.5 | Q10: 91.5 | R10: 87.1 | S10: 87.55 | T10: 99.65 | U10: 87.01 | V10: 84.32 | W10: 83.48 | X10: 95.09 | Y10: 99.51 | Z10: 88.49 | AA10: 91.67 | AB10: 94.94 | AC10: 82.99 | AD10: 79.86 | AE10: 99.66 | AF10: 87.95 | AG10: 76.79 | AH10: 90.87 | AI10: 86.66 | AJ10: 100.00 | AK10: 86.10 | AL10: 31.16 | AM10: 0.00 | AN10: 73.51 | AO10: 99.90 | AP10: 95.24 | AQ10: 99.10 | AR10: 84.72 | AS10: 93.20 | AT10: 90.33 | AU10: 94.49 | AV10: 99.30 | AW10: 83.53 | AX10: 97.87 | AY10: 90.52 | AZ10: 93.05 | BA10: 96.03 | BB10: 94.05 | BC10: 99.85 | BD10: 93.95 | BE10: 87.90 | BF10: 96.48 | BG10: 93.95 | BH10: 88.59 | BI10: 87.20 | BJ10: 96.18 | BK10: 88.35 | BL10: 86.70 | BM10: 92.26 | BN10: 94.35 | BO10: 69.64 | BP10: 0.00 | BQ10: 0.00 | BR10: 100.00 | BS10: 100.00 | BT10: 99.96 | BU10: 82.79 | BV10: 79.17 | BW10: 99.65 | BX10: 25.49 | BY10: 86.16 | BZ10: 84.23 | CA10: 99.77 | CB10: 84.23 | CC10: 92.85 | CD10: 96.98 | CE10: 62.99 | CF10: 68.70 | CG10: 91.96 | CH10: 90.5 | CI10: 94.6 | CJ10: 90.4 | CK10: 78.6 | CL10: 31.0 | CM10: 100.0 | CN10: 100.0 | CO10: 90.0 | CP10: 94.6 | CQ10: 85.1 | CR10: 89.7 | CS10: 94.0 | CT10: 92.3 | CU10: 85.5 | CV10: 92.3 | CW10: 100.0 | CX10: 100.0 | CY10: 95.2 | CZ10: 98.8 | DA10: 91.2 | DB10: 88.4 | DC10: 96.7 | DD10: 85.7 | DE10: 100.0 | DF10: 99.9 | DG10: 86.9 | DH10: 91.8 | DI10: 93.3 | DJ10: 95.2 | DK10: 94.5 | DL10: 87.8 | DM10: 99.7 | DN10: 94.6 | DO10: 86.0 | DP10: 100.0 | DQ10: 100.0 | DR10: 100.0 | DS10: 91.7 | DT10: 91.7 | DU10: 91.7 | DV10: 88.0 | DW10: 88.0 | DX10: 96.3 | DY10: 91.6 | DZ10: 95.8 | EA10: 42.2 | EB10: 0.0 | EC10: 0.0 | ED10: 100.0 | EE10: 97.6 | EF10: 98.3 | EG10: 75.0 | EH10: 89.3 | EI10: 89.3 | EJ10: 96.1 | EK10: 88.5 | EL10: 85.7 | EM10: 98.5 | EN10: 60.0 | EO10: 60.0 | EP10: 92.0 | EQ10: 96.1 | ER10: 67.8 | ES10: 39.3 | ET10: 89.4 | EU10: 79.2 | EV10: 97.0 | EW10: 84.9 | EX10: 77.6 | EY10: 82.0 | EZ10: 100 | FA10: 93.45 | FB10: 98.81 | FC10: 91.2 | FD10: 97.4 | FE10: 91.4 | FF10: 100.0 | FG10: 90.8 | FH10: 95.54 | FI10: 60.0 | FJ10: 60.0 | FK10: 79.9 | FL10: 84.2 | FM10: 99.1 | FN10: 98.8 | FO10: 98.7 | FP10: 92.3 | FQ10: 84.0 | FR10: 91.9 | FS10: 85.7 | FT10: 100.0 | FU10: 83.3 | FV10: 100.0 | FW10: 90.2 | FY10: 99.7 | FZ10: ='KPIs SEMANA'!CAB16 -> 94.2 | GB10: 85.0
A11: CAT - 06 | C11: 77.7 | D11: 95.0 | E11: 100.0 | F11: 91.4 | G11: 83.1 | H11: 85.0 | I11: 100.0 | J11: 78.1 | K11: 92.6 | L11: 92.3 | M11: 93.4 | N11: 37.7 | O11: 91.5 | P11: 92.4 | Q11: 98.2 | R11: 88.7 | S11: 91.52 | T11: 98.39 | U11: 84.23 | V11: 76.98 | W11: 95.28 | X11: 67.51 | Y11: 97.31 | Z11: 94.00 | AA11: 89.29 | AB11: 96.68 | AC11: 74.48 | AD11: 97.32 | AE11: 70.69 | AF11: 99.06 | AG11: 91.07 | AH11: 89.58 | AI11: 92.86 | AJ11: 91.27 | AK11: 100.00 | AL11: 94.54 | AM11: 93.20 | AN11: 91.77 | AO11: 99.70 | AP11: 67.19 | AQ11: 99.16 | AR11: 90.88 | AS11: 89.08 | AT11: 76.19 | AU11: 98.01 | AV11: 89.78 | AW11: 87.25 | AX11: 91.92 | AY11: 17.86 | AZ11: 76.49 | BA11: 85.52 | BB11: 0.00 | BC11: 0.00 | BD11: 0.00 | BE11: 0.00 | BF11: 9.42 | BG11: 94.79 | BH11: 44.55 | BI11: 83.98 | BJ11: 90.18 | BK11: 68.45 | BL11: 98.86 | BM11: 89.69 | BN11: 82.44 | BO11: 92.71 | BP11: 95.09 | BQ11: 94.64 | BR11: 81.15 | BS11: 81.15 | BT11: 89.19 | BU11: 168.00 | BV11: 91.26 | BW11: 97.96 | BX11: 81.65 | BY11: 91.37 | BZ11: 100.00 | CA11: 89.29 | CB11: 100.00 | CC11: 99.98 | CD11: 91.72 | CE11: 98.21 | CF11: 94.92 | CG11: 99.97 | CH11: 99.4 | CI11: 90.7 | CJ11: 87.5 | CK11: 95.5 | CL11: 95.2 | CM11: 99.4 | CN11: 94.3 | CO11: 67.0 | CP11: 87.2 | CQ11: 94.1 | CR11: 66.1 | CS11: 99.7 | CT11: 94.9 | CU11: 97.1 | CV11: 94.6 | CW11: 86.6 | CX11: 92.6 | CY11: 100.0 | CZ11: 90.5 | DA11: 94.0 | DB11: 93.2 | DC11: 94.3 | DD11: 95.1 | DE11: 91.5 | DF11: 99.4 | DG11: 90.9 | DH11: 99.4 | DI11: 67.6 | DJ11: 98.9 | DK11: 94.2 | DL11: 85.6 | DM11: 100.0 | DN11: 100.0 | DO11: 100.0 | DP11: 82.7 | DQ11: 100.0 | DR11: 100.0 | DS11: 95.2 | DT11: 95.2 | DU11: 95.2 | DV11: 98.8 | DW11: 98.8 | DX11: 97.9 | DY11: 84.7 | DZ11: 91.4 | EA11: 73.4 | EB11: 98.2 | EC11: 0.0 | ED11: 100.0 | EE11: 97.3 | EF11: 95.4 | EG11: 66.1 | EH11: 96.7 | EI11: 93.4 | EJ11: 92.3 | EK11: 89.7 | EL11: 99.6 | EM11: 100.0 | EN11: 99.4 | EO11: 99.4 | EP11: 96.4 | EQ11: 85.4 | ER11: 90.7 | ES11: 0.0 | ET11: 39.5 | EU11: 3.6 | EV11: 49.4 | EW11: 99.9 | EX11: 97.2 | EY11: 70.6 | EZ11: 100 | FA11: 93.45 | FB11: 100.00 | FC11: 0.0 | FD11: 0.0 | FE11: 42.9 | FF11: 98.8 | FG11: 95.7 | FH11: 85.12 | FI11: 96.7 | FJ11: 96.7 | FK11: 97.6 | FL11: 98.8 | FM11: 92.2 | FN11: 97.9 | FO11: 96.8 | FP11: 92.8 | FQ11: 97.9 | FR11: 84.8 | FS11: 91.4 | FT11: 100.0 | FU11: 50.2 | FV11: 46.4 | FW11: 92.8 | FY11: 95.5 | FZ11: ='KPIs SEMANA'!CAB20 -> 78.1 | GB11: 85.0
A12: ST - 1030 | C12: 77.1 | D12: 99.4 | E12: 89.1 | F12: 99.4 | G12: 84.6 | H12: 99.7 | I12: 92.4 | J12: 99.4 | K12: 91.7 | L12: 99.7 | M12: 88.1 | N12: 99.0 | O12: 85.4 | P12: 90.2 | Q12: 100.0 | R12: 67.6 | S12: 96.92 | T12: 88.90 | U12: 96.09 | V12: 97.32 | W12: 83.63 | X12: 99.36 | Y12: 89.78 | Z12: 89.29 | AA12: 29.17 | AB12: 77.68 | AC12: 96.36 | AD12: 97.02 | AE12: 91.22 | AF12: 99.46 | AG12: 82.68 | AH12: 99.90 | AI12: 89.58 | AJ12: 93.65 | AK12: 90.70 | AL12: 99.36 | AM12: 86.40 | AN12: 91.57 | AO12: 100.00 | AP12: 100.00 | AQ12: 99.90 | AR12: 88.69 | AS12: 87.60 | AT12: 91.96 | AU12: 62.40 | AV12: 81.25 | AW12: 83.83 | AX12: 92.71 | AY12: 99.90 | AZ12: 86.90 | BA12: 100.00 | BB12: 85.52 | BC12: 76.94 | BD12: 94.05 | BE12: 90.58 | BF12: 99.70 | BG12: 91.67 | BH12: 100.00 | BI12: 94.64 | BJ12: 63.74 | BK12: 70.73 | BL12: 97.32 | BM12: 86.91 | BN12: 77.56 | BO12: 91.59 | BP12: 99.21 | BQ12: 90.18 | BR12: 80.42 | BS12: 80.42 | BT12: 77.58 | BU12: 81.10 | BV12: 71.00 | BW12: 99.80 | BX12: 94.22 | BY12: 86.41 | BZ12: 75.70 | CA12: 96.63 | CB12: 75.70 | CC12: 90.38 | CD12: 89.81 | CE12: 91.71 | CF12: 89.88 | CG12: 60.37 | CH12: 32.4 | CI12: 99.1 | CJ12: 99.1 | CK12: 83.4 | CL12: 50.6 | CM12: 98.5 | CN12: 92.0 | CO12: 54.8 | CP12: 85.7 | CQ12: 86.9 | CR12: 84.4 | CS12: 70.8 | CT12: 74.7 | CU12: 90.8 | CV12: 97.0 | CW12: 33.0 | CX12: 92.5 | CY12: 85.4 | CZ12: 91.1 | DA12: 98.8 | DB12: 98.1 | DC12: 85.0 | DD12: 98.1 | DE12: 72.8 | DF12: 59.2 | DG12: 91.0 | DH12: 90.5 | DI12: 99.7 | DJ12: 83.2 | DK12: 100.0 | DL12: 87.8 | DM12: 98.2 | DN12: 100.0 | DO12: 94.0 | DP12: 100.0 | DQ12: 100.0 | DR12: 100.0 | DS12: 90.8 | DT12: 90.8 | DU12: 90.8 | DV12: 93.7 | DW12: 93.7 | DX12: 52.4 | DY12: 36.9 | DZ12: 0.0 | EA12: 0.0 | EB12: 0.0 | EC12: 0.0 | ED12: 0.0 | EE12: 45.8 | EF12: 82.3 | EG12: 91.4 | EH12: 78.6 | EI12: 90.1 | EJ12: 77.9 | EK12: 96.7 | EL12: 70.1 | EM12: 76.8 | EN12: 33.0 | EO12: 33.0 | EP12: 0.0 | EQ12: 54.2 | ER12: 96.4 | ES12: 79.1 | ET12: 44.4 | EU12: 9.5 | EV12: 50.0 | EW12: 86.3 | EX12: 93.2 | EY12: 90.9 | EZ12: 97 | FA12: 91.67 | FB12: 98.21 | FC12: 94.6 | FD12: 100.0 | FE12: 96.9 | FF12: 98.5 | FG12: 82.1 | FH12: 100.00 | FI12: 60.4 | FJ12: 60.4 | FK12: 18.8 | FL12: 37.5 | FM12: 93.9 | FN12: 98.8 | FO12: 74.4 | FP12: 95.8 | FQ12: 90.7 | FR12: 78.1 | FS12: 90.5 | FT12: 89.3 | FU12: 89.1 | FV12: 94.0 | FW12: 93.5 | FY12: 0.0 | FZ12: ='KPIs SEMANA'!CAB24 -> 99.4 | GB12: 85.0
A13: ST - 1030_2 | CE13: 100.00 | CF13: 98.96 | CG13: 98.96 | CH13: 99.0 | CI13: 78.5 | CJ13: 97.6 | CK13: 92.9 | CL13: 99.4 | CM13: 94.0 | CN13: 100.0 | CO13: 100.0 | CP13: 64.6 | CQ13: 0.0 | CR13: 50.6 | CS13: 92.9 | CT13: 91.5 | CU13: 98.8 | CV13: 94.6 | CW13: 100.0 | CX13: 90.3 | CY13: 97.6 | CZ13: 93.8 | DA13: 98.2 | DB13: 94.6 | DC13: 100.0 | DD13: 92.3 | DE13: 83.3 | DF13: 95.2 | DG13: 99.1 | DH13: 83.9 | DI13: 90.7 | DJ13: 95.5 | DK13: 6.5 | DL13: 93.4 | DM13: 87.5 | DN13: 5.4 | DO13: 0.0 | DP13: 0.0 | DQ13: 0.0 | DR13: 0.0 | DS13: 95.0 | DT13: 95.0 | DU13: 95.0 | DV13: 100.0 | DW13: 100.0 | DX13: 100.0 | DY13: 93.1 | DZ13: 97.0 | EA13: 87.7 | EB13: 98.2 | EC13: 100.0 | ED13: 100.0 | EE13: 100.0 | EF13: 99.3 | EG13: 98.2 | EH13: 93.5 | EI13: 89.4 | EJ13: 97.3 | EK13: 77.4 | EL13: 62.5 | EM13: 100.0 | EN13: 95.8 | EO13: 95.8 | EP13: 88.7 | EQ13: 97.3 | ER13: 87.8 | ES13: 99.4 | ET13: 95.1 | EU13: 98.2 | EV13: 88.6 | EW13: 93.5 | EX13: 68.2 | EY13: 94.9 | EZ13: 98.5 | FA13: 89.29 | FB13: 100.00 | FC13: 100.0 | FD13: 93.5 | FE13: 95.3 | FF13: 87.5 | FG13: 94.6 | FH13: 96.73 | FI13: 97.7 | FJ13: 97.7 | FK13: 100.0 | FL13: 97.0 | FM13: 92.6 | FN13: 98.8 | FO13: 77.9 | FP13: 98.1 | FQ13: 97.6 | FR13: 99.7 | FS13: 89.9 | FT13: 97.7 | FU13: 85.1 | FV13: 100.0 | FW13: 100.0 | FY13: 0.0 | FZ13: ='KPIs SEMANA'!CAB28 -> 98.7 | GB13: 85.0
A14: UTILIZACION
A15: CAT - 02 | T15: 33.24 | U15: 44.69 | V15: 42.53 | W15: 25.00 | X15: 22.17 | Y15: 49.61 | Z15: 69.51 | AA15: 36.45 | AB15: 10.88 | AC15: 19.40 | AD15: 20.73 | AE15: 55.08 | AF15: 8.04 | AG15: 40.02 | AH15: 61.21 | AI15: 49.14 | AJ15: 29.39 | AK15: 67.00 | AL15: 49.33 | AM15: 52.40 | AN15: 34.26 | AO15: 8.33 | AQ15: 63.62 | AR15: 0.00 | AS15: 0.00 | AT15: 0.00 | AU15: 0.00 | AV15: 0.00 | AW15: 9.17 | AX15: 37.54 | AY15: 43.31 | AZ15: 55.54 | BA15: 23.93 | BB15: 55.80 | BC15: 41.61 | BD15: 38.24 | BE15: 50.25 | BF15: 53.07 | BG15: 51.46 | BH15: 51.76 | BI15: 63.34 | BJ15: 58.55 | BK15: 55.03 | BL15: 61.73 | BM15: 43.85 | BN15: 45.84 | BO15: 54.95 | BP15: 57.45 | BQ15: 44.17 | BR15: 46.62 | BS15: 46.62 | BT15: 35.73 | BU15: 45.26 | BV15: 40.89 | BW15: 41.10 | BX15: 28.81 | BY15: 55.62 | BZ15: 45.89 | CA15: 30.07 | CB15: 45.89 | CC15: 27.90 | CD15: 24.68 | CE15: 0.00 | CF15: 3.44 | CG15: 45.13 | CH15: 48.2 | CI15: 33.8 | CJ15: 45.7 | CK15: 47.1 | CL15: 47.9 | CM15: 20.8 | CN15: 51.6 | CO15: 38.2 | CP15: 43.4 | CQ15: 47.8 | CR15: 51.2 | CS15: 36.1 | CT15: 46.5 | CU15: 61.3 | CV15: 0.0 | CW15: 0.0 | CX15: 0.0 | CY15: 0.0 | CZ15: 0.0 | DA15: 0.0 | DB15: 0.0 | DC15: 0.0 | DD15: 0.0 | DE15: 0.0 | DF15: 0.0 | DG15: 0.0 | DH15: 2.1 | DI15: 47.4 | DJ15: 61.5 | DK15: 45.3 | DL15: 51.7 | DM15: 35.7 | DN15: 11.5 | DO15: 0.0 | DP15: 0.0 | DQ15: 0.0 | DR15: 0.0 | DS15: 59.3 | DT15: 59.3 | DU15: 59.3 | DV15: 51.2 | DW15: 51.2 | DX15: 44.3 | DY15: 51.6 | DZ15: 51.9 | EA15: 17.4 | EB15: 49.7 | EC15: 10.0 | ED15: 14.8 | EE15: 27.1 | EF15: 61.8 | EG15: 51.9 | EH15: 60.5 | EI15: 40.3 | EJ15: 40.8 | EK15: 42.8 | EL15: 26.1 | EM15: 4.5 | EN15: 43.9 | EO15: 43.9 | EP15: 51.0 | EQ15: 21.4 | ER15: 38.7 | ES15: 42.1 | ET15: 35.5 | EU15: 47.7 | EV15: 61.8 | EW15: 51.7 | EX15: 15.1 | EY15: 39.9 | EZ15: 2.1 | FA15: 24.79 | FB15: 38.94 | FC15: 25.8 | FD15: 53.7 | FE15: 37.0 | FF15: 53.8 | FG15: 20.9 | FH15: 22.58 | FI15: 55.4 | FJ15: 55.4 | FK15: 60.6 | FL15: 33.7 | FM15: 26.8 | FN15: 34.9 | FO15: 39.7 | FP15: 27.9 | FQ15: 0.2 | FR15: 27.6 | FS15: 41.0 | FT15: 19.3 | FU15: 15.5 | FV15: 10.9 | FW15: 35.0 | FY15: 27.3 | FZ15: ='KPIs SEMANA'!CAB7 -> 0.0 | GB15: 50.0
A16: CAT - 03 | T16: 28.18 | U16: 50.53 | V16: 44.23 | W16: 48.88 | X16: 58.96 | Y16: 19.54 | Z16: 20.00 | AA16: 29.54 | AB16: 52.82 | AC16: 38.27 | AD16: 48.19 | AE16: 59.68 | AF16: 37.10 | AG16: 27.18 | AH16: 35.47 | AI16: 48.88 | AJ16: 56.62 | AK16: 39.20 | AL16: 56.48 | AM16: 43.70 | AN16: 55.34 | AO16: 44.91 | AQ16: 33.22 | AR16: 48.97 | AS16: 48.44 | AT16: 46.61 | AU16: 48.92 | AV16: 38.78 | AW16: 42.20 | AX16: 60.40 | AY16: 46.09 | AZ16: 20.44 | BA16: 39.14 | BB16: 47.29 | BC16: 33.30 | BD16: 27.51 | BE16: 40.35 | BF16: 13.49 | BG16: 0.00 | BH16: 0.00 | BI16: 14.29 | BJ16: 42.39 | BK16: 35.04 | BL16: 54.66 | BM16: 42.48 | BN16: 39.07 | BO16: 50.27 | BP16: 50.67 | BQ16: 45.18 | BR16: 25.15 | BS16: 25.15 | BT16: 0.00 | BU16: 25.71 | BV16: 8.20 | BW16: 32.80 | BX16: 53.05 | BY16: 36.50 | BZ16: 42.73 | CA16: 31.52 | CB16: 42.73 | CC16: 29.60 | CD16: 25.90 | CE16: 12.28 | CF16: 43.30 | CG16: 44.00 | CH16: 0.0 | CI16: 0.0 | CJ16: 0.0 | CK16: 65.4 | CL16: 0.0 | CM16: 0.0 | CN16: 0.0 | CO16: 0.0 | CP16: 0.0 | CQ16: 0.0 | CR16: 0.0 | CS16: 0.0 | CT16: 24.1 | CU16: 46.2 | CV16: 41.7 | CW16: 53.1 | CX16: 43.8 | CY16: 36.5 | CZ16: 39.4 | DA16: 22.7 | DB16: 20.7 | DC16: 38.3 | DD16: 47.1 | DE16: 29.3 | DF16: 31.0 | DG16: 42.6 | DH16: 46.4 | DI16: 47.6 | DJ16: 40.8 | DK16: 54.0 | DL16: 30.9 | DM16: 33.4 | DN16: 12.5 | DO16: 0.0 | DP16: 0.0 | DQ16: 0.0 | DR16: 0.0 | DS16: 45.9 | DT16: 45.9 | DU16: 45.9 | DV16: 44.3 | DW16: 44.3 | DX16: 47.9 | DY16: 53.0 | DZ16: 0.0 | EA16: 10.5 | EB16: 55.2 | EC16: 30.2 | ED16: 8.2 | EE16: 33.8 | EF16: 39.1 | EG16: 47.9 | EH16: 50.6 | EI16: 49.8 | EJ16: 51.6 | EK16: 48.8 | EL16: 29.4 | EM16: 6.5 | EN16: 47.0 | EO16: 47.0 | EP16: 50.0 | EQ16: 45.4 | ER16: 37.7 | ES16: 38.0 | ET16: 24.6 | EU16: 56.6 | EV16: 45.9 | EW16: 44.3 | EX16: 23.7 | EY16: 2.4 | EZ16: 0 | FA16: 32.20 | FB16: 29.11 | FC16: 30.2 | FD16: 33.6 | FE16: 34.2 | FF16: 34.7 | FG16: 24.8 | FH16: 29.63 | FI16: 25.4 | FJ16: 25.4 | FK16: 59.1 | FL16: 45.0 | FM16: 46.7 | FN16: 37.9 | FO16: 69.4 | FP16: 0.0 | FQ16: 34.1 | FR16: 54.6 | FS16: 40.2 | FT16: 54.0 | FU16: 58.6 | FV16: 24.5 | FW16: 25.9 | FY16: 42.4 | FZ16: ='KPIs SEMANA'!CAB10 -> 0.0 | GB16: 50.0
A17: CAT - 04 | T17: 44.64 | U17: 55.87 | V17: 38.84 | W17: 32.80 | X17: 54.10 | Y17: 48.19 | Z17: 19.05 | AA17: 19.37 | AB17: 48.68 | AC17: 47.33 | AD17: 41.53 | AE17: 57.47 | AF17: 46.03 | AG17: 20.31 | AH17: 37.50 | AI17: 47.77 | AJ17: 54.88 | AK17: 44.70 | AL17: 54.76 | AM17: 58.30 | AN17: 50.90 | AO17: 63.17 | AP17: 37.15 | AQ17: 61.25 | AR17: 65.33 | AS17: 47.62 | AT17: 59.91 | AU17: 48.28 | AV17: 50.25 | AW17: 42.34 | AX17: 49.21 | AY17: 39.40 | AZ17: 42.97 | BA17: 49.30 | BB17: 54.18 | BC17: 44.26 | BD17: 54.21 | BE17: 51.43 | BF17: 56.34 | BG17: 57.31 | BH17: 53.44 | BI17: 59.55 | BJ17: 44.58 | BK17: 46.54 | BL17: 55.83 | BM17: 45.22 | BN17: 48.08 | BO17: 35.34 | BP17: 38.82 | BQ17: 48.33 | BR17: 50.59 | BS17: 50.59 | BT17: 39.96 | BU17: 50.80 | BV17: 53.88 | BW17: 47.60 | BX17: 48.04 | BY17: 37.65 | BZ17: 41.48 | CA17: 35.57 | CB17: 41.48 | CC17: 39.70 | CD17: 31.91 | CE17: 57.87 | CF17: 53.51 | CG17: 39.10 | CH17: 50.3 | CI17: 48.6 | CJ17: 50.9 | CK17: 50.3 | CL17: 47.8 | CM17: 12.9 | CN17: 52.1 | CO17: 54.0 | CP17: 45.6 | CQ17: 48.4 | CR17: 54.2 | CS17: 21.9 | CT17: 30.5 | CU17: 45.2 | CV17: 48.4 | CW17: 0.0 | CX17: 37.8 | CY17: 54.0 | CZ17: 52.4 | DA17: 36.8 | DB17: 68.1 | DC17: 27.1 | DD17: 24.4 | DE17: 17.4 | DF17: 22.1 | DG17: 32.8 | DH17: 4.5 | DI17: 3.9 | DJ17: 0.0 | DK17: 0.0 | DL17: 0.0 | DM17: 34.0 | DN17: 0.0 | DO17: 0.0 | DP17: 0.0 | DQ17: 0.0 | DR17: 0.0 | DS17: 62.6 | DT17: 62.6 | DU17: 62.6 | DV17: 8.2 | DW17: 8.2 | DX17: 58.4 | DY17: 55.1 | DZ17: 54.6 | EA17: 25.6 | EB17: 58.9 | EC17: 28.0 | ED17: 0.0 | EE17: 21.8 | EF17: 55.5 | EG17: 38.0 | EH17: 0.0 | EI17: 0.0 | EJ17: 61.3 | EK17: 51.1 | EL17: 38.2 | EM17: 11.9 | EN17: 47.9 | EO17: 47.9 | EP17: 53.6 | EQ17: 60.0 | ER17: 45.4 | ES17: 41.1 | ET17: 34.3 | EU17: 58.0 | EV17: 49.3 | EW17: 60.7 | EX17: 42.0 | EY17: 42.5 | EZ17: 0 | FA17: 53.93 | FB17: 47.49 | FC17: 27.1 | FD17: 16.0 | FE17: 20.6 | FF17: 22.7 | FG17: 12.2 | FH17: 45.61 | FI17: 43.6 | FJ17: 43.6 | FK17: 58.6 | FL17: 52.6 | FM17: 36.5 | FN17: 14.7 | FO17: 36.6 | FP17: 46.3 | FQ17: 56.8 | FR17: 40.6 | FS17: 70.9 | FT17: 54.2 | FU17: 41.1 | FV17: 15.0 | FW17: 21.3 | FY17: 28.1 | FZ17: ='KPIs SEMANA'!CAB14 -> 49.4 | GB17: 50.0
A18: CAT - 05 | T18: 55.68 | U18: 56.78 | V18: 86.50 | W18: -9.52 | X18: 52.70 | Y18: 52.02 | Z18: 60.81 | AA18: 36.30 | AB18: 53.99 | AC18: 30.83 | AD18: 49.39 | AE18: 57.03 | AF18: 58.85 | AG18: 60.71 | AH18: 59.93 | AI18: 49.75 | AJ18: 48.99 | AK18: 47.40 | AL18: 57.88 | AM18: 0.00 | AN18: 44.94 | AO18: 38.37 | AP18: 27.50 | AQ18: 17.90 | AR18: 57.05 | AS18: 31.41 | AT18: 31.30 | AU18: 42.52 | AV18: 46.47 | AW18: 50.68 | AX18: 49.31 | AY18: 50.49 | AZ18: 45.68 | BA18: 42.14 | BB18: 48.46 | BC18: 38.40 | BD18: 41.57 | BE18: 50.47 | BF18: 39.23 | BG18: 47.21 | BH18: 39.10 | BI18: 52.55 | BJ18: 52.30 | BK18: 44.65 | BL18: 52.17 | BM18: 55.99 | BN18: 47.05 | BO18: 45.75 | BP18: 0.00 | BQ18: 0.00 | BR18: 49.35 | BS18: 49.35 | BT18: 35.79 | BU18: 46.95 | BV18: 40.71 | BW18: 44.98 | BX18: 44.36 | BY18: 38.77 | BZ18: 54.63 | CA18: 42.64 | CB18: 54.63 | CC18: 35.00 | CD18: 42.29 | CE18: 64.92 | CF18: 63.59 | CG18: 45.95 | CH18: 58.1 | CI18: 43.5 | CJ18: 48.1 | CK18: 46.0 | CL18: 24.4 | CM18: 24.4 | CN18: 24.4 | CO18: 49.9 | CP18: 42.6 | CQ18: 47.6 | CR18: 55.7 | CS18: 42.4 | CT18: 48.1 | CU18: 35.6 | CV18: 35.5 | CW18: 43.5 | CX18: 38.5 | CY18: 46.0 | CZ18: 48.8 | DA18: 45.4 | DB18: 44.4 | DC18: 39.4 | DD18: 48.4 | DE18: 50.7 | DF18: 47.8 | DG18: 55.0 | DH18: 46.3 | DI18: 49.6 | DJ18: 44.8 | DK18: 50.3 | DL18: 50.7 | DM18: 40.5 | DN18: 7.2 | DO18: 0.0 | DP18: 0.0 | DQ18: 0.0 | DR18: 0.0 | DS18: 58.4 | DT18: 58.4 | DU18: 58.4 | DV18: 42.9 | DW18: 42.9 | DX18: 53.5 | DY18: 55.9 | DZ18: 52.7 | EA18: 43.6 | EB18: 0.0 | EC18: 0.0 | ED18: 0.0 | EE18: 21.3 | EF18: 57.0 | EG18: 59.0 | EH18: 53.4 | EI18: 27.3 | EJ18: 43.4 | EK18: 37.8 | EL18: 31.2 | EM18: 23.1 | EN18: 7.9 | EO18: 7.9 | EP18: 50.3 | EQ18: 39.9 | ER18: 53.2 | ES18: 39.3 | ET18: 89.4 | EU18: 79.2 | EV18: 97.0 | EW18: 84.9 | EX18: 77.6 | EY18: 82.0 | EZ18: 0 | FA18: 48.63 | FB18: 39.40 | FC18: 57.5 | FD18: 40.1 | FE18: 29.4 | FF18: 46.9 | FG18: 60.3 | FH18: 55.31 | FI18: 39.3 | FJ18: 39.3 | FK18: 30.9 | FL18: 28.6 | FM18: 39.9 | FN18: 42.3 | FO18: 46.5 | FP18: 35.8 | FQ18: 53.5 | FR18: 45.4 | FS18: 23.6 | FT18: 50.6 | FU18: 42.9 | FV18: 29.1 | FW18: 14.6 | FY18: 48.1 | FZ18: ='KPIs SEMANA'!CAB18 -> 61.8 | GB18: 50.0
A19: CAT - 06 | T19: 49.76 | U19: 54.98 | V19: 59.52 | W19: 18.45 | X19: 53.60 | Y19: 42.15 | Z19: 46.43 | AA19: 33.26 | AB19: 51.07 | AC19: 37.50 | AD19: 48.33 | AE19: 47.11 | AF19: 51.70 | AG19: 41.70 | AH19: 46.16 | AI19: 54.48 | AJ19: 45.81 | AK19: 46.70 | AL19: 49.55 | AM19: 56.70 | AN19: 40.15 | AO19: 34.51 | AP19: 42.97 | AQ19: 37.28 | AR19: 63.01 | AS19: 48.45 | AT19: 47.66 | AU19: 56.02 | AV19: 49.76 | AW19: 54.52 | AX19: 34.20 | AY19: 8.13 | AZ19: 25.99 | BA19: 38.34 | BB19: 0.00 | BC19: 0.00 | BD19: 0.00 | BE19: 0.00 | BF19: 4.24 | BG19: 47.01 | BH19: 43.15 | BI19: 56.68 | BJ19: 55.47 | BK19: 41.86 | BL19: 49.88 | BM19: 52.61 | BN19: 46.16 | BO19: 37.42 | BP19: 49.42 | BQ19: 48.93 | BR19: 49.73 | BS19: 49.73 | BT19: 36.31 | BU19: 49.82 | BV19: 41.91 | BW19: 40.22 | BX19: 48.63 | BY19: 46.20 | BZ19: 40.06 | CA19: 52.28 | CB19: 40.06 | CC19: 39.35 | CD19: 44.65 | CE19: 55.27 | CF19: 43.46 | CG19: 47.45 | CH19: 61.1 | CI19: 46.4 | CJ19: 48.9 | CK19: 51.8 | CL19: 46.4 | CM19: 37.5 | CN19: 47.4 | CO19: 44.3 | CP19: 32.8 | CQ19: 33.5 | CR19: 24.3 | CS19: 38.3 | CT19: 45.1 | CU19: 37.0 | CV19: 36.7 | CW19: 45.9 | CX19: 37.7 | CY19: 51.3 | CZ19: 56.0 | DA19: 23.0 | DB19: 42.0 | DC19: 38.9 | DD19: 48.1 | DE19: 35.0 | DF19: 34.0 | DG19: 57.6 | DH19: 49.0 | DI19: 50.3 | DJ19: 48.1 | DK19: 50.3 | DL19: 37.7 | DM19: 47.3 | DN19: 9.2 | DO19: 0.0 | DP19: 0.0 | DQ19: 0.0 | DR19: 0.0 | DS19: 59.8 | DT19: 59.8 | DU19: 59.8 | DV19: 39.2 | DW19: 39.2 | DX19: 45.7 | DY19: 56.7 | DZ19: 46.3 | EA19: 61.7 | EB19: 5.4 | EC19: 0.0 | ED19: 3.1 | EE19: 24.1 | EF19: 48.3 | EG19: 50.3 | EH19: 27.3 | EI19: 50.6 | EJ19: 32.9 | EK19: 5.6 | EL19: 20.0 | EM19: 23.7 | EN19: 28.9 | EO19: 28.9 | EP19: 42.2 | EQ19: 40.6 | ER19: 27.2 | ES19: 0.0 | ET19: 9.0 | EU19: 0.0 | EV19: 6.2 | EW19: 36.4 | EX19: 9.3 | EY19: 1.9 | EZ19: 0 | FA19: 40.25 | FB19: 42.29 | FC19: 0.0 | FD19: 0.0 | FE19: 51.1 | FF19: 0.0 | FG19: 17.4 | FH19: 38.34 | FI19: 52.4 | FJ19: 52.4 | FK19: 54.7 | FL19: 23.0 | FM19: 45.3 | FN19: 42.1 | FO19: 57.5 | FP19: 43.9 | FQ19: 53.8 | FR19: 45.4 | FS19: 42.7 | FT19: 58.8 | FU19: 47.7 | FV19: 0.0 | FW19: 11.5 | FY19: 24.2 | FZ19: ='KPIs SEMANA'!CAB22 -> 43.4 | GB19: 50.0
A20: ST - 1030 | T20: 49.99 | U20: 55.44 | V20: 3.42 | W20: 32.73 | X20: 50.14 | Y20: 47.31 | Z20: 46.66 | AA20: 43.69 | AB20: 38.51 | AC20: 47.94 | AD20: 47.22 | AE20: 51.32 | AF20: 55.71 | AG20: 31.41 | AH20: 41.40 | AI20: 49.81 | AJ20: 34.02 | AK20: 35.70 | AL20: 41.22 | AM20: 50.10 | AN20: 39.72 | AO20: 38.39 | AP20: 29.76 | AQ20: 23.86 | AR20: 57.18 | AS20: 46.15 | AT20: 51.72 | AU20: 47.59 | AV20: 14.02 | AW20: 38.03 | AX20: 57.55 | AY20: 37.51 | AZ20: 54.12 | BA20: 46.55 | BB20: 49.33 | BC20: 20.66 | BD20: 32.93 | BE20: 24.95 | BF20: 27.76 | BG20: 29.38 | BH20: 34.34 | BI20: 52.04 | BJ20: 38.08 | BK20: 21.63 | BL20: 39.68 | BM20: 53.82 | BN20: 33.23 | BO20: 51.50 | BP20: 40.00 | BQ20: 35.77 | BR20: 54.11 | BS20: 54.11 | BT20: 24.71 | BU20: 40.66 | BV20: 56.86 | BW20: 47.41 | BX20: 49.28 | BY20: 51.06 | BZ20: 64.09 | CA20: 51.63 | CB20: 64.09 | CC20: 32.40 | CD20: 40.10 | CE20: 51.48 | CF20: 43.38 | CG20: 46.74 | CH20: 0.0 | CI20: 13.2 | CJ20: 13.2 | CK20: 20.3 | CL20: 51.2 | CM20: 26.5 | CN20: 36.8 | CO20: 57.6 | CP20: 45.0 | CQ20: 43.7 | CR20: 60.5 | CS20: 45.5 | CT20: 44.3 | CU20: 49.3 | CV20: 40.6 | CW20: 69.5 | CX20: 43.9 | CY20: 40.1 | CZ20: 56.7 | DA20: 37.8 | DB20: 63.1 | DC20: 38.3 | DD20: 51.1 | DE20: 53.8 | DF20: 31.0 | DG20: 34.0 | DH20: 23.2 | DI20: 42.7 | DJ20: 43.9 | DK20: 47.1 | DL20: 30.8 | DM20: 14.7 | DN20: 3.7 | DO20: 0.0 | DP20: 0.0 | DQ20: 0.0 | DR20: 0.0 | DS20: 56.3 | DT20: 56.3 | DU20: 56.3 | DV20: 45.4 | DW20: 45.4 | DX20: 47.1 | DY20: 43.2 | DZ20: 0.0 | EA20: 0.0 | EB20: 0.0 | EC20: 0.0 | ED20: 0.0 | EE20: 34.2 | EF20: 61.7 | EG20: 55.6 | EH20: 59.5 | EI20: 53.4 | EJ20: 62.2 | EK20: 52.3 | EL20: 29.6 | EM20: 4.4 | EN20: 12.3 | EO20: 12.3 | EP20: 0.0 | EQ20: 55.1 | ER20: 36.9 | ES20: 47.1 | ET20: 7.2 | EU20: 0.0 | EV20: 17.6 | EW20: 58.6 | EX20: 44.9 | EY20: 45.4 | EZ20: 0 | FA20: 37.64 | FB20: 25.20 | FC20: 45.8 | FD20: 39.8 | FE20: 52.6 | FF20: 66.6 | FG20: 5.6 | FH20: 35.54 | FI20: 23.6 | FJ20: 23.6 | FK20: 63.3 | FL20: 0.0 | FM20: 39.4 | FN20: 41.0 | FO20: 47.4 | FP20: 41.9 | FQ20: 33.3 | FR20: 32.9 | FS20: 37.7 | FT20: 49.8 | FU20: 23.0 | FV20: 25.3 | FW20: 33.6 | FY20: 0.0 | FZ20: ='KPIs SEMANA'!CAB26 -> 41.3 | GB20: 50.0
A21: ST - 1030_2 | CE21: 58.45 | CF21: 54.32 | CG21: 54.32 | CH21: 54.3 | CI21: 63.6 | CJ21: 46.5 | CK21: 62.1 | CL21: 53.1 | CM21: 18.6 | CN21: 37.1 | CO21: 51.3 | CP21: 39.3 | CQ21: 0.0 | CR21: 99.3 | CS21: 47.5 | CT21: 57.1 | CU21: 52.8 | CV21: 37.7 | CW21: 45.5 | CX21: 16.8 | CY21: 63.8 | CZ21: 56.9 | DA21: 41.3 | DB21: 46.7 | DC21: 28.4 | DD21: 55.9 | DE21: 56.1 | DF21: 56.1 | DG21: 55.8 | DH21: 48.3 | DI21: 38.1 | DJ21: 58.4 | DK21: 0.0 | DL21: 36.7 | DM21: 47.6 | DN21: 0.0 | DO21: 0.0 | DP21: 0.0 | DQ21: 0.0 | DR21: 0.0 | DS21: 39.3 | DT21: 39.3 | DU21: 39.3 | DV21: 46.3 | DW21: 46.3 | DX21: 41.6 | DY21: 51.3 | DZ21: 51.7 | EA21: 30.0 | EB21: 44.0 | EC21: 32.3 | ED21: 2.0 | EE21: 0.0 | EF21: 9.4 | EG21: 33.8 | EH21: 20.5 | EI21: 33.8 | EJ21: 57.1 | EK21: 37.1 | EL21: 21.2 | EM21: 6.8 | EN21: 49.6 | EO21: 49.6 | EP21: 68.2 | EQ21: 53.0 | ER21: 44.1 | ES21: 9.5 | ET21: 27.3 | EU21: 56.4 | EV21: 50.7 | EW21: 55.7 | EX21: 61.4 | EY21: 45.9 | EZ21: 2.5 | FA21: 26.49 | FB21: 27.68 | FC21: 27.7 | FD21: 8.0 | FE21: 31.0 | FF21: 29.8 | FG21: 7.0 | FH21: 49.58 | FI21: 45.9 | FJ21: 45.9 | FK21: 19.9 | FL21: 23.8 | FM21: 30.9 | FN21: 43.8 | FO21: 52.7 | FP21: 28.6 | FQ21: 1.7 | FR21: 33.9 | FS21: 28.1 | FT21: 51.0 | FU21: 33.8 | FV21: 0.0 | FW21: 12.0 | FY21: 0.0 | FZ21: ='KPIs SEMANA'!CAB30 -> 54.5 | GB21: 50.0
A22: DISPONIBILIDAD MECANICA
A23: CAT - 02 | C23: 76.5 | D23: 99.2 | E23: 100.0 | F23: 99.4 | G23: 83.0 | H23: 100.0 | I23: 67.9 | J23: 95.2 | K23: 91.5 | L23: 99.8 | M23: 99.3 | N23: 17.8 | O23: 0.0 | P23: 80.6 | Q23: 90.0 | R23: 91.5 | S23: 100.00 | T23: 89.93 | U23: 94.96 | V23: 89.33 | W23: 99.80 | X23: 86.16 | Y23: 89.33 | Z23: 93.45 | AA23: 93.75 | AB23: 18.55 | AC23: 55.38 | AD23: 43.45 | AE23: 73.86 | AF23: 46.43 | AG23: 99.30 | AH23: 80.01 | AI23: 84.13 | AJ23: 81.70 | AK23: 84.50 | AL23: 91.46 | AM23: 93.90 | AN23: 94.35 | AO23: 100.00 | AP23: 98.11 | AQ23: 72.23 | AR23: 0.00 | AS23: 0.00 | AT23: 0.00 | AU23: 0.00 | AV23: 0.00 | AW23: 42.56 | AX23: 92.46 | AY23: 93.90 | AZ23: 98.71 | BA23: 74.41 | BB23: 91.07 | BC23: 95.54 | BD23: 82.89 | BE23: 99.60 | BF23: 96.73 | BG23: 74.14 | BH23: 87.90 | BI23: 88.39 | BJ23: 81.99 | BK23: 94.94 | BL23: 77.38 | BM23: 98.32 | BN23: 73.75 | BO23: 94.61 | BP23: 89.33 | BQ23: 87.30 | BR23: 87.20 | BS23: 87.20 | BT23: 88.29 | BU23: 92.86 | BV23: 77.08 | BW23: 94.14 | BX23: 98.96 | BY23: 94.94 | BZ23: 100.00 | CA23: 83.18 | CB23: 100.00 | CC23: 99.40 | CD23: 94.05 | CE23: 100.00 | CJ23: 93.5 | CK23: 81.0 | CL23: 86.3 | CM23: 97.0 | CN23: 98.5 | CO23: 91.7 | CP23: 34.8 | CQ23: 72.5 | CR23: 97.9 | CS23: 83.8 | CT23: 76.3 | CU23: 36.9 | CV23: 0.0 | CW23: 0.0 | CX23: 0.0 | CY23: 0.0 | CZ23: 0.0 | DA23: 0.0 | DB23: 0.0 | DC23: 0.0 | DD23: 0.0 | DE23: 0.0 | DF23: 0.0 | DG23: 60.7 | DH23: 100.0 | DI23: 90.6 | DJ23: 94.6 | DK23: 94.0 | DL23: 85.6 | DM23: 97.6 | DN23: 95.2 | DO23: 100.0 | DP23: 100.0 | DQ23: 100.0 | DR23: 100.0 | DS23: 58.3 | DT23: 58.3 | DU23: 58.3 | DV23: 98.8 | DW23: 98.8 | DX23: 85.8 | DY23: 99.5 | DZ23: 79.2 | EA23: 86.8 | EB23: 90.5 | EC23: 100.0 | ED23: 96.9 | EE23: 85.1 | EF23: 67.0 | EG23: 87.6 | EH23: 87.5 | EI23: 88.7 | EJ23: 78.0 | EK23: 98.0 | EL23: 96.9 | EM23: 87.5 | EN23: 99.1 | EO23: 99.1 | EP23: 89.6 | EQ23: 96.6 | ER23: 90.2 | ES23: 94.6 | ET23: 80.2 | EU23: 88.2 | EV23: 87.1 | EW23: 92.7 | EX23: 97.9 | EY23: 88.5 | EZ23: 91.7 | FA23: 100.00 | FB23: 96.89 | FC23: 88.3 | FD23: 84.2 | FE23: 93.9 | FF23: 100.0 | FG23: 96.3 | FH23: 96.43 | FI23: 68.3 | FJ23: 68.3 | FK23: 100.0 | FL23: 99.1 | FM23: 90.5 | FN23: 96.4 | FO23: 66.0 | FP23: 92.9 | FQ23: 76.8 | FR23: 98.4 | FS23: 100.0 | FT23: 89.9 | FU23: 86.5 | FV23: 98.5 | FW23: 86.0 | FY23: 77.8 | FZ23: ='KPIs SEMANA'!CAB6 -> 0.0
A24: CAT - 03 | C24: 78.9 | D24: 100.0 | E24: 95.2 | F24: 89.3 | G24: 90.0 | H24: 95.0 | I24: 86.5 | J24: 95.8 | K24: 29.8 | L24: 89.1 | M24: 81.9 | N24: 90.7 | O24: 90.3 | P24: 100.0 | Q24: 84.4 | R24: 83.0 | S24: 96.13 | T24: 83.80 | U24: 81.81 | V24: 86.01 | W24: 82.00 | X24: 86.71 | Y24: 25.87 | Z24: 31.40 | AA24: 58.68 | AB24: 89.69 | AC24: 76.76 | AD24: 80.53 | AE24: 80.16 | AF24: 88.20 | AG24: 92.56 | AH24: 87.11 | AI24: 88.44 | AJ24: 93.65 | AK24: 91.10 | AL24: 86.42 | AM24: 79.32 | AN24: 79.27 | AO24: 78.72 | AP24: 100.00 | AQ24: 89.58 | AR24: 93.35 | AS24: 96.03 | AT24: 88.64 | AU24: 87.85 | AV24: 89.48 | AW24: 93.80 | AX24: 91.62 | AY24: 99.40 | AZ24: 76.49 | BA24: 95.93 | BB24: 87.15 | BC24: 92.26 | BD24: 73.66 | BE24: 68.36 | BF24: 22.92 | BG24: 0.00 | BH24: 0.00 | BI24: 1.19 | BJ24: 96.28 | BK24: 86.90 | BL24: 98.01 | BM24: 99.70 | BN24: 92.26 | BO24: 99.89 | BP24: 95.34 | BQ24: 99.51 | BR24: 99.40 | BS24: 99.40 | BT24: 4.76 | BU24: 56.95 | BV24: 94.35 | BW24: 92.36 | BX24: 97.62 | BY24: 91.37 | BZ24: 83.02 | CA24: 89.18 | CB24: 83.02 | CC24: 89.29 | CD24: 92.86 | CE24: 89.68 | CJ24: 100.0 | CK24: 100.0 | CL24: 100.0 | CM24: 100.0 | CN24: 100.0 | CO24: 100.0 | CP24: 100.0 | CQ24: 100.0 | CR24: 0.0 | CS24: 100.0 | CT24: 77.0 | CU24: 92.3 | CV24: 34.4 | CW24: 93.5 | CX24: 95.8 | CY24: 86.9 | CZ24: 94.0 | DA24: 80.7 | DB24: 76.4 | DC24: 93.8 | DD24: 84.8 | DE24: 72.6 | DF24: 88.4 | DG24: 98.9 | DH24: 91.7 | DI24: 94.0 | DJ24: 87.0 | DK24: 90.5 | DL24: 88.7 | DM24: 99.4 | DN24: 67.3 | DO24: 100.0 | DP24: 66.1 | DQ24: 100.0 | DR24: 100.0 | DS24: 92.0 | DT24: 92.0 | DU24: 92.0 | DV24: 96.4 | DW24: 96.4 | DX24: 82.4 | DY24: 100.0 | DZ24: 100.0 | EA24: 18.8 | EB24: 97.0 | EC24: 95.0 | ED24: 90.6 | EE24: 90.5 | EF24: 40.4 | EG24: 90.5 | EH24: 94.6 | EI24: 100.0 | EJ24: 79.8 | EK24: 100.0 | EL24: 88.4 | EM24: 100.0 | EN24: 95.5 | EO24: 95.5 | EP24: 97.2 | EQ24: 89.6 | ER24: 87.1 | ES24: 82.3 | ET24: 100.0 | EU24: 90.8 | EV24: 78.3 | EW24: 89.6 | EX24: 88.8 | EY24: 98.2 | EZ24: 99.1 | FA24: 66.37 | FB24: 87.20 | FC24: 90.3 | FD24: 82.4 | FE24: 97.3 | FF24: 81.4 | FG24: 96.7 | FH24: 92.56 | FI24: 88.3 | FJ24: 88.3 | FK24: 70.0 | FL24: 92.3 | FM24: 89.6 | FN24: 81.1 | FO24: 5.4 | FP24: 25.6 | FQ24: 83.0 | FR24: 94.3 | FS24: 100.0 | FT24: 91.7 | FU24: 84.4 | FV24: 79.2 | FW24: 90.5 | FY24: 92.1 | FZ24: ='KPIs SEMANA'!CAB9 -> 0.0
A25: CAT - 04 | C25: 74.6 | D25: 95.9 | E25: 89.9 | F25: 88.1 | G25: 99.2 | H25: 80.4 | I25: 94.5 | J25: 83.9 | K25: 96.2 | L25: 90.0 | M25: 92.3 | N25: 82.6 | O25: 84.8 | P25: 89.2 | Q25: 87.6 | R25: 95.6 | S25: 88.79 | T25: 74.17 | U25: 81.83 | V25: 91.78 | W25: 83.57 | X25: 74.80 | Y25: 96.23 | Z25: 36.70 | AA25: 41.31 | AB25: 80.43 | AC25: 87.67 | AD25: 70.09 | AE25: 84.42 | AF25: 71.03 | AG25: 82.25 | AH25: 88.09 | AI25: 86.11 | AJ25: 94.24 | AK25: 89.80 | AL25: 76.74 | AM25: 94.80 | AN25: 85.02 | AO25: 91.87 | AP25: 89.88 | AQ25: 40.63 | AR25: 92.11 | AS25: 73.96 | AT25: 91.61 | AU25: 76.94 | AV25: 79.46 | AW25: 74.90 | AX25: 89.58 | AY25: 70.98 | AZ25: 81.00 | BA25: 89.58 | BB25: 94.05 | BC25: 99.01 | BD25: 89.48 | BE25: 100.00 | BF25: 86.11 | BG25: 90.48 | BH25: 93.95 | BI25: 91.67 | BJ25: 84.92 | BK25: 88.94 | BL25: 77.98 | BM25: 91.57 | BN25: 89.88 | BO25: 99.01 | BP25: 95.89 | BQ25: 89.68 | BR25: 89.32 | BS25: 89.32 | BT25: 97.72 | BU25: 91.04 | BV25: 97.77 | BW25: 88.79 | BX25: 82.65 | BY25: 80.65 | BZ25: 71.03 | CA25: 95.73 | CB25: 71.03 | CC25: 94.61 | CD25: 80.95 | CE25: 95.04 | CJ25: 81.8 | CK25: 81.4 | CL25: 94.0 | CM25: 89.3 | CN25: 100.0 | CO25: 84.8 | CP25: 98.5 | CQ25: 79.5 | CR25: 95.6 | CS25: 98.2 | CT25: 45.5 | CU25: 94.6 | CV25: 71.1 | CW25: 0.0 | CX25: 93.2 | CY25: 76.6 | CZ25: 69.3 | DA25: 85.7 | DB25: 89.5 | DC25: 37.5 | DD25: 100.0 | DE25: 100.0 | DF25: 95.2 | DG25: 97.9 | DH25: 92.0 | DI25: 91.1 | DJ25: 98.5 | DK25: 98.7 | DL25: 92.7 | DM25: 82.7 | DN25: 100.0 | DO25: 65.5 | DP25: 90.5 | DQ25: 8.3 | DR25: 4.2 | DS25: 86.2 | DT25: 86.2 | DU25: 86.2 | DV25: 42.0 | DW25: 42.0 | DX25: 85.1 | DY25: 93.0 | DZ25: 91.1 | EA25: 99.1 | EB25: 90.8 | EC25: 100.0 | ED25: 100.0 | EE25: 68.8 | EF25: 90.6 | EG25: 57.1 | EH25: 0.0 | EI25: 0.0 | EJ25: 46.4 | EK25: 88.1 | EL25: 96.2 | EM25: 97.6 | EN25: 99.7 | EO25: 99.7 | EP25: 90.7 | EQ25: 87.6 | ER25: 94.6 | ES25: 79.8 | ET25: 100.0 | EU25: 88.1 | EV25: 87.6 | EW25: 90.0 | EX25: 99.6 | EY25: 82.2 | EZ25: 100 | FA25: 88.69 | FB25: 94.94 | FC25: 92.6 | FD25: 97.3 | FE25: 91.1 | FF25: 98.8 | FG25: 90.8 | FH25: 94.94 | FI25: 87.1 | FJ25: 87.1 | FK25: 58.9 | FL25: 97.0 | FM25: 84.5 | FN25: 97.5 | FO25: 99.4 | FP25: 97.6 | FQ25: 97.7 | FR25: 85.2 | FS25: 99.1 | FT25: 82.4 | FU25: 99.6 | FV25: 75.6 | FW25: 100.0 | FY25: 82.4 | FZ25: ='KPIs SEMANA'!CAB13 -> 100.0
A26: CAT - 05 | C26: 77.4 | D26: 94.0 | E26: 93.2 | F26: 86.0 | G26: 90.3 | H26: 88.7 | I26: 63.4 | J26: 18.6 | K26: 59.8 | L26: 96.3 | M26: 89.1 | N26: 95.7 | O26: 87.3 | P26: 94.5 | Q26: 91.5 | R26: 87.1 | S26: 87.55 | T26: 99.65 | U26: 87.01 | V26: 84.32 | W26: 83.48 | X26: 95.09 | Y26: 99.51 | Z26: 88.49 | AA26: 91.67 | AB26: 94.94 | AC26: 82.99 | AD26: 79.86 | AE26: 99.66 | AF26: 87.95 | AG26: 76.79 | AH26: 90.87 | AI26: 86.66 | AJ26: 100.00 | AK26: 86.10 | AL26: 31.16 | AM26: 0.00 | AN26: 73.51 | AO26: 99.90 | AP26: 95.24 | AQ26: 99.10 | AR26: 84.72 | AS26: 93.20 | AT26: 90.33 | AU26: 94.49 | AV26: 99.30 | AW26: 83.53 | AX26: 97.87 | AY26: 90.52 | AZ26: 93.05 | BA26: 96.03 | BB26: 94.05 | BC26: 99.85 | BD26: 93.95 | BE26: 87.90 | BF26: 96.48 | BG26: 93.95 | BH26: 88.59 | BI26: 87.20 | BJ26: 96.18 | BK26: 88.35 | BL26: 86.70 | BM26: 92.26 | BN26: 94.35 | BO26: 69.64 | BP26: 0.00 | BQ26: 0.00 | BR26: 100.00 | BS26: 100.00 | BT26: 99.96 | BU26: 82.79 | BV26: 79.17 | BW26: 99.65 | BX26: 25.49 | BY26: 86.16 | BZ26: 84.23 | CA26: 99.77 | CB26: 84.23 | CC26: 92.85 | CD26: 96.98 | CE26: 62.99 | CJ26: 90.4 | CK26: 78.6 | CL26: 31.0 | CM26: 100.0 | CN26: 100.0 | CO26: 90.0 | CP26: 94.6 | CQ26: 85.1 | CR26: 89.7 | CS26: 94.0 | CT26: 92.3 | CU26: 85.5 | CV26: 92.3 | CW26: 100.0 | CX26: 100.0 | CY26: 95.2 | CZ26: 98.8 | DA26: 91.2 | DB26: 88.4 | DC26: 96.7 | DD26: 85.7 | DE26: 100.0 | DF26: 99.9 | DG26: 86.9 | DH26: 91.8 | DI26: 93.3 | DJ26: 95.2 | DK26: 94.5 | DL26: 87.8 | DM26: 99.7 | DN26: 94.6 | DO26: 86.0 | DP26: 100.0 | DQ26: 100.0 | DR26: 100.0 | DS26: 91.7 | DT26: 91.7 | DU26: 91.7 | DV26: 88.0 | DW26: 88.0 | DX26: 96.3 | DY26: 91.6 | DZ26: 95.8 | EA26: 42.2 | EB26: 0.0 | EC26: 0.0 | ED26: 100.0 | EE26: 97.6 | EF26: 98.3 | EG26: 75.0 | EH26: 89.3 | EI26: 89.3 | EJ26: 96.1 | EK26: 88.5 | EL26: 85.7 | EM26: 98.5 | EN26: 47.9 | EO26: 47.9 | EP26: 53.6 | EQ26: 96.1 | ER26: 67.8 | ES26: 39.3 | ET26: 89.4 | EU26: 79.2 | EV26: 97.0 | EW26: 84.9 | EX26: 77.6 | EY26: 82.0 | EZ26: 100 | FA26: 93.45 | FB26: 98.81 | FC26: 91.2 | FD26: 97.4 | FE26: 91.4 | FF26: 100.0 | FG26: 90.8 | FH26: 95.54 | FI26: 60.0 | FJ26: 60.0 | FK26: 79.9 | FL26: 84.2 | FM26: 99.1 | FN26: 98.8 | FO26: 98.7 | FP26: 92.3 | FQ26: 84.0 | FR26: 91.9 | FS26: 85.7 | FT26: 100.0 | FU26: 83.3 | FV26: 100.0 | FW26: 90.2 | FY26: 99.7 | FZ26: ='KPIs SEMANA'!CAB16 -> 94.2
A27: CAT - 06 | C27: 77.7 | D27: 95.0 | E27: 100.0 | F27: 91.4 | G27: 83.1 | H27: 85.0 | I27: 100.0 | J27: 78.1 | K27: 92.6 | L27: 92.3 | M27: 93.4 | N27: 37.7 | O27: 91.5 | P27: 92.4 | Q27: 98.2 | R27: 88.7 | S27: 91.52 | T27: 98.39 | U27: 84.23 | V27: 76.98 | W27: 95.28 | X27: 67.51 | Y27: 97.31 | Z27: 94.00 | AA27: 89.29 | AB27: 96.68 | AC27: 74.48 | AD27: 97.32 | AE27: 70.69 | AF27: 99.06 | AG27: 91.07 | AH27: 89.58 | AI27: 92.86 | AJ27: 91.27 | AK27: 100.00 | AL27: 94.54 | AM27: 93.20 | AN27: 91.77 | AO27: 99.70 | AP27: 67.19 | AQ27: 99.16 | AR27: 90.88 | AS27: 89.08 | AT27: 76.19 | AU27: 98.01 | AV27: 89.78 | AW27: 87.25 | AX27: 91.92 | AY27: 17.86 | AZ27: 76.49 | BA27: 85.52 | BB27: 0.00 | BC27: 0.00 | BD27: 0.00 | BE27: 0.00 | BF27: 9.42 | BG27: 94.79 | BH27: 44.55 | BI27: 83.98 | BJ27: 90.18 | BK27: 68.45 | BL27: 98.86 | BM27: 89.69 | BN27: 82.44 | BO27: 92.71 | BP27: 95.09 | BQ27: 94.64 | BR27: 81.15 | BS27: 81.15 | BT27: 89.19 | BU27: 168.00 | BV27: 91.26 | BW27: 97.96 | BX27: 81.65 | BY27: 91.37 | BZ27: 100.00 | CA27: 89.29 | CB27: 100.00 | CC27: 99.98 | CD27: 91.72 | CE27: 98.21 | CJ27: 87.5 | CK27: 95.5 | CL27: 95.2 | CM27: 99.4 | CN27: 94.3 | CO27: 67.0 | CP27: 87.2 | CQ27: 94.1 | CR27: 66.1 | CS27: 99.7 | CT27: 94.9 | CU27: 97.1 | CV27: 94.6 | CW27: 86.6 | CX27: 92.6 | CY27: 100.0 | CZ27: 90.5 | DA27: 94.0 | DB27: 93.2 | DC27: 94.3 | DD27: 95.1 | DE27: 91.5 | DF27: 99.4 | DG27: 90.9 | DH27: 99.4 | DI27: 67.6 | DJ27: 98.9 | DK27: 94.2 | DL27: 85.6 | DM27: 100.0 | DN27: 100.0 | DO27: 100.0 | DP27: 82.7 | DQ27: 100.0 | DR27: 100.0 | DS27: 95.2 | DT27: 95.2 | DU27: 95.2 | DV27: 98.8 | DW27: 98.8 | DX27: 97.9 | DY27: 84.7 | DZ27: 91.4 | EA27: 73.4 | EB27: 98.2 | EC27: 0.0 | ED27: 100.0 | EE27: 97.3 | EF27: 95.4 | EG27: 66.1 | EH27: 96.7 | EI27: 93.4 | EJ27: 92.3 | EK27: 89.7 | EL27: 99.6 | EM27: 100.0 | EN27: 99.4 | EO27: 99.4 | EP27: 96.4 | EQ27: 85.4 | ER27: 90.7 | ES27: 0.0 | ET27: 34.8 | EU27: 3.6 | EV27: 49.4 | EW27: 99.9 | EX27: 97.2 | EY27: 70.6 | EZ27: 100 | FA27: 93.45 | FB27: 100.00 | FC27: 0.0 | FD27: 0.0 | FE27: 42.9 | FF27: 98.8 | FG27: 95.7 | FH27: 85.12 | FI27: 96.7 | FJ27: 96.7 | FK27: 97.6 | FL27: 98.8 | FM27: 92.2 | FN27: 97.9 | FO27: 96.8 | FP27: 92.8 | FQ27: 97.9 | FR27: 84.8 | FS27: 91.4 | FT27: 100.0 | FU27: 93.1 | FV27: 46.4 | FW27: 92.8 | FY27: 95.5 | FZ27: ='KPIs SEMANA'!CAB21 -> 78.1
